{"text_format":"1","workbook":"xlsx","n_sheets":5,"sheets":["Instructions","List of Required Products","USDAFoods Product Information","NAI","Material List"],"not_rendered":{"charts":0,"images":2,"macros":1,"external_links":0,"defined_names":5,"comments":0,"pivot_tables":0},"unopened":[],"bounds":{"document_bytes":16777216,"sheet_cells":100000,"rows_first":2000,"rows_last":500,"rows_between":2000,"halvings":0,"cell_chars":16384,"cell_head_chars":4096},"cells_cut":0,"cells_raw":0,"read":"whole","date_system":"1900"}

{"sheet":"Instructions","index":0,"n_rows":45,"n_cols":7,"rows_kept":45,"cut":false,"hidden":false,"merged":[]}
[]
[null,null,null,null,null,null,"How to Use the USDA Foods Database"]
[]
["Vendor-specific product information can be found in the USDA Foods Database by utilizing the 6-digit USDA"]
["material code. Click this link to access the",null,null,null,null,"List of Required Products for the USDA Foods Database."]
[]
["To search for product information:"]
[]
["1.","Open the file and select File and Save As to Download a Copy to your computer. Note: the USDA Foods "]
[null,"Database can only be navigated once downloaded and saved.  "]
[]
["2.","Once downloaded, open the file on your computer and click Enable Content in the yellow Security Warning "]
[null,"at the top of the spreadsheet. Another Security Warning may appear asking “Do you want to make this file "]
[null,"a Trusted Document?”. Click Yes."]
[]
["3.","Click the Food Category drop-down and select the desired food category. Note: the drop down can be "]
[null,"accessed by single clicking into cell B1 and then clicking the box with the down arrow to the right of Cell B1. "]
[]
["4.","A pop-up box will appear stating, “Listing only <selected category> in Cell D1.” Click OK."]
[]
["5.","Click the Material Code drop-down and select the desired material code. Note: the drop down can be "]
[null,"accessed by single clicking into cell D1/E1 and then clicking the box with the down arrow next to the right of"]
[null,"Cell E1."]
[]
["6.","A pop-up box will appear stating, “Would you like to import <selected material code and description> "]
[null,"information?”. Click Yes."]
[]
["7.","Product information will appear in all six sections of the spreadsheet. A pop-up box will also appear stating, "]
[null,"“<selected material code and description> information imported.” Click OK. "]
[null,"a.","Each vendor that supplies the selected material will be listed in columns B through E."]
[null,"b.","The USDA Foods Database will list 4 vendors per page. Scroll down to the next page to see additional "]
[null,null,"vendors. "]
[null,"c.","If product information is not available in the USDA Foods Database, a pop-up box will appear stating, "]
[null,null,"“Vendor information for <selected material code and description> is not available.” Click OK to search "]
[null,null,"for another material code. "]
[]
["8.","Repeat steps 1 through 5 to search for new product information."]
[]
["9.","To clear the product information, click in the food category field (Cell B1) and hit the Delete button on "]
[null,"your keyboard."]
[]
["10.","A pop-up box will appear stating “This will clear summary information.” Click OK."]
[]
["11.","The product information has been cleared and a pop-up box will appear stating, “Summary information"]
[null," cleared.”"]

{"sheet":"List of Required Products","index":1,"n_rows":154,"n_cols":5,"rows_kept":154,"cut":false,"hidden":false,"merged":[[0,0,0,4],[1,0,1,4]]}
["List of Required Products for the USDA Foods Database \nfor States Agencies and School Districts"]
["The USDA Foods Database will provide product information for all USDA Foods direct delivered products found below. However, all products from all vendors are not currently available at this time. Column E, titled \"Product Currently Available in the USDA Foods Database\", indicates if a product currently contains vendor-specific product information in the database. This column will be updated monthly as more products are included with each UDSA Foods Database release. "]
["Category","USDA Foods Description","Material Code","Pack Size","Product Currently Available in the USDA Foods Database"]
["Beef","Beef, Coarse Ground, Cooked, Canned",100127,"24/24 oz can","Yes"]
["Beef","Beef, Crumbles w/SPP, Cooked, Frozen",100134,"4/10 lb bag","Yes"]
["Beef","Beef, Fine Ground, 100%, 85/15, Raw, Frozen",100158,"40 lb case","Yes"]
["Beef","Beef, Patties, Lean, Raw, 2.0 MMA, Frozen",100163,"40 lb case","Yes"]
["Beef","Beef, Fine Ground, 100%, 85/15, LFTB OPT, Raw, Frozen",110261,"40 lb case","Yes"]
["Beef","Beef, Patties w/SPP, Cooked, 2.0 MMA, Frozen",110322,"40 lb case","Yes"]
["Beef","Beef, Patties, 100%, 90/10, Raw, 2.0 MMA, Frozen",110346,"40 lb case","Yes"]
["Beef","Beef, Patties w/SPP, 85/15, Raw, 2.0 MMA, Frozen",110348,"40 lb case","No"]
["Beef","Beef, Patties, 100%, 85/15, Raw, 2.0 MMA, Frozen",110349,"40 lb case","Yes"]
["Beef","Beef, Patties, Cooked, 2.0 MMA, Frozen",110711,"40 lb case","Yes"]
["Cheese","Cheese, Cheddar, White, Shredded, Chilled",100002,"6/5 lb bag","Yes"]
["Cheese","Cheese, Cheddar, Yellow, Shredded, Chilled",100003,"6/5 lb bag","Yes"]
["Cheese","Cheese, Cheddar, Yellow, Reduced Fat, Shredded, Chilled",100012,"6/5 lb bag","Yes"]
["Cheese","Cheese, American, Yellow, Pasteurized, Loaves, Chilled",100017,"6/5 lb package","Yes"]
["Cheese","Cheese, American, Yellow, Pasteurized, Sliced, Chilled",100018,"6/5 lb package","Yes"]
["Cheese","Cheese, American, White, Pasteurized, Sliced, Chilled  ",100019,"6/5 lb package","No"]
["Cheese","Cheese, Mozzarella, Low Moisture Part Skim, Shredded, Frozen",100021,"30 lb case","Yes"]
["Cheese","Cheese, Mozzarella, Low Moisture Part Skim, Loaves, Frozen ",100022,"8/6 lb package","Yes"]
["Cheese","Cheese, Mozzarella, Lite, Shredded, Frozen ",100034,"30 lb case","No"]
["Cheese","Cheese, Blended American, Yellow, Reduced Fat, Sliced, Chilled",100036,"6/5 lb package","Yes"]
["Cheese","Cheese, Blended American, White, Reduced Fat, Sliced, Chilled",100037,"6/5 lb package","Yes"]
["Cheese","Cheese, Mozzarella, Low Moisture Part Skim, String, Chilled",110396,"360/1 oz package","Yes"]
["Cheese","Cheese, Cheddar, Yellow, Sliced, Chilled",111110,"12 lb case","Yes"]
["Cheese","Cheese, Pepper Jack, Shredded, Chilled",111220,"4/5 lb bag","Yes"]
["Egg products","Eggs, Liquid Whole, Frozen ",100046,"6/5 lb carton","Yes"]
["Egg products","Eggs, Liquid Whole, Frozen ",110845,"12/2 lb carton","Yes"]
["Egg products","Eggs, Patties, Cooked, 1.0 MMA, Round, Frozen",111751,"25 lb case","Yes"]
["Fish","Catfish, Whole Grain-Rich Breaded Fillet Strips, Frozen",100201,"8/5 lb or 4/10 lb bag","No"]
["Fish","Alaska Pollock, Whole Grain-Rich Breaded Sticks, Frozen",110851,"8/5 lb or 4/10 lb bag","Yes"]
["Fruit","Apple Juice, 100%, Unsweetened, Cups, Frozen",111790,"96/4 oz cup","Yes"]
["Fruit","Apple Slices, Unsweetened, Canned",100206,"6/#10 can","Yes"]
["Fruit","Mixed Fruit (Peaches, Pears, Grapes), Extra Light Syrup, Canned",100212,"6/#10 can","Yes"]
["Fruit","Apricots, Diced, Extra Light Syrup, Canned",100216,"6/#10 can","Yes"]
["Fruit","Peaches, Sliced, Extra Light Syrup, Canned",100219,"6/#10 can","Yes"]
["Fruit","Peaches, Diced, Extra Light Syrup, Canned",100220,"6/#10 can","Yes"]
["Fruit","Pears, Sliced, Extra Light Syrup, Canned",100224,"6/#10 can","Yes"]
["Fruit","Pears, Diced, Extra Light Syrup, Canned (K)",100225,"6/#10 can","Yes"]
["Fruit","Pears, Halves, Extra Light Syrup, Canned",100226,"6/#10 can","Yes"]
["Fruit","Peaches, Sliced, Frozen ",100238,"12/2 lb bag","Yes"]
["Fruit","Peaches, Sliced, Frozen ",100239,"20 lb case","Yes"]
["Fruit","Peaches, Diced, Cups, Frozen ",100241,"96/4.4 oz cup","Yes"]
["Fruit","Blueberries, Wild, Unsweetened, Frozen ",100242,"8/3 lb bag","Yes"]
["Fruit","Blueberries, Wild, Unsweetened, Frozen ",100243,"30 lb case","Yes"]
["Fruit","Strawberries, Sliced, Frozen",100254,"30 lb pail","Yes"]
["Fruit","Strawberries, Diced, Cups, Frozen",100256,"96/4.5 oz cup","Yes"]
["Fruit","Apple Slices, Unsweetened, Frozen (IQF)",100258,"30 lb case","No"]
["Fruit","Apricots, Diced, Cups, Frozen ",100261,"96/4.5 oz cup","Yes"]
["Fruit","Raisins, Unsweetened, Individual Portion",100293,"144/1.33 oz unit","Yes"]
["Fruit","Cherries, Tart, Dried",100299,"4/4 lb bag","No"]
["Fruit","Mixed Fruit (Apples, Cherries, Cranberries, Raisins), Dried",110161,"5/5 lb bag","No"]
["Fruit","Applesauce, Unsweetened, Cups, Shelf-Stable",110361,"96/4.5 oz cup","Yes"]
["Fruit","Applesauce, Unsweetened, Canned (K)",110541,"6/#10 can","Yes"]
["Fruit","Blueberries, Unsweetened, Frozen ",110623,"12/2.5 lb bag","Yes"]
["Fruit","Blueberries, Unsweetened, Frozen ",110624,"30 lb case","Yes"]
["Fruit","Cranberries, Dried, Individual Portion",110723,"300/1.16 oz bag","Yes"]
["Fruit","Strawberries, Whole, Unsweetened, Frozen (IQF)",110846,"6/5 lb bag","Yes"]
["Fruit","Mixed Berries (Blueberries, Strawberries), Cups, Frozen",110859,"96/4 oz cup","Yes"]
["Fruit","Strawberries, Sliced, Unsweetened, Frozen (IQF)",110860,"6/5 lb bag","Yes"]
["Fruit","Cherries, Sweet, Pitted, Unsweetened, Frozen (IQF)",110872,"12/2.5 lb bag","Yes"]
["Fruit","Cherries, Tart, Dried, Individual Portion",111643,"250/1.36 oz bag","No"]
["Grains","Flour, All Purpose, Enriched, Bleached",100400,"8/5 lb bag","Yes"]
["Grains","Pasta, Spaghetti, Enriched",100425,"20 lb case","Yes"]
["Grains","Oats, Rolled, Quick Cooking",100465,"12/42 oz tube","Yes"]
["Grains","Rice, Long Grain, Parboiled",100494,"25 lb bag","Yes"]
["Grains","Rice, Brown, Long Grain, Parboiled",100500,"24/2 lb bag","Yes"]
["Grains","Rice, Brown, Long Grain, Parboiled",101031,"25 lb bag","Yes"]
["Grains","Flour, White Whole Wheat/Enriched 60/40 Blend",110208,"25 lb bag","Yes"]
["Grains","Flour, White Whole Wheat/Enriched 60/40 Blend",110211,"8/5 lb bag","Yes"]
["Grains","Pancakes, Whole Grain or Whole Grain-Rich, Frozen",110393,"144 count/case","Yes"]
["Grains","Tortillas, Whole Grain or Whole Grain-Rich, 8 inch, Frozen",110394,"12/24 count","Yes"]
["Grains","Pasta, Macaroni, Whole Grain-Rich Blend",110501,"2/10 lb bag","Yes"]
["Grains","Pasta, Rotini, Whole Grain-Rich Blend",110504,"2/10 lb bag","Yes"]
["Grains","Pasta, Spaghetti, Whole Grain-Rich Blend",110506,"2/10 lb bag","Yes"]
["Grains","Pasta, Penne, Whole Grain-Rich Blend",110520,"2/10 lb bag","Yes"]
["Grains","Flour, 100% White Whole Wheat",110857,"8/5 lb bag","Yes"]
["Legumes","Beans, Black, Low-sodium, Canned ",100359,"6/#10 can","Yes"]
["Legumes","Beans, Garbanzo, Low-sodium, Canned (K)",100360,"6/#10 can","Yes"]
["Legumes","Beans, Refried, Low-sodium, Canned ",100362,"6/#10 can","Yes"]
["Legumes","Beans, Vegetarian, Low-sodium, Canned ",100364,"6/#10 can","Yes"]
["Legumes","Beans, Pinto, Low-sodium, Canned ",100365,"6/#10 can","Yes"]
["Legumes","Beans, Small Red, Low-sodium, Canned ",100366,"6/#10 can","Yes"]
["Legumes","Beans, Black-eyed Pea, Low-sodium, Canned ",100368,"6/#10 can","Yes"]
["Legumes","Beans, Pink, Low-sodium, Canned ",100369,"6/#10 can","Yes"]
["Legumes","Beans, Kidney, Dark Red, Low-sodium, Canned ",100370,"6/#10 can","Yes"]
["Legumes","Beans, Baby Lima, Low-sodium, Canned ",100371,"6/#10 can","Yes"]
["Legumes","Beans, Great Northern, Low-sodium, Canned ",100373,"6/#10 can","Yes"]
["Legumes","Beans, Pinto, Dry",100382,"12/2 lb bag","Yes"]
["Legumes","Black Bean Burger, Patties, Cooked, 2.0 MMA, Frozen",111860,"30 lb case","No"]
["Nuts and seeds","Peanut Butter, Smooth",100396,"6/5 lb unit","Yes"]
["Nuts and seeds","Sunflower Seed Butter, Smooth (K)",100935,"6/5 lb unit","No"]
["Nuts and seeds","Peanut Butter, Individual Portion, Smooth",110854,"120/1.1 oz unit","Yes"]
["Oil","Oil, Vegetable",100439,"6/1 gallon bottle","No"]
["Pork","Pork, Coarse Ground, Cooked, Canned",100139,"24/24 oz can ","Yes"]
["Pork","Pork, Leg Roast, Raw, Frozen",100173,"36-42 lb case","No"]
["Pork","Ham, 97% Fat Free, Water-Added, Cooked, Frozen",100184,"4/10 lb hams","Yes"]
["Pork","Ham, 97% Fat Free, Water-Added, Cooked, Sliced, Frozen",100187,"8/5 lb package","Yes"]
["Pork","Ham, 97% Fat Free, Water-Added, Cooked, Diced, Frozen",100188,"8/5 lb or 4/10 lb bag","No"]
["Pork","Pork, Pulled, Cooked, Frozen",110730,"8/5 lb or 4/10 lb bag","Yes"]
["Poultry","Chicken, Diced, Cooked, Frozen",100101,"8/5 lb or 4/10 lb bag","No"]
["Poultry","Chicken, Fajita Seasoned Strips, Cooked, Frozen",100117,"6/5 lb or 3/10 lb bag","Yes"]
["Poultry","Chicken, Pulled, Cooked, Frozen ",111881,"6/5 lb or 3/10 lb bag","Yes"]
["Poultry","Turkey, Taco Filling, Cooked, Frozen",100119,"10/3 lb or 6/5 lb bag","Yes"]
["Poultry","Turkey, Deli Breast, Frozen",100121,"4/10 lb logs","Yes"]
["Poultry","Turkey, Deli Breast, Smoked, Frozen",100122,"4/10 lb logs","Yes"]
["Poultry","Turkey, Roast, Raw, Frozen",100125,"4/8-12 lb roasts","Yes"]
["Poultry","Turkey, Deli Ham, Smoked, Frozen",100126,"4/10 lb logs","Yes"]
["Poultry","Chicken, Boned, White Meat, Cooked, Canned",100877,"12/50 oz can","No"]
["Poultry","K Chicken, Cut-Up, Frozen",110052,"40 lb case","No"]
["Poultry","Chicken, Oven Roasted, Cut-up, Cooked, Frozen",110080,"3/10 lb bag","No"]
["Poultry","Chicken, Unseasoned Grilled Strips, Cooked, Frozen",110462,"6/5 lb or 3/10 lb bag","Yes"]
["Poultry","Turkey, Deli Breast, Sliced, Frozen",111900,"8/5 lb package","Yes"]
["Poultry","Turkey, Deli Breast, Smoked, Sliced, Frozen",111882,"8/5 lb package","Yes"]
["Poultry","Turkey, Deli Ham, Smoked, Sliced, Frozen",111893,"8/5 lb package","Yes"]
["Poultry","Chicken, Grilled Fillet, 2.0 MMA, Cooked, Frozen",110921,"6/5 lb or 3/10 lb bag","Yes"]
["Poultry","Chicken, Cut-up, Raw, Frozen",111361,"4/10 lb bag","No"]
["Vegetables","Beans, Green, Low-sodium, Canned (K)",100307,"6/#10 can","Yes"]
["Vegetables","Carrots, Sliced, Low-sodium, Canned ",100309,"6/#10 can","Yes"]
["Vegetables","Corn, Whole Kernel, No Salt Added, Canned (K)",100313,"6/#10 can","Yes"]
["Vegetables","Peas, Green, Low-sodium, Canned ",100315,"6/#10 can","Yes"]
["Vegetables","Sweet Potatoes, Light Syrup, No Salt Added, Canned ",100317,"6/#10 can","Yes"]
["Vegetables","Tomato Paste, No Salt Added, Canned ",100327,"6/#10 can","Yes"]
["Vegetables","Tomatoes, Diced, No Salt Added, Canned ",100329,"6/#10 can","Yes"]
["Vegetables","Salsa, Low-sodium, Canned",100330,"6/#10 can","Yes"]
["Vegetables","Tomato Sauce, Low-sodium, Canned ",100334,"6/#10 can","Yes"]
["Vegetables","Spaghetti Sauce, Low-sodium, Canned",100336,"6/#10 can","Yes"]
["Vegetables","Corn, Whole Kernel, No Salt Added, Frozen ",100348,"30 lb case","Yes"]
["Vegetables","Peas, Green, No Salt Added, Frozen ",100350,"30 lb case","Yes"]
["Vegetables","Beans, Green, No Salt Added, Frozen ",100351,"30 lb case","Yes"]
["Vegetables","Carrots, Sliced, No Salt Added, Frozen ",100352,"30 lb case","Yes"]
["Vegetables","Potatoes, Wedges, Low-sodium, Frozen (IQF)",100355,"6/5 lb bag","No"]
["Vegetables","Potatoes, Wedges, Fat Free, Low-sodium, Frozen (IQF)",100356,"6/5 lb bag","Yes"]
["Vegetables","Potatoes, Oven Fries, Low-sodium, Frozen ",100357,"6/5 lb bag","No"]
["Vegetables","Spaghetti Sauce, Low-sodium, Pouch",110177,"6/106 oz pouch","Yes"]
["Vegetables","Salsa, Low-sodium, Pouch",110186,"6/106 oz pouch","Yes"]
["Vegetables","Tomato Sauce, Low-sodium, Pouch ",110187,"6/106 oz pouch","Yes"]
["Vegetables","Spinach, Chopped, No Salt Added, Frozen (IQF)",110425,"20 lb case","Yes"]
["Vegetables","Broccoli Florets, No Salt Added, Frozen",110473,"30 lb case","Yes"]
["Vegetables","Carrots, Diced, No Salt Added, Frozen",110480,"30 lb case","Yes"]
["Vegetables","Sweet Potatoes, Cubes, No Salt Added, Frozen",110562,"6/5 lb bag","Yes"]
["Vegetables","Sweet Potatoes, Crinkle Cut Fries, Low-Sodium, Frozen",110721,"6/5 lb bag","Yes"]
["Vegetables","Pepper/Onion Strips, No Salt Added, Frozen",110724,"30 lb case","Yes"]
["Vegetables","Peas, Green, No Salt Added, Frozen ",110763,"12/2.5 lb bag","Yes"]
["Vegetables","Potatoes, Diced, No Salt Added, Frozen",110844,"6/5 lb bag","Yes"]
["Vegetables","Carrots, Diced, No Salt Added, Frozen",111052,"12/2 lb bag","Yes"]
["Vegetables","Corn, Whole Kernel, No Salt Added, Frozen ",111053,"12/2.5 lb bag","Yes"]
["Vegetables","Beans, Green, No Salt Added, Frozen ",111054,"12/2 lb bag","Yes"]
["Vegetables","Mixed Vegetables, No Salt Added, Frozen",111230,"6/5 lb bag","Yes"]
["Yogurt","Yogurt, High-Protein, Vanilla, Chilled (K)",111750,"6/32 oz tub","Yes"]
["Yogurt","Yogurt, High-Protein, Blueberry, Chilled (K)",110400,"24/4 oz cup","Yes"]
["Yogurt","Yogurt, High-Protein, Strawberry, Chilled (K)",110401,"24/4 oz cup","Yes"]
["Yogurt","Yogurt, High-Protein, Vanilla, Chilled (K)",110402,"24/4 oz cup","Yes"]

{"sheet":"USDAFoods Product Information","index":2,"n_rows":43,"n_cols":3,"rows_kept":43,"cut":false,"hidden":false,"merged":[[0,3,0,4],[2,1,2,4]]}
["Food Category: ",null,"Material Code:"]
[]
["Product Description:"]
["Vendor Name"]
["Brand Name"]
["GTIN"]
["PRODUCT INFORMATION"]
["Serving Size"]
["Grams per Serving"]
["Servings per Case"]
["CN Crediting"]
["NUTRIENTS"]
["Calories (kcal)"]
["Total Fat (g)"]
["Saturated Fat (g)"]
["Trans Fat (g)"]
["Cholesterol (mg)"]
["Sodium (mg)"]
["Total Carbohydrate (g)"]
["Dietary Fiber (g)"]
["Total Sugar (g)"]
["Added Sugar (g)"]
["Protein (g)"]
["Vitamin D (mcg)"]
["Calcium (mg)"]
["Iron (mg)"]
["Potassium (mg)"]
["ALLERGENS"]
["Egg Allergen"]
["Fish Allergen"]
["Milk Allergen"]
["Peanut Allergen"]
["Sesame Allergen"]
["Shellfish Allergen"]
["Soy Allergen"]
["Tree Nut Allergen"]
["Wheat Allergen"]
["CERTIFICATIONS"]
["Kosher"]
["Halal"]
["INGREDIENTS"]
[]
["LAST UPDATED"]

{"sheet":"NAI","index":3,"n_rows":311,"n_cols":66,"rows_kept":311,"cut":false,"hidden":true,"merged":[]}
["USDA Foods Material Code","USDA Foods Products Description","Food Category","gtin","Brand Name","Vendor Name","Information Provider","long_description","short_description","functional_name","Trade Channels","Serving Size","Serving Unit of Measure","Nutrient Quantity Basis Type Code","Nutrient Quantity Basis Value","Nutrient Quantity Basis Unit of Measure","Serving Description","preparationStateCode","CN Crediting","CN Product Identification","CN Qualifier Code","CN Qualified","CN Credited","CN Label Statement","CN Label Document","CN Expiration Date","Product Formulation Statement","PFS Creditable Ingredient Type Code","PFS Total Creditable Ingredient Amount","PFS Total Portion Weight","PFS Document","Calcium, Ca (mg) per Serving ","Total Carbohydrate (g) per Serving","Cholesterol (mg) per Serving","Calories (kcal) per Serving","Saturated Fat (g) per Serving","Trans Fat (g) per Serving","Dietary Fiber (g) per Serving","Iron, Fe (mg) per Serving","Potassium, K (mg) per Serving","Protein (g) per Serving","Sodium (mg) per Serving","Sugars (g) per Serving","Added Sugars (g) per Serving","Total Fat (g) per Serving","Vitamin D (mcg) per Serving","Nutrient Format Type Code Reference Code","Servings Per Case","Hierarchical Placement","Relevant Allergen Data Flag","Eggs","Fish","Milk","Peanuts","Sesame","Shellfish","Soybeans","Tree Nuts","Wheat","All Allergens","Kosher","Halal","downloaded","last_updated","ingredients_english","Nutrients per serving calculated from by measure reported amounts"]
[100002,"Cheese, Cheddar, White, Shredded, Chilled","Cheese","10036514230418","Great Lakes Cheese","Great Lakes Cheese Co., Inc.","Great Lakes Cheese, Inc.","A natural, milled curd cheese that is smooth textured with an appealing stronger cheddar flavor.","MILD CHED W SHR 6/5 LB (USDA)","MILD CHED C FNCY SHR 5 LB",null,28,"GRM","BY_SERVING",28,"GRM","1/4 cup (1 ounce)","PREPARED",null,null,null,null,null,null,null,null,null,null,null,null,null,193,1,25,110,5,0,0,0,20,6,180,0,0,9,0.2,"US_FDA_NFP_2020_STANDARD",{"$f":"80*6","v":480},"CASE",null,"FREE_FROM","FREE_FROM","CONTAINS","FREE_FROM","FREE_FROM","FREE_FROM","FREE_FROM","FREE_FROM","FREE_FROM","AC, AE, AF, AM, AN, AP, AS, AY, UW",null,null,"2023-07-05T13:24:45","2023-06-09T11:12:00","Pasteurized Milk, Cheese Culture, Salt, Enzymes. Potato Starch, Powdered Cellulose Added to Prevent Caking.",false]
[100002,"Cheese, Cheddar, White, Shredded, Chilled","Cheese","00088748270046","Masters Gallery Select","Masters Gallery Foods","MASTERS GALLERY FOODS","5lb. Masters Gallery Select Mild White Shredded Cheddar Cheese","5# MGS Mild W Cheddar Shredded","Cheese_Perishable","CHILD_NUTRITION_FOOD_PROGRAMS",28,"GRM","BY_SERVING",28,"GRM","1/4 cup (1 ounce)","READY_TO_EAT",null,null,null,null,null,null,null,null,null,null,null,null,null,200,1,30,110,5,0,0,0,20,6,190,0,0,9,0.2,null,480,"BASE_UNIT_OR_EACH","TRUE",null,null,"CONTAINS",null,null,null,null,null,null,"AM",null,null,"2022-09-19T05:34:29","2022-09-13T09:14:05","Cheddar Cheese (Cultured Pasteurized Milk, Salt, Enzymes, Color Added [If Colored], Anticake (Potato Starch, Powdered Cellulose)",false]
[100003,"Cheese, Cheddar, Yellow, Shredded, Chilled","Cheese","00647743000579","Cedar Valley","Cedar Valley Cheese","Cedar Valley Cheese, Inc.","Mild Wisconsin yellow shredded cheese.","6/5# Yellow Cheddar Feather USDA","6/5# Yellow Cheddar Feather USDA",null,30,"GRM","BY_SERVING",null,null,"1.06 ounce","READY_TO_EAT",null,null,null,null,null,null,null,null,null,null,null,null,null,213,1,30,120,6,0,0,0,22.8,7,200,0,0,10,0.18,null,{"$f":"75.6*6","v":453.59999999999997},"CASE",true,null,null,"CONTAINS",null,null,null,null,null,null,"ML",null,null,"2025-08-01 09:35:39","2025-07-18 14:07:00","Cheddar Cheese (Pasteurized Milk, Cheese Cultures, Salt, Enzymes, Calcium Chloride, Annatto [Vegetable Color]), Corn Starch, Dextrose, Enzyme (To Prevent Caking), Natamycin (Preservative)",false]
[100003,"Cheese, Cheddar, Yellow, Shredded, Chilled","Cheese","00070801002787","DFA","Dairy Farmers of America Inc.","Dairy Farmers of America Inc.","ENRICCO Y CHED SHRD 5 LB USDA","ENRICCO Y CHED SHRD 5 LB USDA","ENRICCO Y CHED SHRD 5 LB USDA","CHILD_NUTRITION_FOOD_PROGRAMS",100,"GRM","BY_MEASURE",100,"GRM","3.5 ounce ","PREPARED",null,null,null,null,null,null,null,null,null,null,null,null,null,793,5,96,400,18,1,2,0,0,22,634,0,0,32,0,null,"80","BASE_UNIT_OR_EACH",null,"FREE_FROM","FREE_FROM","CONTAINS","FREE_FROM","FREE_FROM","FREE_FROM","FREE_FROM","FREE_FROM","FREE_FROM","AC, AN, UW, AF, AE, AM, AY, AP, AS",null,null,"2025-01-08 08:30:06","2024-12-18 12:19:18","Cheddar Cheese (Cultured Pasteurized Milk, Salt, Enzymes, and Annatto (Color)), Potato and Corn Starches (Anti-Caking Agents) and Natamycin (a Natural Mold Inhibitor).",true]
[100003,"Cheese, Cheddar, Yellow, Shredded, Chilled","Cheese","10036514230401","Great Lakes Cheese","Great Lakes Cheese Co., Inc.","Great Lakes Cheese, Inc.","A natural, milled curd cheese that is smooth textured with an appealing stronger cheddar flavor.","MILD CHED C SHR 6/5 LB (USDA)","MILD CHED C FNCY SHR 5 LB",null,28,"GRM","BY_SERVING",28,"GRM","1/4 cup (1 ounce)","PREPARED",null,null,null,null,null,null,null,null,null,null,null,null,null,193,1,25,110,5,0,0,0,20,6,180,0,0,9,0.2,"US_FDA_NFP_2020_STANDARD_SIDE_BY_SIDE",{"$f":"80*6","v":480},"CASE",null,"FREE_FROM","FREE_FROM","CONTAINS","FREE_FROM","FREE_FROM","FREE_FROM","FREE_FROM","FREE_FROM","FREE_FROM","AC, AE, AF, AM, AN, AP, AS, AY, UW",null,null,"2023-07-05T13:47:02","2023-06-09T11:17:00","Pasteurized Milk, Cheese Culture, Salt, Enzymes and Annatto (Vegetable Color). Potato Starch, Powdered Cellulose Added to Prevent Caking.",false]
[100003,"Cheese, Cheddar, Yellow, Shredded, Chilled","Cheese","00088748270039","Masters Gallery Select","Masters Gallery Foods","MASTERS GALLERY FOODS","5lb Masters Gallery Select Shredded Mild Cheddar","5# MGS Mild Cheddar Shredded","Cheese_Perishable","CHILD_NUTRITION_FOOD_PROGRAMS",28,"GRM","BY_SERVING",28,"GRM","1/4 cup (1 ounce)","READY_TO_EAT",null,null,null,null,null,null,null,null,null,null,null,null,null,200,1,30,110,5,0,0,0,20,6,190,0,0,9,0.2,null,480,"BASE_UNIT_OR_EACH","TRUE",null,null,"CONTAINS",null,null,null,null,null,null,"AM",null,null,"2022-09-19T05:18:50","2022-09-13T09:16:54","Cheddar Cheese (Cultured Pasteurized Milk, Salt, Enzymes, Color Added [If Colored], Anticake (Potato Starch, Powdered Cellulose)",false]
[100003,"Cheese, Cheddar, Yellow, Shredded, Chilled","Cheese","10664857144514","Cheese Crafters","Winona Foods, Inc.","Winona Foods","6/5 LB Feather Shred Mild Cheddar Cheese","Feather Shred Mild Cheddar","Shredded Mild Cheddar Cheese",null,28,"GRM","BY_SERVING",1,"ONZ","1/4 cup (1 ounce)","READY_TO_EAT",null,null,null,null,null,null,null,null,null,null,null,null,null,200,0,30,110,6,0,0,0,25,7,170,0,0,9,0,null,{"$f":"80*6","v":480},"CASE",null,"FREE_FROM","FREE_FROM","CONTAINS","FREE_FROM","FREE_FROM","FREE_FROM","FREE_FROM","FREE_FROM","FREE_FROM","AM, AS, AE, AN, AP, UW, UN, AF, AC, AY",null,null,"2025-02-03 09:14:02","2025-01-29 08:17:00","Pasteurized Milk, Cheese Culture, Salt, Enzymes, Color Added, Potato Starch and Powdered Cellulose Added to Prevent Caking, Natamycin (A Natural Mold Inhibitor).",false]
[100012,"Cheese, Cheddar, Yellow, Reduced Fat, Shredded, Chilled","Cheese","10036514130893","Great Lakes Cheese","Great Lakes Cheese Co., Inc.","Great Lakes Cheese, Inc.","A natural, milled curd cheese that is smooth textured with an appealing stronger cheddar flavor.","MILD C 2% RF SHR 6/5 LB (USDA)","MILD CHED C FNCY SHR 5 LB",null,28,"GRM","BY_SERVING",28,"GRM","1/4 cup (1 ounce)","PREPARED",null,null,null,null,null,null,null,null,null,null,null,null,null,207,1,20,80,3.5,0,0,0,15,7,170,0,0,6,0.1,"US_FDA_NFP_2020_STANDARD_SIDE_BY_SIDE",{"$f":"80*6","v":480},"CASE",null,"FREE_FROM","FREE_FROM","CONTAINS","FREE_FROM","FREE_FROM","FREE_FROM","FREE_FROM","FREE_FROM","FREE_FROM","AC, AE, AF, AM, AN, AP, AS, AY, UW",null,null,"2023-07-05T13:51:59","2023-06-09T11:22:00","Pasteurized Part-Skim Milk, Cheese Culture, Salt, Enzymes, Annatto (Vegetable Color), Vitamin A Palmitate. Potato Starch, Powdered Cellulose Added to Prevent Caking.",false]
[100012,"Cheese, Cheddar, Yellow, Reduced Fat, Shredded, Chilled","Cheese","00088748270015","Masters Gallery Select","Masters Gallery Foods","MASTERS GALLERY FOODS","Masters Gallery Select 1/3 Reduced Fat Colored Shredded Cheddar Cheese, 5 Pound","MGS 5# Rduced Fat Shred Chdr Cheese","Cheese","CHILD_NUTRITION_FOOD_PROGRAMS",28,"GRM","BY_SERVING",28,"GRM","1/4 cup (1 ounce)","READY_TO_EAT",null,null,null,null,null,null,null,null,null,null,null,null,null,200,1,20,90,3.5,0,0,0,20,8,180,0,0,6,0.1,"NFT",{"$f":"80*6","v":480},"BASE_UNIT_OR_EACH","TRUE",null,null,"CONTAINS",null,null,null,null,null,null,"AM",null,null,"2024-08-01 08:29:06","2024-07-29 09:25:59","Reduced Fat Cheddar Cheese (Cultured Pasteurized Reduced Fat Milk, Salt, Enzymes, Color Added, [if colored], Vitamin A Palmitate), Anticake (Potato Starch, Powdered Cellulose)",false]
[100017,"Cheese, American, Yellow, Pasteurized, Loaves, Chilled","Cheese","10071078002736","Bongards®","Bongards Creameries","Bongards Creameries","Yellow Reduced Sodium American Cheese Loaves have a mild, buttery American flavor with a creamy texture. Each loaf is 5 lbs. with 6 per case. Perfect for slicing to use in burgers, sandwiches, and wrap.","Prcs Amrcn 30% RdcdSdm YlwLoaf 6/5#","Process Cheese","CHILD_NUTRITION_FOOD_PROGRAMS",28.35,"GRM","BY_SERVING",null,null,"1 ounce","PREPARED","1 ounce processed cheese credits as 1 ounce equivalent meat/meat alternate",null,null,null,null,null,null,null,null,null,null,null,"http://files.syncpdi.com/files/Zh5By7D7S4GQWHU9JrWN4Q",167,2,25,100,5,0,0,0,194,5,230,2,0,9,0,null,"480","CASE","TRUE","FREE_FROM","FREE_FROM","CONTAINS","FREE_FROM","FREE_FROM","FREE_FROM","FREE_FROM","FREE_FROM","FREE_FROM","AC, AE, AF, AM, AN, AP, AY, UM, UW, AS",null,null,"2025-09-02 08:43:50","2025-08-28 13:16:59","Cultured Milk, Water, Cream, Dairy Product Solids*, Salt, Sodium Citrate, Potassium Citrate, Annatto and Paprika (Color), Enzymes *Ingredient not in regular Pasteurized Process American Cheese",false]
[100018,"Cheese, American, Yellow, Pasteurized, Sliced, Chilled","Cheese","10071078011394","Bongards®","Bongards Creameries","Bongards Creameries","Yellow Reduced Sodium American Cheese Slices have a mild, buttery American flavor. There are 160 horizontal slices in each 5 lb. pack with 6 packs per case. Perfect for use in burgers, sandwiches, and wraps.","Ylw Rdce Sdm Prcs Amrcan Slice 6/5#","Process Cheese","CHILD_NUTRITION_FOOD_PROGRAMS",28,"GRM","BY_SERVING",null,null,"2 slices (1 ounce)","PREPARED",null,null,null,null,null,null,null,null,null,null,null,null,null,160,2,25,100,5,0,0,0,160,5,260,1,0,9,0,null,"480","CASE",true,"FREE_FROM","FREE_FROM","CONTAINS","FREE_FROM","FREE_FROM","FREE_FROM","CONTAINS","FREE_FROM","FREE_FROM","AC, AE, AF, AM, AN, AP, AY, UM, UW, AS",null,null,"2025-09-02 08:43:50","2025-08-28 13:16:59","Cultured Milk, Water, Cream, Dairy Product Solids*, Sodium Citrate, Salt, Potassium Citrate, Annatto and Paprika (Color), Enzymes, Sorbic Acid (Preservative), Soy Lecithin (Anti-Sticking Agent) *Ingredient Not in Regular Pasteurized Process American Cheese",false]
[100021,"Cheese, Mozzarella, Low Moisture Part Skim, Shredded, Frozen","Cheese","90075805885223","USDA","Saputo Cheese USA, Inc.","Saputo Cheese USA, Inc.","A soft cheese with a mild dairy flavor and a white to light cream color.","USDA LMPS MOZZ STSHD FRZ 5 LB","Mozzarella Cheese Shred",null,28,"GRM","BY_SERVING",28,"GRM","1/4 cup (1 ounce)","READY_TO_EAT",null,null,null,null,null,null,null,null,null,null,null,null,null,190,2,15,80,3,0,1,0,0,7,160,0,0,5,0,"US_FDA_NFP_2020_STANDARD",480,"CASE",null,"FREE_FROM","FREE_FROM","CONTAINS","FREE_FROM","FREE_FROM","FREE_FROM","FREE_FROM","FREE_FROM","FREE_FROM","AM, AF, AC, UN, AY, UW, AE, AU, AS, AN, AP, UM, BM",null,null,"2025-11-03 08:54:44","2025-09-12 13:27:00","Low Moisture Part Skim Mozzarella Cheese (Pasteurized Part Skim Milk,  Cheese Cultures, Salt, Enzymes) Powdered Cellulose (to Prevent Caking), Natamycin (a Natural Mold Inhibitor)",false]
[100022,"Cheese, Mozzarella, Low Moisture Part Skim, Loaves, Frozen ","Cheese","00070801000165","DFA","Dairy Farmers of America Inc.","Dairy Farmers of America Inc.","JACOBO PS MOZZ 6 LB AVG","JACOBO PS MOZZ 6 LB AVG","JACOBO PS MOZZ 6 LB AVG","CHILD_NUTRITION_FOOD_PROGRAMS",28,"GRM","BY_MEASURE",28,"GRM","1 ounce","PREPARED",null,null,null,null,null,null,null,null,null,null,null,null,null,195,2,16,83,3,0,0,0,0,7,168,1,0,6,0,null,768,"BASE_UNIT_OR_EACH",null,"FREE_FROM","FREE_FROM","CONTAINS","FREE_FROM",null,"FREE_FROM","FREE_FROM","FREE_FROM","FREE_FROM","AC, AY, AP, AE, AM, AF, AN, UW",null,null,"2022-09-19T05:21:40","2022-05-06T15:17:20","Cultured Pasteurized Part-Skim Milk, Salt and Enzymes",true]
[100022,"Cheese, Mozzarella, Low Moisture Part Skim, Loaves, Frozen ","Cheese","90075805885216","USDA","Saputo Cheese USA, Inc.","Saputo Cheese USA, Inc.","A soft cheese with a mild dairy flavor and a white to light cream color.","USDA LMPS MOZZ LOF FRZ 6 LB","Mozzarella Loaf",null,28,"GRM","BY_SERVING",28,"GRM","1 ounce","READY_TO_EAT",null,null,null,null,null,null,null,null,null,null,null,null,null,200,1,20,80,3,0,0,0,0,7,170,0,0,5,0,"US_FDA_NFP_2020_STANDARD",768,"CASE",null,"FREE_FROM","FREE_FROM","CONTAINS","FREE_FROM","FREE_FROM","FREE_FROM","FREE_FROM","FREE_FROM","FREE_FROM","AM, AC, AF, UN, AY, UW, AE, AU, AS, AN, AP, UM, BM",null,null,"2025-11-03 08:54:44","2025-09-12 13:27:00","Low Moisture Part Skim Mozzarella Cheese (Pasteurized Part Skim Milk, Cheese Cultures, Salt, Enzymes)",false]
[100036,"Cheese, Blended American, Yellow, Reduced Fat, Sliced, Chilled","Cheese","10041299169792","Dinner Bell","AMPI","AMPI","6/5 lb. Pullman 160 Slice Colored Blended Reduced Sodium/Fat","C Blended 160 Slice Red Sod/Fat","Cheese",null,28,"GRM","BY_SERVING",28,"GRM","2 slices (1 ounce)","PREPARED",null,0,"MEAT_OR_MEAT_ALTERNATIVE","28.0 GRM",null,"REDUCED FAT CHEDDAR CHEESE (MILK, CHEESE CULTURES, SALT, ENZYMES), CHEDDAR CHEESE (MILK, CHEESE CULTURES, SALT, ENZYMES), WATER, WHEY PERMEATE, COLOR ADDED, SODIUM CITRATE, POTASSIUM CITRATE, GUAR AND XANTHAN GUMS, SORBIC ACID, SALT, LACTIC ACID, SUNFLOWER LECITHIN (NON-STICKING AGENT)",null,null,null,null,null,null,null,181,2,15,80,3.5,0,0,0,92,6,290,1,null,5,0,null,480,"CASE",null,"FREE_FROM","FREE_FROM","CONTAINS","FREE_FROM",null,"FREE_FROM","FREE_FROM","FREE_FROM","FREE_FROM","AE, AF, AM, UM, AP, AY, AN, UW, AC",null,null,"2022-09-19T05:37:33","2022-09-07T15:08:10","Reduced Fat Cheddar Cheese (Milk, Cheese Cultures, Salt, Enzymes), Cheddar Cheese (Milk, Cheese Cultures, Salt, Enzymes), Water, Whey Permeate, Color Added, Sodium Citrate, Potassium Citrate, Guar and Xanthan Gums, Sorbic Acid, Salt, Lactic Acid, Sunflower Lecithin (Non-Sticking Agent)",false]
[100036,"Cheese, Blended American, Yellow, Reduced Fat, Sliced, Chilled","Cheese","10071078011424","Bongards®","Bongards Creameries","Bongards Creameries","Yellow Reduced Fat & Reduced Sodium American Cheese Slices have a mild, buttery American flavor. There are 160 horizontal slices in each 5 lb. pack and 6 packs per case. Perfect for use in burgers, sandwiches, and wraps.","Ylw RdcSdm RdcFt Prcs Amrcn Sl 6/5#","Process Cheese","CHILD_NUTRITION_FOOD_PROGRAMS",28,"GRM","BY_SERVING",null,null,"2 slices (1 ounce)","PREPARED",null,null,null,null,null,null,null,null,null,null,null,null,null,141,4,15,70,2.5,0,0,0,120,5,290,2,0,4.5,0,null,"480","CASE",true,"FREE_FROM","FREE_FROM","CONTAINS","FREE_FROM","FREE_FROM","FREE_FROM","CONTAINS","FREE_FROM","FREE_FROM","AC, AE, AF, AM, AN, AP, AY, UM, UW, AS",null,null,"2025-09-02 08:43:50","2025-08-28 13:16:59","Cultured Skim Milk and Milk, Water, Nonfat Dry Milk*, Maltodextrin*, Modified Food Starch*, Sodium Citrate, Potassium Citrate, Salt, Annatto and Paprika (Color), Enzymes, Vitamin A Palmitate, Sorbic Acid (Preservative), Soy Lecithin (Anti-Sticking Agent) *Ingredient Not in Regular Pasteurized Process American Cheese",false]
[100036,"Cheese, Blended American, Yellow, Reduced Fat, Sliced, Chilled","Cheese","10071078101422","Bongards®","Bongards Creameries","Bongards Creameries","Yellow Reduced Fat & Reduced Sodium American Cheese Slices have a mild, buttery American flavor. There are 160 horizontal slices in each 5 lb. pack and 6 packs per case. Perfect for use in burgers, sandwiches, and wraps.","Ylw RdcSdm RdcFt Prcs Amrcn Sl 6/5#","Process Cheese","CHILD_NUTRITION_FOOD_PROGRAMS",28,"GRM","BY_SERVING",null,null,"2 slices (1 ounce)","PREPARED","1 ounce processed cheese credits as 1 ounce equivalent meat/meat alternate",null,null,null,null,null,null,null,null,null,null,null,"http://files.syncpdi.com/files/KUoyVFrFQCW2-t5W92ZUPA",141,4,15,70,2.5,0,0,0,120,5,290,2,0,4.5,0,null,"480","CASE",true,"FREE_FROM","FREE_FROM","CONTAINS","FREE_FROM","FREE_FROM","FREE_FROM","FREE_FROM","FREE_FROM","FREE_FROM","AC, AE, AF, AM, AN, AP, AY, UM, UW, AS",null,null,"2023-02-01T10:10:28","2023-01-26T17:22:48","Cultured Skim Milk and Milk, Water, Nonfat Dry Milk*, Maltodextrin*, Modified Food Starch*, Sodium Citrate, Potassium Citrate, Salt, Annatto and Paprika (Color), Enzymes, Sorbic Acid (Preservative), Sunflower Lecithin (Anti-Sticking Agent) *Ingredient Not in Regular Pasteurized Process American Cheese",false]
[100037,"Cheese, Blended American, White, Reduced Fat, Sliced, Chilled","Cheese","10041299169891","Dinner Bell","AMPI","AMPI","6/5 lb. Pullman 160 Slice White Blended Reduced Sodium/Fat","W Blended 160 Slice Red Sod/Fat","Cheese",null,28,"GRM","BY_SERVING",28,"GRM","2 slices (1 ounce)","PREPARED",null,0,"MEAT_OR_MEAT_ALTERNATIVE","28.0 GRM",null,"REDUCED FAT CHEDDAR CHEESE (MILK, CHEESE CULTURES, SALT, ENZYMES), CHEDDAR CHEESE (MILK, CHEESE CULTURES, SALT, ENZYMES), WATER, WHEY PERMEATE, SODIUM CITRATE, POTASSIUM CITRATE, GUAR AND XANTHAN GUMS, SORBIC ACID, SALT, LACTIC ACID, SUNFLOWER LECITHIN (NON-STICKING AGENT)",null,null,null,null,null,null,null,181,2,15,80,3.5,0,0,0,92,6,290,1,null,5,0,null,480,"CASE",null,"FREE_FROM","FREE_FROM","CONTAINS","FREE_FROM",null,"FREE_FROM","FREE_FROM","FREE_FROM","FREE_FROM","AE, AF, AM, UM, AP, AY, AN, UW, AC",null,null,"2022-09-19T05:31:41","2022-09-07T15:08:10","Reduced Fat Cheddar Cheese (Milk, Cheese Cultures, Salt, Enzymes), Cheddar Cheese (Milk, Cheese Cultures, Salt, Enzymes), Water, Whey Permeate, Sodium Citrate, Potassium Citrate, Guar and Xanthan Gums, Sorbic Acid, Salt, Lactic Acid, Sunflower Lecithin (Non-Sticking Agent)",false]
[100037,"Cheese, Blended American, White, Reduced Fat, Sliced, Chilled","Cheese","10071078011431","Bongards®","Bongards Creameries","Bongards Creameries","White Reduced Fat & Reduced Sodium American Cheese Slices have a mild, buttery American flavor. There are 160 horizontal slices in each 5 lb. pack and 6 packs per case. Perfect for use in burgers, sandwiches, and wraps.","Wht RdcdSdm RdcdFt PrcsAmrcnSlc6/5#","Process Cheese","CHILD_NUTRITION_FOOD_PROGRAMS",28,"GRM","BY_SERVING",null,null,"2 slices (1 ounce)","PREPARED",null,null,null,null,null,null,null,null,null,null,null,null,null,141,4,15,70,2.5,0,0,0,120,5,290,2,0,4.5,0,null,"480","CASE","TRUE","FREE_FROM","FREE_FROM","CONTAINS","FREE_FROM","FREE_FROM","FREE_FROM","CONTAINS","FREE_FROM","FREE_FROM","AC, AE, AF, AM, AN, AP, AY, UM, UW, AS",null,null,"2025-09-02 08:43:50","2025-08-28 13:16:59","Cultured Skim Milk and Milk, Water, Nonfat Dry Milk*, Maltodextrin*, Modified Food Starch*, Sodium Citrate, Potassium Citrate, Salt, Enzymes, Vitamin A Palmitate, Sorbic Acid (Preservative), Soy Lecithin (Anti-Sticking Agent)*Ingredient Not in Regular Pasteurized Process American Cheese",false]
[100037,"Cheese, Blended American, White, Reduced Fat, Sliced, Chilled","Cheese","10071078001432","Bongards®","Bongards Creameries","Bongards Creameries","White Reduced Fat & Reduced Sodium American Cheese Slices have a mild, buttery American flavor. There are 160 horizontal slices in each 5 lb. pack and 6 packs per case. Perfect for use in burgers, sandwiches, and wraps.","Wht RdcdSdm RdcdFt PrcsAmrcnSlc6/5#","Process Cheese","CHILD_NUTRITION_FOOD_PROGRAMS",28,"GRM","BY_SERVING",null,null,"2 slices (1 ounce)","PREPARED",null,null,null,null,null,null,null,null,null,null,null,null,"http://files.syncpdi.com/files/56suPihvRPy7zfTHpmhOIw",141,4,15,70,2.5,0,0,0,120,5,290,2,0,4.5,0,null,"480","CASE","TRUE","FREE_FROM","FREE_FROM","CONTAINS","FREE_FROM","FREE_FROM","FREE_FROM","FREE_FROM","FREE_FROM","FREE_FROM","AC, AE, AF, AM, AN, AP, AY, UM, UW, AS",null,null,"2023-02-01T09:15:22","2023-01-26T17:22:48","Cultured Skim Milk and Milk, Water, Nonfat Dry Milk*, Maltodextrin*, Modified Food Starch*, Sodium Citrate, Potassium Citrate, Salt, Enzymes, Sorbic Acid (Preservative), Sunflower Lecithin (Anti-Sticking Agent) *Ingredient Not in Regular Pasteurized Process American Cheese",false]
[100046,"Eggs, Liquid Whole, Frozen ","Egg products","10794063513535","Deb-El","Deb El Food Products, LLC","Deb El Food Products, LLC","Frozen Whole Eggs with Citric Acid 6/5 lb. Cartons","Frozen Whole Eggs with Citric Acid","Frozen Whole Eggs with Citric Acid",null,47,"GRM","BY_SERVING",47,"GRM","3 Tablespoon","UNPREPARED",null,null,null,null,null,null,null,null,null,null,null,null,null,29,0,175,70,1.5,0,0,0.81,61.95,5.8,65,0,null,7.5,1.22,null,{"$f":"48*6","v":288},"CASE",null,"CONTAINS","FREE_FROM","FREE_FROM","FREE_FROM","FREE_FROM","FREE_FROM","FREE_FROM","FREE_FROM","FREE_FROM","AC, AE, AF, AM, AN, AP, AS, AY, UW",null,null,"2024-06-03 08:45:45","2024-03-14 13:07:00","Whole Eggs, Citric Acid, 0.15 Percent Water as a Carrier, Added as a Preservative",false]
[100046,"Eggs, Liquid Whole, Frozen ","Egg products","00664194000019","Sonstegard Foods","Sonstegard Foods Company","Sonstegard Foods Company","Sonstegard Foods Frozen Goodies Pasteurized Whole Egg with Citric Acid 5 lb","Frozen Goodies Whole Egg 5 lb","Eggs","CHILD_NUTRITION_FOOD_PROGRAMS",50,"GRM","BY_SERVING",50,"GRM","3 Tablespoon","THAW",null,null,null,null,null,null,null,null,null,null,null,null,null,0,1,215,70,1.5,null,0,0,null,6,65,0,null,4.5,null,null,272,"BASE_UNIT_OR_EACH","TRUE","DERIVED_FROM",null,null,null,null,null,null,null,null,"AE",null,null,"2022-09-19T05:44:23","2022-09-13T15:01:45","Whole Egg, Citric Acid, Water",false]
[100117,"Chicken, Fajita Seasoned Strips, Cooked, Frozen ","Poultry","10715001001174","Koch Foods - USDA","Koch Foods Inc","Koch Foods Inc","USDA Fully Cooked Dark Meat Chicken Fajita Strips, smoke flavor added (random) IF packed 6/5 pound sealed and printed bags.","Dark Meat Chicken Fajita Strips","Strips","FOOD_SERVICE",84,"GRM","BY_MEASURE",84,"GRM","3 ounce","UNPREPARED","A 2.75 ounce serving of fully cooked chicken fajita strips credits as 2 ounce equivalent meat/meat alternate",null,null,null,null,null,null,null,null,null,null,null,"https://dam.catalog.1worldsync.com/im/dwn/GCP-5930909166469120",20,1.32,70.62,120,1.87,0,0.22,1.04,312,16,420,0,null,5.93,0,null,{"$f":"27*6","v":162},"CASE","TRUE",null,null,null,null,null,null,null,null,null,null,null,null,"2025-06-02 08:13:46","2025-05-08 13:02:58","Dark Meat Chicken, Water, Contains 2% or Less of Salt, Spices, Potassium Phosphates, Onion Powder, Garlic Powder, Dextrose, Chili Powder (Spices, Salt, Garlic), Modified Food Starch, Grill Flavor (Maltodextrin, Flavor [from Sunflower Oil], Modified Food Starch, Corn Syrup Solids, Tricalcium Phosphate), Lemon Powder (Corn Syrup Solids, Lemon Juice Solids, Natural flavors), Lime Juice Powder (Corn Syrup Solids, Lime Juice Solids, Natural Flavors), Vinegar Powder (Maltodextrin, White Distilled Vinegar, Modified Food Starch), Sugar, Brown Sugar, Spice Extractives, Natural Smoke Flavor",true]
[100119,"Turkey, Taco Filling, Cooked, Frozen ","Poultry","10642205035103","Cargill Unbranded","Cargill Incorporated/Honeysuckle White","Cargill Incorporated/Honeysuckle White","Fully Cooked Turkey Taco Filling","USDA TKY TACO KTTLE FZ 6-5LB","Turkey Bulk Poultry","CHILD_NUTRITION_FOOD_PROGRAMS",56,"GRM","BY_SERVING",2,"ONZ","2 ounce","PREPARED","A 1.90 ounce serving of fully cooked turkey taco filling credits as 1 ounce equivalent meat/meat alternate",null,null,null,null,null,null,null,"1.90 ounces of fully cooked turkey taco filling contains 1.00-ounce equivalent meat/meat alternate.","MEAT_OR_MEAT_ALTERNATIVE","1.00 ONZ","30 LBR","https://images.salsify.com/image/upload/s--0GLhf3cw--/h1b9db8pnejpe6vlvigu ",null,3,25,80,1,0,1,null,null,8,160,1,null,4,null,"NFT","240","CASE","TRUE","FREE_FROM","FREE_FROM","FREE_FROM","FREE_FROM","FREE_FROM","FREE_FROM","CONTAINS","FREE_FROM","FREE_FROM","AC, AE, AF, AM, AN, AP, AS, AY, UW",null,null,"2025-04-01 08:31:52","2025-03-24 13:50:02","Ground Turkey, Water, Tomato Paste, Textured Soy Flour, and 2% or less of: Yellow Corn Flour, Maltodextrin, Spices, Paprika, Sugar, Salt, Dehydrated Garlic, Modified Corn Starch, Natural Flavors, Citric Acid, Yeast Extract, Dehydrated Onion, Caramel Color. Contains: Soy.",false]
[100119,"Turkey, Taco Filling, Cooked, Frozen ","Poultry","10715001001198","JTM Food Group","JTM Food Group","J. T. M. Provisions Co., Inc.","USDA Turkey Taco","USDA Turkey Taco","USDA Turkey Taco",null,97.524000000000001,"GRM","BY_SERVING",97.524000000000001,"GRM","3.44 ounce","PREPARED","Use vendor CN Label or Product Formulation Statement to confirm crediting information.",null,null,null,null,null,null,null,null,null,null,null,null,null,5.26,41.44,167.48,2.75,0.3,1.63,1.26,null,15.76,270.08,2.0499999999999998,null,9.25,null,"US_USDA_NFP_STANDARD","139","CASE",null,"FREE_FROM","FREE_FROM","FREE_FROM","FREE_FROM","FREE_FROM","FREE_FROM","CONTAINS","FREE_FROM","FREE_FROM","AC, AE, AF, AM, AN, AP, AS, AY, UW",null,null,"2025-02-03 09:14:02","2025-01-31 09:05:00","Ground Turkey, Water, Tomato Paste, Textured Vegetable Protein (Soy Protein Concentrate, Caramel Color), Contains Less Than 2% of Textured Vegetable Protein (Soy Flour, Caramel Color), Seasoning (Potassium Chloride, Flavor [Contains Maltodextrin]), Dry Beef Stock, Dehydrated Onion, Chili Pepper, Salt, Dehydrated Garlic, Caramel Color, Vinegar, Spices, Paprika Extract",false]
[100121,"Turkey, Deli Breast, Frozen ","Poultry","90642205529233","Cargill Unbranded","Cargill Incorporated/Honeysuckle White","Cargill Incorporated/Honeysuckle White","Fully Cooked Oven Roasted Turkey Breast School Lunch, Diameter 4.9 inches","FZ OR Tky Brst USDA","Turkey Bulk Poultry","CHILD_NUTRITION_FOOD_PROGRAMS",56,"GRM","BY_SERVING",2,"ONZ","2 ounce","PREPARED","A 1.59 ounce serving of turkey deli breast credits as 1 ounce equivalent meat/meat alternate",null,null,null,null,null,null,null,"1.59 ounces of turkey deli breast contains 1.00-ounce equivalent meat/meat alternate.","MEAT_OR_MEAT_ALTERNATIVE","1.00 ONZ","40 LBR","https://images.salsify.com/image/upload/s--Md6A8u4x--/nienyj8oga1eq0kk9wbi ",0,1,30,60,0,0,0,null,null,12,330,0,null,1,null,"NFT","320","CASE","TRUE","FREE_FROM","FREE_FROM","FREE_FROM","FREE_FROM","FREE_FROM","FREE_FROM","FREE_FROM","FREE_FROM","FREE_FROM","AC, AE, AF, AM, AN, AP, AS, AY, UW",null,null,"2025-04-01 08:31:52","2025-03-24 13:25:01","Turkey Breast, Water, Modified Food Starch, Sugar, Salt, Sodium Phosphate.",false]
[100121,"Turkey, Deli Breast, Frozen ","Poultry","10715001001211","Unbranded","Tyson Foods Inc.","Tyson Foods Inc.","Fully Cooked, Deli Style Turkey Breast, 40 Lbs.","DELI FC DELI STYL TKY BST 4 CNT 10l","010-TURKEY","CHILD_NUTRITION_FOOD_PROGRAMS",56,"GRM","BY_SERVING",56,"GRM","2 ounce","UNPREPARED","Use vendor CN Label or Product Formulation Statement to confirm crediting information.",null,null,null,null,null,null,null,null,null,null,null,null,0,1,30,70,0,0,0,0.4,120,12,320,1,1,1.5,0,"US_FDA_NFP_2020_STANDARD","Varied","CASE","TRUE","NOT_INTENTIONALLY_NOR_INHERENTLY_INCLUDED","NOT_INTENTIONALLY_NOR_INHERENTLY_INCLUDED","NOT_INTENTIONALLY_NOR_INHERENTLY_INCLUDED","NOT_INTENTIONALLY_NOR_INHERENTLY_INCLUDED","NOT_INTENTIONALLY_NOR_INHERENTLY_INCLUDED","NOT_INTENTIONALLY_NOR_INHERENTLY_INCLUDED","NOT_INTENTIONALLY_NOR_INHERENTLY_INCLUDED","NOT_INTENTIONALLY_NOR_INHERENTLY_INCLUDED","NOT_INTENTIONALLY_NOR_INHERENTLY_INCLUDED","AC, AE, AF, AM, AN, AP, AS, AY, UW",null,null,"2024-06-03 08:45:45","2024-05-24 08:32:05","Turkey Breast, Water, Contains 2% or Less: Salt, Dextrose, Potassium Lactate, Modified Corn Starch, Sodium Phosphates, Sodium Diacetate",false]
[100122,"Turkey, Deli Breast, Smoked, Frozen ","Poultry","90642205556871","Cargill Unbranded","Cargill Incorporated/Honeysuckle White","Cargill Incorporated/Honeysuckle White","Fully Cooked Smoked Turkey Breast School Lunch, Diameter 5.5 inches","FZ Sm Tky Brst USDA","Turkey Bulk Poultry","CHILD_NUTRITION_FOOD_PROGRAMS",56,"GRM","BY_SERVING",56,"GRM","2 ounce","PREPARED","Use vendor CN Label or Product Formulation Statement to confirm crediting information.",null,null,null,null,null,null,null,null,null,null,null,null,0,1,30,60,0,0,0,null,null,12,330,0,null,0.5,null,"NFT","320","CASE","TRUE","FREE_FROM","FREE_FROM","FREE_FROM","FREE_FROM","FREE_FROM","FREE_FROM","FREE_FROM","FREE_FROM","FREE_FROM","AC, AE, AF, AM, AN, AP, AS, AY, UW",null,null,"2024-11-01 08:56:02","2024-10-17 14:11:17","Turkey Breast, Water, Contains Less Than 2% Salt, Potassium Chloride, Sugar, Sodium Phosphate, Modified Food Starch, Sodium Erythorbate, Sodium Nitrite",false]
[100125,"Turkey, Roast, Raw, Frozen ","Poultry","90642205528144","Cargill","Cargill Incorporated/Honeysuckle White","Cargill Incorporated/Honeysuckle White","School Lunch Ready to Cook Turkey Combo Roast","Fz RTC Combo Rst 4p USDA","Turkey Bulk Poultry","CHILD_NUTRITION_FOOD_PROGRAMS",112,"GRM","BY_SERVING",112,"GRM","4 ounce","UNPREPARED",null,null,null,null,null,null,null,null,null,null,null,null,null,null,0,70,130,3.5,0,0,null,null,24,560,0,0,3.5,null,"NFT","160","CASE","TRUE","FREE_FROM","FREE_FROM","FREE_FROM","FREE_FROM","FREE_FROM","FREE_FROM","FREE_FROM","FREE_FROM","FREE_FROM","AC, AE, AF, AM, AN, AP, AS, AY, UW",null,null,"2023-02-01T10:02:46","2023-02-14T09:03:20","Turkey, Contains Up To 7% Of A Solution Of Water, Salt And Sodium Phosphate",false]
[100125,"Turkey, Roast, Raw, Frozen ","Poultry","90800020246487","USDA - FNS","VPGC","VPGC","Frozen Ready-To-Cook Turkey Roasts","4/8-12 6.5% Roast FZ",null,"CHILD_NUTRITION_FOOD_PROGRAMS",112,"GRM","BY_SERVING",null,null,"4 ounce","BAKE",null,null,null,null,null,null,null,null,null,null,null,null,null,0,0,65,160,2,null,0,0.72,null,20,600,0,0,8,null,"US_FDA_NFP_PRE_2020_STANDARD",160,"CASE",null,"FREE_FROM","FREE_FROM","FREE_FROM","FREE_FROM","FREE_FROM","FREE_FROM","FREE_FROM","FREE_FROM","FREE_FROM","AS, AM, AE, AC, AN, AP, UW, AY, AF",null,null,"2024-06-03 08:45:45","2024-05-28 08:19:57","Frozen Ready-To-Cook Turkey Roasts. Contains up to 6.5% of a Solution of Water, Salt and Sodium Phosphate.",false]
[100126,"Turkey, Deli Ham, Smoked, Frozen","Poultry","00713480101265","Hof Hause","John Hofmeister & Son, Inc","John Hofmeister  & Son, Inc","4 x10 lbr vacuum-sealed packges fully cooked smoked turkey ham","HOF HAUS Smoked Turkey Ham","Ham","CHILD_NUTRITION_FOOD_PROGRAMS",57,"GRM","BY_SERVING",57,"GRM","2 ounce","PREPARED",null,null,null,null,null,null,null,null,"57 gram","MEAT_OR_MEAT_ALTERNATIVE","57 GRM","57 GRM",null,0,2,20,60,0,0,0,0,0,9,330,2,0,1.5,0,null,"320","CASE",null,"FREE_FROM","FREE_FROM","FREE_FROM","FREE_FROM","FREE_FROM","FREE_FROM","FREE_FROM","FREE_FROM","FREE_FROM","AP, UW, AM, UN, AF, AE, AN, AY",null,null,"2024-06-03 08:45:45","2023-08-24 01:28:31","Cured Turkey Thigh Meat, Water, Dextrose, Potassium Chloride, Salt, Modified Tapioca Starch, Sodium Phosphate, Sodium Lactate, Sodium Acetate, Hickory Smoke Flavor, Sodium Diacetate, Sodium Erythorbate, Sodium Nitrite.",false]
[100127,"Beef, Coarse Ground, Cooked, Canned","Beef","00000790901617","Lakeside","Lakeside Foods Inc.","Lakeside Foods Inc.","24/24 OZ  USDA CANNED BEEF","CANNED BEEF","CANNED BEEF","CHILD_NUTRITION_FOOD_PROGRAMS",56,"GRM","BY_SERVING",null,null,"2 ounce","UNPREPARED",null,null,null,null,null,null,null,null,null,null,null,null,null,0,0,35,120,4,0,0,0.72,0,10,150,0,0,8,0,null,{"$f":"12*24","v":288},"BASE_UNIT_OR_EACH","TRUE","FREE_FROM","FREE_FROM","FREE_FROM","FREE_FROM","FREE_FROM","FREE_FROM","FREE_FROM","FREE_FROM","FREE_FROM","AS, UW, AC, AE, AF, AY, AM, AN, AP",null,null,"2023-08-01T13:17:25","2023-07-27T10:53:37","Beef, Salt",false]
[100134,"Beef, Crumbles w/SPP, Cooked, Frozen ","Beef","10020534159187","Burke Signature Unbranded","Burke Marketing Corporation","Burke Marketing Corporation","Beef Patty Crumbles; 100 ± 10 nuggets per ounce; 8/5 lbs.  Order Code: 115918.  Label Code: 115918.  Invoice Name: 8/5 CK BF PATTY CRMBLE.","Beef, Topping","Fully Cooked Meats & Pizza Toppings",null,56,"GRM","BY_SERVING",56,"GRM","2 ounce","PREPARED","Use vendor CN Label or Product Formulation Statement to confirm crediting information.",null,null,null,null,null,null,null,null,null,null,null,null,23.59,1.79,29.6,111.97,2.77,0.38,0.93,1.95,443.79,10.83,177.01,0.47,0.4,6.16,0.05,null,"324","CASE",null,"FREE_FROM","FREE_FROM","FREE_FROM","FREE_FROM","FREE_FROM","FREE_FROM","CONTAINS","FREE_FROM","FREE_FROM","AM, AE, NM, AC, AF, AP, AS, AY, AN, UW, UN",null,null,"2025-11-03 08:54:44","2025-10-03 09:07:00","Ground Beef (No More Than 20% Fat), Water, Textured Vegetable Protein (Soy Protein Concentrate, Caramel Color), Potassium Chloride, Sugar, Natural Flavorings, Salt, Sodium Phosphates, Spice. Contains: Soy.",false]
[100134,"Beef, Crumbles w/SPP, Cooked, Frozen ","Beef","00087427425838","Don Lee Farms","Goodman Food Products Inc.","Goodman Food Products","Fully Cooked Beef Crumbles #100134","Fully Cooked Beef Crumbles #100134","Beef Crumbles","CHILD_NUTRITION_FOOD_PROGRAMS",56.7,"GRM","BY_SERVING",56.7,"GRM","2 ounce","HEAT_AND_SERVE","Each 2 ounce fully cooked beef patty crumble provides 1.75 oz equivalent meat/meat alternate",null,null,null,null,null,"https://dam.catalog.1worldsync.com/im/dwn/GCP-4951524413276160",null,null,null,null,null,null,17,1.2,28,109,2.8,0,0.8,1.2,null,10.5,193,0.1,null,6.9,null,null,"320","CASE","TRUE",null,null,null,null,null,null,"CONTAINS",null,null,"AY",null,null,"2023-06-01T09:07:27","2022-12-29T10:30:08","Ground Beef (Not More Than 25% Fat), Water, Soy Protein Concentrate, (Caramel Color), Seasoning (Salt, Sodium & Potassium Phosphate, Autolyzed Yeast, Potassium Chloride, Caramel Color, Natural Flavors). Contains: Soy.",false]
[100139,"Pork, Coarse Ground, Cooked, Canned","Pork","00000790902614","Lakeside Foods","Lakeside Foods Inc.","Lakeside Foods Inc.","USDA CANNED PORK","CANNED PORK","CANNED PORK","CHILD_NUTRITION_FOOD_PROGRAMS",56,"GRM","BY_SERVING",56,"GRM","2 ounce","UNPREPARED",null,null,null,null,null,null,null,null,null,null,null,null,null,0,0,35,120,3,0,0,0.36,0,9,150,0,0,8,0,"NFT",{"$f":"12*24","v":288},"BASE_UNIT_OR_EACH",true,"FREE_FROM","FREE_FROM","FREE_FROM","FREE_FROM","FREE_FROM","FREE_FROM","FREE_FROM","FREE_FROM","FREE_FROM","AS, UW, AC, AE, AF, AY, AM, AN, AP",null,null,"2024-06-03 08:45:45","2024-05-06 14:27:38","Pork, Salt",false]
[100158,"Beef, Fine Ground, 100%, 85/15, Raw, Frozen","Beef","10028749492747","USDA","Cargill Incorporated/ Beef","Cargill Incorporated/ Beef","Ground Beef, 85/15 Fine Grind, 10 lb. Chubs","Grnd Bf 85/15 10 LB","Beef Ground Bulk","CHILD_NUTRITION_FOOD_PROGRAMS",100,"GRM","BY_SERVING",100,"GRM","3.5 ounce","UNPREPARED","A 1.34 ounce serving of 85/15 raw ground beef credits as 1 ounce equivalent meat/meat alternate ",null,null,null,null,null,null,null,"1.34-ounce portion of 85/15 raw ground beef","MEAT_OR_MEAT_ALTERNATIVE","28.3495 GRM","40 LBR","https://images.salsify.com/image/upload/s--02wbPbvW--/ejayaoqqyijz8jmy9mio ",20,0,70,220,6,2,0,1.8,null,19,65,0,null,15,null,"NFT",181,"CASE",true,"FREE_FROM","FREE_FROM","FREE_FROM","FREE_FROM","FREE_FROM","FREE_FROM","FREE_FROM","FREE_FROM","FREE_FROM","AC, AE, AF, AM, AN, AP, AS, AY, BM, UW",null,null,"2025-05-05 08:25:11","2025-04-07 11:51:03","Beef",false]
[100158,"Beef, Fine Ground, 100%, 85/15, Raw, Frozen","Beef","00079183001586","Cherry Meat Packers","Cherry Meat Packers, Inc.","cherry meat packers, inc.",null,"Beef, Fine Ground, 100%, 85/15, Fzn","Beef - Unprepared/Unprocessed","CHILD_NUTRITION_FOOD_PROGRAMS",100,"GRM","BY_MEASURE",100,"GRM","3.5 ounce","UNPREPARED",null,null,null,null,null,null,null,null,null,null,null,null,null,0,0,67,210,6,0,0,2,null,18,70,0,null,15,null,"NFT_AGGREGATE",181,"CASE",null,"NOT_INTENTIONALLY_NOR_INHERENTLY_INCLUDED","NOT_INTENTIONALLY_NOR_INHERENTLY_INCLUDED","NOT_INTENTIONALLY_NOR_INHERENTLY_INCLUDED","NOT_INTENTIONALLY_NOR_INHERENTLY_INCLUDED","NOT_INTENTIONALLY_NOR_INHERENTLY_INCLUDED","NOT_INTENTIONALLY_NOR_INHERENTLY_INCLUDED","NOT_INTENTIONALLY_NOR_INHERENTLY_INCLUDED","NOT_INTENTIONALLY_NOR_INHERENTLY_INCLUDED","NOT_INTENTIONALLY_NOR_INHERENTLY_INCLUDED","AE, AF, AM, AP, AS, UN, AY, AN, UW",null,null,"2023-09-01T09:37:09","2023-05-05T10:11:43","Beef",false]
[100158,"Beef, Fine Ground, 100%, 85/15, Raw, Frozen","Beef","00195893151035","Criss Cross Express of Illinois, LLC","Jancorp, LLC dba Criss Cross Express of IL, LLC","Jancorp, LLC dba Criss Cross Express of IL, LLC","Beef, Fine Ground, 100%, 85/15, Raw, Frozen","Beef, Fine Ground","Beef - Unprepared/Unprocessed","CHILD_NUTRITION_FOOD_PROGRAMS",112,"GRM","BY_SERVING",112,"GRM","3.95 ounce","UNPREPARED",null,null,null,null,null,null,null,null,null,null,null,null,null,null,0,70,240,7,0,0,1,0,22,65,0,0,17,0,"AB","160","CASE",null,"FREE_FROM","FREE_FROM","FREE_FROM","FREE_FROM","FREE_FROM","FREE_FROM","FREE_FROM","FREE_FROM","FREE_FROM","AE, AM, AP, AS, AY, AN, UW, AC, AF, UM, BM",null,null,"2025-02-03 09:14:02","2025-01-29 12:35:54","Beef - 100%",false]
[100158,"Beef, Fine Ground, 100%, 85/15, Raw, Frozen","Beef","00195893447824","Criss Cross Express of Illinois, LLC","Mainstay Distributing, LLC Criss Cross Express of Illinois, LLC","Mainstay Distributing, LLC",null,"Beef, Fine Ground","Beef - Unprepared/Unprocessed","CHILD_NUTRITION_FOOD_PROGRAMS",112,"GRM","BY_SERVING",112,"GRM","3.95 ounce","UNPREPARED",null,null,null,null,null,null,null,null,null,null,null,null,null,0,0,70,240,7,0,0,1,0,22,65,0,0,17,0,"AB","160","CASE",null,"FREE_FROM","FREE_FROM","FREE_FROM","FREE_FROM","FREE_FROM","FREE_FROM","FREE_FROM","FREE_FROM","FREE_FROM","AE, AM, AP, AS, AY, AN, UW, AC, AF, UM, BM",null,null,"2025-04-01 08:31:52","2025-03-05 08:56:33","Beef - 100%",false]
[100163,"Beef, Patties, Lean, Raw, 2.0 MMA, Frozen","Beef","00079183001630","Cherry Meat Packers","Cherry Meat Packers, Inc.","cherry meat packers, inc.",null,"Beef Patties Lean","Beef - Unprepared/Unprocessed","CHILD_NUTRITION_FOOD_PROGRAMS",88,"GRM","BY_MEASURE",88,"GRM","1 patty","UNPREPARED",null,null,null,null,null,null,null,null,null,null,null,null,null,0,2,40,100,1.5,0,0,2,null,15,170,0,null,3.5,null,"NFT",205,"CASE",null,"NOT_INTENTIONALLY_NOR_INHERENTLY_INCLUDED","NOT_INTENTIONALLY_NOR_INHERENTLY_INCLUDED","NOT_INTENTIONALLY_NOR_INHERENTLY_INCLUDED","NOT_INTENTIONALLY_NOR_INHERENTLY_INCLUDED","NOT_INTENTIONALLY_NOR_INHERENTLY_INCLUDED","NOT_INTENTIONALLY_NOR_INHERENTLY_INCLUDED","NOT_INTENTIONALLY_NOR_INHERENTLY_INCLUDED","NOT_INTENTIONALLY_NOR_INHERENTLY_INCLUDED","NOT_INTENTIONALLY_NOR_INHERENTLY_INCLUDED","AE, AF, AM, AP, AS, UN, AY, AN, UW",null,null,"2023-09-01T09:29:24","2023-05-05T10:53:02","Beef, Water, Oat Bran, Salt, Dehydrated Potatoes, Onion Powder, Mustard, Garlic Powder, Spice",false]
[100187,"Ham, 97% Fat Free, Water-Added, Cooked, Sliced, Frozen","Pork","00713480101876","Hof Hause","John Hofmeister & Son, Inc","John Hofmeister  & Son, Inc","8 x 5 lbr packages fully-cooked thinly sliced ham","HOF HAUS 97% Fat Free Sliced Ham","Ham","CHILD_NUTRITION_FOOD_PROGRAMS",57,"GRM","BY_SERVING",57,"GRM","2 ounce","PREPARED","Use vendor CN Label or Product Formulation Statement to confirm crediting information.",null,null,null,null,null,null,null,"57 gram","MEAT_OR_MEAT_ALTERNATIVE","57.0 GRM","57.0 GRM",null,4,1,25,50,0,0,0,0.2,503,9,350,1,0,1,0,null,"320","CASE",null,"FREE_FROM","FREE_FROM","FREE_FROM","FREE_FROM","FREE_FROM","FREE_FROM","FREE_FROM","FREE_FROM","FREE_FROM","AP, UW, AM, UN, AF, AE, AN, AY, AS",null,null,"2023-09-01T09:33:44","2023-08-24T01:33:22","Cured Ham, Water, Dextrose, Salt, Potassium Chloride, Sodium Phosphate, Modified Tapioca Starch, Sodium Lactate, Sodium Acetate, Sodium Diacetate, Sodium Erythorbate, Sodium Nitrite",false]
[100195,"Tuna, Chunk Light, Canned (K)","Fish","00086600115801","Bumble Bee","Bumble Bee Seafoods","BUMBLE BEE SEAFOODS","Bumble Bee Chunk Light Tuna in Water 66.5oz Can EA","BB Tuna ChnkLghtWtr 66.5oz can","CANNED SEAFOOD","CHILD_NUTRITION_FOOD_PROGRAMS",85,"GRM","BY_SERVING",85,"GRM","1/3 cup drained","READY_TO_EAT",null,null,null,null,null,null,null,null,"Seafood, canned, Tuna Chunk style, Water packed, includes USDA Foods","MEAT_OR_MEAT_ALTERNATIVE","0.75 ONZ","66.5 ONZ",null,10,1,40,80,0.5,0,0,0.8,130,16,380,0,0,1,1,null,{"$f":"16*6","v":96},"BASE_UNIT_OR_EACH","TRUE",null,"CONTAINS",null,null,null,null,null,null,null,"ABD","Orthodox Union Pareve",null,"2023-02-01T10:24:04","2023-03-29T17:28:02","Light Tuna, Water, Vegetable Broth, Sea Salt",false]
[100206,"Apple Slices, Unsweetened, Canned","Fruit","00042396702007","Mothers Maid","Burnette Foods, Inc.","Burnette Foods, Inc.","MOTHERS MAID SLICED APPLES 6/10","MMAID 6/10 SLICED APPLES","APPLESAUCE",null,140,"GRM","BY_SERVING",140,"GRM","1/2 cup","UNPREPARED",null,null,null,null,null,null,null,null,null,null,null,null,null,0,14,0,60,0,0,2,0,null,0,15,12,null,0,0,null,"132","BASE_UNIT_OR_EACH","TRUE",null,null,null,null,null,null,null,null,null,"X99",null,null,"2025-11-03 08:54:44","2025-10-15 07:06:21","Sliced Apples, Water",false]
[100206,"Apple Slices, Unsweetened, Canned","Fruit","00070283091002","Cherry Central Cooperative","Cherry Central","CHERRY CENTRAL","Canned Sliced Apples - Water Pack","Canned Sliced Apples - Water Pack","Canned Sliced Apples - Water Pack","CHILD_NUTRITION_FOOD_PROGRAMS",135,"GRM","BY_MEASURE",100,"GRM","3/4 cup","READY_TO_EAT",null,null,null,null,null,null,null,null,null,null,null,null,null,9.4499999999999993,22.95,0,81,0,0,2.7,0,162,0,0,17.55,0,0,0,null,{"$f":"22*6","v":132},"BASE_UNIT_OR_EACH","TRUE","FREE_FROM","FREE_FROM","FREE_FROM","FREE_FROM",null,"FREE_FROM","FREE_FROM","FREE_FROM","FREE_FROM","AM, AE, AF, AC, UN, AN, UW, AP, AY, AU","Orthodox Union",null,"2024-12-02 08:27:14","2024-11-18 12:38:46","Apples, Water, Erythorbic Acid",true]
[100206,"Apple Slices, Unsweetened, Canned","Fruit","00070283091019","Cherry Central Cooperative","Cherry Central","CHERRY CENTRAL","Apple Slices WP","Apple Slices WP","Apple Slices WP","CHILD_NUTRITION_FOOD_PROGRAMS",135,"GRM","BY_MEASURE",135,"GRM","3/4 cup","UNSPECIFIED",null,null,null,null,null,null,null,null,null,null,null,null,null,7,13,0,60,0,0,2,0,120,0,0,13,0,0,0,null,{"$f":"22*6","v":132},"BASE_UNIT_OR_EACH",null,"NOT_INTENTIONALLY_NOR_INHERENTLY_INCLUDED","NOT_INTENTIONALLY_NOR_INHERENTLY_INCLUDED","NOT_INTENTIONALLY_NOR_INHERENTLY_INCLUDED","NOT_INTENTIONALLY_NOR_INHERENTLY_INCLUDED","NOT_INTENTIONALLY_NOR_INHERENTLY_INCLUDED","NOT_INTENTIONALLY_NOR_INHERENTLY_INCLUDED","NOT_INTENTIONALLY_NOR_INHERENTLY_INCLUDED","NOT_INTENTIONALLY_NOR_INHERENTLY_INCLUDED","NOT_INTENTIONALLY_NOR_INHERENTLY_INCLUDED","UW, AC, AE, AF, AM, AP, AN, AY, AS",null,null,"2025-04-01 08:31:52","2025-03-27 11:44:40","Apples, Water, Ascorbic Acid, Citric Acid",true]
[100206,"Apple Slices, Unsweetened, Canned","Fruit","00024000249764","Del Monte","Del Monte","DEL MONTE","Del Monte® Sliced Apples in Water, 104 oz. Can","DM SLICE APPLES WATER 104 OZ.","APPLES",null,123,"GRM","BY_SERVING",123,"GRM","1/2 cup","READY_TO_EAT",null,null,null,null,null,null,null,null,null,null,null,null,null,3,13,0,50,0,0,1,0,87,0,5,11,0,0,0,"US_FDA_NFP_2020_STANDARD",144,"BASE_UNIT_OR_EACH",null,"FREE_FROM","FREE_FROM","FREE_FROM","FREE_FROM","NOT_INTENTIONALLY_NOR_INHERENTLY_INCLUDED","NOT_INTENTIONALLY_NOR_INHERENTLY_INCLUDED","FREE_FROM","FREE_FROM","FREE_FROM","AC, AE, AF, AM, AN, AP, AS, AU, AY, BM, UM, UN, UW","Triangle K",null,"2024-11-01 08:56:02","2024-10-21 15:06:55","Apples, Water",false]
[100206,"Apple Slices, Unsweetened, Canned","Fruit","00043600002456","White House","National Fruit Product","NATIONAL FRUIT PRODUCT CO INC.","6/10 6.5 Sliced Apples in Water","6/10 6.5 Sliced Apples in Water","6/10 6.5 Sliced Apples in Water",null,125,"GRM","BY_SERVING",125,"GRM","1/2 cup","READY_TO_EAT",null,null,null,null,null,null,null,null,null,null,null,null,null,0,14,0,60,0,0,2,0,80,0,0,12,0,0,0,null,{"$f":"22*6","v":132},"BASE_UNIT_OR_EACH",true,"FREE_FROM","FREE_FROM","FREE_FROM","FREE_FROM","FREE_FROM","FREE_FROM","FREE_FROM","FREE_FROM","FREE_FROM","AE, AF, AP, AN, AS, AY, UW, AM, UN",null,null,"2025-07-07 08:22:08","2025-06-09 14:53:59","Apples, Water",false]
[100212,"Mixed Fruit (Peaches, Pears, Grapes), Extra Light Syrup, Canned","Fruit","00024000509653","Del Monte","Del Monte","DEL MONTE","Del Monte® Mixed Fruit in Extra Light Syrup, 105 oz. Can","DM MIXED FRUIT ELS 105OZ","FRUIT, MIXED",null,126,"GRM","BY_SERVING",126,"GRM","1/2 cup","READY_TO_EAT",null,null,null,null,null,null,null,null,null,null,null,null,null,7,15,0,60,0,0,1,0,113,0,5,13,4,0,0,"US_FDA_NFP_2020_STANDARD",144,"BASE_UNIT_OR_EACH",null,"FREE_FROM","FREE_FROM","FREE_FROM","FREE_FROM","FREE_FROM","NOT_INTENTIONALLY_NOR_INHERENTLY_INCLUDED","FREE_FROM","FREE_FROM","FREE_FROM","AC, AE, AF, AM, AN, AP, AS, AU, AY, BM, UM, UN, UW","Triangle K",null,"2025-11-03 08:54:44","2025-10-16 14:45:26","Peaches, Water, Pears, Grapes, Sugar, Citric Acid",false]
[100212,"Mixed Fruit (Peaches, Pears, Grapes), Extra Light Syrup, Canned","Fruit","00073934152893","Mission Pride","Pacific Coast Producers","Pacific Coast Producers",null,"Mission P Fruit Mix XLS","Mission Pride Fruit Mix Extra Light","CHILD_NUTRITION_FOOD_PROGRAMS",124,"GRM","BY_MEASURE",100,"GRM","1/2 cup","READY_TO_EAT",null,null,null,null,null,null,null,null,null,null,null,null,null,5,16.329999999999998,0,66,0.01,0,1.7,0.22,125,0.51,2,13.65,4.5999999999999996,0.21,0,null,{"$f":"24*6","v":144},"BASE_UNIT_OR_EACH","TRUE","FREE_FROM","FREE_FROM","FREE_FROM","FREE_FROM","FREE_FROM","FREE_FROM","FREE_FROM","FREE_FROM","FREE_FROM","AE, AF, AM, AP, UN, AY, AN, UW, AS",null,null,"2022-09-19T05:24:52","2023-08-18T18:29:12","Diced Peaches, Diced Pears, Water, Grapes, Sugar",true]
[100216,"Apricots, Diced, Extra Light Syrup, Canned","Fruit","00024000246022","Del Monte","Del Monte","DEL MONTE","Unpeeled Apricots in Extra Light Syrup","DM DICE APRICOSTS IN XLS 6/105OZ.","APRICOTS",null,124,"GRM","BY_SERVING",124,"GRM","1/2 cup","READY_TO_EAT",null,null,null,null,null,null,null,null,null,null,null,null,null,10,14,0,60,0,0,1,0.3,119,1,10,12,4,0,0,"US_FDA_NFP_2020_STANDARD",144,"BASE_UNIT_OR_EACH",null,"FREE_FROM","FREE_FROM","FREE_FROM","FREE_FROM","FREE_FROM","NOT_INTENTIONALLY_NOR_INHERENTLY_INCLUDED","FREE_FROM","FREE_FROM","FREE_FROM","AC, AE, AF, AM, AN, AP, AS, AU, AY, BM, UM, UN, UW","Triangle K",null,"2023-09-01T08:55:48","2023-08-15T16:58:21","Apricots, Water, Sugar",false]
[100216,"Apricots, Diced, Extra Light Syrup, Canned","Fruit","00073934150752","Mission Pride","Pacific Coast Producers","Pacific Coast Producers",null,"Mission P Diced Apricots XLS","Mission Pride Diced Apricots Extra","CHILD_NUTRITION_FOOD_PROGRAMS",124,"GRM","BY_SERVING",124,"GRM","1/2 cup","READY_TO_EAT",null,null,null,null,null,null,null,null,null,null,null,null,null,7,15,0,60,0,0,1,0,152,1,0,13,6,0,0,null,{"$f":"24*6","v":144},"BASE_UNIT_OR_EACH","TRUE","FREE_FROM","FREE_FROM","FREE_FROM","FREE_FROM","FREE_FROM","FREE_FROM","FREE_FROM","FREE_FROM","FREE_FROM","AE, AF, AM, AP, UN, AY, AN, UW, AS",null,null,"2022-09-19T05:21:36","2023-08-18T18:30:18","Apricots, Water, Sugar",false]
[100219,"\nPeaches, Sliced, Extra Light Syrup, Canned","Fruit","00024000509660","Del Monte","Del Monte","DEL MONTE","Del Monte® Sliced Peaches In Extra Light Syrup, Canned Fruit, 105 oz. Can","DM SLICE PEACHES ELS 105OZ","PEACHES",null,124,"GRM","BY_SERVING",124,"GRM","1/2 cup","READY_TO_EAT",null,null,null,null,null,null,null,null,null,null,null,null,null,6,15,0,60,0,0,1,0.2,105,0,5,12,5,0,0,"US_FDA_NFP_2020_STANDARD",144,"BASE_UNIT_OR_EACH",null,"FREE_FROM","FREE_FROM","FREE_FROM","FREE_FROM","FREE_FROM","NOT_INTENTIONALLY_NOR_INHERENTLY_INCLUDED","FREE_FROM","FREE_FROM","FREE_FROM","AC, AE, AF, AM, AN, AP, AS, AU, AY, BM, UM, UN, UW","Triangle K",null,"2024-11-01 08:56:02","2024-10-21 15:06:55","Peaches, Water, Sugar",false]
[100219,"Peaches, Sliced, Extra Light Syrup, Canned","Fruit","00073934151278","Mission Pride","Pacific Coast Producers","Pacific Coast Producers","Sliced Peaches in XLS 6-10","Mission P Sliced Peaches in XLS","Mission Pride Sliced Peaches in XLS","CHILD_NUTRITION_FOOD_PROGRAMS",124,"GRM","BY_SERVING",124,"GRM","1/2 cup","READY_TO_EAT",null,null,null,null,null,null,null,null,null,null,null,null,null,1,16,0,60,0,0,1,0,81,1,0,15,7,0,0,null,{"$f":"24*6","v":144},"BASE_UNIT_OR_EACH",true,"FREE_FROM","FREE_FROM","FREE_FROM","FREE_FROM","FREE_FROM","FREE_FROM","FREE_FROM","FREE_FROM","FREE_FROM","AC, AE, AF, AM, AP, AS, AY, AN, UW",null,null,"2023-08-01T13:23:22","2023-08-18T18:31:57","Peaches, Water, Sugar",false]
[100220,"Peaches, Diced, Extra Light Syrup, Canned","Fruit","00024000509691","Del Monte","Del Monte","DEL MONTE","Del Monte® Diced Peaches in Extra Light Syrup, 105 oz. Can","DM DICED PEACHES XLS 105OZ","PEACHES, YELLOW CLING",null,126,"GRM","BY_SERVING",126,"GRM","1/2 cup","READY_TO_EAT",null,null,null,null,null,null,null,null,null,null,null,null,null,6,14,0,60,0,0,1,0.2,113,0,5,13,5,0,0,"US_FDA_NFP_2020_STANDARD",144,"BASE_UNIT_OR_EACH",null,"FREE_FROM","FREE_FROM","FREE_FROM","FREE_FROM","FREE_FROM","NOT_INTENTIONALLY_NOR_INHERENTLY_INCLUDED","FREE_FROM","FREE_FROM","FREE_FROM","AC, AE, AF, AM, AN, AP, AS, AU, AY, BM, UM, UN, UW","Triangle K",null,"2024-11-01 08:56:02","2024-10-17 18:17:21","Peaches, Water, Sugar",false]
[100220,"Peaches, Diced, Extra Light Syrup, Canned","Fruit","00073934151285","Mission Pride","Pacific Coast Producers","PACIFIC COAST PRODUCERS",null,"Mission P Diced Peaches XLS","Mission Pride Diced Peaches Extra L","CHILD_NUTRITION_FOOD_PROGRAMS",124,"GRM","BY_SERVING",124,"GRM","1/2 cup","READY_TO_EAT",null,null,null,null,null,null,null,null,null,null,null,null,null,1,16,0,60,0,0,1,0,81,1,0,15,7,0,0,null,{"$f":"24*6","v":144},"BASE_UNIT_OR_EACH","TRUE","FREE_FROM","FREE_FROM","FREE_FROM","FREE_FROM","FREE_FROM","FREE_FROM","FREE_FROM","FREE_FROM","FREE_FROM","AE, AF, AM, AP, UN, AY, AN, UW, AS",null,null,"2022-09-19T05:49:14","2023-08-18T18:34:20","Peaches, Water, Sugar",false]
[100224,"Pears, Sliced, Extra Light Syrup, Canned","Fruit","00024000509677","Del Monte","Del Monte","DEL MONTE","Del Monte® Quality Lite Sliced Pears, 105 oz. Can","DM SLICE PEARS EX LIGHT SYRUP 105OZ","PEARS",null,124,"GRM","BY_SERVING",124,"GRM","1/2 cup","READY_TO_EAT",null,null,null,null,null,null,null,null,null,null,null,null,null,6,15,0,60,0,0,2,0,60,0,5,12,5,0,0,"US_FDA_NFP_2020_STANDARD",144,"BASE_UNIT_OR_EACH",null,"FREE_FROM","FREE_FROM","FREE_FROM","FREE_FROM","FREE_FROM","NOT_INTENTIONALLY_NOR_INHERENTLY_INCLUDED","FREE_FROM","FREE_FROM","FREE_FROM","AC, AE, AF, AM, AN, AP, AS, AU, AY, BM, UM, UN, UW","Triangle K",null,"2024-11-01 08:56:02","2024-10-21 15:06:55","Pears, Water, Sugar",false]
[100224,"Pears, Sliced, Extra Light Syrup, Canned","Fruit","00073934158215","Mission Pride","Pacific Coast Producers","Pacific Coast Producers",null,"Mission P Sliced Pears XLS","Mission Pride Sliced Pears Extra Li","CHILD_NUTRITION_FOOD_PROGRAMS",124,"GRM","BY_SERVING",124,"GRM","1/2 cup","READY_TO_EAT",null,null,null,null,null,null,null,null,null,null,null,null,null,8,16,0,70,0,0,2,0,76,0,0,13,7,0,0,null,{"$f":"24*6","v":144},"BASE_UNIT_OR_EACH","TRUE","FREE_FROM","FREE_FROM","FREE_FROM","FREE_FROM","FREE_FROM","FREE_FROM","FREE_FROM","FREE_FROM","FREE_FROM","AE, AF, AM, AP, UN, AY, AN, UW, AS",null,null,"2022-09-19T05:38:04","2023-08-18T18:37:52","Pears, Water, Sugar",false]
[100224,"Pears, Sliced, Extra Light Syrup, Canned","Fruit","10041712914565","Oregon Trail","Neil Jones Food Company","The Neil Jones Food Company","Oregon Trail Bartlett Sliced Pears in XL Syrup 6 pack  105oz non-BPA intent cans","Bartlett Pear Sliced in XL Syrup","Sliced Pears","CHILD_NUTRITION_FOOD_PROGRAMS",128,"GRM","BY_SERVING",null,null,"1/2 cup","READY_TO_EAT",null,null,null,null,null,null,null,null,null,null,null,null,null,9,17,0,70,0,0,3,0,99,0,0,12,4,0,0,"US_FDA_NFP_2020_STANDARD",126,"CASE","TRUE","FREE_FROM","FREE_FROM","FREE_FROM","FREE_FROM","FREE_FROM","FREE_FROM","FREE_FROM","FREE_FROM","FREE_FROM","AM, AE, AF, AC, AP, AY, UW, AN, AS, UN, UM","Orthodox Union",null,"2025-08-01 09:35:39","2025-07-10 12:38:15","Pears, Water, High Fructose Corn Syrup, and Corn Syrup",false]
[100225,"Pears, Diced, Extra Light Syrup, Canned (K)","Fruit","00024000550518","Del Monte","Del Monte","DEL MONTE","Del Monte® Lite Diced Pears in Extra Light Syrup, 105 oz. Can","DM DICED PEARS LITE XLS 105OZ","PEARS",null,124,"GRM","BY_SERVING",124,"GRM","1/2 cup","READY_TO_EAT",null,null,null,null,null,null,null,null,null,null,null,null,null,6,16,0,60,0,0,2,0,65,0,5,12,4,0,0,"US_FDA_NFP_2020_STANDARD",144,"BASE_UNIT_OR_EACH",null,"FREE_FROM","FREE_FROM","FREE_FROM","FREE_FROM","FREE_FROM","NOT_INTENTIONALLY_NOR_INHERENTLY_INCLUDED","FREE_FROM","FREE_FROM","FREE_FROM","AC, AE, AF, AM, AN, AP, AS, AU, AY, BM, UM, UW","Triangle K",null,"2024-11-01 08:56:02","2024-10-21 15:06:55","Pears, Water, Sugar, Citric Acid",false]
[100225,"Pears, Diced, Extra Light Syrup, Canned (K)","Fruit","00073934156068","Mission Pride","Pacific Coast Producers","Pacific Coast Producers",null,"Mission P Diced Pears XLS","Mission Pride Diced Pears Extra Lig","CHILD_NUTRITION_FOOD_PROGRAMS",124,"GRM","BY_SERVING",124,"GRM","1/2 cup","READY_TO_EAT",null,null,null,null,null,null,null,null,null,null,null,null,null,8,16,0,70,0,0,2,0,76,0,0,13,7,0,0,null,{"$f":"24*6","v":144},"BASE_UNIT_OR_EACH","TRUE","FREE_FROM","FREE_FROM","FREE_FROM","FREE_FROM","FREE_FROM","FREE_FROM","FREE_FROM","FREE_FROM","FREE_FROM","AS, UW, AE, AF, AY, UN, AM, AN, AP","Orthodox Union",null,"2022-09-19T05:44:18","2023-08-18T18:39:57","Pears, Water, Sugar",false]
[100225,"Pears, Diced, Extra Light Syrup, Canned (K)","Fruit","10041712915562","Oregon Trail","Neil Jones Food Company","The Neil Jones Food Company","Oregon Trail Bartlett Diced Pears in XL Syrup Cane 6 pack  105oz non-BPA intent cans","Bartlett Pear Diced XL Syrup","Diced Pears","CHILD_NUTRITION_FOOD_PROGRAMS",128,"GRM","BY_SERVING",null,null,"1/2 cup","READY_TO_EAT",null,null,null,null,null,null,null,null,null,null,null,null,null,9,18,0,70,0,0,3,0,106,0,0,12,3,0,0,"US_FDA_NFP_2020_STANDARD",126,"CASE","TRUE","FREE_FROM","FREE_FROM","FREE_FROM","FREE_FROM","FREE_FROM","FREE_FROM","FREE_FROM","FREE_FROM","FREE_FROM","AM, AE, AF, AC, AP, AY, UW, AN, AS, UN, UM","Orthodox Union",null,"2025-08-01 09:35:39","2025-07-10 12:38:09","Pears, Water, and High Fructose Corn Syrup, and Corn Syrup",false]
[100226,"Pears, Halves, Extra Light Syrup, Canned","Fruit","00073934158222","Mission Pride","Pacific Coast Producers","Pacific Coast Producers",null,"Mission P Pear Halves XLS","Mission Pride Pear Halves Extra Lig","CHILD_NUTRITION_FOOD_PROGRAMS",124,"GRM","BY_SERVING",124,"GRM","1/2 cup","READY_TO_EAT",null,null,null,null,null,null,null,null,null,null,null,null,null,8,16,0,70,0,0,2,0,76,0,0,13,7,0,0,null,{"$f":"24*6","v":144},"BASE_UNIT_OR_EACH","TRUE","FREE_FROM","FREE_FROM","FREE_FROM","FREE_FROM","FREE_FROM","FREE_FROM","FREE_FROM","FREE_FROM","FREE_FROM","AE, AF, AM, AP, UN, AY, AN, UW, AS",null,null,"2022-09-19T05:44:28","2023-08-18T18:42:41","Pears, Water, Sugar",false]
[100226,"Pears, Halves, Extra Light Syrup, Canned","Fruit","10041712912561","Oregon Trail","Neil Jones Food Company","The Neil Jones Food Company","Oregon Trail Bartlett Pear Halves in Extra Light Syrup 6 pack 105oz non-BPA intent cans","Bartlett Pear Halves in XL Syrup","Pear Halves","CHILD_NUTRITION_FOOD_PROGRAMS",128,"GRM","BY_SERVING",null,null,"1/2 cup","READY_TO_EAT",null,null,null,null,null,null,null,null,null,null,null,null,null,9,17,0,70,0,0,3,0,96,0,0,12,4,0,0,"US_FDA_NFP_2020_STANDARD",126,"CASE","TRUE","FREE_FROM","FREE_FROM","FREE_FROM","FREE_FROM","FREE_FROM","FREE_FROM","FREE_FROM","FREE_FROM","FREE_FROM","AM, AE, AF, AC, AP, AY, UW, AN, AS, UN, UM","Orthodox Union",null,"2025-08-01 09:35:39","2025-07-10 12:38:09","Pears, Water, High Fructose Corn Syrup, and Corn Syrup",false]
[100238,"Peaches, Sliced, Frozen ","Fruit","10817134025789","Southern Sliced Peaches","Palmetto Processing Solutions","Palmetto Processing Solutions","Frozen Sliced Freestone Peaches","Frozen Sliced Freestone Peaches","Frozen Sliced Freestone Peaches","CHILD_NUTRITION_FOOD_PROGRAMS",140,"GRM","BY_SERVING",140,"GRM","1 cup","THAW",null,null,null,null,null,null,null,null,null,null,null,null,null,0,19,0,80,0,0,2,0,270,1,5,14,9,0,0,null,{"$f":"12*12","v":144},"CASE",true,"FREE_FROM","FREE_FROM","FREE_FROM","FREE_FROM","FREE_FROM","FREE_FROM","FREE_FROM","FREE_FROM","FREE_FROM","AM, AP, AS, AY, AN, UW, AC, AE, AF, UM, BM",null,null,"2024-03-01T08:28:33","2024-02-29T08:58:27","Peaches, Peach Puree, Sugar, Ascorbic Acid, Citric Acid",false]
[100238,"Peaches, Sliced, Frozen ","Fruit","10817134025772","Southern Sliced Peaches","Palmetto Processing Solutions","Palmetto Processing Solutions","Frozen Sliced Freestone Peaches","Frozen Sliced Freestone Peaches","Frozen Sliced Freestone Peaches","CHILD_NUTRITION_FOOD_PROGRAMS",140,"GRM","BY_SERVING",140,"GRM","1 cup","THAW",null,null,null,null,null,null,null,null,null,null,null,null,null,0,19,0,80,0,0,2,0,270,1,5,14,9,0,0,null,{"$f":"12*12","v":144},"CASE","TRUE","FREE_FROM","FREE_FROM","FREE_FROM","FREE_FROM","FREE_FROM","FREE_FROM","FREE_FROM","FREE_FROM","FREE_FROM","AM, AP, AS, AY, AN, UW, AC, AE, AF, UM, BM",null,null,"2024-03-01T10:17:03","2024-02-22T14:46:52","Peaches, Peach Puree, Sugar, Ascorbic Acid, Citric Acid",false]
[100239,"Peaches, Sliced, Frozen ","Fruit","10817134024232","Southern Sliced Peaches","Palmetto Processing Solutions","Palmetto Processing Solutions","Southern Sliced Peaches","Frozen Sliced Freestone Peaches","Frozen Sliced Freestone Peaches","CHILD_NUTRITION_FOOD_PROGRAMS",125,"GRM","BY_MEASURE",125,"GRM","1/2 cup","THAW",null,null,null,null,null,null,null,null,null,null,null,null,null,4,21,0,84,0,0,2,0,160,0,0,16,8,0,0,null,72,"CASE",true,"FREE_FROM","FREE_FROM","FREE_FROM","FREE_FROM","FREE_FROM","FREE_FROM","FREE_FROM","FREE_FROM","FREE_FROM","AM, AP, AS, AY, AN, UW, AC, AE, AF, UM, BM",null,null,"2025-01-08 08:30:06","2024-12-10 08:58:03","Peaches, Peach Puree, Sugar, Ascorbic Acid, Citric Acid",true]
[100241,"Peaches, Diced, Cups, Frozen ","Fruit","00071202273066","Big Valley","Dole Packaged Frozen Foods","Dole Packaged Foods, LLC","Big Valley 4.4 oz. Peach Diced Cups w DS 11.5+1","PEACH DICED 4.4 FRT CUPS 11.5+1","FOOD ITEM",null,125,"GRM","BY_SERVING",125,"GRM","4.4 ounce cup","PREPARED",null,null,null,null,null,null,null,null,null,null,null,null,null,0,21,0,90,0,0,2,0,220,1,0,19,10,0,0,"US_USDA_NFP_STANDARD",96,"BASE_UNIT_OR_EACH",null,"FREE_FROM","FREE_FROM","FREE_FROM","FREE_FROM","FREE_FROM","FREE_FROM","FREE_FROM","FREE_FROM","FREE_FROM","AS, UW, AC, AE, AF, AY, AM, AN, AP",null,null,"2023-06-01T09:16:33","2023-05-03T11:12:22","Peaches, Sugar, Ascorbic Acid (to Promote Color Retention), and Citric Acid",false]
[100241,"Peaches, Diced, Cups, Frozen ","Fruit","10817134020432","Tickled Peaches","Palmetto Processing Solutions","Palmetto Processing Solutions","Freestone Dice","Freestone DIce","Freestone Dice","CHILD_NUTRITION_FOOD_PROGRAMS",124.74,"GRM","BY_SERVING",124.74,"GRM","4.4 ounce cup","THAW",null,null,null,null,null,null,null,null,null,null,null,null,null,4,20,0,80,0,0,2,0,160,1,15,16,8,0,0,"NFT","96","CASE","TRUE","FREE_FROM","FREE_FROM","FREE_FROM","FREE_FROM","FREE_FROM","FREE_FROM","FREE_FROM","FREE_FROM","FREE_FROM","AM, AP, AS, AY, AN, UW, AC, AE, AF, UM, BM",null,null,"2023-04-03T16:27:29","2023-03-22T07:57:37","Peaches, Sugar, Ascorbic Acid, Citric Acid",false]
[100241,"Peaches, Diced, Cups, Frozen ","Fruit","00071262990026","Tabatchnick","Tabatchnick Fine Foods","Tabatchnick Fine Foods","Tabatchnick Frozen Fruit Cup made from Diced Peaches","Frozen Fruit Cup from Diced Peaches","Fruit cup","CHILD_NUTRITION_FOOD_PROGRAMS",125,"GRM","BY_SERVING",125,"GRM","4.4 ounce cup","PREPARED",null,null,null,null,null,null,null,null,null,null,null,null,null,0,12,0,50,0,0,1,0,0,0,0,11,6,0,0,"NFT",96,"CASE",true,"FREE_FROM","FREE_FROM","FREE_FROM","FREE_FROM","FREE_FROM","FREE_FROM","FREE_FROM","FREE_FROM","FREE_FROM","AM, AS, AP, AY, AN, UW, AC, AE, AF, UM, BM",null,null,"2025-07-07 08:22:08","2025-07-01 12:45:41","Peaches, Water, Sugar, Citric Acid, Ascorbic Acid (Vitamin C)",false]
[100241,"Peaches, Diced, Cups, Frozen ","Fruit","10034742055377","Wawona Frozen Foods","Wawona Frozen Foods","Wawona Frozen Foods","Wawona Frozen Foods Peach Fruit Single Cups 96/4.4oz","Peach Fruit Single Cups 96/4.4oz","Frozen Fruit","CHILD_NUTRITION_FOOD_PROGRAMS",125,"GRM","BY_SERVING",null,null,"4.4 ounce cup","THAW",null,null,null,null,null,null,null,null,null,null,null,null,null,7,21,0,80,0,0,2,0,216,1,0,19,10,0,0,null,"96","CASE","TRUE","FREE_FROM","FREE_FROM","FREE_FROM","FREE_FROM","FREE_FROM","FREE_FROM","FREE_FROM","FREE_FROM","FREE_FROM","AM, AP, AS, AY, AN, UW, AC, AE, AF, UM, BM",null,null,"2025-01-08 08:30:06","2024-12-09 15:51:37","Peaches, Sugar, Ascorbic Acid and Citric Acid Added to Maintain Color",false]
[100242,"Blueberries, Wild, Unsweetened, Frozen ","Fruit","00079900001691","Wyman's","Jasper Wyman & Son","JASPER WYMAN & SON","3 Lb IQF Frozen Wild Blueberries.","3LB FZNWLD BBRY","Frozen fruit","CHILD_NUTRITION_FOOD_PROGRAMS",140,"GRM","BY_SERVING",140,"GRM","1 cup","UNPREPARED",null,null,null,null,null,null,null,null,null,null,null,null,null,25,19,0,80,0,0,6,0.8,95,0,0,10,0,0,0,null,{"$f":"10*8","v":80},"BASE_UNIT_OR_EACH",true,"FREE_FROM","FREE_FROM","FREE_FROM","FREE_FROM","FREE_FROM","FREE_FROM","FREE_FROM","FREE_FROM","FREE_FROM","AS, UW, AC, AE, AF, AY, AM, AN, AP","EarthKosher",null,"2025-06-02 08:13:46","2025-05-20 12:52:33","Wild Blueberries",false]
[100243,"Blueberries, Wild, Unsweetened, Frozen ","Fruit","00198168171158","Passamaquoddy Wild Blueberry Co.","Passamaquoddy Wild Blueberry Co.","Passamaquoddy Wild Blueberry Company","Blueberries, Wild, Unsweetened, Frozen","Blueberries, Wild, Unsweetened, Fro","Fruit - Prepared/Processed (Frozen)","CHILD_NUTRITION_FOOD_PROGRAMS",70,"GRM","BY_SERVING",0.5,"G21","1/2 cup ","READY_TO_EAT",null,null,null,null,null,null,null,null,null,null,null,null,null,12,9,0,40,0,0,3,1,47,0,0,5,0,0,0,null,190,"CASE",false,"NOT_INTENTIONALLY_NOR_INHERENTLY_INCLUDED","NOT_INTENTIONALLY_NOR_INHERENTLY_INCLUDED","NOT_INTENTIONALLY_NOR_INHERENTLY_INCLUDED","NOT_INTENTIONALLY_NOR_INHERENTLY_INCLUDED","NOT_INTENTIONALLY_NOR_INHERENTLY_INCLUDED","NOT_INTENTIONALLY_NOR_INHERENTLY_INCLUDED","NOT_INTENTIONALLY_NOR_INHERENTLY_INCLUDED","NOT_INTENTIONALLY_NOR_INHERENTLY_INCLUDED","NOT_INTENTIONALLY_NOR_INHERENTLY_INCLUDED","AE, AF, AM, AP, AS, UN, AY, AN, UW","Earth Kosher  ",null,"2024-01-02T10:52:07","2023-12-07T09:54:05","Wild Blueberries",false]
[100254,"Strawberries, Sliced, Frozen","Fruit","00086289258929","Anacapa Foods","Inn Foods, Inc.","Inn Foods, Inc.","Fruit","Sliced Strawberries","Fruit",null,70,"GRM","BY_SERVING",70,"GRM","1/4 cup","THAW",null,null,null,null,null,null,null,null,null,null,null,null,null,10,11,0,45,0,0,1,0.4,95,1,1.3,9,6,0,0,null,"194","BASE_UNIT_OR_EACH","TRUE","FREE_FROM","FREE_FROM","FREE_FROM","FREE_FROM","FREE_FROM","FREE_FROM","FREE_FROM","FREE_FROM","FREE_FROM","AM, AE, AF, AC, AN, AP, UW, AY, AS",null,null,"2025-01-08 08:30:06","2024-12-19 12:02:00","Strawberries, Sugar",false]
[100256,"Strawberries, Diced, Cups, Frozen","Fruit","10086289208655","Sure Fresh Produce, Inc. ","Inn Foods, Inc.","Inn Foods, Inc.","Fruit","Strawberries","Fruit",null,128,"GRM","BY_SERVING",128,"GRM","4.5 ounce cup","THAW",null,null,null,null,null,null,null,null,null,null,null,null,null,20,19,0,80,0,0,2,0.4,180,1,0,16,10,0,0,null,96,"BASE_UNIT_OR_EACH",null,"FREE_FROM","FREE_FROM","FREE_FROM","FREE_FROM","FREE_FROM","FREE_FROM","FREE_FROM","FREE_FROM","FREE_FROM","AM, AE, AF, AC, AN, AP, UW, AY, AS",null,null,"2025-06-02 08:13:46","2025-05-16 12:27:00","Strawberries, Sugar",false]
[100256,"Strawberries, Diced, Cups, Frozen","Fruit","10817134020456","Tickled Strawberries","Palmetto Processing Solutions","Palmetto Processing Solutions","Strawberries Dice","Strawberries Dice","Strawberries Dice","CHILD_NUTRITION_FOOD_PROGRAMS",128,"GRM","BY_SERVING",128,"GRM","4.5 ounce cup","THAW",null,null,null,null,null,null,null,null,null,null,null,null,null,19,19,0,80,0,0,2,0,180,0,0,16,10,0,0,"NFT","96","CASE","TRUE","FREE_FROM","FREE_FROM","FREE_FROM","FREE_FROM","FREE_FROM","FREE_FROM","FREE_FROM","FREE_FROM","FREE_FROM","AM, AP, AS, AY, AN, UW, AC, AE, AF, UM, BM",null,null,"2023-04-03T16:08:47","2023-03-22T07:45:06","Strawberries, Sugar",false]
[100256,"Strawberries, Diced, Cups, Frozen","Fruit","10034742055995","Wawona Frozen Foods","Wawona Frozen Foods","Wawona Frozen Foods","Wawona Frozen Foods Strawberry Fruit Singles 96/4.5oz","Strawber Fruit Single Cups 96/4.5oz","Frozen Fruit","CHILD_NUTRITION_FOOD_PROGRAMS",128,"GRM","BY_SERVING",null,null,"4.5 ounce cup","THAW",null,null,null,null,null,null,null,null,null,null,null,null,null,19,19,0,80,0,0,2,0,180,1,0,16,10,0,0,null,"96","CASE","TRUE","FREE_FROM","FREE_FROM","FREE_FROM","FREE_FROM","FREE_FROM","FREE_FROM","FREE_FROM","FREE_FROM","FREE_FROM","AM, AP, AS, AY, AN, UW, AC, AE, AF, UM, BM",null,null,"2022-09-19T05:47:23","2022-05-18T18:41:28","Strawberries, Sugar",false]
[100261,"Apricots, Diced, Cups, Frozen ","Fruit","10071202303005","Big Valley","Dole Packaged Frozen Foods","Dole Packaged Foods, LLC","FRT CUP APRICOT DCD 96/4.5OZSY","FRT CUP APRICOT DCD 96/4.5OZSY","Apricots","CHILD_NUTRITION_FOOD_PROGRAMS",128,"GRM","BY_SERVING",128,"GRM","4.5 ounce cup","PREPARED",null,null,null,null,null,null,null,null,null,null,null,null,null,0,25,0,110,0,0,2,0.4,280,1,0,23,13,0,0,null,96,"CASE",null,"FREE_FROM","FREE_FROM","FREE_FROM","FREE_FROM","FREE_FROM","FREE_FROM","FREE_FROM","FREE_FROM","FREE_FROM","AS, UW, AC, AE, AF, AY, AM, AN, AP",null,null,"2024-05-01T09:10:35","2024-04-10T17:07:43","Apricots, Sugar, Water, Ascorbic Acid (to Promote Color Retention), and Citric Acid. ",false]
[100277,"Orange Juice, Unsweetened, Cartons, Frozen ","Fruit","00774840301015","SUNCUP","Gregory Packaging","Gregory Packaging, Inc.","4 ounce paper carton","100% Orange Juice 4 oz. carton","100% Orange Juice carton 4 oz. fzn",null,"118 milliliters","MLT","BY_PACKAGE_OR_CONTAINER",4,"ONZ","4 ounce container","READY_TO_DRINK",null,null,null,null,null,null,null,null,null,null,null,null,null,0,14,0,60,0,0,0,0,240,0,0,12,0,0,0,null,70,"CASE","TRUE",null,null,null,null,null,null,null,null,null,null,null,null,"2023-06-01T09:04:03","2023-02-02T07:32:00","100% Orange Juice (Water Sufficient to Reconstitute Orange Juice Concentrate)",false]
[100293,"Raisins, Unsweetened, Individual Portion","Fruit","00074917000156","Regent Raisins","Chooljian and Sons  Inc.","Chooljian and Sons  Inc.","California Seedless Raisins","California Seedless Raisins","for consuming","CHILD_NUTRITION_FOOD_PROGRAMS",37.700000000000003,"GRM","BY_SERVING",37.700000000000003,"GRM","1.33 ounce box","UNPREPARED",null,null,null,null,null,null,null,null,null,null,null,null,null,23,30,0,110,0,0,2,1,280,1,10,25,0,0,0,null,144,"BASE_UNIT_OR_EACH",true,null,null,null,null,null,null,null,null,null,null,null,null,"2023-07-05T13:11:25","2023-06-05T11:17:01","Raisins",false]
[100293,"Raisins, Unsweetened, Individual Portion","Fruit","00076161001330","Lion Raisins","Lion Raisins","Lion Raisins","Raisins Box - 144/1.33 OZ","RAISINS","Fruit - Prepared/Processed (Shelf S","CHILD_NUTRITION_FOOD_PROGRAMS",37.700000000000003,"GRM","BY_SERVING",37.700000000000003,"GRM","1.33 ounce box","READY_TO_EAT",null,null,null,null,null,null,null,null,null,null,null,null,null,19,30,0,110,0,0,1,1,280,1,0,22,0,0,0,null,144,"BASE_UNIT_OR_EACH","TRUE",null,null,null,null,null,null,null,null,null,"X99",null,null,"2023-07-05T13:40:07","2023-06-23T11:33:46","Raisins",false]
[100293,"Raisins, Unsweetened, Individual Portion","Fruit","00866983000051","Sun Valley Raisins, Inc.","Sun Valley Raisins, Inc.","Sun Valley Raisins, Inc.","1.33oz Raisins","1.33oz Raisins","Fruit - Prepared/Processed (Shelf S","CHILD_NUTRITION_FOOD_PROGRAMS",38,"GRM","BY_MEASURE",100,"GRM","1.33 ounce box","READY_TO_EAT",null,null,null,null,null,null,null,null,null,null,null,null,null,19,30.02,0,114,0,0,1.52,0.68400000000000005,284.62,1.1399999999999999,7.6,22.42,0,0,0,null,{"$f":"1*(144)","v":144},"BASE_UNIT_OR_EACH",true,null,null,null,null,null,null,null,null,null,null,null,null,"2024-03-01T09:47:20","2024-02-29T16:14:19","Raisins",true]
[100293,"Raisins, Unsweetened, Individual Portion","Fruit","00041143121221","Sun-Maid®","Sun-Maid Growers","Sun-Maid Growers","Raisin 6-Pack - 6 individual cartons bundled together in cellophane overwrap; each carton contains 1.33 oz of California Sun-Dried Raisins.  Cartons are not labeled for individual retail sale.","SUNMAID RAISIN 6-PACK","Raisins","CHILD_NUTRITION_FOOD_PROGRAMS",38,"GRM","BY_SERVING",38,"GRM","1.33 ounce box","READY_TO_EAT",null,null,null,null,null,null,null,null,null,null,null,null,null,20,30,0,120,0,0,2,0.7,280,1,10,24,0,0,0,"US_FDA_NFP_2020_LINEAR_SMALL_PACKAGES",144,"BASE_UNIT_OR_EACH","TRUE","NOT_INTENTIONALLY_NOR_INHERENTLY_INCLUDED","FREE_FROM","NOT_INTENTIONALLY_NOR_INHERENTLY_INCLUDED","NOT_INTENTIONALLY_NOR_INHERENTLY_INCLUDED","NOT_INTENTIONALLY_NOR_INHERENTLY_INCLUDED","FREE_FROM","NOT_INTENTIONALLY_NOR_INHERENTLY_INCLUDED","NOT_INTENTIONALLY_NOR_INHERENTLY_INCLUDED","NOT_INTENTIONALLY_NOR_INHERENTLY_INCLUDED","AC, AE, AF, AM, AN, AP, AS, AU, AY, BM, NC, SS, UW, UM, X99","OK Kosher Certification",null,"2025-11-03 08:54:44","2025-10-22 09:30:37","California Seedless Raisins",false]
[100293,"Raisins, Unsweetened, Individual Portion","Fruit","00716245000094","Victor","Victor Packing, Inc.","Victor Packing, Inc.","Natural Raisins","Natural Raisins","Natural Raisins","CHILD_NUTRITION_FOOD_PROGRAMS",37.700000000000003,"GRM","BY_SERVING",37.700000000000003,"GRM","1 package","READY_TO_EAT",null,null,null,null,null,null,null,null,null,null,null,null,null,20,32,0,110,0,0,2,0.7,280,1,10,26,0,0,0,null,144,"BASE_UNIT_OR_EACH",true,null,null,null,null,null,null,null,null,null,"AU",null,null,"2025-06-02 08:13:46","2025-05-20 13:11:05","California Seedless Raisins",false]
[100307,"Beans, Green, Low-sodium, Canned (K)","Vegetables","00042396255336","DESHLER","Burnette Foods, Inc.","Burnette Foods, Inc.","MOTHERS MAID LOW SALT GREEN BEANS 6/10","6/10 DESHLER LOW SALT GRN BEANS","GREEN BEANS",null,120,"GRM","BY_SERVING",120,"GRM","1/2 cup","UNPREPARED",null,null,null,null,null,null,null,null,null,null,null,null,null,20,4,0,20,0,0,1,0.5,null,1,140,1,0,0,0,null,{"$f":"24*6","v":144},"BASE_UNIT_OR_EACH",true,null,null,null,null,null,null,null,null,null,"X99","Orthodox Union",null,"2025-11-03 08:54:44","2025-10-15 07:01:39","Green Beans, Water, Salt",false]
[100307,"Beans, Green, Low-sodium, Canned (K)","Vegetables","00024000577843","Del Monte","Del Monte","DEL MONTE","Del Monte® Low Sodium Green Beans, 101 oz. Can","DM LS CUT GRN BEANS 101OZ","BEANS, GREEN",null,121,"GRM","BY_SERVING",121,"GRM","1/2 cup","READY_TO_EAT",null,null,null,null,null,null,null,null,null,null,null,null,null,30,3,0,20,0,0,1,0.5,100,1,140,1,0,0,0,"US_FDA_NFP_2020_STANDARD",{"$f":"24*6","v":144},"BASE_UNIT_OR_EACH",null,"FREE_FROM","FREE_FROM","FREE_FROM","FREE_FROM","FREE_FROM","NOT_INTENTIONALLY_NOR_INHERENTLY_INCLUDED","FREE_FROM","FREE_FROM","FREE_FROM","AC, AE, AF, AM, AN, AP, AS, AU, AY, BM, UM, UN, UW","Triangle K",null,"2025-06-02 08:13:46","2025-05-30 18:21:27","Green Beans, Water, Salt",false]
[100307,"Beans, Green, Low-sodium, Canned (K)","Vegetables","40028800130404","Farmer Girl","Hanover Foods Corp","Hanover Foods Corp","Cut Green Beans","USDA Cut Green Beans","Cut Green Beans","CHILD_NUTRITION_FOOD_PROGRAMS",130,"GRM","BY_SERVING",null,null,"1/2 cup","HEAT_AND_SERVE",null,null,null,null,null,null,null,null,null,null,null,null,null,30,5,0,25,0,0,7,0.8,160,1,85,2,0,0,0,null,{"$f":"22*6","v":132},"CASE",null,"NOT_INTENTIONALLY_NOR_INHERENTLY_INCLUDED","NOT_INTENTIONALLY_NOR_INHERENTLY_INCLUDED","NOT_INTENTIONALLY_NOR_INHERENTLY_INCLUDED","NOT_INTENTIONALLY_NOR_INHERENTLY_INCLUDED","NOT_INTENTIONALLY_NOR_INHERENTLY_INCLUDED","NOT_INTENTIONALLY_NOR_INHERENTLY_INCLUDED","NOT_INTENTIONALLY_NOR_INHERENTLY_INCLUDED","NOT_INTENTIONALLY_NOR_INHERENTLY_INCLUDED","NOT_INTENTIONALLY_NOR_INHERENTLY_INCLUDED","AS, UW, AC, AE, AF, AY, AM, AN, AP, UM, BM, UN","Orthodox Union",null,"2023-06-01T09:12:17","2023-05-08T09:29:18","Green Beans, Water, Salt",false]
[100307,"Beans, Green, Low-sodium, Canned (K)","Vegetables","00033828013167","Lakeside Foods","Lakeside Foods Inc.","Lakeside Foods Inc.","6/10 LAKESIDE CUT GRN BNS","CT GRN BN","CUT GREEN BEANS","CHILD_NUTRITION_FOOD_PROGRAMS",120,"GRM","BY_MEASURE",100,"GRM","1/2 cup","READY_TO_EAT",null,null,null,null,null,null,null,null,null,null,null,null,null,36,4.8,0,24,0,0,2.4,0.48,120,1.2,168,2.4,0,0,0,null,{"$f":"24*6","v":144},"BASE_UNIT_OR_EACH",true,"FREE_FROM","FREE_FROM","FREE_FROM","FREE_FROM","FREE_FROM","FREE_FROM","FREE_FROM","FREE_FROM","FREE_FROM","AS, UW, AC, AE, AF, AY, AM, AN, AP","Orthodox Union",null,"2025-09-02 08:43:50","2025-08-05 12:43:02","Green Beans, Water, Salt",false]
[100307,"Beans, Green, Low-sodium, Canned (K)","Vegetables","00070222072604","Hart","Seneca Foods Corp","Seneca Foods Corp","Hart Low Sodium Mixed Sieve Cut Green Beans 101oz","GRN BNS CUT MX SV LOW SOD","Vegetable - Canned","CHILD_NUTRITION_FOOD_PROGRAMS",120,"GRM","BY_SERVING",120,"GRM","1/2 cup","UNPREPARED",null,null,null,null,null,null,null,null,null,null,null,null,null,26,3,0,15,0,0,1,1,63,1,120,1,0,0,0,"US_FDA_NFP_2020_STANDARD",{"$f":"24*6","v":144},"BASE_UNIT_OR_EACH","TRUE","FREE_FROM","FREE_FROM","FREE_FROM","FREE_FROM","FREE_FROM","FREE_FROM","FREE_FROM","FREE_FROM","FREE_FROM","AM, AP, AS, AY, AN, UW, AC, AE, AF","OU",null,"2025-11-03 08:54:44","2025-10-02 12:43:03","Green Beans, Water, Salt",false]
[100309,"Carrots, Sliced, Low-sodium, Canned ","Vegetables","00033828042167","Lakeside Foods","Lakeside Foods Inc.","Lakeside Foods Inc.","10 LAKESIDE SLD CA","LKSD SLI CRT","10 LAKESIDE SLICED CARROTS","CHILD_NUTRITION_FOOD_PROGRAMS",120,"GRM","BY_MEASURE",100,"GRM","1/2 cup","READY_TO_EAT",null,null,null,null,null,null,null,null,null,null,null,null,null,30,6,0,30,0,0,2,0.36,145,1,110,4,0,0.12,0,"NFT",{"$f":"25*6","v":150},"BASE_UNIT_OR_EACH",true,"FREE_FROM","FREE_FROM","FREE_FROM","FREE_FROM","FREE_FROM","FREE_FROM","FREE_FROM","FREE_FROM","FREE_FROM","AS, UW, AC, AE, AF, AY, AM, AN, AP","Orthodox Union",null,"2024-11-01 08:56:02","2024-10-03 13:56:28","Carrots, Water, Salt, Calcium Chloride",true]
[100309,"Carrots, Sliced, Low-sodium, Canned ","Vegetables","00070222073731","Hart","Seneca Foods Corp","Seneca Foods Corp","Hart Low Sodium Medium Sliced Carrots 105oz","CARROTS SL MED LOW SODIUM","Vegetable - Canned","CHILD_NUTRITION_FOOD_PROGRAMS",120,"GRM","BY_SERVING",120,"GRM","1/2 cup","UNPREPARED",null,null,null,null,null,null,null,null,null,null,null,null,null,37,4,0,20,0,0,1,0,127,0,120,2,0,0,0,"US_FDA_NFP_2020_STANDARD",{"$f":"25*6","v":150},"BASE_UNIT_OR_EACH","TRUE","FREE_FROM","FREE_FROM","FREE_FROM","FREE_FROM","FREE_FROM","FREE_FROM","FREE_FROM","FREE_FROM","FREE_FROM","AN, AF, AC, AE, UW, AY, AS, AP, AM","Orthodox Union (OU)",null,"2025-11-03 08:54:44","2025-10-02 12:43:03","Carrots, Water, Salt, Calcium Chloride (Firming Agent)",false]
[100313,"Corn, Whole Kernel, No Salt Added, Canned (K)","Vegetables","40050300600040","Sunwise","Hanover Foods Corp","Hanover Foods Corp","Fresh and delicious. Great in salads, soups, salsa, or a side dish!","USDA Golden Corn Whole Kernel","Golden Corn Whole Kernel","CHILD_NUTRITION_FOOD_PROGRAMS",130,"GRM","BY_SERVING",null,null,"1/2 cup","HEAT_AND_SERVE",null,null,null,null,null,null,null,null,null,null,null,null,null,0,14,0,70,0,0,2,0.4,210,2,15,5,0,1,0,null,{"$f":"23*6","v":138},"CASE",null,"NOT_INTENTIONALLY_NOR_INHERENTLY_INCLUDED","NOT_INTENTIONALLY_NOR_INHERENTLY_INCLUDED","NOT_INTENTIONALLY_NOR_INHERENTLY_INCLUDED","NOT_INTENTIONALLY_NOR_INHERENTLY_INCLUDED","NOT_INTENTIONALLY_NOR_INHERENTLY_INCLUDED","NOT_INTENTIONALLY_NOR_INHERENTLY_INCLUDED","NOT_INTENTIONALLY_NOR_INHERENTLY_INCLUDED","NOT_INTENTIONALLY_NOR_INHERENTLY_INCLUDED","NOT_INTENTIONALLY_NOR_INHERENTLY_INCLUDED","AS, UW, AC, AE, AF, AY, AM, AN, AP","Orthodox Union",null,"2023-06-01T09:05:52","2023-05-08T09:30:28","Corn, Water",false]
[100313,"Corn, Whole Kernel, No Salt Added, Canned (K)","Vegetables","00070222073779","Hart","Seneca Foods Corp","Seneca Foods Corp","Hart No Salt Whole Kernel Corn 106oz","CORN WK N/S","Vegetable - Canned","CHILD_NUTRITION_FOOD_PROGRAMS",125,"GRM","BY_SERVING",125,"GRM","1/2 cup","UNPREPARED",null,null,null,null,null,null,null,null,null,null,null,null,null,13,9,0,60,0,0,1,0,125,1,10,2,0,0.5,0,"US_FDA_NFP_2020_STANDARD",144,"BASE_UNIT_OR_EACH","TRUE","FREE_FROM","FREE_FROM","FREE_FROM","FREE_FROM","FREE_FROM","FREE_FROM","FREE_FROM","FREE_FROM","FREE_FROM","AN, AF, AC, AE, UW, AY, AS, AP, AM","Orthodox Union",null,"2025-11-03 08:54:44","2025-10-02 12:43:03","Corn, Water",false]
[100315,"Peas, Green, Low-sodium, Canned ","Vegetables","40028800146085","Farmer Girl","Hanover Foods Corp","Hanover Foods Corp","Flavorful and rich. A good source of fiber.","USDA Farmer Girl Sweet Peas","Farmer Girl Sweet Peas","CHILD_NUTRITION_FOOD_PROGRAMS",130,"GRM","BY_SERVING",null,null,"1/2 cup","HEAT_AND_SERVE",null,null,null,null,null,null,null,null,null,null,null,null,null,20,14,0,70,0,0,5,1.2,190,4,140,7,2,0,0,null,138,"CASE","TRUE","NOT_INTENTIONALLY_NOR_INHERENTLY_INCLUDED","NOT_INTENTIONALLY_NOR_INHERENTLY_INCLUDED","NOT_INTENTIONALLY_NOR_INHERENTLY_INCLUDED","NOT_INTENTIONALLY_NOR_INHERENTLY_INCLUDED","NOT_INTENTIONALLY_NOR_INHERENTLY_INCLUDED","NOT_INTENTIONALLY_NOR_INHERENTLY_INCLUDED","NOT_INTENTIONALLY_NOR_INHERENTLY_INCLUDED","NOT_INTENTIONALLY_NOR_INHERENTLY_INCLUDED","NOT_INTENTIONALLY_NOR_INHERENTLY_INCLUDED","AS, UW, AC, AE, AF, AY, AM, AN, AP, UN, UM, BM","Union of Orthodox Jewish Congregations of America",null,"2025-11-03 08:54:44","2025-09-15 15:15:01","Peas, Water, Sugar, Salt",false]
[100315,"Peas, Green, Low-sodium, Canned ","Vegetables","00033828006169","Lakeside Foods","Lakeside Foods Inc.","Lakeside Foods Inc.","6/10 LAKESIDE PEAS","LKSIDE  PEAS","10 LAKESIDE PEAS","CHILD_NUTRITION_FOOD_PROGRAMS",125,125,"BY_MEASURE",100,"GRM","1/2 cup","UNPREPARED",null,null,null,null,null,null,null,null,null,null,null,null,null,31,15,0,88,0,0,3.8,1.75,125,5,175,7.5,2.5,0.62,0,"NFT",{"$f":"24*6","v":144},"BASE_UNIT_OR_EACH",true,"FREE_FROM","FREE_FROM","FREE_FROM","FREE_FROM","FREE_FROM","FREE_FROM","FREE_FROM","FREE_FROM","FREE_FROM","AS, UW, AC, AE, AF, AY, AM, AN, AP","Orthodox Union",null,"2024-06-03 08:45:45","2024-05-06 14:14:11","Green Peas, Water, Sugar, Salt",true]
[100315,"Peas, Green, Low-sodium, Canned ","Vegetables","00070222074271","Hart","Seneca Foods Corp","Seneca Foods Corp","Hart Low Sodium Mixed Sieve Sweet Peas 106oz","SWEET PEAS MX SV LOW SOD","Vegetable - Canned","CHILD_NUTRITION_FOOD_PROGRAMS",125,"GRM","BY_SERVING",125,"GRM","1/2 cup","UNPREPARED",null,null,null,null,null,null,null,null,null,null,null,null,null,17,11,0,60,0,0,3,1,133,3,130,5,2,0,0,"US_FDA_NFP_2020_STANDARD",{"$f":"24*6","v":144},"BASE_UNIT_OR_EACH","TRUE","FREE_FROM","FREE_FROM","FREE_FROM","FREE_FROM","FREE_FROM","FREE_FROM","FREE_FROM","FREE_FROM","FREE_FROM","AN, AF, AC, AE, UW, AY, AS, AP, AM","Orthodox Union (OU)",null,"2025-07-07 08:22:08","2025-06-25 10:31:48","Peas, Water, Sugar, Salt",false]
[100317,"Sweet Potatoes, Light Syrup, No Salt Added, Canned ","Vegetables","10023709820134","Dunbar","Moody Dunbar Inc","MOODY DUNBAR INC","6/10 Cut Swt Potato Dunbar","6/10 Cut Swt Potato \"AL\" Dunbar","6/10 Cut Swt Potato \"AL\" Dunbar","CHILD_NUTRITION_FOOD_PROGRAMS, GROCERY",160,"GRM","BY_SERVING",160,"GRM","2/3 cup","HEAT_AND_SERVE",null,null,null,null,null,null,null,null,null,null,null,null,null,16,34,0,130,0,0,4,0,366,0,5,22,11,0,0,null,114,"CASE","TRUE","FREE_FROM","FREE_FROM","FREE_FROM","FREE_FROM","FREE_FROM","FREE_FROM","FREE_FROM","FREE_FROM","FREE_FROM","AP, AN, AM, AE, UW, AF, AC, AS, AY, AU, BM","Star K",null,"2024-02-01T09:13:36","2024-01-19T15:19:27","Sweet Potatoes, Water, Cane Sugar",false]
[100327,"Tomato Paste, No Salt Added, Canned ","Vegetables","00073934156167","Mission Pride","Pacific Coast Producers","Pacific Coast Producers",null,"Mission P Tomato Paste","Mission Pride Tomato Paste, No Salt","CHILD_NUTRITION_FOOD_PROGRAMS",33,"GRM","BY_MEASURE",33,"GRM","2 Tablespoon","UNSPECIFIED",null,null,null,null,null,null,null,null,null,null,null,null,null,0,6,0,30,0,0,1,0,270,1,20,4,0,0,0,null,{"$f":"95*6","v":570},"BASE_UNIT_OR_EACH","TRUE","FREE_FROM","FREE_FROM","FREE_FROM","FREE_FROM","FREE_FROM","FREE_FROM","FREE_FROM","FREE_FROM","FREE_FROM","AS, UW, AE, AF, AY, UN, AM, AN, AP",null,null,"2022-09-19T05:39:35","2023-08-18T18:45:08","Tomato Pulp, Citric Acid",false]
[100327,"Tomato Paste, No Salt Added, Canned ","Vegetables","10041712470504","Villa d'Este","Neil Jones Food Company","The Neil Jones Food Company","Villa d'Este Tomato Paste 6 pack 111oz non-BPA intent cans","Tomato Paste","Tomato Paste","CHILD_NUTRITION_FOOD_PROGRAMS",30,"GRM","BY_SERVING",null,null,"2 Tablespoon","READY_TO_EAT",null,null,null,null,null,null,null,null,null,null,null,null,null,11,6,0,25,0,0,1,1,304,1,20,4,0,0,0,"US_FDA_NFP_2020_STANDARD",630,"CASE",true,"FREE_FROM","FREE_FROM","FREE_FROM","FREE_FROM","FREE_FROM","FREE_FROM","FREE_FROM","FREE_FROM","FREE_FROM","AM, AE, AF, AC, AP, AY, UW, AN, AS, UN, UM","Orthodox Union",null,"2025-08-01 09:35:39","2025-07-10 12:37:46","Fresh Vine-Ripened Tomatoes",false]
[100329,"Tomatoes, Diced, No Salt Added, Canned ","Vegetables","00024000511007","Del Monte","Del Monte","DEL MONTE","Peeled diced tomatoes with no added salt","DM PLD DCD TOMATO NSA 102 OZ.","TOMATO",null,126,"GRM","BY_SERVING",126,"GRM","1/2 cup","READY_TO_EAT",null,null,null,null,null,null,null,null,null,null,null,null,null,42,6,0,30,0,0,1,1,261,0,15,3,0,0,0,"US_FDA_NFP_2020_STANDARD",144,"BASE_UNIT_OR_EACH",null,"FREE_FROM","FREE_FROM","FREE_FROM","FREE_FROM","FREE_FROM","NOT_INTENTIONALLY_NOR_INHERENTLY_INCLUDED","FREE_FROM","FREE_FROM","FREE_FROM","AC, AE, AF, AM, AN, AP, AS, AU, AY, BM, UM, UN, UW","Triangle K",null,"2023-09-01T08:55:18","2023-08-15T16:58:23","Tomatoes, Tomato Juice, Citric Acid, Calcium Chloride",false]
[100329,"Tomatoes, Diced, No Salt Added, Canned ","Vegetables","00072940100812","Vine Ripe","Red Gold, Inc.","RED GOLD INC","Vine Ripe No Salt Added Diced Tomatoes, 102oz Can","Vine Ripe Diced Tomatoes NSA","NSA Diced Tomatoes","CHILD_NUTRITION_FOOD_PROGRAMS, FOOD_SERVICE, GROCERY",121,"GRM","BY_SERVING",121,"GRM","1/2 cup","UNPREPARED",null,null,null,null,null,null,null,null,"I certify the above information is true and correct and that 1/4 Cup, a 2.10oz serving of the above product contains 0.25 of red/orange vegetables by Sahand Faghihi, Director of Quality Assurance, Red Gold","FRUIT_VEGETABLE_OR_FRUIT_VEGETABLE_ALTERNATIVE","14.17 GRM","121.0 GRM",null,0,5,0,25,0,0,1,0,230,1,15,3,0,0,0,"US_FDA_NFP_2020_STANDARD",{"$f":"24*6","v":144},"BASE_UNIT_OR_EACH","TRUE","FREE_FROM","FREE_FROM","FREE_FROM","FREE_FROM","FREE_FROM","FREE_FROM","FREE_FROM","FREE_FROM","FREE_FROM","AC, AE, AF, AM, AN, AP, AS, AU, AY, BC, BM, NL, NM, SI, SN, UM, UW","Orthodox Union",null,"2025-09-02 08:43:50","2025-08-12 12:59:48","Tomatoes, Tomato Juice, Less Than 2% of: Calcium Chloride, Citric Acid",false]
[100329,"Tomatoes, Diced, No Salt Added, Canned ","Vegetables","10041712174518","Villa d'Este","Neil Jones Food Company","The Neil Jones Food Company","Villa d'Este Diced Tomatoes in Juice 3/4\" 6 pack 102oz non-BPA intent cans","Diced Tomatoes in Juice 3/4\"","Diced Tomatoes in Juice","CHILD_NUTRITION_FOOD_PROGRAMS",130,"GRM","BY_SERVING",null,null,"1/2 cup","READY_TO_EAT",null,null,null,null,null,null,null,null,null,null,null,null,null,27,5,0,25,0,0,1,0,302,1,10,3,0,0,0,"US_FDA_NFP_2020_STANDARD",132,"CASE",true,"FREE_FROM","FREE_FROM","FREE_FROM","FREE_FROM","FREE_FROM","FREE_FROM","FREE_FROM","FREE_FROM","FREE_FROM","AM, AE, AF, AC, AP, AY, UW, AN, AS, UN, UM","Orthodox Union","The Islamic Food and Nutrition Council of America","2025-08-01 09:35:39","2025-07-10 12:37:46","Fresh Vine-Ripened Tomatoes, Tomato Juice, Calcium Chloride, Citric Acid",false]
[100330,"Salsa, Low-sodium, Canned","Vegetables","00024000578116","Del Monte","Del Monte","DEL MONTE","TOMATO PUREE ,TOMATOES, ONIONS, GREEN BELL PEPPERS, JALAPENO PEPPERS.","DM LS SALSA 6/106 OZ.","SALSA",null,32,"GRM","BY_SERVING",32,"GRM","2 Tablespoon","READY_TO_EAT",null,null,null,null,null,null,null,null,null,null,null,null,null,8,2,0,10,0,0,1,0.2,94,0,30,1,0,0,0,"US_FDA_NFP_2020_STANDARD",564,"BASE_UNIT_OR_EACH",null,"FREE_FROM","FREE_FROM","FREE_FROM","FREE_FROM","FREE_FROM","NOT_INTENTIONALLY_NOR_INHERENTLY_INCLUDED","FREE_FROM","FREE_FROM","FREE_FROM","AC, AE, AF, AM, AN, AP, AS, AU, AY, BM, UM, UN, UW","Triangle K",null,"2022-09-19T05:22:42","2023-08-15T16:58:23","Tomato Puree (Water, Tomato Paste), Tomatoes, Onions, Green Bell Peppers, Contains Less Than 2% of the Following: Jalapeno Peppers (Jalapeno Peppers, Distilled Vinegar, Salt, Calcium Chloride), Distilled Vinegar, Modified Food Starch (Corn), Citric Acid, Garlic Powder, Xanthan Gum, Natural Flavor, Salt, Spice",false]
[100330,"Salsa, Low-sodium, Canned ","Vegetables","00072940100539","Vine Ripe","Red Gold, Inc.","RED GOLD INC","Vine Ripe Mild Salsa, 106oz Can","Vine Ripe Mild Salsa","Mild Salsa","CHILD_NUTRITION_FOOD_PROGRAMS, FOOD_SERVICE, GROCERY",31,"GRM","BY_SERVING",31,"GRM","2 Tablespoon","UNPREPARED","½ cup salsa credits as ½ cup red/orange vegetable",null,null,null,null,null,null,null,null,null,null,null,"https://redgold.widen.net/content/aum9zufn0f/jpeg/Red%20Gold%20K12%20Summary%20Product%20Formulation%20Statement.jpeg?position=c&color=ffffffff&quality=90&retina=true",0,3,0,15,0,0,0,0,90,1,35,1,0,0,0,"US_FDA_NFP_2020_STANDARD",{"$f":"97*6","v":582},"BASE_UNIT_OR_EACH","TRUE","FREE_FROM","FREE_FROM","FREE_FROM","FREE_FROM","FREE_FROM","FREE_FROM","FREE_FROM","FREE_FROM","FREE_FROM","AC, AE, AF, AM, AN, AP, AS, AY, UW","Orthodox Union",null,"2025-09-02 08:43:50","2025-08-12 12:59:48","Tomato Puree (Water, Tomato Paste), Diced Tomatoes, Dried Onion, Jalapeno Peppers, Distilled Vinegar, Green Bell Peppers, Modified Food Starch, Salt, Spice, Dried Garlic, Natural Flavor",false]
[100330,"Salsa, Low-sodium, Canned ","Vegetables","10041712772745","Villa d'Este","Neil Jones Food Company","The Neil Jones Food Company","Villa d'Este Low Sodium Medium Salsa 6 pack 106oz non-BPA intent cans","Low Sodium Medium Salsa","Salsa","CHILD_NUTRITION_FOOD_PROGRAMS",123,"GRM","BY_SERVING",null,null,"1/2 cup","READY_TO_EAT",null,null,null,null,null,null,null,null,null,null,null,null,null,17,7,0,35,0,0,2,1,399,2,65,5,0,0,0,"US_FDA_NFP_2020_STANDARD",144,"CASE",true,"FREE_FROM","FREE_FROM","FREE_FROM","FREE_FROM","FREE_FROM","FREE_FROM","FREE_FROM","FREE_FROM","FREE_FROM","AM, AE, AF, AC, AP, AY, UW, AN, AS, UN, UM","Orthodox Union","The Islamic Food and Nutrition Council of America","2025-08-01 09:35:39","2025-07-10 12:38:01","Fresh Vine-Ripened Tomatoes, Jalapeno Peppers, Distilled Vinegar, Corn Syrup, Dehydrated Onion, Salt, Natural Flavor, Spices, Garlic Powder, Bell Peppers, Modified Food Starch, and Xanthan Gum",false]
[100334,"Tomato Sauce, Low-sodium, Canned ","Vegetables","00024000578093","Del Monte","Del Monte","DEL MONTE","Low Sodium Tomato Sauce","DM LS TOMATO SAUCE 106 OZ.","TOMATO SAUCE",null,61,"GRM","BY_SERVING",61,"GRM","1/4 cup","READY_TO_EAT",null,null,null,null,null,null,null,null,null,null,null,null,null,8,5,0,25,0,0,1,0.3,171,1,70,3,1,0,0,"US_FDA_NFP_2020_STANDARD",294,"BASE_UNIT_OR_EACH",null,"FREE_FROM","FREE_FROM","FREE_FROM","FREE_FROM","FREE_FROM","NOT_INTENTIONALLY_NOR_INHERENTLY_INCLUDED","FREE_FROM","FREE_FROM","FREE_FROM","AC, AE, AF, AM, AN, AP, AS, AU, AY, BM, UM, UN, UW","Triangle K",null,"2023-09-01T09:32:13","2023-08-15T16:58:23","Tomato Puree (Water, Tomato Paste), Water, High Fructose Corn Syrup, Salt, Spice, Citric Acid",false]
[100334,"Tomato Sauce, Low-sodium, Canned ","Vegetables","00072940100522","Vine Ripe","Red Gold, Inc.","RED GOLD INC","Vine Ripe Low Sodium Tomato Sauce, 106oz Can","Vine Ripe Low Sodium Tomato Sauce","Low Sodium Tomato Sauce","CHILD_NUTRITION_FOOD_PROGRAMS, FOOD_SERVICE, GROCERY",122,"GRM","BY_SERVING",122,"GRM","1/2 cup","UNPREPARED","½ cup tomato sauce credits as ½ cup red/orange vegetable",null,null,null,null,null,null,null,"I certify the above information is true and correct and that 1/4 Cup, a 1.2oz serving of the above product contains 0.25 of red/orange vegetables by Sahand Faghihi, Director of Quality Assurance, Red Gold","FRUIT_VEGETABLE_OR_FRUIT_VEGETABLE_ALTERNATIVE","31.75 GRM","122.0 GRM","https://redgold.widen.net/content/aum9zufn0f/jpeg/Red%20Gold%20K12%20Summary%20Product%20Formulation%20Statement.jpeg?position=c&color=ffffffff&quality=90&retina=true",15,9,0,45,0,0,2,1,290,2,75,7,3,0,0,"US_FDA_NFP_2020_STANDARD",144,"BASE_UNIT_OR_EACH","TRUE","FREE_FROM","FREE_FROM","FREE_FROM","FREE_FROM","FREE_FROM","FREE_FROM","FREE_FROM","FREE_FROM","FREE_FROM","AC, AE, AF, AN, AP, AS, AY, UM, UW, AM","Orthodox Union",null,"2025-11-03 08:54:44","2025-10-13 14:04:48","Tomato Puree (Water, Tomato Paste), Water, High Fructose Corn Syrup, Less Than 2% Of: Citric Acid, Salt, Onion Powder, Garlic Powder, Dehydrated Bell Peppers, Natural Flavors.",false]
[100334,"Tomato Sauce, Low-sodium, Canned ","Vegetables","10041712770543","Villa d'Este","Neil Jones Food Company","The Neil Jones Food Company","Villa d'Este Low Sodium Tomato Sauce 6 pack 106oz non-BPA intent cans","Low Sodium Tomato Sauce","Tomato Sauce","CHILD_NUTRITION_FOOD_PROGRAMS",123,"GRM","BY_SERVING",100,"GRM","1/2 cup","READY_TO_EAT",null,null,null,null,null,null,null,null,null,null,null,null,null,20,9,0,40,0,0,2,1,494,2,75,6,0,0,0,"US_FDA_NFP_2020_STANDARD",144,"CASE",true,"FREE_FROM","FREE_FROM","FREE_FROM","FREE_FROM","FREE_FROM","FREE_FROM","FREE_FROM","FREE_FROM","FREE_FROM","AM, AE, AF, AC, AP, AY, UW, AN, AS, UN, UM","Orthodox Union","The Islamic Food and Nutrition Council of America","2025-08-01 09:35:39","2025-07-10 12:38:01","Fresh Vine-Ripened Tomatoes, Salt, Onions Powder, Garlic Powder, Natural Flavors, Spices.",false]
[100336,"Spaghetti Sauce, Low-sodium, Canned","Vegetables","00024000578123","Del Monte","Del Monte","DEL MONTE","Low sodium spaghetti sauce with herbs and spices","DM LS TR SPAGHETTI SC 106OZ.","SPAGHETTI SAUCE",null,125,"GRM","BY_SERVING",125,"GRM","1/2 cup","READY_TO_EAT",null,null,null,null,null,null,null,null,null,null,null,null,null,20,12,0,50,0,0,2,1,344,1,140,7,3,0,0,"US_FDA_NFP_2020_STANDARD",144,"BASE_UNIT_OR_EACH",null,"FREE_FROM","FREE_FROM","FREE_FROM","FREE_FROM","FREE_FROM","NOT_INTENTIONALLY_NOR_INHERENTLY_INCLUDED","FREE_FROM","FREE_FROM","FREE_FROM","AC, AE, AF, AM, AN, AP, AS, AU, AY, BM, UM, UN, UW","Triangle K",null,"2023-09-01T09:25:25","2023-08-15T16:58:23","Tomato Puree (Water, Tomato Paste), Water, High Fructose Corn Syrup, Modified Food Starch (Corn), Dehydrated Onions, Onion Powder, Citric Acid, Spices, Salt, Garlic",false]
[100336,"Spaghetti Sauce, Low-sodium, Canned","Vegetables","00041188847094","Bella Vista","Furmano Foods","FURMANO FOODS INC.","Bella Vista; 1/#10 Spaghetti Sauce - LS","10 Spag Sauc - ls","Tomato Sauce - Spaghetti","CHILD_NUTRITION_FOOD_PROGRAMS",125,"GRM","BY_MEASURE",100,"GRM","1/2 cup","UNPREPARED",null,null,null,null,null,null,null,null,null,null,null,null,null,16,9.9499999999999993,0,45,0.1,0,1.3,0.99,0,1.4,86,7.77,3.9,0.59,0,null,144,"BASE_UNIT_OR_EACH",true,"FREE_FROM","FREE_FROM","FREE_FROM","FREE_FROM","FREE_FROM","FREE_FROM","FREE_FROM","FREE_FROM","FREE_FROM","AA, AC, AD, AE, AF, AH, AI, AL, AM, AN, AP, AS, AU, AW, AY, BA, BB, BC, BE, BF, BI, BM, BN, BO, BP, BQ, BR, BS, CA, CL, CM, CN, CO, CT, DA, DP, EG, EP, EV, FA, FH, FT, GB, GE, GK, GL, GO, GS, HB, HC, HD, HE, HH, HN, HP, HX, HY, MH, ML, NC, NE, NK, NL, NM, NP, NR, NW, ON, PM, PN, PO, PP, PS, SA, SB, SC, SH, SM, SO, SP, SR, SS, ST, SW, SX, TA, TD, TR, UM, UN, UW","Kashruth Division of the Orthodox Union",null,"2025-05-05 08:25:11","2025-04-11 13:25:58","Tomato Concentrate (Water, Tomato Paste), Corn Syrup, Soybean Oil, Salt, Dextrose, Garlic, Onion, Spices, Citric Acid (Naturally Derived), Natural Flavorings",true]
[100336,"Spaghetti Sauce, Low-sodium, Canned","Vegetables","00072940100157","Vine Ripe","Red Gold, Inc.","RED GOLD INC","Vine Ripe Spaghetti Sauce, 106oz Can","Vine Ripe Spaghetti Sauce","Spaghetti Sauce","CHILD_NUTRITION_FOOD_PROGRAMS, FOOD_SERVICE, GROCERY",126,"GRM","BY_SERVING",126,"GRM","1/2 cup","UNPREPARED","½ cup spaghetti sauce credits as ½ cup red/orange vegetable",null,null,null,null,null,null,null,"I certify the above information is true and correct and that 1/4 Cup, a 4.44oz serving of the above product contains 0.25 of red/orange vegetables by Sahand Faghihi, Director of Quality Assurance, Red Gold","FRUIT_VEGETABLE_OR_FRUIT_VEGETABLE_ALTERNATIVE","31.75 GRM","470.64 ONZ","https://redgold.widen.net/content/aum9zufn0f/jpeg/Red%20Gold%20K12%20Summary%20Product%20Formulation%20Statement.jpeg?position=c&color=ffffffff&quality=90&retina=true",16,9,0,45,0,0,2,1,302,2,140,6,2,0,0,"US_FDA_NFP_2020_STANDARD",{"$f":"24*6","v":144},"BASE_UNIT_OR_EACH","TRUE","FREE_FROM","FREE_FROM","FREE_FROM","FREE_FROM","FREE_FROM","FREE_FROM","FREE_FROM","FREE_FROM","FREE_FROM","AC, AE, AF, AM, AN, AP, AS, AY, UW, UM","Orthodox Union",null,"2025-09-02 08:43:50","2025-08-12 12:59:47","Tomato Puree (Water, Tomato Paste), Water, High Fructose Corn Syrup, Contains Less Than 2% Of: Modified Food Starch, Salt, Soybean Oil, Dried Onion, Spices, Dried Garlic, and Citric Acid.",false]
[100336,"Spaghetti Sauce, Low-sodium, Canned","Vegetables","10041712771540","Villa d'Este","Neil Jones Food Company","The Neil Jones Food Company","Villa d'Este Low Sodium Spaghetti Sauce 6 pack 106oz non-BPA intent cans","Low Sodium Spaghetti Sauce","Spaghetti Sauce","CHILD_NUTRITION_FOOD_PROGRAMS",125,"GRM","BY_SERVING",null,null,"1/2 cup","READY_TO_EAT",null,null,null,null,null,null,null,null,null,null,null,null,null,19,8,0,35,0,0,2,1,425,2,65,5,0,0,0,"US_FDA_NFP_2020_STANDARD","144","CASE","TRUE","FREE_FROM","FREE_FROM","FREE_FROM","FREE_FROM","FREE_FROM","FREE_FROM","FREE_FROM","FREE_FROM","FREE_FROM","AM, AE, AF, AC, AP, AY, UW, AN, AS, UN, UM","Orthodox Union","The Islamic Food and Nutrition Council of America","2025-08-01 09:35:39","2025-07-10 12:38:19","Fresh Vine-Ripened Tomatoes, Salt, Spices, Onion Powder, Garlic Powder, Soybean Oil, Citric Acid",false]
[100348,"Corn, Whole Kernel, No Salt Added, Frozen ","Vegetables","40028800296698","Hanover","Hanover Foods Corp","Hanover Foods Corp","Sweet Corn","USDA Sweet Corn","Sweet Corn","CHILD_NUTRITION_FOOD_PROGRAMS",85,"GRM","BY_SERVING",null,null,"1/2 cup","STEAM",null,null,null,null,null,null,null,null,null,null,null,null,null,0,18,0,70,0,0,2,0.4,180,3,0,2,0,0.5,0,null,"160","CASE","TRUE","FREE_FROM","FREE_FROM","FREE_FROM","FREE_FROM","FREE_FROM","FREE_FROM","FREE_FROM","FREE_FROM","FREE_FROM","AS, UW, AC, AE, AF, AY, AM, AN, AP, UN, UM, BM",null,null,"2023-06-01T09:12:53","2023-05-24T10:59:05","Sweet Yellow Corn",false]
[100348,"Corn, Whole Kernel, No Salt Added, Frozen ","Vegetables","00086289101287","PNW/Quincy","Inn Foods, Inc.","Inn Foods, Inc.","Vegetable","Cut Corn","Vegetable",null,90,"GRM","BY_SERVING",90,"GRM","2/3 cup","HEAT_AND_SERVE",null,null,null,null,null,null,null,null,null,null,null,null,null,2,21,0,100,0,0,2,0,190,2,0,2,0,0.5,0,null,151,"BASE_UNIT_OR_EACH","TRUE","FREE_FROM","FREE_FROM","FREE_FROM","FREE_FROM","FREE_FROM","FREE_FROM","FREE_FROM","FREE_FROM","FREE_FROM","AM, AE, AF, AC, AN, AP, UW, AY, AS",null,null,"2025-06-02 08:13:46","2025-05-15 13:07:00","Corn",false]
[100348,"Corn, Whole Kernel, No Salt Added, Frozen ","Vegetables","00086289132878","Lakeside Foods/Smith Frozen Foods","Inn Foods, Inc.","Inn Foods, Inc.","Vegetable","Cut Corn","Vegetable",null,85,"GRM","BY_SERVING",85,"GRM","2/3 cup","HEAT_AND_SERVE",null,null,null,null,null,null,null,null,null,null,null,null,null,0,16,0,70,0,0,2,0,229,0,2.5499999999999998,7.65,0,0.5,0,null,160,"BASE_UNIT_OR_EACH",true,"FREE_FROM","FREE_FROM","FREE_FROM","FREE_FROM","FREE_FROM","FREE_FROM","FREE_FROM","FREE_FROM","FREE_FROM","AM, AE, AF, UN, AN, AP, UW, AY, AS",null,null,"2025-06-02 08:13:46","2025-05-15 12:12:00","Corn",false]
[100348,"Corn, Whole Kernel, No Salt Added, Frozen ","Vegetables","00086289112870","Nortera","Inn Foods, Inc.","Inn Foods, Inc.","Vegetable","Cut Corn","Vegetable",null,90,"GRM","BY_SERVING",90,"GRM","2/3 cup","HEAT_AND_SERVE",null,null,null,null,null,null,null,null,null,null,null,null,null,2,22,0,110,0,0,2,0,216,3,0,5,0,0.5,0,null,151,"BASE_UNIT_OR_EACH",true,"FREE_FROM","FREE_FROM","FREE_FROM","FREE_FROM","FREE_FROM","FREE_FROM","FREE_FROM","FREE_FROM","FREE_FROM","AM, AE, AF, UN, UW, AN, AP, AY, AS",null,null,"2025-06-02 08:13:46","2025-05-15 12:57:00","Corn",false]
[100348,"Corn, Whole Kernel, No Salt Added, Frozen ","Vegetables","00086289122879","Twin City Foods","Inn Foods, Inc.","Inn Foods, Inc.","Vegetable","Cut Corn","Vegetable",null,90,"GRM","BY_SERVING",90,"GRM","2/3 cup","HEAT_AND_SERVE",null,null,null,null,null,null,null,null,null,null,null,null,null,0,22,0,110,0,0,2,0,216,3,0,5,0,0.5,0,null,151,"BASE_UNIT_OR_EACH",true,"FREE_FROM","FREE_FROM","FREE_FROM","FREE_FROM","FREE_FROM","FREE_FROM","FREE_FROM","FREE_FROM","FREE_FROM","AE, AM, AF, UN, AN, AP, AY, AS, UW",null,null,"2025-09-02 08:43:50","2025-08-20 15:22:00","Corn",false]
[100348,"Corn, Whole Kernel, No Salt Added, Frozen ","Vegetables","10037100451934","Libby's","Seneca Foods Corp","Seneca Foods Corp","Libby's Frozen Supersweet Cut Corn","FZ CRN SSWT CUT","Vegetable - Frozen","CHILD_NUTRITION_FOOD_PROGRAMS",93,"GRM","BY_SERVING",93,"GRM","2/3 cup","UNPREPARED",null,null,null,null,null,null,null,null,null,null,null,null,null,0,15,0,80,0,0,3,0.4,220,3,0,6,0,1,0,"US_FDA_NFP_2020_STANDARD",146,"CASE","TRUE","FREE_FROM","FREE_FROM","FREE_FROM","FREE_FROM","FREE_FROM","FREE_FROM","FREE_FROM","FREE_FROM","FREE_FROM","AN, AF, AC, AE, UW, AY, AS, AP, AM","Orthodox Union",null,"2024-02-01T09:15:09","2024-01-17T13:24:35","Supersweet Corn",false]
[100350,"Peas, Green, No Salt Added, Frozen ","Vegetables","40028800296711","Hanover","Hanover Foods Corp","Hanover Foods Corp","USDA Sweet Peas 30#","Sweet Peas","Sweet Peas","CHILD_NUTRITION_FOOD_PROGRAMS",85,"GRM","BY_SERVING",85,"GRM","2/3 cup","STEAM",null,null,null,null,null,null,null,null,null,null,null,null,null,20,12,0,70,0,0,4,1.3,130,4,90,4,0,0,0,null,160,"CASE","TRUE","NOT_INTENTIONALLY_NOR_INHERENTLY_INCLUDED","NOT_INTENTIONALLY_NOR_INHERENTLY_INCLUDED","NOT_INTENTIONALLY_NOR_INHERENTLY_INCLUDED","NOT_INTENTIONALLY_NOR_INHERENTLY_INCLUDED","NOT_INTENTIONALLY_NOR_INHERENTLY_INCLUDED","NOT_INTENTIONALLY_NOR_INHERENTLY_INCLUDED","NOT_INTENTIONALLY_NOR_INHERENTLY_INCLUDED","NOT_INTENTIONALLY_NOR_INHERENTLY_INCLUDED","NOT_INTENTIONALLY_NOR_INHERENTLY_INCLUDED","AS, UW, AC, AE, AF, AY, AM, AN, AP, UN, UM, BM","Orthodox Union",null,"2023-06-01T09:08:36","2023-05-31T11:49:08","Sweet Green Peas",false]
[100350,"Peas, Green, No Salt Added, Frozen ","Vegetables","00086289108729","Lamb Weston","Inn Foods, Inc.","Inn Foods, Inc.","Vegetable","Green Peas","Vegetable",null,67,"GRM","BY_SERVING",0.5,"G21","1/2 cup","HEAT_AND_SERVE",null,null,null,null,null,null,null,null,null,null,null,null,null,15,9,0,50,0,0,3,1,103,3,70,3,0,0.2,0,null,"203","BASE_UNIT_OR_EACH",true,"FREE_FROM","FREE_FROM","FREE_FROM","FREE_FROM","FREE_FROM","FREE_FROM","FREE_FROM","FREE_FROM","FREE_FROM","AM, AE, AF, AC, AN, AP, UW, AY, AS",null,null,"2025-01-08 08:30:06","2024-12-19 12:22:00","Peas",false]
[100350,"Peas, Green, No Salt Added, Frozen ","Vegetables","00086289281729","Inn Foods, Inc.","Inn Foods, Inc.","Inn Foods, Inc.","Vegetable","Green Peas","Vegetable",null,97,"GRM","BY_SERVING",97,"GRM","2/3 cup","HEAT_AND_SERVE",null,null,null,null,null,null,null,null,null,null,null,null,null,21,13,0,70,0,0,4,1.48,150,5,10,5,0,0,0,null,140,"BASE_UNIT_OR_EACH","TRUE","FREE_FROM","FREE_FROM","FREE_FROM","FREE_FROM","FREE_FROM","FREE_FROM","FREE_FROM","FREE_FROM","FREE_FROM","AM, AE, AF, AC, AN, AP, UW, AY, AS",null,null,"2025-08-01 09:35:39","2025-07-08 10:32:00","Peas",false]
[100350,"Peas, Green, No Salt Added, Frozen ","Vegetables","00086289128727","Twin City Foods","Inn Foods, Inc.","Inn Foods, Inc.","Vegetable","Green Peas","Vegetable",null,87,"GRM","BY_SERVING",87,"GRM","2/3 cup","HEAT_AND_SERVE",null,null,null,null,null,null,null,null,null,null,null,null,null,19,12,0,70,0,0,4,1,133,6,95,4,0,0,0,null,156,"BASE_UNIT_OR_EACH",true,"FREE_FROM","FREE_FROM","FREE_FROM","FREE_FROM","FREE_FROM","FREE_FROM","FREE_FROM","FREE_FROM","FREE_FROM","AM, AE, AF, UN, AN, AP, UW, AY, AS",null,null,"2025-06-02 08:13:46","2025-05-15 15:07:00","Peas",false]
[100350,"Peas, Green, No Salt Added, Frozen ","Vegetables","00086289138726","PNW/Quincy","Inn Foods, Inc.","Inn Foods, Inc.","Vegetable","Green Peas","Vegetable",null,89,"GRM","BY_SERVING",89,"GRM","2/3 cup","HEAT_AND_SERVE",null,null,null,null,null,null,null,null,null,null,null,null,null,22,13,0,70,0,0,5,1,217,5,70,3,0,0,0,null,156,"BASE_UNIT_OR_EACH",true,"FREE_FROM","FREE_FROM","FREE_FROM","FREE_FROM","FREE_FROM","FREE_FROM","FREE_FROM","FREE_FROM","FREE_FROM","AM, AE, AF, UN, AN, AP, UW, AY, AS",null,null,"2025-06-02 08:13:46","2025-05-15 15:22:00","Peas",false]
[100350,"Peas, Green, No Salt Added, Frozen ","Vegetables","00086289118728","Nortera","Inn Foods, Inc.","Inn Foods, Inc.","Vegetable","Green Peas","Vegetable",null,87,"GRM","BY_SERVING",87,"GRM","2/3 cup","HEAT_AND_SERVE",null,null,null,null,null,null,null,null,null,null,null,null,null,19,12,0,70,0,0,4,1,133,5,95,4,0,0,0,null,156,"BASE_UNIT_OR_EACH",true,"FREE_FROM","FREE_FROM","FREE_FROM","FREE_FROM","FREE_FROM","FREE_FROM","FREE_FROM","FREE_FROM","FREE_FROM","AM, AE, AF, UN, AN, AP, UW, AY, AS",null,null,"2025-06-02 08:13:46","2025-05-15 15:12:00","Peas",false]
[100350,"Peas, Green, No Salt Added, Frozen ","Vegetables","10037100421630","Libby's","Seneca Foods Corp","Seneca Foods Corp","Libby's Frozen Peas","FZ PEAS","Vegetable - Frozen","CHILD_NUTRITION_FOOD_PROGRAMS",93,"GRM","BY_SERVING",93,"GRM","2/3 cup","UNPREPARED",null,null,null,null,null,null,null,null,null,null,null,null,null,20,13,0,80,0,0,5,1.4,230,5,0,5,0,0,0,"US_FDA_NFP_2020_STANDARD",146,"CASE",true,"FREE_FROM","FREE_FROM","FREE_FROM","FREE_FROM","FREE_FROM","FREE_FROM","FREE_FROM","FREE_FROM","FREE_FROM","AN, AF, AC, AE, UW, AY, AS, AP, AM","Orthodox Union (OU)",null,"2025-05-05 08:25:11","2025-04-09 16:33:51","Peas",false]
[100351,"Beans, Green, No Salt Added, Frozen ","Vegetables","40028800296681","Hanover","Hanover Foods Corp","Hanover Foods Corp","USDA Cut Green Beans 30#","Cut Green Beans","Cut Green Beans","CHILD_NUTRITION_FOOD_PROGRAMS",85,"GRM","BY_SERVING",85,"GRM","3/4 cup","STEAM",null,null,null,null,null,null,null,null,null,null,null,null,null,40,6,0,35,0,0,2,0.7,160,2,0,2,0,0,0,null,"160","CASE","TRUE","NOT_INTENTIONALLY_NOR_INHERENTLY_INCLUDED","NOT_INTENTIONALLY_NOR_INHERENTLY_INCLUDED","NOT_INTENTIONALLY_NOR_INHERENTLY_INCLUDED","NOT_INTENTIONALLY_NOR_INHERENTLY_INCLUDED","NOT_INTENTIONALLY_NOR_INHERENTLY_INCLUDED","NOT_INTENTIONALLY_NOR_INHERENTLY_INCLUDED","NOT_INTENTIONALLY_NOR_INHERENTLY_INCLUDED","NOT_INTENTIONALLY_NOR_INHERENTLY_INCLUDED","NOT_INTENTIONALLY_NOR_INHERENTLY_INCLUDED","AS, UW, AC, AE, AF, AY, AM, AN, AP, UN, UM, BM","Orthodox Union",null,"2023-06-01T09:17:39","2023-05-08T09:31:58","Green Beans",false]
[100351,"Beans, Green, No Salt Added, Frozen ","Vegetables","00086289108743","OPC/Arbre","Inn Foods Inc.","Inn Foods, Inc.","Vegetable","Cut Green Beans","Vegetable",null,81,"GRM","BY_SERVING",81,"GRM","2/3 cup ","HEAT_AND_SERVE",null,null,null,null,null,null,null,null,null,null,null,null,null,37,6,0,30,0,0,2,0,151,1,0,1,0,0,0,null,"212","BASE_UNIT_OR_EACH","TRUE","FREE_FROM","FREE_FROM","FREE_FROM","FREE_FROM","FREE_FROM","FREE_FROM","FREE_FROM","FREE_FROM","FREE_FROM","AM, AE, AF, AC, AN, AP, UW, AY, AS",null,null,"2025-05-05 08:25:11","2025-04-28 12:52:00","Green Beans",false]
[100351,"Beans, Green, No Salt Added, Frozen ","Vegetables","00086289118742","PNW/Norpac","Inn Foods, Inc.","Inn Foods, Inc.","Vegetable","Cut Green Beans","Vegetable",null,81,"GRM","BY_SERVING",81,"GRM","2/3 cup ","HEAT_AND_SERVE",null,null,null,null,null,null,null,null,null,null,null,null,null,37,6,0,30,0,0,2,1,151,1,0,1,0,0,0,null,212,"BASE_UNIT_OR_EACH",true,"FREE_FROM","FREE_FROM","FREE_FROM","FREE_FROM","FREE_FROM","FREE_FROM","FREE_FROM","FREE_FROM","FREE_FROM","AM, AE, AF, UN, AN, AP, UW, AY, AS",null,null,"2025-05-05 08:25:11","2025-04-18 13:42:00","Green Beans",false]
[100351,"Beans, Green, No Salt Added, Frozen ","Vegetables","00086289138740","Nortera","Inn Foods, Inc.","Inn Foods, Inc.","Vegetable","Cut Green Beans","Vegetable",null,85,"GRM","BY_SERVING",85,"GRM","2/3 cup","HEAT_AND_SERVE",null,null,null,null,null,null,null,null,null,null,null,null,null,0,6,0,30,0,0,2,0.7,70,1,0,2,0,0,0,null,212,"BASE_UNIT_OR_EACH",true,"FREE_FROM","FREE_FROM","FREE_FROM","FREE_FROM","FREE_FROM","FREE_FROM","FREE_FROM","FREE_FROM","FREE_FROM","AM, AE, AP, AN, AF, UN, UW, AY, AS",null,null,"2025-06-02 08:13:46","2025-05-15 09:27:00","Green Beans",false]
[100351,"Beans, Green, No Salt Added, Frozen ","Vegetables","00086289128741","Twin City Foods","Inn Foods, Inc.","Inn Foods, Inc.","Vegetable","Cut Green Beans","Vegetable",null,85,"GRM","BY_SERVING",85,"GRM","2/3 cup","HEAT_AND_SERVE",null,null,null,null,null,null,null,null,null,null,null,null,null,30,6,0,30,0,0,2,0.7,70,1,0,2,0,0,0,null,160,"BASE_UNIT_OR_EACH",true,"FREE_FROM","FREE_FROM","FREE_FROM","FREE_FROM","FREE_FROM","FREE_FROM","FREE_FROM","FREE_FROM","FREE_FROM","AM, AE, AF, UN, AN, AP, UW, AY, AS",null,null,"2025-08-01 09:35:39","2025-07-25 10:17:00","Green Beans",false]
[100351,"Beans, Green, No Salt Added, Frozen ","Vegetables","10033828316005","Lakeside Foods","Lakeside Foods Inc.","Lakeside Foods Inc.","1/30#F LAKESIDE CUT GRN BNS","CUT GRN BN","CUT GREEN BEAN","CHILD_NUTRITION_FOOD_PROGRAMS",81,"GRM","BY_MEASURE",81,"GRM","2/3 cup","HEAT_AND_SERVE",null,null,null,null,null,null,null,null,null,null,null,null,null,30,6,0,30,0,0,2,0.5,90,1,0,1,0,0,0,"NFT",168,"CASE",true,"FREE_FROM","FREE_FROM","FREE_FROM","FREE_FROM","FREE_FROM","FREE_FROM","FREE_FROM","FREE_FROM","FREE_FROM","AS, UW, AC, AE, AF, AY, AM, AN, AP",null,null,"2025-02-03 09:14:02","2025-01-30 07:14:42","Green Beans",true]
[100351,"Beans, Green, No Salt Added, Frozen ","Vegetables","10037100343130","Libby's","Seneca Foods Corp","Seneca Foods Corp","Libby's Frozen Cut Green Beans","FZ BEANS GREEN CUT","Vegetable - Frozen","CHILD_NUTRITION_FOOD_PROGRAMS",89,"GRM","BY_SERVING",89,"GRM","3/4 cup","UNPREPARED",null,null,null,null,null,null,null,null,null,null,null,null,null,40,7,0,35,0,0,2,0.8,170,2,0,2,0,0,0,"US_FDA_NFP_2020_STANDARD",153,"CASE",true,"FREE_FROM","FREE_FROM","FREE_FROM","FREE_FROM","FREE_FROM","FREE_FROM","FREE_FROM","FREE_FROM","FREE_FROM","AN, AF, AC, AE, UW, AY, AS, AP, AM","Orthodox Union (OU)",null,"2025-05-05 08:25:11","2025-04-09 16:36:27","Green Beans",false]
[100352,"Carrots, Sliced, No Salt Added, Frozen ","Vegetables","00086289281743","PNW/Quincy","Inn Foods, Inc.","Inn Foods, Inc.","Vegetable","Sliced Carrots","Vegetable",null,60,"GRM","BY_SERVING",60,"GRM","1/2 cup","HEAT_AND_SERVE",null,null,null,null,null,null,null,null,null,null,null,null,null,30,6,0,30,0,0,3,0,160,1,40,4,0,0,21,null,"226","BASE_UNIT_OR_EACH","TRUE","FREE_FROM","FREE_FROM","FREE_FROM","FREE_FROM","FREE_FROM","FREE_FROM","FREE_FROM","FREE_FROM","FREE_FROM","AM, AE, AF, AC, AN, AP, UW, AY, AS",null,null,"2025-01-08 08:30:06","2024-12-19 12:27:00","Carrots",false]
[100352,"Carrots, Sliced, No Salt Added, Frozen ","Vegetables","00086289251746","OPC/Arbre","Inn Foods, Inc.","Inn Foods, Inc.","Vegetable","Sliced Carrots","Vegetable",null,60,"GRM","BY_SERVING",60,"GRM","1/2 cup ","HEAT_AND_SERVE",null,null,null,null,null,null,null,null,null,null,null,null,null,20,5,0,20,0,0,2,0.3,140,0,40,3,0,0,0,null,226,"BASE_UNIT_OR_EACH",true,"FREE_FROM","FREE_FROM","FREE_FROM","FREE_FROM","FREE_FROM","FREE_FROM","FREE_FROM","FREE_FROM","FREE_FROM","AE, AM, AF, UN, AN, AP, UW, AY, AS",null,null,"2025-02-03 09:14:02","2025-01-13 15:32:00","Carrots",false]
[100352,"Carrots, Sliced, No Salt Added, Frozen ","Vegetables","00086289271744","New Carrot Farms/Bolthouse Farms","Inn Foods, Inc.","Inn Foods, Inc.","Vegetable","Sliced Carrots","Vegetable",null,60,"GRM","BY_SERVING",60,"GRM","1/2 cup","HEAT_AND_SERVE",null,null,null,null,null,null,null,null,null,null,null,null,null,20,5,0,20,0,0,2,0.3,140,0,40,3,0,0,0,null,226,"BASE_UNIT_OR_EACH",true,"FREE_FROM","FREE_FROM","FREE_FROM","FREE_FROM","FREE_FROM","FREE_FROM","FREE_FROM","FREE_FROM","FREE_FROM","AM, AF, AE, UN, AN, AP, UW, AY, AS",null,null,"2025-03-03 08:37:38","2025-02-26 10:32:00","Carrots",false]
[100352,"Carrots, Sliced, No Salt Added, Frozen ","Vegetables","00086289261745","Nortera","Inn Foods, Inc.","Inn Foods, Inc.","Vegetable","Sliced Carrots","Vegetable",null,60,"GRM","BY_SERVING",60,"GRM","1/2 cup ","HEAT_AND_SERVE",null,null,null,null,null,null,null,null,null,null,null,null,null,20,5,0,20,0,0,2,0.3,null,0,40,3,0,0,0,null,226,"BASE_UNIT_OR_EACH",true,"FREE_FROM","FREE_FROM","FREE_FROM","FREE_FROM","FREE_FROM","FREE_FROM","FREE_FROM","FREE_FROM","FREE_FROM","AM, AE, AF, UN, AN, AP, UW, AY, AS",null,null,"2025-02-03 09:14:02","2025-01-13 15:32:00","Carrots",false]
[100352,"Carrots, Sliced, No Salt Added, Frozen ","Vegetables","10037100513144","Libby's","Seneca Foods Corp","Seneca Foods Corp","Libby's Frozen Smooth Sliced Carrots","FZ CARROTS SMTH SLCD","Vegetable - Frozen","CHILD_NUTRITION_FOOD_PROGRAMS",86,"GRM","BY_SERVING",86,"GRM","3/4 cup","UNPREPARED",null,null,null,null,null,null,null,null,null,null,null,null,null,30,7,0,30,0,0,3,0.4,200,0,60,4,0,0,0,"US_FDA_NFP_2020_STANDARD",239,"CASE",true,"FREE_FROM","FREE_FROM","FREE_FROM","FREE_FROM","FREE_FROM","FREE_FROM","FREE_FROM","FREE_FROM","FREE_FROM","AN, AF, AC, AE, UW, AY, AS, AP, AM","Orthodox Union ",null,"2025-05-05 08:25:11","2025-04-09 16:34:58","Carrots",false]
[100356,"Potatoes, Wedges, Fat Free, Low-sodium, Frozen (IQF)","Vegetables","00086289201628","Dickinson Frozen Foods","Inn Foods","Inn Foods, Inc.","Vegetable","Fat Free Potato Wedges","Vegetable",null,100,"GRM","BY_SERVING",100,"GRM","7/8 cup","HEAT_AND_SERVE",null,null,null,null,null,null,null,null,null,null,null,null,null,15,21,0,90,0,0,2,1,530,2,10,1,0,0,0,null,{"$f":"26*6","v":156},"CASE","TRUE","FREE_FROM","FREE_FROM","FREE_FROM","FREE_FROM","FREE_FROM","FREE_FROM","FREE_FROM","FREE_FROM","FREE_FROM","AM, AE, AF, AC, AN, AP, UW, AY, AS",null,null,"2025-08-01 09:35:39","2025-07-25 11:12:00","Potatoes",false]
[100359,"Beans, Black, Low-sodium, Canned ","Legumes","00042396251918","Mothers Maid","Burnette Foods, Inc.","Burnette Foods, Inc.","MOTHERS MAID LOW SALT BLACK BEANS 6/10","6/10 MMAID LS BLACK BEANS","BLACK BEANS",null,130,"GRM","BY_SERVING",130,"GRM","1/2 cup","UNPREPARED",null,null,null,null,null,null,null,null,null,null,null,null,null,38,18,0,100,0,0,6,2.39,null,7,140,2,null,0,0,null,{"$f":"24*6","v":144},"BASE_UNIT_OR_EACH","TRUE",null,null,null,null,null,null,null,null,null,"X99",null,null,"2025-11-03 08:54:44","2025-10-16 06:22:51","Black Beans, Water, Salt",false]
[100359,"Beans, Black, Low-sodium, Canned ","Legumes","00042396251932","Mothers Maid","Burnette Foods, Inc.","Burnette Foods, Inc.","MOTHERS MAID LOW SALT BLACK BEANS WITH FERRO 6/10","6/10 MM LS BLACK BEANS w/FERRO","BLACK BEANS",null,130,"GRM","BY_SERVING",130,"GRM","1/2 cup","UNPREPARED",null,null,null,null,null,null,null,null,null,null,null,null,null,38,18,0,100,0,0,6,2.39,null,7,140,2,null,0,0,null,{"$f":"24*6","v":144},"BASE_UNIT_OR_EACH","TRUE",null,null,null,null,null,null,null,null,null,"X99",null,null,"2025-11-03 08:54:44","2025-10-15 07:08:28","Black Beans, Water, Salt",false]
[100359,"Beans, Black, Low-sodium, Canned ","Legumes","00041188047456","Furmanos","Furmano Foods","FURMANO FOODS INC.","Furmanos; 1/#10 Black Beans - Brine","10 Blk Bns - Brine","Beans - Black","CHILD_NUTRITION_FOOD_PROGRAMS",130,"GRM","BY_MEASURE",100,"GRM","1/2 cup","UNPREPARED",null,null,null,null,null,null,null,null,null,null,null,null,null,45,21.55,0,118,0.13,0,5.4,1.74,1,7.46,130,0.73,0,0.49,0,null,144,"BASE_UNIT_OR_EACH",true,"FREE_FROM","FREE_FROM","FREE_FROM","FREE_FROM","FREE_FROM","FREE_FROM","FREE_FROM","FREE_FROM","FREE_FROM","AA, AC, AD, AE, AF, AH, AI, AL, AM, AN, AP, AS, AU, AW, AY, BA, BB, BC, BE, BF, BI, BM, BN, BO, BP, BQ, BR, BS, CA, CL, CM, CN, CO, CT, DA, DP, EG, EP, EV, FA, FH, FT, GB, GE, GK, GL, GO, GS, HB, HC, HD, HE, HH, HN, HP, HX, HY, MH, ML, NC, NE, NK, NL, NM, NP, NR, NW, ON, PM, PN, PO, PP, PS, SA, SB, SC, SH, SM, SO, SP, SR, SS, ST, SW, SX, TA, TD, TR, UM, UN, UW","Kashruth Division of the Orthodox Union",null,"2025-05-05 08:25:11","2025-04-11 13:24:47","Black Beans, Water, Salt, Calcium Chloride",true]
[100359,"Beans, Black, Low-sodium, Canned ","Legumes","00071109999434","Michigan Made","Honee Bear Canning","Packers Canning Co dba Honee Bear Canning","Black Turtle Beans in Brine","Black Turtle Beans in Brine","Black Turtle Beans",null,130,"GRM","BY_SERVING",null,null,"1/2 cup","HEAT_AND_SERVE",null,null,null,null,null,null,null,null,null,null,null,null,null,50,19,0,110,0,0,7,2,480,2,140,2,0,1,0,null,{"$f":"24*6","v":144},"BASE_UNIT_OR_EACH",true,"FREE_FROM","FREE_FROM","FREE_FROM","FREE_FROM","FREE_FROM","FREE_FROM","FREE_FROM","FREE_FROM","FREE_FROM","AS, AM, AP, UN, AE, AF, AN, UW, AY",null,null,"2023-10-02T10:05:25","2023-09-18T19:37:00","Black Turtle Beans, Water, Salt, Ferrous Gluconate",false]
[100360,"Beans, Garbanzo, Low-sodium, Canned (K)","Legumes","00041188847179","Bella Vista","Furmano Foods","FURMANO FOODS INC.","Bella Vista; 1/#10 Chick Peas - Fancy (Garbanzo)","10 Chk Peas - Fcy (Garb)","Beans - Chick Peas","CHILD_NUTRITION_FOOD_PROGRAMS",130,"GRM","BY_MEASURE",100,"GRM","1/2 cup","UNPREPARED",null,null,null,null,null,null,null,null,null,null,null,null,null,29,17.29,0,102,0,0,5.0999999999999996,1.73,0,5.76,118,3.2,0,1.6,0,null,144,"BASE_UNIT_OR_EACH",true,"FREE_FROM","FREE_FROM","FREE_FROM","FREE_FROM","FREE_FROM","FREE_FROM","FREE_FROM","FREE_FROM","FREE_FROM","AA, AC, AD, AE, AF, AH, AI, AL, AM, AN, AP, AS, AU, AW, AY, BA, BB, BC, BE, BF, BI, BM, BN, BO, BP, BQ, BR, BS, CA, CL, CM, CN, CO, CT, DA, DP, EG, EP, EV, FA, FH, FT, GB, GE, GK, GL, GO, GS, HB, HC, HD, HE, HH, HN, HP, HX, HY, MH, ML, NC, NE, NK, NL, NM, NP, NR, NW, ON, PM, PN, PO, PP, PS, SA, SB, SC, SH, SM, SO, SP, SR, SS, ST, SW, SX, TA, TD, TR, UM, UN, UW","Kashruth Division of the Orthodox Union",null,"2025-05-05 08:25:11","2025-04-11 13:26:00","Chick Peas, Water, Salt, Disodium EDTA (To Preserve Color)",true]
[100360,"Beans, Garbanzo, Low-sodium, Canned (K)","Legumes","00071109999830","Michigan Made","Honee Bear Canning","Packers Canning Co dba Honee Bear Canning","Garbanzo Beans in Brine Low Sodium","Garbanzo Beans in Brine Low Sodium","Garbanzo Beans in Brine Low Sodium",null,130,"GRM","BY_SERVING",null,null,"1/2 cup","HEAT_AND_SERVE",null,null,null,null,null,null,null,null,null,null,null,null,null,20,18,0,110,0,0,6,1.1000000000000001,310,6,140,2,0,1,0,null,{"$f":"24*6","v":144},"BASE_UNIT_OR_EACH",true,"FREE_FROM","FREE_FROM","FREE_FROM","FREE_FROM","FREE_FROM","FREE_FROM","FREE_FROM","FREE_FROM","FREE_FROM","AS, AM, AP, UN, AE, AF, AN, UW, AY","Orthodox Union",null,"2023-10-02T09:09:30","2023-09-18T19:37:00","Garbanzo Beans, Water, Calcium Chloride, Salt and Calcium Disodium EDTA",false]
[100362,"Beans, Refried, Low-sodium, Canned ","Legumes","00070222073823","Hart","Seneca Foods Corp","Seneca Foods Corp","Hart Low Sodium Seasoned Refried Beans","REFRD BNS SEASND","Vegetable - Canned","CHILD_NUTRITION_FOOD_PROGRAMS",130,"GRM","BY_SERVING",130,"GRM","1/2 cup","UNPREPARED",null,null,null,null,null,null,null,null,null,null,null,null,null,50,24,0,140,0,0,6,2,540,8,140,1,0,1.5,0,"US_FDA_NFP_2020_STANDARD",{"$f":"24*6","v":144},"BASE_UNIT_OR_EACH","TRUE","FREE_FROM","FREE_FROM","FREE_FROM","FREE_FROM","FREE_FROM","FREE_FROM","FREE_FROM","FREE_FROM","FREE_FROM","AN, AF, AC, AE, UW, AY, AS, AP, AM","Orthodox Union (OU)",null,"2025-11-03 08:54:44","2025-10-02 12:43:03","Cooked Beans, Water, Less Than 2% of the Following: Tomato Paste, Jalapeno Pepper (Jalapeno Peppers, Water, Salt, Citric Acid, Calcium Chloride), Jalapeno Pepper Puree (Jalapeno Peppers, Salt, Acetic Acid, Water, Calcium Chloride), Chili Powder (Chili Pepper, Spices, Salt, Garlic Powder), Onion Powder, Garlic Powder, Canola Oil, Salt, Vinegar. ",false]
[100364,"Beans, Vegetarian, Low-sodium, Canned ","Legumes","00041188847100","Bella Vista","Furmano Foods","FURMANO FOODS INC.","Bella Vista; 1/#10 Vegetarian Beans - Fancy","10 Vegetarian Bns - Fcy","Beans - Vegetarian","CHILD_NUTRITION_FOOD_PROGRAMS",130,"GRM","BY_MEASURE",100,"GRM","1/2 cup","UNPREPARED",null,null,null,null,null,null,null,null,null,null,null,null,null,27,16.55,0,76,0.03,0,3.6,0.86,0,2.87,88,7.67,7.2,0.22,0,null,144,"BASE_UNIT_OR_EACH",true,"FREE_FROM","FREE_FROM","FREE_FROM","FREE_FROM","FREE_FROM","FREE_FROM","FREE_FROM","FREE_FROM","FREE_FROM","AA, AC, AD, AE, AF, AH, AI, AL, AM, AN, AP, AS, AU, AW, AY, BA, BB, BC, BE, BF, BI, BM, BN, BO, BP, BQ, BR, BS, CA, CL, CM, CN, CO, CT, DA, DP, EG, EP, EV, FA, FH, FT, GB, GE, GK, GL, GO, GS, HB, HC, HD, HE, HH, HN, HP, HX, HY, MH, ML, NC, NE, NK, NL, NM, NP, NR, NW, ON, PM, PN, PO, PP, PS, SA, SB, SC, SH, SM, SO, SP, SR, SS, ST, SW, SX, TA, TD, TR, UM, UN, UW","Kashruth Division of the Orthodox Union",null,"2025-07-07 08:22:08","2025-06-06 06:27:51","White Beans, Water, Sugar, Salt, Tomato Paste, Oleoresin Paprika, Garlic Powder, Natural Flavorings",true]
[100364,"Beans, Vegetarian, Low-sodium, Canned ","Legumes","40028800146566","Farmer Girl","Hanover Foods Corp","Hanover Foods Corp","Farmer Girl Vegetarian Beans 6/10 Case","Vegetarian Beans","Vegetarian Beans","CHILD_NUTRITION_FOOD_PROGRAMS",130,"GRM","BY_SERVING",2000,"E14","1/2 cup","HEAT_AND_SERVE",null,null,null,null,null,null,null,null,null,null,null,null,null,60,27,0,140,0,0,7,2,450,8,125,5,4,0.5,0,null,144,"CASE",null,"FREE_FROM","FREE_FROM","FREE_FROM","FREE_FROM","FREE_FROM","FREE_FROM","FREE_FROM","FREE_FROM","FREE_FROM","AS, UW, AC, AE, AF, AY, AM, AN, AP, UN, UM, BM",null,null,"2024-06-03 08:45:45","2024-05-09 14:02:44","Prepared Navy Beans, Water, Sugar, Corn Syrup, Tomato Paste, Salt, Paprika, Onion Powder, Mustard Flour, Natural Flavors.",false]
[100364,"Beans, Vegetarian, Low-sodium, Canned ","Legumes","00071109999236","Michigan Made","Honee Bear Canning","Honee Bear Canning","Vegetarian Beans","Vegetarian Beans","Vegetarian Beans",null,130,"GRM","BY_SERVING",null,null,"1/2 cup","HEAT_AND_SERVE",null,null,null,null,null,null,null,null,null,null,null,null,null,50,20,0,130,0,0,4,2.4,426,6,140,5,3,0,0,null,{"$f":"24*6","v":144},"BASE_UNIT_OR_EACH",true,"FREE_FROM","FREE_FROM","FREE_FROM","FREE_FROM","FREE_FROM","FREE_FROM","FREE_FROM","FREE_FROM","FREE_FROM","AM, AP, UN, AE, AF, AN, UW, AY, AS",null,null,"2023-10-02T10:00:29","2023-09-18T19:37:00","Navy Beans, Water, Sugar, Tomato Paste, Vinegar, Salt, Onion Powder and Garlic Powder",false]
[100365,"Beans, Pinto, Low-sodium, Canned ","Legumes","00042396251116","Mothers Maid","Burnette Foods, Inc.","Burnette Foods, Inc.","MOTHERS MAID LOW SALT PINTO BEANS 6/10","6/10 MOTHER'S MAID LOW SALT PI","PINTO BEANS",null,130,"GRM","BY_SERVING",130,"GRM","1/2 cup","UNPREPARED",null,null,null,null,null,null,null,null,null,null,null,null,null,67,17,0,100,0,0,9,1.32,null,5,140,0,null,0.5,0,null,{"$f":"24*6","v":144},"BASE_UNIT_OR_EACH","TRUE",null,null,null,null,null,null,null,null,null,"X99","Orthodox Union",null,"2025-11-03 08:54:44","2025-10-15 07:03:45","Pinto Beans, Water, Salt, Calcium Chloride",false]
[100365,"Beans, Pinto, Low-sodium, Canned ","Legumes","00041188047241","Furmanos","Furmano Foods","FURMANO FOODS INC.","Furmanos; 1/#10 Pinto Beans","10 Pinto Bns","Beans - Pinto","CHILD_NUTRITION_FOOD_PROGRAMS",130,"GRM","BY_MEASURE",100,"GRM","1/2 cup","UNPREPARED",null,null,null,null,null,null,null,null,null,null,null,null,null,39,20.190000000000001,0,112,0.08,0,5,1.64,0,6.92,131,0.68,0,0.4,0,null,144,"BASE_UNIT_OR_EACH",true,"FREE_FROM","FREE_FROM","FREE_FROM","FREE_FROM","FREE_FROM","FREE_FROM","FREE_FROM","FREE_FROM","FREE_FROM","AA, AC, AD, AE, AF, AH, AI, AL, AM, AN, AP, AS, AU, AW, AY, BA, BB, BC, BE, BF, BI, BM, BN, BO, BP, BQ, BR, BS, CA, CL, CM, CN, CO, CT, DA, DP, EG, EP, EV, FA, FH, FT, GB, GE, GK, GL, GO, GS, HB, HC, HD, HE, HH, HN, HP, HX, HY, MH, ML, NC, NE, NK, NL, NM, NP, NR, NW, ON, PM, PN, PO, PP, PS, SA, SB, SC, SH, SM, SO, SP, SR, SS, ST, SW, SX, TA, TD, TR, UM, UN, UW","Kashruth Division of the Orthodox Union",null,"2025-05-05 08:25:11","2025-04-11 13:24:45","Pinto Beans, Water, Salt, Calcium Chloride, Calcium Disodium EDTA (To Preserve Color)",true]
[100365,"Beans, Pinto, Low-sodium, Canned ","Legumes","40028800130459","Farmer Girl","Hanover Foods Corp","Hanover Foods Corp","USDA Low Sodium Pinto Beans 6/10 Case","Low Sodium Pinto Beans","Low Sodium Pinto Beans","CHILD_NUTRITION_FOOD_PROGRAMS",130,"GRM","BY_SERVING",2000,"E14","1/2 cup","HEAT_AND_SERVE",null,null,null,null,null,null,null,null,null,null,null,null,null,40,21,0,110,0,0,5,1.7,460,7,120,1,0,0,0,"US_FDA_NFP_2020_STANDARD",144,"CASE",null,"FREE_FROM","FREE_FROM","FREE_FROM","FREE_FROM","FREE_FROM","FREE_FROM","FREE_FROM","FREE_FROM","FREE_FROM","AS, UW, AC, AE, AF, AY, AM, AN, AP, UM, BM","Orthodox Union",null,"2024-06-03 08:45:45","2024-05-23 11:46:56","Prepared Pinto Beans, Water, Salt, Calcium Chloride (Firming Agent), Calcium Disodium EDTA (Added to Promote Color Retention)",false]
[100365,"Beans, Pinto, Low-sodium, Canned ","Legumes","40028800146702","Farmer Girl","Hanover Foods Corp","Hanover Foods Corp","Superb appearance makes them a favorite dishes and in soups","Low Sodium Pinto Beans","USDA Farmer Girl Low Sodium Pinto B","CHILD_NUTRITION_FOOD_PROGRAMS",130,"GRM","BY_SERVING",null,null,"1/2 cup","READY_TO_EAT",null,null,null,null,null,null,null,null,null,null,null,null,null,40,21,0,110,0,0,5,1.7,460,7,120,1,0,0,0,null,{"$f":"24*6","v":144},"CASE",null,"FREE_FROM","FREE_FROM","FREE_FROM","FREE_FROM","FREE_FROM","FREE_FROM","FREE_FROM","FREE_FROM","FREE_FROM","AS, UW, AC, AE, AF, AY, AM, AN, AP, UN, UM, BM",null,null,"2023-04-03T16:30:52","2023-02-13T11:16:25","Prepared Pinto Beans, Water, Salt, Calcium Chloride (Firming Agent), Calcium Disodium EDTA (Promote Color Retention)",false]
[100365,"Beans, Pinto, Low-sodium, Canned ","Legumes","10041443111929","Margaret Holmes","McCall Farms, Inc.","McCall Farms  Inc","Margaret Holmes Pinto Beans, 6/111oz","Pinto Beans","Pinto Beans",null,130,"GRM","BY_SERVING",130,"GRM","1/2 cup","PREPARED",null,null,null,null,null,null,null,null,null,null,null,null,null,60,18,0,100,0,0,6,1.5,310,6,140,0,0,0,0,null,{"$f":"24*6","v":144},"CASE",null,"FREE_FROM","FREE_FROM","FREE_FROM","FREE_FROM","FREE_FROM","FREE_FROM","FREE_FROM","FREE_FROM","FREE_FROM","AS, UW, AC, AE, AF, AY, AM, AN, AP",null,null,"2025-11-03 08:54:44","2025-09-17 14:17:40","Prepared Pinto Beans, Water, Salt, Calcium Chloride (As a Firming Agent) and Calcium Disodium EDTA (To Promote Color Retention)",false]
[100365,"Beans, Pinto, Low-sodium, Canned ","Legumes","00071109999137","Michigan Made","Packers Canning Co dba Honee Bear Canning","Packers Canning Co dba Honee Bear Canning","Pinto Beans in Brine","Pinto Beans in Brine","Pinto Beans in Brine",null,130,"GRM","BY_SERVING",null,null,"1/2 cup","HEAT_AND_SERVE",null,null,null,null,null,null,null,null,null,null,null,null,null,50,19,0,80,0,0,7,1,310,8,140,2,0,0,0,null,{"$f":"24*6","v":144},"BASE_UNIT_OR_EACH",true,"FREE_FROM","FREE_FROM","FREE_FROM","FREE_FROM","FREE_FROM","FREE_FROM","FREE_FROM","FREE_FROM","FREE_FROM","AM, AP, UN, AE, AN, AF, UW, AY, AS",null,null,"2023-10-02T09:38:19","2023-09-18T19:37:00","Pinto Beans, Water, Calcium Chloride, Salt, Calcium Disodium EDTA",false]
[100366,"Beans, Small Red, Low-sodium, Canned ","Legumes","00071109999632","Michigan Made","Packers Canning Co dba Honee Bear Canning","Packers Canning Co dba Honee Bear Canning","Small Red Beans in Brine Low Sodium","Small Red Beans in Brine Low Sodium","Small Red Beans in Brine Low Sodium",null,130,"GRM","BY_SERVING",null,null,"1/2 cup","HEAT_AND_SERVE",null,null,null,null,null,null,null,null,null,null,null,null,null,50,20,0,110,0,0,9,1,400,6,140,2,0,0.5,0,null,{"$f":"24*6","v":144},"BASE_UNIT_OR_EACH",true,"FREE_FROM","FREE_FROM","FREE_FROM","FREE_FROM","FREE_FROM","FREE_FROM","FREE_FROM","FREE_FROM","FREE_FROM","AM, AP, UN, AE, AN, AF, UW, AY, AS",null,null,"2023-10-02T09:04:37","2023-09-18T19:37:00","Small Red Beans , Water, Calcium Chloride, Salt, Calcium Disodium EDTA",false]
[100368,"Beans, Black-eyed Pea, Low-sodium, Canned ","Legumes","00042396252113","Mothers Maid","Burnette Foods, Inc.","Burnette Foods, Inc.","MOTHERS MAID 6/10 LOW SODIUM BLACK EYED PEAS","M/M 6/10 LS BLACK EYED PEAS","BEANS",null,130,"GRM","BY_SERVING",130,"GRM","1/2 cup","UNPREPARED",null,null,null,null,null,null,null,null,null,null,null,null,null,43,18,0,100,0,0,3,1.85,null,6,140,0,null,0.5,0,null,{"$f":"24*6","v":144},"BASE_UNIT_OR_EACH","TRUE",null,null,null,null,null,null,null,null,null,"X99",null,null,"2025-11-03 08:54:44","2025-10-15 06:33:06","Blackeye Peas, Water, Salt, Calcium Chloride, Disodium EDTA",false]
[100368,"Beans, Black-eyed Pea, Low-sodium, Canned ","Legumes","10041443117822","Margaret Holmes","McCall Farms, Inc.","McCall Farms  Inc","6/#10 Margaret Holmes Low Sodium Blackeye Peas","Blackeye Peas","6/#10 Margaret Holmes Low Sodium Bl","CHILD_NUTRITION_FOOD_PROGRAMS",130,"GRM","BY_SERVING",null,null,"1/2 cup","PREPARED",null,null,null,null,null,null,null,null,null,null,null,null,null,32,14,0,90,0,0,4,2,null,5,140,2,null,0,null,"NFT",144,"CASE",null,"FREE_FROM","FREE_FROM","FREE_FROM","FREE_FROM","FREE_FROM","FREE_FROM","FREE_FROM","FREE_FROM","FREE_FROM","AS, UW, AC, AE, AF, AY, AM, AN, AP",null,null,"2022-09-19T05:50:36","2022-05-09T09:44:44","Prepared Black Eye Peas, Water, Salt, Calcium Chloride (as a Firming Agent), Disodium EDTA (to Promote Color Retention)",false]
[100369,"Beans, Pink, Low-sodium, Canned ","Legumes","00071109999038","Michigan Made","Honee Bear Canning","Packers Canning Co dba Honee Bear Canning","Pink Beans","Pink Beans","Pink Beans in Brine Low Sodium",null,130,"GRM","BY_SERVING",null,null,"1/2 cup","HEAT_AND_SERVE",null,null,null,null,null,null,null,null,null,null,null,null,null,50,16,0,80,0,0,7,1,350,5,140,1,0,0,0,null,{"$f":"24*6","v":144},"CASE",true,"FREE_FROM","FREE_FROM","FREE_FROM","FREE_FROM","FREE_FROM","FREE_FROM","FREE_FROM","FREE_FROM","FREE_FROM","AS, AM, AP, UN, AE, AF, AN, UW, AY",null,null,"2023-10-02T08:49:58","2023-09-18T19:37:00","Pink Beans, Water, Calcium Chloride, Salt, Calcium Disodium EDTA",false]
[100370,"Beans, Kidney, Dark Red, Low-sodium, Canned ","Legumes","00042396251321","Mothers Maid","Burnette Foods, Inc.","Burnette Foods, Inc.","MOTHERS MAID LOW SALT LIGHT RED KIDNEY BEANS 6/10","6/10 M MAID LS LT RED KIDNEY B","LIGHT RED KIDNEY BEANS",null,130,"GRM","BY_SERVING",130,"GRM","1/2 cup","UNPREPARED",null,null,null,null,null,null,null,null,null,null,null,null,null,52,20,0,100,0,0,6,1.76,null,8,140,0,null,0.5,0,null,{"$f":"24*6","v":144},"BASE_UNIT_OR_EACH","TRUE","FREE_FROM","FREE_FROM","FREE_FROM","FREE_FROM",null,"FREE_FROM","FREE_FROM","FREE_FROM","FREE_FROM","X99, AE, AN, AP, AM, AF, AC, UW, AY",null,null,"2023-05-02T10:55:29","2023-04-06T13:34:31","Kidney Beans, Water, Salt, Calcium Chloride",false]
[100370,"Beans, Kidney, Dark Red, Low-sodium, Canned ","Legumes","40028800130435","Farmer Girl","Hanover Foods Corp","Hanover Foods Corp","Superb appearance makes them a favorite at the salad bar and in soups","Low Sodium Red Kidneys","USDA Farmer Girl Low Sodium Dk Red","CHILD_NUTRITION_FOOD_PROGRAMS",130,"GRM","BY_SERVING",null,null,"1/2 cup","READY_TO_EAT",null,null,null,null,null,null,null,null,null,null,null,null,null,30,21,0,120,0,0,5,2.2999999999999998,480,8,110,1,0,0,0,null,144,"CASE",null,"FREE_FROM","FREE_FROM","FREE_FROM","FREE_FROM","FREE_FROM","FREE_FROM","FREE_FROM","FREE_FROM","FREE_FROM","AS, UW, AC, AE, AF, AY, AM, AN, AP, UN, UM, BM","Orthodox Union",null,"2023-06-01T09:04:23","2023-05-08T09:33:13","Prepared Kidney Beans, Water, Salt and Calcium Chloride (Firming Agent), Disodium EDTA (Added as a Preservative)",false]
[100370,"Beans, Kidney, Dark Red, Low-sodium, Canned ","Legumes","10041443113022","Margaret Holmes","McCall Farms  Inc","McCall Farms  Inc","Margaret Holmes Dark Red Kidney Beans, 6/111oz.","Dark Red Kidney Beans","Dark Red Kidney Beans",null,130,"GRM","BY_SERVING",130,"GRM","1/2 cup","PREPARED",null,null,null,null,null,null,null,null,null,null,null,null,null,60,19,0,100,0,0,6,1.5,310,6,140,0,0,0,0,null,{"$f":"24*6","v":144},"CASE",null,"FREE_FROM","FREE_FROM","FREE_FROM","FREE_FROM","FREE_FROM","FREE_FROM","FREE_FROM","FREE_FROM","FREE_FROM","AM, AE, AF, AC, UN, AN, AP, UW, AY, AS",null,null,"2025-11-03 08:54:44","2025-10-27 15:13:53","Prepared Dark Red Kidney Beans, Water, Salt, Calcium Chloride (As a Firming Agent), Disodium EDTA (To Promote Color Retention)",false]
[100370,"Beans, Kidney, Dark Red, Low-sodium, Canned ","Legumes","00071109999731","Michigan Made","Packers Canning Co dba Honee Bear Canning","Packers Canning Co dba Honee Bear Canning","Kidney Beans in Brine","Red Kidney Beans in Brine","Kidney Beans in Brine",null,130,"GRM","BY_SERVING",null,null,"1/2 cup","HEAT_AND_SERVE",null,null,null,null,null,null,null,null,null,null,null,null,null,50,14,0,75,0,0,5,1,360,8,140,1,0,0,0,null,{"$f":"24*6","v":144},"BASE_UNIT_OR_EACH",true,"FREE_FROM","FREE_FROM","FREE_FROM","FREE_FROM","FREE_FROM","FREE_FROM","FREE_FROM","FREE_FROM","FREE_FROM","AM, AP, UN, AE, AN, AF, UW, AY, AS",null,null,"2023-10-02T08:54:26","2023-09-18T19:37:00","Red Kidney Beans, Water, Calcium Chloride, Salt, and Calcium Disodium EDTA",false]
[100371,"Beans, Baby Lima, Low-sodium, Canned ","Legumes","10034700512140","Allens","McCall Farms, Inc.","McCall Farms  Inc","Bean, Lima Green Small Canned","Bean, Lima Grn Small Cnd","Canned Vegetable","CHILD_NUTRITION_FOOD_PROGRAMS",130,"GRM","BY_SERVING",128,"GRM","1/2 cup","PREPARED",null,null,null,null,null,null,null,null,null,null,null,null,null,40,20,0,110,0,0,5,2,270,9,140,1,0,0,0,null,144,"CASE",null,"FREE_FROM","FREE_FROM","FREE_FROM","FREE_FROM","FREE_FROM","FREE_FROM","FREE_FROM","FREE_FROM","FREE_FROM","AS, AU, UN, AC, AE, AF, AM, AN, AP, AY, UW","Star K",null,"2025-08-01 09:35:39","2025-07-10 15:14:12","Prepared Lima Beans, Water, Salt, Calcium Chloride Added To Help Maintain Firmness, Calcium Disodium Edta Added To Help Promote Color Retention",false]
[100373,"Beans, Great Northern, Low-sodium, Canned ","Legumes","00042396251710","Mothers Maid","Burnette Foods, Inc.","Burnette Foods, Inc.","MOTHERS MAID LOW SODIUM GREAT NORTHERN BEANS 6/10","6/10 MMAID LS GREAT NORTHERN","GREAT NORTHERN BEANS",null,125,"GRM","BY_SERVING",125,"GRM","1/2 cup","UNPREPARED",null,null,null,null,null,null,null,null,null,null,null,null,null,90,12,0,130,1.5,0,6,1.85,null,7,140,2,null,7,0,null,{"$f":"24*6","v":144},"BASE_UNIT_OR_EACH","TRUE",null,null,null,null,null,null,null,null,null,"X99",null,null,"2025-11-03 08:54:44","2025-10-15 07:09:44","Great Northern Beans, Water, Salt",false]
[100373,"Beans, Great Northern, Low-sodium, Canned ","Legumes","00071109999533","Michigan Made","Honee Bear Canning","Honee Bear Canning","Great Northern Beans in Brine Low Sodium","Great Northern Beans  Low Sodium","Great Northern Beans  Low Sodium",null,130,"GRM","BY_SERVING",null,null,"1/2 cup","HEAT_AND_SERVE",null,null,null,null,null,null,null,null,null,null,null,null,null,53,24,0,110,0,0,7,1.6,350,6,140,2,0,0,0,null,{"$f":"24*6","v":144},"BASE_UNIT_OR_EACH",true,"FREE_FROM","FREE_FROM","FREE_FROM","FREE_FROM","FREE_FROM","FREE_FROM","FREE_FROM","FREE_FROM","FREE_FROM","AS, AM, AP, UN, AE, AF, AN, UW, AY",null,null,"2023-03-01T10:55:34","2023-02-23T15:47:00","Great Northern Beans, Water, Calcium Chloride, Salt and Calcium Disodium EDTA",false]
[100373,"Beans, Great Northern, Low-sodium, Canned ","Legumes","00041443113629","Margaret Holmes","McCall Farms, Inc.","McCall Farms  Inc","Great Northern Beans","Great Northern Beans","Great Northern Beans","CHILD_NUTRITION_FOOD_PROGRAMS",130,"GRM","BY_MEASURE",130,"GRM","1/2 cup","PREPARED",null,null,null,null,null,null,null,null,null,null,null,null,null,64,15,0,80,0,0,5,2,280,6,140,0,0,0,0,null,{"$f":"24*6","v":144},"BASE_UNIT_OR_EACH",null,"FREE_FROM","FREE_FROM","FREE_FROM","FREE_FROM","FREE_FROM","FREE_FROM","FREE_FROM","FREE_FROM","FREE_FROM","AS, UW, AC, AE, AF, AY, AM, AN, AP",null,null,"2025-04-01 08:31:52","2025-03-13 13:35:20","Prepared Great Northern Beans, Water, Salt, and Calcium Chloride (As a Firming Agent) and Disodium EDTA (to Promote Color Retention)",true]
[100382,"Beans, Pinto, Dry","Legumes","00077300150025","China Doll","China Doll Rice and Beans Inc.","China Doll Rice and Beans Inc","China Doll Pinto Beans 2 lb","China Doll Pinto Beans 2 lb","China Doll Pinto Beans 2 lb","CHILD_NUTRITION_FOOD_PROGRAMS",100,"GRM","BY_MEASURE",100,"GRM","2/3 cup","BOIL",null,null,null,null,null,null,null,null,null,null,null,null,null,113,62.6,0,347,0.23,0,15.5,5.07,1390,21.4,12,2.11,0,1.23,0,null,{"$f":"9*12","v":108},"BASE_UNIT_OR_EACH",null,"NOT_INTENTIONALLY_NOR_INHERENTLY_INCLUDED","NOT_INTENTIONALLY_NOR_INHERENTLY_INCLUDED","NOT_INTENTIONALLY_NOR_INHERENTLY_INCLUDED","NOT_INTENTIONALLY_NOR_INHERENTLY_INCLUDED","NOT_INTENTIONALLY_NOR_INHERENTLY_INCLUDED","NOT_INTENTIONALLY_NOR_INHERENTLY_INCLUDED","NOT_INTENTIONALLY_NOR_INHERENTLY_INCLUDED","NOT_INTENTIONALLY_NOR_INHERENTLY_INCLUDED","NOT_INTENTIONALLY_NOR_INHERENTLY_INCLUDED","AM, AE, AF, UN, AN, AP, UW, AY, AS",null,null,"2025-04-01 08:31:52","2025-03-27 08:18:06","Dried Pinto Beans",false]
[100382,"Beans, Pinto, Dry","Legumes","00753213757727","Pappy's Pantry","Twenty First Century Bean","Twenty First Century Bean","Pappy's Pantry Pinto Beans 2lb bag","Pappy's Pantry Pinto Beans 2lb bag","Dry edible beans","CHILD_NUTRITION_FOOD_PROGRAMS",100,"GRM","BY_MEASURE",100,"GRM","1/2 cup dry","PREPARED",null,null,null,null,null,null,null,null,null,null,null,null,null,35,62.43,"<1",225,0.3,"<0.1",32.799999999999997,5.31,1470,19.3,13,1.1399999999999999,"<0.1",1.72,"<0.1",null,96,"BASE_UNIT_OR_EACH","TRUE","FREE_FROM","FREE_FROM","FREE_FROM","FREE_FROM","FREE_FROM","FREE_FROM","NOT_INTENTIONALLY_NOR_INHERENTLY_INCLUDED","FREE_FROM","NOT_INTENTIONALLY_NOR_INHERENTLY_INCLUDED","AM, AP, AS, AY, AN, UW, AC, AE, AF, UM, BM",null,null,"2022-12-01T18:01:10","2022-11-16T09:14:58","Pinto Beans",true]
[100396,"Peanut Butter, Smooth","Nuts and seeds","00088252010756","Algood","Algood Food Company","Algood Food Company","Creamy Peanut Butter","Creamy Peanut Butter","Fruit/Nuts/Seeds Mixes - Prepared/P","CHILD_NUTRITION_FOOD_PROGRAMS",32,"GRM","BY_SERVING",32,"GRM","2 Tablespoon","READY_TO_EAT",null,null,null,null,null,null,null,null,null,null,null,null,null,19,8,0,180,2.5,0,2,0.5,184,7,125,3,2,15,0,null,{"$f":"71*6","v":426},"BASE_UNIT_OR_EACH",true,null,null,null,"CONTAINS",null,null,null,null,null,"AP",null,null,"2023-02-01T09:34:05","2023-01-25T06:53:58","Peanuts, Sugar, Contains 2% or Less of: Fully Hydrogenated Vegetable Oils (Cottonseed, Soybean, Rapeseed), Salt, Molasses, Monoglycerides, Peanut Oil, Honey, Dextrose",false]
[100400,"Flour, All Purpose, Enriched, Bleached","Grains","00076929002050","Stafford County Flour Mills","Stafford County Flour Mills","STAFFORD COUNTY FLOUR MILLS","Stafford County Flour Mills All-Purpose Flour, Bleached, 5 lb. bag","SCFM AP 5 lb","SCFM AP 5","CHILD_NUTRITION_FOOD_PROGRAMS",30,"GRM","BY_SERVING",30,"GRM","1/4 cup","UNPREPARED",null,null,null,null,null,null,null,null,null,null,null,null,null,7,23,0,110,0,0,1,1,50,3,0,1,0,0,0,"US_FDA_NFP_2020_STANDARD_SIDE_BY_SIDE",{"$f":"75*8","v":600},"BASE_UNIT_OR_EACH",null,"FREE_FROM","FREE_FROM","FREE_FROM","FREE_FROM","FREE_FROM","FREE_FROM","FREE_FROM","FREE_FROM","CONTAINS","AP, AN, AM, AE, AY, UW, AF, UN, AS","Orthodox Union",null,"2024-04-01T09:28:51","2024-03-01T09:49:27","Wheat Flour, Niacin, Reduced Iron,Thiamin Mononitrate, Doh-Tone (Enzyme For Improved Baking), Riboflavin, Folic Acid.",false]
[100425,"Pasta, Spaghetti, Enriched","Grains","10070753280391","COLUMBIA","A Zerega's Sons, Inc.","A. Zerega's Sons, Inc.","COLUMBIA SPAGHETTI - 10\" - 2/10","COL SPAGHETTI","PASTA",null,56,"GRM","BY_SERVING",56,"GRM","2 ounce","UNPREPARED",null,null,null,null,null,null,null,null,null,null,null,null,null,0,41,0,200,0,0,1,10,null,7,0,2,null,1,0,null,160,"CASE",null,"MAY_CONTAIN","FREE_FROM","FREE_FROM","FREE_FROM","FREE_FROM","FREE_FROM","FREE_FROM","FREE_FROM","CONTAINS","AM, AE, AF, AC, AN, AP, AY, UW, AS",null,null,"2024-06-03 08:45:45","2024-05-28 10:12:00","Durum Flour (Wheat), Niacin, Iron (Ferrous Sulfate), Thiamin Mononitrate, Riboflavin and Folic Acid",false]
[100425,"Pasta, Spaghetti, Enriched","Grains","00047325905269","Ravarino","Bay Valley Foods","Bay Valley Foods","RAVARINO 10 LB SPAGHETTI","SPAGHETTI","DRY PASTA","CHILD_NUTRITION_FOOD_PROGRAMS",56,"GRM","BY_SERVING",56,"GRM","2 ounce dry","UNPREPARED",null,null,null,null,null,null,null,null,null,null,null,null,null,0,41,0,210,0,0,2,10,0,7,0,2,0,1,0,"US_FDA_NFP_2020_STANDARD","160","BASE_UNIT_OR_EACH",null,"FREE_FROM","FREE_FROM","FREE_FROM","FREE_FROM","FREE_FROM","FREE_FROM","FREE_FROM","FREE_FROM","CONTAINS","AS, UW, AC, AE, AF, AY, AM, AN, AP","Orthodox Union (OU)",null,"2023-12-01T08:27:55","2023-05-03T13:10:08","Durum Semolina, Niacin, Ferrous Sulfate (Iron), Thiamine Mononitrate, Riboflavin, Folic Acid.",false]
[100425,"Pasta, Spaghetti, Enriched","Grains","00047325000315","Golden Grain ","Winland Foods, Inc.","Winland Foods, Inc.","Golden Grain 16 Oz Spaghetti Rigate Pasta","Spaghetti Rigate Pasta","Dry Pasta",null,56,"GRM","BY_SERVING",56,"GRM","2 ounce","UNPREPARED",null,null,null,null,null,null,null,null,null,null,null,null,null,0,42,0,200,0,0,2,2,120,7,0,2,0,1,0,"US_FDA_NFP_2020_STANDARD",{"$f":"8*20","v":160},"BASE_UNIT_OR_EACH",true,"CONTAINS","FREE_FROM","FREE_FROM","FREE_FROM","FREE_FROM","CONTAINS","FREE_FROM","FREE_FROM","FREE_FROM","AM, AP, AS, AY, AN, UW, AC, AE, AF, BM, UM, UN, AU",null,null,"2025-11-03 08:54:44","2025-10-30 12:34:57","Semolina, Niacin, Ferrous Sulfate (Iron), Thiamin Mononitrate, Riboflavin, Folic Acid",false]
[100425,"Pasta, Spaghetti, Enriched","Grains","10015100000413","Creamette","Winland Foods, Inc.","Winland Foods, Inc.","Creamette 16 Oz Spaghetti Rigate Pasta-Case Of 20","Spaghetti Rigate Pasta","Dry Pasta",null,56,"GRM","BY_SERVING",56,"GRM","2 ounce","UNPREPARED",null,null,null,null,null,null,null,null,null,null,null,null,null,0,42,0,200,0,0,2,2,120,7,0,2,0,1,0,"US_FDA_NFP_2020_STANDARD",{"$f":"8*20","v":160},"CASE",true,"CONTAINS","FREE_FROM","FREE_FROM","FREE_FROM","FREE_FROM","CONTAINS","FREE_FROM","FREE_FROM","FREE_FROM","AM, AP, AS, AY, AN, UW, AC, AE, AF, BM, UM, UN, AU",null,null,"2025-11-03 08:54:44","2025-10-30 12:16:24","Semolina, Durum Flour, Niacin, Ferrous Sulfate (Iron), Thiamin Mononitrate, Riboflavin, Folic Acid.",false]
[100425,"Pasta, Spaghetti, Enriched","Grains","00029200001167","Mueller's ","Winland Foods, Inc.","Winland Foods, Inc.","Mueller's 16 Oz Spaghetti Rigate Pasta","Spaghetti Rigate Pasta","Dry Pasta",null,56,"GRM","BY_SERVING",56,"GRM","2 ounce","UNPREPARED",null,null,null,null,null,null,null,null,null,null,null,null,null,0,42,0,200,0,0,2,2,120,7,0,2,0,1,0,"US_FDA_NFP_2020_STANDARD",{"$f":"8*20","v":160},"BASE_UNIT_OR_EACH",true,"CONTAINS","FREE_FROM","FREE_FROM","FREE_FROM","FREE_FROM","CONTAINS","FREE_FROM","FREE_FROM","FREE_FROM","AM, AP, AS, AY, AN, UW, AC, AE, AF, BM, UM, UN, AU",null,null,"2025-11-03 08:54:44","2025-10-30 12:13:47","Semolina, Niacin, Ferrous Sulfate (Iron), Thiamin Mononitrate, Riboflavin, Folic Acid.",false]
[100425,"Pasta, Spaghetti, Enriched","Grains","00041129995914","Prince","Winland Foods, Inc.","Winland Foods, Inc.","Prince 16 Oz Rigate Spaghetti Pasta","Rigate Spaghetti Pasta","Dry Pasta",null,56,"GRM","BY_SERVING",56,"GRM","2 ounce","UNPREPARED",null,null,null,null,null,null,null,null,null,null,null,null,null,0,42,0,200,0,0,2,2,120,7,0,2,0,1,0,"US_FDA_NFP_2020_STANDARD",{"$f":"8*20","v":160},"BASE_UNIT_OR_EACH",true,"CONTAINS","FREE_FROM","FREE_FROM","FREE_FROM","FREE_FROM","CONTAINS","FREE_FROM","FREE_FROM","FREE_FROM","AM, AP, AS, AY, AN, UW, AC, AE, AF, BM, UM, UN, AU",null,null,"2025-11-03 08:54:44","2025-10-30 12:13:30","Semolina, Durum Flour, Niacin, Ferrous Sulfate (Iron), Thiamin Mononitrate, Riboflavin, Folic Acid.",false]
[100425,"Pasta, Spaghetti, Enriched","Grains","00033400055752","San Giorgio","Winland Foods, Inc.","Winland Foods, Inc.","San Giorgio 16 Oz Rigate Spaghetti Pasta","Rigate Spaghetti Pasta","Dry Pasta",null,56,"GRM","BY_SERVING",56,"GRM","2 ounce","UNPREPARED",null,null,null,null,null,null,null,null,null,null,null,null,null,0,42,0,200,0,0,2,2,120,7,0,2,0,1,0,"US_FDA_NFP_2020_STANDARD",{"$f":"8*20","v":160},"BASE_UNIT_OR_EACH",true,"CONTAINS","FREE_FROM","FREE_FROM","FREE_FROM","FREE_FROM","CONTAINS","FREE_FROM","FREE_FROM","FREE_FROM","AM, AP, AS, AY, AN, UW, AC, AE, AF, BM, UM, UN, AU",null,null,"2025-11-03 08:54:44","2025-10-30 10:40:13","Semolina, Durum Flour, Niacin, Ferrous Sulfate (Iron), Thiamin Mononitrate, Riboflavin, Folic Acid.",false]
[100465,"Oats, Rolled, Quick Cooking","Grains","00695356670344","Northern Gold Foods","American Cereal","American Cereal","Northern Gold Quick Oats, 42oz","42oz NG Quick Oats","Food","CHILD_NUTRITION_FOOD_PROGRAMS",40,"GRM","BY_SERVING",40,"GRM","1/2 cup dry","UNPREPARED",null,null,null,null,null,null,null,null,null,null,null,null,null,18,27,0,150,0,0,4,1.4,127,5,0,1,0,2.5,0,"NFT",360,"CASE",true,null,null,null,null,null,null,null,null,null,null,null,null,"2022-10-31T09:33:20","2022-10-07T11:52:30","Whole Grain Rolled Oats",false]
[100465,"Oats, Rolled, Quick Cooking","Grains","00791669620226","Ralston Foods","Bay Valley Foods","Bay Valley Foods","RALSTON FOODS 42 OZ QUICK OATS","OATS QUICK","OATMEAL","CHILD_NUTRITION_FOOD_PROGRAMS",40,"GRM","BY_SERVING",40,"GRM","1/2 cup dry","UNPREPARED",null,null,null,null,null,null,null,null,null,null,null,null,null,0,27,0,150,0.5,0,4,1.6,150,5,0,0,0,2.5,0,"US_FDA_NFP_2020_STANDARD",{"$f":"30*12","v":360},"BASE_UNIT_OR_EACH",null,"FREE_FROM","FREE_FROM","FREE_FROM","FREE_FROM","FREE_FROM","FREE_FROM","FREE_FROM","FREE_FROM","FREE_FROM","AS, UW, AC, AE, AF, AY, AM, AN, AP, UM, UN","Orthodox Union (OU)",null,"2025-07-07 08:22:08","2025-07-07 05:05:09","Whole Grain Rolled Oats",false]
[100494,"Rice, Long Grain, Parboiled","Grains","00035200265492","Riceland","Riceland Foods","Riceland Foods","25 lb Delta Star Parboiled Rice. Rough rice that has gone through a steam-pressure process before milling.","25 LB POLYWEAVE LONG GRAIN PB DELTA","Delta Star 25lb PB POLYWEAVE","CHILD_NUTRITION_FOOD_PROGRAMS",47,"GRM","BY_SERVING",47,"GRM","1/4 cup","UNPREPARED",null,null,null,null,null,null,null,null,null,null,null,null,null,50,37,0,170,0,0,0,1.4,70,4,0,0,0,0,0,null,250,"CASE",null,"FREE_FROM","FREE_FROM","FREE_FROM","FREE_FROM","FREE_FROM","FREE_FROM","FREE_FROM","FREE_FROM","FREE_FROM","AS, AU, AW, BM, NM, AC, AE, AF, AM, AN, AP, AY, UM, UW",null,null,"2025-11-03 08:54:44","2025-09-30 13:45:58","Long Grain Parboiled  Rice, Iron Phosphate, Niacin, Thiamine Mononitrate, and Folic Acid.",false]
[100500,"Rice, Brown, Long Grain, Parboiled","Grains","10035200265673","Chefway","Riceland Foods","Riceland Foods","24/2 Chefway Parboiled Long Grain Brown Rice","RICE BRN US#1 LONG PARBOILED PKG-24","Grains/Cereal - Not Ready to Eat -","CHILD_NUTRITION_FOOD_PROGRAMS",44,"GRM","BY_SERVING",44,"GRM","1/4 cup","DRY",null,null,null,null,null,null,null,null,null,null,null,null,null,0,32,0,150,0,0,1,0.5,110,3,0,0,0,1,0,"NFT",192,"CASE",true,"FREE_FROM","FREE_FROM","FREE_FROM",null,"FREE_FROM","FREE_FROM",null,null,"FREE_FROM","AS, AU, AW, BM, NM, AC, AE, AF, AM",null,null,"2025-06-02 08:13:46","2025-05-13 14:41:05","Parboiled Long Grain Brown Rice",false]
[101031,"Rice, Brown, Long Grain, Parboiled","Grains","00035200265683","Chefway","Riceland Foods","Riceland Foods","25 LB Polyweave 4% PBBRN:CHEFWAY Parboil Brown","25 LB BAG Chefway PBBRN","Grains/Cereal - Not Ready to Eat -","CHILD_NUTRITION_FOOD_PROGRAMS",44,"GRM","BY_SERVING",44,"GRM","1/4 cup","DRY",null,null,null,null,null,null,null,null,null,null,null,null,null,0,32,0,150,0,0,1,0.5,110,3,0,0,0,1,0,"NFT",275,"CASE",true,"FREE_FROM","FREE_FROM","FREE_FROM","FREE_FROM","FREE_FROM","FREE_FROM","FREE_FROM","FREE_FROM","FREE_FROM","AS, AU, AW, BM, NM, AC, AE, AF, AM, AN, AP, AY, UM, UW",null,null,"2025-06-02 08:13:46","2025-05-13 14:39:32","Parboiled Long Grain Brown Rice",false]
[110177,"Spaghetti Sauce, Low-sodium, Pouch","Vegetables","10715001101775","Tomatek","Neil Jones Food Company","The Neil Jones Food Company","TomaTek Low Sodium Spaghetti Sauce Meatless 6 pack 106oz Pouches","Low Sodium Spaghetti Sauce","Spaghetti Sauce","CHILD_NUTRITION_FOOD_PROGRAMS",124,"GRM","BY_SERVING",null,null,"1/2 cup","READY_TO_EAT",null,null,null,null,null,null,null,null,null,null,null,null,null,19,8,0,35,0,0,2,1,422,2,65,5,0,0,0,"US_FDA_NFP_2020_STANDARD","144","CASE","TRUE","FREE_FROM","FREE_FROM","FREE_FROM","FREE_FROM","FREE_FROM","FREE_FROM","FREE_FROM","FREE_FROM","FREE_FROM","AM, AE, AF, AC, AP, AY, UW, AN, AS, UN, UM","Orthodox Union","The Islamic Food and Nutrition Council of America","2025-08-01 09:35:39","2025-07-10 12:38:13","Tomato Puree (Water, Tomato Paste), Salt, Onion Powder, Garlic Powder, Spices, Soybean Oil, Citric Acid",false]
[110186,"Salsa, Low-sodium, Pouch ","Vegetables","10715001101867","Tomatek","Neil Jones Food Company","The Neil Jones Food Company","TomaTek Tomato Salsa Mild Low Sodium 6 pack 106oz Pouches","Low Sodium Tomato Salsa Mild","Salsa","CHILD_NUTRITION_FOOD_PROGRAMS",125,"GRM","BY_SERVING",null,null,"1/2 cup","READY_TO_EAT",null,null,null,null,null,null,null,null,null,null,null,null,null,18,8,0,35,0,0,2,1,416,2,70,5,0,0,0,"US_FDA_NFP_2020_STANDARD",144,"CASE",true,"FREE_FROM","FREE_FROM","FREE_FROM","FREE_FROM","FREE_FROM","FREE_FROM","FREE_FROM","FREE_FROM","FREE_FROM","AM, AE, AF, AC, AP, AY, UW, AN, AS, UN, UM","Orthodox Union","The Islamic Food and Nutrition Council of America","2025-08-01 09:35:39","2025-07-10 12:37:47","Tomato Puree (Water, Tomato Paste), Tomatoes, Jalapeno Peppers, Vinegar, Corn Syrup, Dehydrated Onion, Salt, Natural Flavors, Spices, Garlic Powder, Green Bell Peppers, Modified Food Starch, Xanthan Gum",false]
[110187,"Tomato Sauce, Low-sodium, Pouch ","Vegetables","10715001101874","Tomatek","Neil Jones Food Company","The Neil Jones Food Company","USDA Low Sodium Tomato Sauce 6 pack 106oz Pouches","Low Sodium Tomato Sauce","Tomato Sauce","CHILD_NUTRITION_FOOD_PROGRAMS",120,"GRM","BY_SERVING",null,null,"1/2 cup","READY_TO_EAT",null,null,null,null,null,null,null,null,null,null,null,null,null,19,9,0,40,0,0,2,1,482,2,100,6,0,0,0,"US_FDA_NFP_2020_STANDARD",150,"CASE","TRUE","FREE_FROM","FREE_FROM","FREE_FROM","FREE_FROM","FREE_FROM","FREE_FROM","FREE_FROM","FREE_FROM","FREE_FROM","AM, AE, AF, AC, AP, AY, UW, AN, AS, UN, UM","Orthodox Union","The Islamic Food and Nutrition Council of America","2025-08-01 09:35:39","2025-07-10 12:38:00","Tomato Puree (Water, Tomato Paste), Salt, Onion Powder, Garlic Powder, Natural Flavors, Spices, Citric Acid",false]
[110208,"Flour, White Whole Wheat/Enriched 60/40 Blend","Grains","00076929012257","SCFM","Stafford County Flour Mills","STAFFORD COUNTY FLOUR MILLS","60% White Whole Wheat, 40% AP Flour","60/40 WWW/AP BLend","60/40 Blend",null,30,"GRM","BY_MEASURE",30,"GRM","1/4 cup","UNPREPARED",null,null,null,null,null,null,null,null,null,null,null,null,null,10,23,0,100,0,0,4,1,84,3,0,1,0,0.5,0,null,375,"BASE_UNIT_OR_EACH",true,null,null,null,null,null,null,null,null,"CONTAINS","UW","Orthodox Union",null,"2024-05-01T10:15:53","2024-04-03T09:09:40","White Whole Wheat Flour, Enriched Bleached Wheat Flour (Wheat Flour, Niacin, Reduced Iron, Thiamine Mononitrate, Riboflavin, Folic Acid), Enzyme For Improved Baking.",false]
[110211,"Flour, White Whole Wheat/Enriched 60/40 Blend","Grains","00076929012059","Stafford County Flour Mills","Stafford County Flour Mills","STAFFORD COUNTY FLOUR MILLS","Stafford County Flour Mills 60% White Whole Wheat - 40% All-Purpose Blend, 5 lb. bag","SCFM 60/40 5","SCFM 60/40 5","CHILD_NUTRITION_FOOD_PROGRAMS",30,"GRM","BY_SERVING",30,"GRM","1/4 cup","UNPREPARED",null,null,null,null,null,null,null,null,null,null,null,null,null,10,23,0,100,0,0,4,1,84,3,0,1,0,0.5,0,"US_FDA_NFP_2020_STANDARD_SIDE_BY_SIDE",{"$f":"75*8","v":600},"BASE_UNIT_OR_EACH",null,"FREE_FROM","FREE_FROM","FREE_FROM","FREE_FROM","FREE_FROM","FREE_FROM","FREE_FROM","FREE_FROM","CONTAINS","AP, AN, AM, AE, AY, UW, AF, AC, AS","Orthodox Union",null,"2024-04-01T08:41:33","2024-03-01T09:50:37","White Whole Wheat Flour, Enriched Bleached Wheat Flour (Wheat Flour, Niacin, Reduced Iron, Thiamine Mononitrate, Riboflavin, Folic Acid), Enzyme For Improved Baking.",false]
[110261,"Beef, Fine Ground, 100%, 85/15, LFTB OPT, Raw, Frozen","Beef","00195893656684","Criss Cross Express of Illinois, LLC","Jancorp, LLC dba Criss Cross Express of IL, LLC","Jancorp, LLC dba Criss Cross Express of IL, LLC",null,"Beef, Fine Ground","Beef - Unprepared/Unprocessed","CHILD_NUTRITION_FOOD_PROGRAMS",112,"GRM","BY_SERVING",112,"GRM","3.95 ounce","UNPREPARED",null,null,null,null,null,null,null,null,null,null,null,null,null,0,0,70,240,7,0,0,1,0,22,65,0,0,17,0,"AB","160","CASE",null,"FREE_FROM","FREE_FROM","FREE_FROM","FREE_FROM","FREE_FROM","FREE_FROM","FREE_FROM","FREE_FROM","FREE_FROM","AE, AM, AP, AS, AY, AN, UW, AC, AF, UM, BM",null,null,"2025-02-03 09:14:02","2025-01-29 12:37:12","Beef - 100%",false]
[110261,"Beef, Fine Ground, 100%, 85/15, LFTB OPT, Raw, Frozen","Beef","00195893253012","Criss Cross Express of Illinois, LLC","Mainstay Distributing, LLC Criss Cross Express of Illinois, LLC","Mainstay Distributing, LLC","Beef, Fine Ground, 100%, 85/15, LFTB OPT, Raw, Frozen","Beef, Fine Ground","Beef - Unprepared/Unprocessed","CHILD_NUTRITION_FOOD_PROGRAMS",112,"GRM","BY_SERVING",112,"GRM","3.95 ounce","UNPREPARED",null,null,null,null,null,null,null,null,null,null,null,null,null,0,0,70,240,7,0,0,1,0,22,65,0,0,17,0,"AB","160","CASE","FALSE","FREE_FROM","FREE_FROM","FREE_FROM","FREE_FROM","FREE_FROM","FREE_FROM","FREE_FROM","FREE_FROM","FREE_FROM","AE, AM, AP, AS, AY, AN, UW, AC, AF, UM, BM",null,null,"2025-04-01 08:31:52","2025-03-05 08:55:08","Beef - 100%",false]
[110322,"Beef, Patties w/SPP, Cooked, 2.0 MMA, Frozen ","Beef","00087427425869","Don Lee Farms","Goodman Food Products Inc.","Goodman Food Products","Fully Cooked Home-Style Beef Patty w/SPP","Fully Cooked Home-Style Beef Patty","Beef Patties","CHILD_NUTRITION_FOOD_PROGRAMS",62,"GRM","BY_SERVING",62,"GRM","2.2 ounce patty","BAKE","Each 2.2 ounce fully cooked home-style beef patty provides 2 ounce equivalent meat/meat alternate",null,null,null,null,null,"https://dam.catalog.1worldsync.com/im/dwn/GCP-6453002265165824",null,null,null,null,null,null,17,1,30,120,3,0,1,1,598,11,210,0,null,8,null,null,"291","CASE","TRUE",null,null,null,null,null,null,"CONTAINS",null,null,"AY",null,null,"2023-06-01T09:03:07","2023-01-12T16:24:30","Ground Beef (Not More Than 20% Fat), Water, Soy Protein Concentrate, (Caramel Color), Seasoning (Salt, Sodium & Potassium Phosphates, Autolyzed Yeast, Potassium Chloride, Caramel Color, Natural Flavors). Contains: Soy.",false]
[110322,"Beef, Patties w/SPP, Cooked, 2.0 MMA, Frozen ","Beef","10810869031926","Mistica Ranch","Mistica Foods LLC","Mistica Foods, LLC","Beef Patty SPP Home style CKD 40lb","Beef Patty SPP Home style CKD 40lb","Beef Patty SPP Home Style CKD",null,62,"GRM","BY_MEASURE",100,"GRM","1 patty (2.2 ounce)","HEAT_AND_SERVE","Each 2.2 ounce fully cooked home-style beef patty provides 2 ounce equivalent meat/meat alternate",null,null,null,null,null,"https://assets.edgenet.com/4bf7192d-38d3-4eea-8b55-10d8262e2ec1 ",null,null,null,null,null,null,19,1.86,31,118,2.79,0.31,1.2,1.3,236,11.16,205,0.62,0,6.82,1,null,73,"CASE",true,null,null,null,null,null,null,"CONTAINS",null,null,"AY",null,null,"2024-12-02 08:27:14","2024-11-14 16:07:00","Ground Beef (Not More Than 15% Fat), Water, Textured Soy Protein (Soy Flour, Caramel Color), Contains Less Than 2 % Of Onion, Modified Food Starch, Salt, Sugar, Xanthan Gum, Calcium Chloride, Garlic Powder, Spice.",true]
[110346,"Beef, Patties, 100%, 90/10, Raw, 2.0 MMA, Frozen","Beef","00079183103464","Cherry Meat Packers","Cherry Meat Packers, Inc.","cherry meat packers, inc.",null,"Beef Patties, 100% 90/10","Beef - Unprepared/Unprocessed","CHILD_NUTRITION_FOOD_PROGRAMS",80,"GRM","BY_MEASURE",80,"GRM","1 patty (3 ounce)","UNPREPARED",null,null,null,null,null,null,null,null,null,null,null,null,null,0,0,50,130,3,0,0,2,null,15,50,0,null,8,null,"NFT",225,"CASE",null,"NOT_INTENTIONALLY_NOR_INHERENTLY_INCLUDED","NOT_INTENTIONALLY_NOR_INHERENTLY_INCLUDED","NOT_INTENTIONALLY_NOR_INHERENTLY_INCLUDED","NOT_INTENTIONALLY_NOR_INHERENTLY_INCLUDED","NOT_INTENTIONALLY_NOR_INHERENTLY_INCLUDED","NOT_INTENTIONALLY_NOR_INHERENTLY_INCLUDED","NOT_INTENTIONALLY_NOR_INHERENTLY_INCLUDED","NOT_INTENTIONALLY_NOR_INHERENTLY_INCLUDED","NOT_INTENTIONALLY_NOR_INHERENTLY_INCLUDED","AE, AF, AM, AP, AS, UN, AY, AN, UW",null,null,"2023-09-01T09:15:44","2023-05-05T11:02:59","Beef",false]
[110349,"Beef, Patties, 100%, 85/15, Raw, 2.0 MMA, Frozen","Beef","00079183103495","Cherry Meat Packers","Cherry Meat Packers, Inc.","cherry meat packers, inc.",null,"Beef Patties, 100% 85/15 Frozen","Beef - Unprepared/Unprocessed","CHILD_NUTRITION_FOOD_PROGRAMS",80,"GRM","BY_SERVING",null,null,"1 patty (3 ounce)","UNPREPARED",null,null,null,null,null,null,null,null,null,null,null,null,null,0,3,45,180,5,0,0,2,null,12,45,0,null,12,null,"NFT",225,"CASE",null,"NOT_INTENTIONALLY_NOR_INHERENTLY_INCLUDED","NOT_INTENTIONALLY_NOR_INHERENTLY_INCLUDED","NOT_INTENTIONALLY_NOR_INHERENTLY_INCLUDED","NOT_INTENTIONALLY_NOR_INHERENTLY_INCLUDED","NOT_INTENTIONALLY_NOR_INHERENTLY_INCLUDED","NOT_INTENTIONALLY_NOR_INHERENTLY_INCLUDED","NOT_INTENTIONALLY_NOR_INHERENTLY_INCLUDED","NOT_INTENTIONALLY_NOR_INHERENTLY_INCLUDED","NOT_INTENTIONALLY_NOR_INHERENTLY_INCLUDED","AE, AF, AM, AP, AS, UN, AY, AN, UW",null,null,"2023-09-01T09:35:02","2023-05-05T11:09:46","Beef",false]
[110349,"Beef, Patties, 100%, 85/15, Raw, 2.0 MMA, Frozen","Beef","90052846160083","Palo Duro Brand","Palo Duro Meat","Palo Duro Meat","BEEF, PATTIES, 85/15, FROZEN","BEEF, PATTIES, 85/15, FROZEN","BEEF","CHILD_NUTRITION_FOOD_PROGRAMS",80,"GRM","BY_CHILD_NUTRITION_SERVING",2,"ONZ","1 patty","UNSPECIFIED",null,null,null,null,null,null,null,null,null,null,null,null,null,null,0,54,172,5,1,0,null,null,15,53,0,null,12,null,null,"229","CASE","TRUE",null,null,null,null,null,null,null,null,null,"X99",null,null,"2022-09-19T05:22:15","2022-05-06T16:47:41","Beef",false]
[110361,"Applesauce, Unsweetened, Cups, Shelf-Stable","Fruit","00042396615321","Food Service","Burnette Foods, Inc.","Burnette Foods, Inc.","FOOD SERVICE 96/4.5 UNSWEETENED APPLESAUCE","FD SVC 96/4.5 UNSW APPLESA","APPLESAUCE",null,126,"GRM","BY_SERVING",126,"GRM","1/2 cup","UNPREPARED",null,null,null,null,null,null,null,null,null,null,null,null,null,5,14,0,50,0,0,1,0,null,0,0,12,0,0,0,null,96,"BASE_UNIT_OR_EACH",true,null,null,null,null,null,null,null,null,null,"X99",null,null,"2025-11-03 08:54:44","2025-10-16 06:22:49","Apples, Water, Ascorbic Acid (To Maintain Color)",false]
[110361,"Applesauce, Unsweetened, Cups, Shelf-Stable","Fruit","00041760091167","Cherry Central Cooperative","Cherry Central","CHERRY CENTRAL","Unsweetened Apple Sauce Cups 96/4.5","Unsweetened Apple Sauce Cups","Apple Sauce","CHILD_NUTRITION_FOOD_PROGRAMS",128,"GRM","BY_SERVING",128,"GRM","4.5 oz cup","READY_TO_EAT",null,null,null,null,null,null,null,null,null,null,null,null,null,5,14,0,50,0,0,1,0,95,0,0,12,0,0,0,null,96,"BASE_UNIT_OR_EACH","TRUE","FREE_FROM","FREE_FROM","FREE_FROM","FREE_FROM","FREE_FROM","FREE_FROM","FREE_FROM","FREE_FROM","FREE_FROM","AM, AP, AS, AY, AN, UW, AC, AE, AF, UM, BM","Orthodox Union",null,"2025-04-01 08:31:52","2025-03-26 11:19:37","Apples, Water, Ascorbic Acid (To Maintain Color)",false]
[110361,"Applesauce, Unsweetened, Cups, Shelf-Stable","Fruit","10604774202119","Peterson Farms","Peterson Farms Fresh, Inc.","Peterson Farms, Inc.","Unsweetened Original Applesauce","Unsweetened Original Applesauce","Unsweetened Original Applesauce",null,128,"GRM","BY_PACKAGE_OR_CONTAINER",4.5,"ONZ","4.5 ounce cup","READY_TO_EAT",null,null,null,null,null,null,null,null,null,null,null,null,null,5,14,0,50,0,0,1,0,95,0,0,12,0,0,0,"US_FDA_NFP_2020_STANDARD","96","CASE",true,"FREE_FROM","FREE_FROM","FREE_FROM","FREE_FROM","FREE_FROM","FREE_FROM","FREE_FROM","FREE_FROM","FREE_FROM","AM, AE, AY, UW, AP, AN, AF, UN, AS",null,null,"2023-11-01T08:45:47","2023-10-16T13:52:00","Apples, Water, Ascorbic Acid (Vitamin C)",false]
[110393,"Pancakes, Whole Grain or Whole Grain-Rich, Frozen","Grains","10786294720165","Echo Lake Foods","Echo Lake Foods","Echo Lake Foods","Whole Wheat Pancakes","Whole Wheat Pancakes","Whole Wheat Pancakes",null,68,"GRM","BY_SERVING",68,"GRM","2.4 ounce (2 each)","PREPARED",null,null,null,null,null,null,null,null,null,null,null,null,null,63,26,5,130,0,0,3,1,111,4,250,6,6,2,0,null,72,"CASE","TRUE","CONTAINS",null,"CONTAINS",null,null,null,null,null,"CONTAINS","AE, AM, UW",null,null,"2023-06-01T09:09:26","2023-05-15T14:43:49","Whole Wheat Flour, Water, Buttermilk, Sugar, Dextrose, Soybean Oil, Baking Powder, Whole Eggs, Salt",false]
[110394,"Tortillas, Whole Grain or Whole Grain-Rich, 8 inch, Frozen","Grains","10729630400284","Catallia","Catallia Mexican Foods","Catallia Mexican Foods  LLC","8″ Pressed 100% Whole Wheat Tortilla","8″ Pressed 100% Whole Wheat Tortill","Tortilla",null,44,"GRM","BY_SERVING",44,"GRM","1 tortilla ","READY_TO_EAT",null,null,null,null,null,null,null,null,null,null,null,null,null,38,18,0,110,1.5,0,3,1,152,3,160,1,1,3,0,null,{"$f":"24*12","v":288},"CASE",true,null,null,null,null,null,null,null,null,"CONTAINS","UW",null,null,"2025-06-02 08:13:46","2025-05-27 13:42:00","Whole Wheat Flour, Water, Vegetable Shortening (Soybean Oil, Fully Hydrogenated Soybean Oil), Contains 2% or less of the Following: Sugar, Salt, Baking Powder (Sodium Bicarbonate, Corn Starch, Sodium Aluminum Sulfate, Calcium Sulfate, Monocalcium Phosphate), Vital Wheat Gluten, Monoglycerides, Potassium Sorbate, Calcium Propionate and/or Sodium Propionate (Preservative), Fumaric Acid, Dough Conditioner (Sodium Metabisulfite, Corn Starch, Microcrystalline Cellulose, Dicalcium Phosphate).",false]
[110396,"Cheese, Mozzarella, Low Moisture Part Skim, String, Chilled","Cheese","00046100007006","Sargento","Sargento Foods Inc.","SARGENTO FOODS INC.","1 oz Sargento Low Moisture Part-Skim Mozzarella String Cheese IW\n(USDA)","1 OZ SRG STR CH IW (USDA)","Cheese Sticks","CHILD_NUTRITION_FOOD_PROGRAMS",28,"GRM","BY_SERVING",28,"GRM","1 piece","READY_TO_EAT",null,null,null,null,null,null,null,null,null,null,null,null,null,210,1,15,90,3,0,0,0.1,50,7,190,0,0,6,0.1,null,360,"BASE_UNIT_OR_EACH",true,"FREE_FROM","FREE_FROM","CONTAINS","FREE_FROM","FREE_FROM","FREE_FROM","FREE_FROM","FREE_FROM","FREE_FROM","AC, AE, AF, AM, AN, AP, AY, UM, UW, AS",null,null,"2025-11-03 08:54:44","2025-10-23 10:15:11","Pasteurized Part-Skim Milk, Cheese Culture, Salt, Enzymes.  Contains: Milk",false]
[110400,"Yogurt, High-Protein, Blueberry, Chilled (K)","Yogurt","00818290010506","Chobani®","Chobani, Inc.","Chobani, Inc.","Chobani® Nonfat Greek Yogurt Blueberry 4oz 24PK","GrkYgrt Blueberry 4oz 24PK","Yogurt","CHILD_NUTRITION_FOOD_PROGRAMS",113,"GRM","BY_SERVING",113,"GRM","4 ounce","PREPARED",null,null,null,null,null,null,null,null,null,null,null,null,null,110,13,5,90,0,0,1,0,140,9,45,12,8,0,0,null,24,"BASE_UNIT_OR_EACH",true,"FREE_FROM","FREE_FROM","CONTAINS","FREE_FROM","FREE_FROM","FREE_FROM","FREE_FROM","FREE_FROM","FREE_FROM","GO, SO, SA, AC, AE, AF, AM, AN, AP, AY, UM, UW, AS","Orthodox Union",null,"2025-01-08 08:30:06","2024-12-27 11:17:01","Cultured Nonfat Milk, Cane Sugar, Water, Blueberry Puree, Fruit Pectin, Fruit And Vegetable Juice Concentrate (For Color), Natural Flavors, Guar Gum, Locust Bean Gum, Lemon Juice Concentrate. Contains Milk. Contains Live And Active Cultures: S. Thermophilus, L. Bulgaricus, L. Acidophilus, Bifidus, L. Casei, And L. Rhamnosus.",false]
[110401,"Yogurt, High-Protein, Strawberry, Chilled (K)","Yogurt","00818290010490","Chobani®","Chobani, Inc.","Chobani, Inc.","Chobani® Nonfat Greek Yogurt Strawberry 4oz 24PK","GrkYgrt Strawberry 4oz 24PK","Yogurt","CHILD_NUTRITION_FOOD_PROGRAMS",113,"GRM","BY_SERVING",113,"GRM","4 ounce","PREPARED",null,null,null,null,null,null,null,null,null,null,null,null,null,110,12,5,90,0,0,1,0,140,9,70,11,8,0,0,null,24,"BASE_UNIT_OR_EACH",true,"FREE_FROM","FREE_FROM","CONTAINS","FREE_FROM","FREE_FROM","FREE_FROM","FREE_FROM","FREE_FROM","FREE_FROM","GO, SO, AC, AE, AF, AM, AN, AP, AY, UM, UW, AS","Orthodox Union",null,"2025-01-08 08:30:06","2024-12-27 11:17:01","Cultured Nonfat Milk, Cane Sugar, Strawberries, Water, Natural Flavors, Fruit Pectin, Guar Gum, Locust Bean Gum, Fruit And Vegetable Juice Concentrate (For Color), Lemon Juice Concentrate. Contains Milk. Contains Live And Active Cultures: S. Thermophilus, L. Bulgaricus, L. Acidophilus,bifidus, L. Casei And L. Rhamnosus.",false]
[110402,"Yogurt, High-Protein, Vanilla, Chilled (K)","Yogurt","00818290010513","Chobani®","Chobani, Inc.","Chobani, Inc.","Chobani® Nonfat Greek Yogurt Vanilla 4oz 24PK","GrkYgrt Vanilla 4oz 24PK","Yogurt","CHILD_NUTRITION_FOOD_PROGRAMS",113,"GRM","BY_SERVING",113,"GRM","4 ounce","PREPARED",null,null,null,null,null,null,null,null,null,null,null,null,null,110,11,5,80,0,0,0,0,150,9,40,11,7,0,0,null,24,"BASE_UNIT_OR_EACH",true,"FREE_FROM","FREE_FROM","CONTAINS","FREE_FROM","FREE_FROM","FREE_FROM","FREE_FROM","FREE_FROM","FREE_FROM","GO, SO, SA, AC, AE, AF, AM, AN, AP, AY, UM, UW, AS","Orthodox Union",null,"2025-01-08 08:30:06","2024-12-27 11:17:01","Cultured Nonfat Milk, Cane Sugar, Water, Fruit Pectin, Natural Flavors, Guar Gum, Locust Bean Gum, Vanilla Extract, Lemon Juice Concentrate. Contains Milk. Contains Live And Active Cultures: S. Thermophilus, L. Bulgaricus, L. Acidophilus, Bifidus, L. Casei And L. Rhamnosus.",false]
[110425,"Spinach, Chopped, No Salt Added, Frozen (IQF)","Vegetables","10041443140028","Margaret Holmes","McCall Farms, Inc.","McCall Farms  Inc","Spinach chopped 3/8”  IQF","Spinach chopped 3/8”  IQF","Spinach chopped 3/8”  IQF","CHILD_NUTRITION_FOOD_PROGRAMS",113,"GRM","BY_MEASURE",113,"GRM","1/2 cup","UNPREPARED",null,null,null,null,null,null,null,null,null,null,null,null,null,136,4,0,31,0,0,3,4,372,4,74,1,0,1,0,"NFT",90,"CASE",null,"FREE_FROM","FREE_FROM","FREE_FROM","FREE_FROM","FREE_FROM","FREE_FROM","FREE_FROM","FREE_FROM","FREE_FROM","AS, UW, AC, AE, AF, AY, AM, AN, AP",null,null,"2025-04-01 08:31:52","2025-03-13 11:51:40","Spinach",false]
[110462,"Chicken, Unseasoned Grilled Strips, Cooked, Frozen","Poultry","10715001104622","Koch Foods - USDA","Koch Foods Inc","Koch Foods Inc","USDA Fully Cooked Boneless, Skinless Chicken Meat Chicken Strips (random) IF packed in 6/5 pound sealed and printed bags.","Bnles Skinless Chicken Meat Strips","Strips","FOOD_SERVICE",84,"GRM","BY_MEASURE",84,"GRM","3 ounce","UNPREPARED","A 2.00 ounce serving of fully cooked grilled chicken strips credits as 1.5 ounce equivalent meat/meat alternate",null,null,null,null,null,null,null,null,null,null,null,"https://dam.catalog.1worldsync.com/im/dwn/GCP-6207487692767232",5.17,0,65,100,1,0,0,0.36,282.47000000000003,17,140,0,null,4.1399999999999997,7.0000000000000007E-2,null,{"$f":"27*6","v":162},"CASE",true,null,null,null,null,null,null,null,null,null,null,null,null,"2025-06-02 08:13:46","2025-05-08 13:02:54","Chicken Meat, Water, Potassium Phosphates",true]
[110462,"Chicken, Unseasoned Grilled Strips, Cooked, Frozen","Poultry","10072562110807","Simmons","Simmons Foods Inc.","SIMMONS FOODS INC.","FULLY COOKED GRILLED MOSTLY WHITE MEAT CHICKEN STRIPS","Fully Cooked Frozen Chicken Strips","FULLY COOKED GRILLED MOSTLY WHITE M","CHILD_NUTRITION_FOOD_PROGRAMS",84,"GRM","BY_MEASURE",100,"GRM","3 ounce","PREPARED","A 3.00 ounce serving of fully cooked grilled mostly white meat chicken strips credits as 1.75 ounces equivalent meat/meat alternate",null,null,null,null,null,null,null,null,null,null,null,"https://dam.catalog.1worldsync.com/im/dwn/GCP-4893839115419648",8.4,0,50.4,92.4,0.42,0,0,0.58799999999999997,386.4,19.32,168,0,0,1.68,4,null,160,"CASE",true,"FREE_FROM","FREE_FROM","FREE_FROM","FREE_FROM","FREE_FROM","FREE_FROM","FREE_FROM","FREE_FROM","FREE_FROM","AS, AF, AE, AC, AY, AN, UW, AP, AM",null,null,"2024-03-01T10:35:31","2024-02-16T09:53:29","Mostly White Meat Chicken, Water, Contains 2% or less of: Carrageenan, Dextrose, Vinegar, Modified Food Starch, Sodium Phosphates.",true]
[110473,"Broccoli Florets, No Salt Added, Frozen","Vegetables","00086289207866","Cebro Frozen Foods","Inn Foods, Inc.","Inn Foods, Inc.","Vegetable","Broccoli","Broccoli Florets",null,85,"GRM","BY_SERVING",85,"GRM","1 cup","HEAT_AND_SERVE",null,null,null,null,null,null,null,null,null,null,null,null,null,30,5,0,25,0,0,3,0.6,210,3,15,1,0,0,0,null,160,"BASE_UNIT_OR_EACH","TRUE","FREE_FROM","FREE_FROM","FREE_FROM","FREE_FROM","FREE_FROM","FREE_FROM","FREE_FROM","FREE_FROM","FREE_FROM","AM, AE, AF, AC, AN, AP, UW, AY, AS",null,null,"2025-06-02 08:13:46","2025-05-15 10:27:00","Broccoli",false]
[110473,"Broccoli Florets, No Salt Added, Frozen","Vegetables","00086289217865","PNW Norpac","Inn Foods, Inc.","Inn Foods, Inc.","Vegetable","Broccoli","Vegetable",null,85,"GRM","BY_SERVING",85,"GRM","1 cup ","HEAT_AND_SERVE",null,null,null,null,null,null,null,null,null,null,null,null,null,40,4,0,25,0,0,2,0.7,280,3,25,1,0,0,0,null,160,"BASE_UNIT_OR_EACH",true,"FREE_FROM","FREE_FROM","FREE_FROM","FREE_FROM","FREE_FROM","FREE_FROM","FREE_FROM","FREE_FROM","FREE_FROM","AM, AE, AF, UN, AN, AP, UW, AY, AS",null,null,"2025-09-02 08:43:50","2025-08-20 15:12:00","Broccoli",false]
[110473,"Broccoli Florets, No Salt Added, Frozen","Vegetables","00086289227864","Michigan Freeze Pack","Inn Foods, Inc.","Inn Foods, Inc.","Vegetable","Broccoli","Broccoli Florets",null,85,"GRM","BY_SERVING",85,"GRM","1 cup ","HEAT_AND_SERVE",null,null,null,null,null,null,null,null,null,null,null,null,null,30,5,0,25,0,0,3,0.6,200,3,15,1,0,0,0,null,160,"BASE_UNIT_OR_EACH",true,"FREE_FROM","FREE_FROM","FREE_FROM","FREE_FROM","FREE_FROM","FREE_FROM","FREE_FROM","FREE_FROM","FREE_FROM","AM, AE, AF, UN, AN, AP, UW, AY, AS",null,null,"2025-08-01 09:35:39","2025-07-25 10:27:00","Broccoli",false]
[110480,"Carrots, Diced, No Salt Added, Frozen","Vegetables","40028800295721","Hanover","Hanover Foods Corp","Hanover Foods Corp","Diced Carrots","USDA Diced Carrots","Diced Carrots","CHILD_NUTRITION_FOOD_PROGRAMS",85,"GRM","BY_SERVING",2000,"E14","1/2 cup","STEAM",null,null,null,null,null,null,null,null,null,null,null,null,null,30,7,0,30,0,0,3,0.4,200,1,60,4,0,0,0,null,160,"CASE",true,"FREE_FROM","FREE_FROM","FREE_FROM","FREE_FROM","FREE_FROM","FREE_FROM","FREE_FROM","FREE_FROM","FREE_FROM","AS, UW, AC, AE, AF, AY, AM, AN, AP, UN, UM, BM",null,null,"2024-08-01 08:29:06","2024-07-18 11:43:52","Carrots",false]
[110480,"Carrots, Diced, No Salt Added, Frozen","Vegetables","00086289201284","PNW/Quincy","Inn Foods, Inc.","Inn Foods, Inc.","Vegetable","Carrots","Vegetable",null,85,"GRM","BY_SERVING",85,"GRM","2/3 cup ","HEAT_AND_SERVE",null,null,null,null,null,null,null,null,null,null,null,null,null,20,8,0,35,0,0,3,0,200,1,40,4,0,0,0,null,160,"BASE_UNIT_OR_EACH","TRUE","FREE_FROM","FREE_FROM","FREE_FROM","FREE_FROM","FREE_FROM","FREE_FROM","FREE_FROM","FREE_FROM","FREE_FROM","AM, AE, AF, AC, AN, AP, UW, AY, AS",null,null,"2025-06-02 08:13:46","2025-05-15 11:07:00","Carrots",false]
[110480,"Carrots, Diced, No Salt Added, Frozen","Vegetables","00086289221282","OPC/Arbre","Inn Foods, Inc.","Inn Foods, Inc.","Vegetable","Carrots","Vegetable",null,85,"GRM","BY_SERVING",85,"GRM","2/3 cup ","HEAT_AND_SERVE",null,null,null,null,null,null,null,null,null,null,null,null,null,20,8,0,30,0,0,2,0.4,270,0,65,5,0,0,0,null,160,"BASE_UNIT_OR_EACH",true,"FREE_FROM","FREE_FROM","FREE_FROM","FREE_FROM","FREE_FROM","FREE_FROM","FREE_FROM","FREE_FROM","FREE_FROM","AM, AE, AF, UN, AN, AP, UW, AY, AS",null,null,"2025-06-02 08:13:46","2025-05-15 11:12:00","Carrots",false]
[110480,"Carrots, Diced, No Salt Added, Frozen","Vegetables","00086289211283","Michigan Freeze Pack","Inn Foods, Inc.","Inn Foods, Inc.","Vegetable","Carrots","Vegetable",null,85,"GRM","BY_SERVING",85,"GRM","2/3 cup ","HEAT_AND_SERVE",null,null,null,null,null,null,null,null,null,null,null,null,null,31,7,0,30,0,0,3,0.4,200,0,60,4,0,0,0,null,160,"BASE_UNIT_OR_EACH",true,"FREE_FROM","FREE_FROM","FREE_FROM","FREE_FROM","FREE_FROM","FREE_FROM","FREE_FROM","FREE_FROM","FREE_FROM","AM, AE, AF, UN, AN, AP, UW, AY, AS",null,null,"2025-06-02 08:13:46","2025-05-15 10:57:00","Carrots",false]
[110480,"Carrots, Diced, No Salt Added, Frozen","Vegetables","00086289231281","Nortera","Inn Foods, Inc.","Inn Foods, Inc.","Vegetable","Carrots","Vegetable",null,85,"GRM","BY_SERVING",85,"GRM","2/3 cup ","HEAT_AND_SERVE",null,null,null,null,null,null,null,null,null,null,null,null,null,20,8,0,30,0,0,2,0.4,270,0,65,5,0,0,0,null,160,"BASE_UNIT_OR_EACH",true,"FREE_FROM","FREE_FROM","FREE_FROM","FREE_FROM","FREE_FROM","FREE_FROM","FREE_FROM","FREE_FROM","FREE_FROM","AE, AM, AF, UN, AN, AP, UW, AY, AS",null,null,"2025-06-02 08:13:46","2025-05-15 10:52:00","Carrots",false]
[110480,"Carrots, Diced, No Salt Added, Frozen","Vegetables","00086289241280","Twin City Foods","Inn Foods, Inc.","Inn Foods, Inc.","Vegetable","Carrots","Vegetable",null,85,"GRM","BY_SERVING",85,"GRM","2/3 cup ","HEAT_AND_SERVE",null,null,null,null,null,null,null,null,null,null,null,null,null,20,8,0,30,0,0,2,0.4,270,0,65,5,0,0,0,null,160,"BASE_UNIT_OR_EACH",true,"FREE_FROM","FREE_FROM","FREE_FROM","FREE_FROM","FREE_FROM","FREE_FROM","FREE_FROM","FREE_FROM","FREE_FROM","AM, AE, AF, UN, UW, AN, AP, AY, AS",null,null,"2025-06-02 08:13:46","2025-05-15 10:42:00","Carrots",false]
[110501,"Pasta, Macaroni, Whole Grain-Rich Blend","Grains","10070753090754","ZEREGA","A. Zerega's Sons, Inc.","A. Zerega's Sons, Inc.","WHOLE GRAIN ELBOW","WHOLE GRAIN ELBOW","PASTA",null,56,"GRM","BY_SERVING",56,"GRM","2 ounce","UNPREPARED",null,null,null,null,null,null,null,null,null,null,null,null,null,0,41,0,210,0,0,3,10,null,8,0,2,null,1,0,null,160,"CASE",null,"MAY_CONTAIN","FREE_FROM","FREE_FROM","FREE_FROM","FREE_FROM","FREE_FROM","FREE_FROM","FREE_FROM","CONTAINS","AM, AE, AF, AC, AN, AP, AY, UW, AS",null,null,"2024-06-03 08:45:45","2024-05-28 10:12:00","Whole Durum Flour (Wheat), Semolina (Wheat), Oat Fiber, Niacin, Iron (Ferrous Sulfate), Thiamin Mononitrate, Riboflavin and Folic Acid",false]
[110501,"Pasta, Macaroni, Whole Grain-Rich Blend","Grains","10070753090709","PATRIA","A. Zerega's Sons, Inc.","A. Zerega's Sons, Inc.","long cut noodle","WG Elbows Patria","DRY PASTA",null,56,"GRM","BY_SERVING",56,"GRM","2 ounce","UNPREPARED",null,null,null,null,null,null,null,null,null,null,null,null,null,0,41,0,210,0,0,3,10,348,8,0,2,0,1,0,null,160,"CASE",null,"MAY_CONTAIN","FREE_FROM","FREE_FROM","FREE_FROM","FREE_FROM","FREE_FROM","FREE_FROM","FREE_FROM","CONTAINS","AM, AE, AF, AC, AN, AP, AY, AU, UW, AS, BM, NM",null,null,"2024-04-01T10:24:17","2024-03-28T10:12:00","Whole Durum Wheat Flour, Enriched Durum Flour, Niacin, Iron, Thiamin Mononitrate, Riboflavin, Folic Acid",false]
[110501,"Pasta, Macaroni, Whole Grain-Rich Blend","Grains","00047325907591","Heartland","Bay Valley Foods","Bay Valley Foods","WHOLE WHEAT ELBOW MACARONI","WHOLE WHEAT ELBOW MACARONI","DRY PASTA","CHILD_NUTRITION_FOOD_PROGRAMS",56,"GRM","BY_SERVING",56,"GRM","2 ounce dry","UNPREPARED",null,null,null,null,null,null,null,null,null,null,null,null,null,0,41,0,200,0,0,5,2,260,7,0,2,0,1.5,0,"US_FDA_NFP_2020_STANDARD",160,"BASE_UNIT_OR_EACH",null,"MAY_CONTAIN","FREE_FROM","FREE_FROM","FREE_FROM","FREE_FROM","FREE_FROM","FREE_FROM","FREE_FROM","CONTAINS","AM, AP, AS, AY, AN, UW, AC, AE, AF","Orthodox Union (OU)",null,"2023-12-01T08:42:25","2023-04-13T07:14:20","Whole Durum Wheat Flour",false]
[110504,"Pasta, Rotini, Whole Grain-Rich Blend","Grains","10070753081240","COLUMBIA","A. Zerega's Sons, Inc.","A. Zerega's Sons, Inc.","Whole Grain Blend Rotini Mac","Whole Grain Blend Rotini Mac","DRY PASTA",null,56,"GRM","BY_SERVING",55,"GRM","2 ounce","UNPREPARED",null,null,null,null,null,null,null,null,null,null,null,null,null,0,40,0,200,0,0,3,10,null,7,0,2,null,1,0,null,160,"CASE",null,"FREE_FROM","FREE_FROM","FREE_FROM","FREE_FROM","FREE_FROM","FREE_FROM","FREE_FROM","FREE_FROM","CONTAINS","AM, AE, AF, AC, AN, AP, AY, AU, UW, AS, BM, NM","Orthodox Union (OU)",null,"2025-07-07 08:22:08","2025-06-06 13:07:00","Whole Durum Wheat Flour, Enriched Durum Flour, Niacin, Iron, Thiamin Mononitrate, Riboflavin, Folic Acid",false]
[110504,"Pasta, Rotini, Whole Grain-Rich Blend","Grains","20047325902828","Heartland","Bay Valley Foods","Bay Valley Foods","WHOLE WHEAT ROTINI","WHOLE WHEAT ROTINI","DRY PASTA","CHILD_NUTRITION_FOOD_PROGRAMS",56,"GRM","BY_SERVING",56,"GRM","1 cup dry","UNPREPARED",null,null,null,null,null,null,null,null,null,null,null,null,null,0,41,0,200,0,0,5,10,260,7,0,2,0,1.5,0,"US_FDA_NFP_2020_STANDARD",160,"CASE",null,"MAY_CONTAIN","FREE_FROM","FREE_FROM","FREE_FROM","FREE_FROM","FREE_FROM","FREE_FROM","FREE_FROM","CONTAINS","AM, AP, AS, AY, AN, UW, AC, AE, AF, UN",null,null,"2023-12-01T08:22:32","2023-10-10T07:55:16","Whole Durum Wheat Flour",false]
[110506,"Pasta, Spaghetti, Whole Grain-Rich Blend","Grains","10070753280308","COLUMBIA","A Zerega's Sons, Inc.","A. Zerega's Sons, Inc.","COLUMBIA WHOLE GRAIN SPAGHETTI - 10\" - 2/10","COL WHOLE GRAIN","PASTA",null,56,"GRM","BY_SERVING",56,"GRM","2 ounce","UNPREPARED",null,null,null,null,null,null,null,null,null,null,null,null,null,0,41,0,210,0,0,3,10,null,8,0,2,null,1,0,null,160,"CASE",null,"MAY_CONTAIN","FREE_FROM","FREE_FROM","FREE_FROM","FREE_FROM","FREE_FROM","FREE_FROM","FREE_FROM","CONTAINS","AM, AE, AF, AC, AN, AP, AY, UW, AS",null,null,"2024-06-03 08:45:45","2024-05-28 10:12:00","Whole Durum Wheat Flour, Semolina (Wheat), Niacin, Iron (Ferrous Sulfate), Thiamin Mononitrate",false]
[110506,"Pasta, Spaghetti, Whole Grain-Rich Blend","Grains","00047325902831","Heartland","Bay Valley Foods","Bay Valley Foods","WHOLE WHEAT THIN SPAGHETTI","WHOLE WHEAT THIN SPAGHETTI","DRY PASTA","CHILD_NUTRITION_FOOD_PROGRAMS",56,"GRM","BY_SERVING",56,"GRM","2 ounce dry","UNPREPARED",null,null,null,null,null,null,null,null,null,null,null,null,null,0,41,0,200,0,0,5,2,260,7,0,2,0,1.5,0,"US_FDA_NFP_2020_STANDARD",160,"BASE_UNIT_OR_EACH",null,"MAY_CONTAIN","FREE_FROM","FREE_FROM","FREE_FROM","FREE_FROM","FREE_FROM","FREE_FROM","FREE_FROM","CONTAINS","AM, AP, AS, AY, AN, UW, AC, AE, AF","Orthodox Union (OU)",null,"2023-12-01T08:57:45","2023-04-13T07:29:41","Whole Durum Wheat Flour",false]
[110520,"Pasta, Penne, Whole Grain-Rich Blend","Grains","10070753081547","ZEREGA","A. Zerega's Sons, Inc.","A. Zerega's Sons, Inc.","WHOLE GRAIN PENNE RIGATE","WG PENNE RIGATE","PASTA",null,56,"GRM","BY_SERVING",56,"GRM","2 ounce","UNPREPARED",null,null,null,null,null,null,null,null,null,null,null,null,null,0,41,0,200,0,0,1,10,null,7,0,2,null,1,0,null,160,"CASE",null,"MAY_CONTAIN","FREE_FROM","FREE_FROM","FREE_FROM","FREE_FROM","FREE_FROM","FREE_FROM","FREE_FROM","CONTAINS","AM, AE, AF, AC, AN, AP, AY, AU, UW, AS",null,null,"2024-06-03 08:45:45","2024-05-28 09:22:00","Whole Durum Flour (Wheat), Semolina (Wheat), Niacin, Iron (Ferrous Sulfate), Thiamin Mononitrate, Riboflavin and Folic Acid",false]
[110541,"Applesauce, Unsweetened, Canned (K)","Fruit","00024000249757","Del Monte","Del Monte","DEL MONTE","Del Monte® Unsweetened Applesauce, 106 oz. Can","DM UNSW APPLESAUCE 106OZ","APPLESAUCE",null,124,"GRM","BY_SERVING",124,"GRM","1/2 cup","READY_TO_EAT",null,null,null,null,null,null,null,null,null,null,null,null,null,4,16,0,70,0,0,1,1,124,0,5,13,0,0,0,"US_FDA_NFP_2020_STANDARD",144,"BASE_UNIT_OR_EACH",null,"FREE_FROM","FREE_FROM","FREE_FROM","FREE_FROM","NOT_INTENTIONALLY_NOR_INHERENTLY_INCLUDED","NOT_INTENTIONALLY_NOR_INHERENTLY_INCLUDED","FREE_FROM","FREE_FROM","FREE_FROM","AC, AE, AF, AM, AN, AP, AS, AU, AY, BM, UM, UN, UW","Triangle K",null,"2024-11-01 08:56:02","2024-10-21 15:06:54","Apples, Water",false]
[110541,"Applesauce, Unsweetened, Canned (K)","Fruit","10028500618256","Lucky Leaf","Knouse Foods Cooperative Inc.","KNOUSE FOODS COOPERATIVE INC.","LUCKY LEAF Unsweetened Apple Sauce - 6 106 Oz cans","LL UNSW APPLE SAUCE","APPLE SAUCE","CHILD_NUTRITION_FOOD_PROGRAMS, FOOD_SERVICE, GROCERY",122,"GRM","BY_SERVING",null,null,"1/2 cup","UNPREPARED",null,null,null,null,null,null,null,null,null,null,null,null,null,5,13,0,50,0,0,1,0,110,0,10,11,0,0,0,null,144,"CASE",null,"FREE_FROM","FREE_FROM","FREE_FROM","FREE_FROM","FREE_FROM","FREE_FROM","FREE_FROM","FREE_FROM","FREE_FROM","AS, UW, AC, AE, AF, AY, AM, AN, AP","Orthodox Union",null,"2022-09-19T05:28:03","2022-03-07T13:03:39","Apples, Water, Ascorbic Acid (Vitamin C) To Maintain Color",false]
[110541,"Applesauce, Unsweetened, Canned (K)","Fruit","00073934150769","Mission Pride","Pacific Coast Producers","Pacific Coast Producers","Unsweetened Applesauce 6-10","Mission P Unsweetened Applesauce","Mission Pride Unsweetened Applesauc","CHILD_NUTRITION_FOOD_PROGRAMS",135,"GRM","BY_SERVING",135,"GRM","1/2 cup","READY_TO_EAT",null,null,null,null,null,null,null,null,null,null,null,null,null,5,15,0,60,0,0,1,0,100,0,0,13,0,0,0,null,{"$f":"22*6","v":132},"BASE_UNIT_OR_EACH",null,"FREE_FROM","FREE_FROM","FREE_FROM","FREE_FROM","FREE_FROM","FREE_FROM","FREE_FROM","FREE_FROM","FREE_FROM","AS, UW, AC, AE, AF, AY, UN, AM, AN, AP","Orthodox Union",null,"2023-08-01T13:32:55","2023-08-18T18:46:51","Apples, Water",false]
[110562,"Sweet Potatoes, Cubes, No Salt Added, Frozen","Vegetables","10086289201649","Trinity Frozen Foods ","Inn Foods, Inc.","Inn Foods, Inc.","Vegetable","Sweet Potato Cubes","Vegetable",null,88,"GRM","BY_SERVING",88,"GRM","1/2 cup","HEAT_AND_SERVE",null,null,null,null,null,null,null,null,null,null,null,null,null,30,21,0,88,0,0,2,0.5,320,2,7,8,0,0,0,null,{"$f":"25*6","v":150},"CASE","TRUE","FREE_FROM","FREE_FROM","FREE_FROM","FREE_FROM","FREE_FROM","FREE_FROM","FREE_FROM","FREE_FROM","FREE_FROM","AM, AE, AF, AC, AN, AP, UW, AY, AS",null,null,"2025-08-01 09:35:39","2025-07-25 11:27:00","Sweet Potatoes",false]
[110562,"Sweet Potatoes, Cubes, No Salt Added, Frozen","Vegetables","10041443142398","Margaret Holmes","McCall Farms, Inc.","McCall Farms  Inc","IQF Cut Yams","6/5 Sweet Potato Chunk","6/5 Sweet Potato Chunk",null,100,"GRM","BY_SERVING",100,"GRM","1/2 cup","UNPREPARED",null,null,null,null,null,null,null,null,null,null,null,null,null,27,18,0,80,0,0,3,1,230,1,25,6,0,0,0,null,136,"CASE",null,"FREE_FROM","FREE_FROM","FREE_FROM","FREE_FROM","FREE_FROM","FREE_FROM","FREE_FROM","FREE_FROM","FREE_FROM","UW, AC, AE, AF, AY, AM, AN, AP, AS",null,null,"2025-05-05 08:25:11","2025-04-15 12:33:48","Cut Yams",false]
[110623,"Blueberries, Unsweetened, Frozen ","Fruit","00086289107708","Scenic Fruit ","Inn Foods, Inc.","Inn Foods, Inc.","Fruit","Blueberries","Fruit",null,140,"GRM","BY_SERVING",140,"GRM","1 cup","THAW",null,null,null,null,null,null,null,null,null,null,null,null,null,10,17,0,70,0,0,4,0.3,80,1,0,12,0,1,0,null,{"$f":"8*12","v":96},"BASE_UNIT_OR_EACH",true,"FREE_FROM","FREE_FROM","FREE_FROM","FREE_FROM","FREE_FROM","FREE_FROM","FREE_FROM","FREE_FROM","FREE_FROM","AM, AE, AF, AC, AN, AP, UW, AY, AS",null,null,"2025-06-02 08:13:46","2025-05-15 09:57:00","Blueberries",false]
[110623,"Blueberries, Unsweetened, Frozen ","Fruit","00086289117707","Oregon Potato Company ","Inn Foods, Inc.","Inn Foods, Inc.","Fruit","Blueberries","Fruit",null,126,"GRM","BY_SERVING",126,"GRM","2/3 cup ","THAW",null,null,null,null,null,null,null,null,null,null,null,null,null,10,15,0,60,0,0,3,0,70,1,0,11,0,1,0,null,{"$f":"16*12","v":192},"BASE_UNIT_OR_EACH",true,"FREE_FROM","FREE_FROM","FREE_FROM","FREE_FROM","FREE_FROM","FREE_FROM","FREE_FROM","FREE_FROM","FREE_FROM","AM, AE, AF, UN, AN, AP, UW, AY, AS",null,null,"2025-05-05 08:25:11","2025-04-01 14:57:00","Blueberries",false]
[110623,"Blueberries, Unsweetened, Frozen ","Fruit","00086289127706","Trinity Frozen Foods ","Inn Foods, Inc.","Inn Foods, Inc.","Fruit","Blueberries","Fruit",null,70,"GRM","BY_SERVING",70,"GRM","1/2 cup ","THAW",null,null,null,null,null,null,null,null,null,null,null,null,null,10,9,0,35,0,0,2,0.1,40,0,0,6,0,0,0,null,{"$f":"16*12","v":192},"BASE_UNIT_OR_EACH",true,"FREE_FROM","FREE_FROM","FREE_FROM","FREE_FROM","FREE_FROM","FREE_FROM","FREE_FROM","FREE_FROM","FREE_FROM","AM, AE, AN, AP, UN, AF, UW, AY, AS",null,null,"2025-03-03 08:37:38","2025-02-26 10:02:00","Blueberries",false]
[110623,"Blueberries, Unsweetened, Frozen ","Fruit","10715001106237","Cardinal Foods","Wescott Agri Products  Inc.","Wescott Agri Products  Inc.","Frozen Unsweetened, Highbush Blueberries","Highbush blueberries, frzn12/2.5 lb",null,"CHILD_NUTRITION_FOOD_PROGRAMS",78,"GRM","BY_MEASURE",100,"GRM","1/2 cup","UNPREPARED",null,null,null,null,null,null,null,null,null,null,null,null,null,6,9.49,0,40,0.04,0,2.1,0.14000000000000001,42,0.33,1,6.59,0,0.5,0,null,{"$f":"15*12","v":180},"BASE_UNIT_OR_EACH",true,"FREE_FROM","FREE_FROM","FREE_FROM","FREE_FROM","FREE_FROM","FREE_FROM","FREE_FROM","FREE_FROM","FREE_FROM","AM, AE, AF, AC, AS, AY, AN, AP, UW","Chabad Center of Raleigh",null,"2024-06-03 08:45:45","2024-03-14 11:49:48","Blueberries",true]
[110624,"Blueberries, Unsweetened, Frozen ","Fruit","10086289107644","Scenic Fruit ","Inn Foods, Inc.","Inn Foods, Inc.","Fruit","Blueberries","Fruit",null,140,"GRM","BY_SERVING",140,"GRM","1 cup ","THAW",null,null,null,null,null,null,null,null,null,null,null,null,null,10,17,0,70,0,0,4,0.3,80,1,0,12,0,1,0,null,97,"BASE_UNIT_OR_EACH","TRUE","FREE_FROM","FREE_FROM","FREE_FROM","FREE_FROM","FREE_FROM","FREE_FROM","FREE_FROM","FREE_FROM","FREE_FROM","AM, AE, AF, AC, AN, AP, UW, AY, AS",null,null,"2025-06-02 08:13:46","2025-05-15 09:57:00","Blueberries",false]
[110624,"Blueberries, Unsweetened, Frozen ","Fruit","10715001106244","Cardinal Foods","Wescott Agri Products  Inc.","Wescott Agri Products  Inc.","Frozen Unsweetened Highbush Blueberries","Highbush blueberries, frzn 30lb","Fruit - Unprepared/Unprocessed (Fro","CHILD_NUTRITION_FOOD_PROGRAMS",78,"GRM","BY_MEASURE",100,"GRM","1/2 cup","THAW",null,null,null,null,null,null,null,null,null,null,null,null,null,6,9.49,0,40,0.04,0,2.1,0.14000000000000001,42,0.33,1,6.59,0,0.5,0,null,172,"CASE",true,"FREE_FROM","FREE_FROM","FREE_FROM","FREE_FROM","FREE_FROM","FREE_FROM","FREE_FROM","FREE_FROM","FREE_FROM","AM, AE, AF, AC, AN, AS, AP, AY, UW","Chabad Center of Raleigh",null,"2024-04-01T09:25:48","2024-03-14T13:37:29","Blueberries",true]
[110651,"Orange Juice, Unsweetened, Cups, Frozen","Fruit","00774840701013","SUNCUP","Gregory Packaging","Gregory Packaging, Inc.","Material Code 110651","100% Orange Juice plastic cup","USDA Foods 100% Frozen Orange Juice",null,"118 milliliters","MLT","BY_PACKAGE_OR_CONTAINER",4,"ONZ","4 ounce container","THAW",null,null,null,null,null,null,null,null,null,null,null,null,null,0,14,0,60,0,0,0,0,240,0,0,12,0,0,0,null,96,"CASE",true,null,null,null,null,null,null,null,null,null,null,null,null,"2023-06-01T09:09:00","2023-02-02T07:37:00","Water, Orange Juice Concentrate",false]
[110711,"Beef, Patties, Cooked, 2.0 MMA, Frozen","Beef","10642205009296","Cargill Unbranded","Cargill Incorporated/Honeysuckle White","Cargill Incorporated/Honeysuckle White","Fully Cooked Ground Beef Patties, 2.2 oz., K12","FZ Ckd CN Bf Pty 2.2oz","Beef IQF Patties","CHILD_NUTRITION_FOOD_PROGRAMS",62,"GRM","BY_SERVING",2.2000000000000002,"ONZ","1 patty (2.2 ounce)","PREPARED","Each 2.2 ounce fully cooked homestyle beef patty credits as 2 ounce equivalent meat/meat alternate ",97200,"MEAT_OR_MEAT_ALTERNATIVE","2.20 ONZ","2.00 ONZ","Each 2.20 oz. fully cooked homestyle beef patty provides 2.00 oz. equivalent meat for the child nutrition meal patter requirements.","https://images.salsify.com/image/upload/s--I7TtvDtB--/w_1000,h_1000,c_fit,dn_300/tm1ocpzdxkzhqrpavwcw.jpg","2028-06-12T00:00:00",null,null,null,null,null,0,0,45,120,2.5,1,0,null,null,13,150,0,null,7,null,"NFT",290,"CASE","TRUE","FREE_FROM","FREE_FROM","FREE_FROM","FREE_FROM","FREE_FROM","FREE_FROM","FREE_FROM","FREE_FROM","FREE_FROM","AC, AE, AF, AM, AN, AP, AS, AY, BM, UW",null,null,"2025-04-01 08:31:52","2025-03-13 13:11:46","Ground Beef (Not More Than 15% Fat), Water, Contains Less Than 2% Encapsulated Salt [Salt, Hydrogenated Vegetable Oil (Contains One or More of the Following: Soybean Oil, Palm Oil, Cottonseed Oil, Coconut Oil)], Potassium Phosphate, Dextrose, Caramelized Sugar, Natural Flavor.",false]
[110711,"Beef, Patties, Cooked, 2.0 MMA, Frozen","Beef","00087427431556","Don Lee Farms","Goodman Food Products Inc.","Goodman Food Products","Fully Cooked Home-Style Beef Patty  #110711","Fully Cooked Home-Style Beef Patty","Beef Patties","CHILD_NUTRITION_FOOD_PROGRAMS",62.4,"GRM","BY_CHILD_NUTRITION_SERVING",62.4,"GRM","2.2 ounce patty","BAKE","Each 2.2 ounce fully cooked home-style beef patty provides 2.0 ounce equivalent meat",null,null,null,null,null,"https://dam.catalog.1worldsync.com/im/dwn/GCP-6182508211208192",null,null,null,null,null,null,0,0,40,120,3,0,0,1.2,null,12,200,0,null,7,null,null,"291","CASE","TRUE",null,null,null,null,null,null,null,null,null,"X99",null,null,"2023-06-01T09:13:53","2022-11-11T14:54:48","Ground Beef (Not More Than 20% Fat), Seasoning (2% Or Less Of Salt, Sodium & Potassium Phosphates, Autolyzed Yeast, Potassium Chloride, Caramel Color, Natural Flavors)",false]
[110711,"Beef, Patties, Cooked, 2.0 MMA, Frozen","Beef","10810869031919","Mistica Ranch","Mistica Foods LLC","Mistica Foods, LLC","Beef Patty CKD FRZ 2.0 40lb","Beef Patty CKD FRZ 2.0 MMA 40lb","Beef Patty CKD FRZ 2.0 40lb",null,62,"GRM","BY_SERVING",62,"GRM","1 patty (2.2 ounce)","HEAT_AND_SERVE","Each 2.20 ounce serving of fully cooked beef patty provides 2.00 ounce equivalent meat",null,null,null,null,null,"https://assets.edgenet.com/d9655e49-2a3a-499e-85bf-f01e2038aa51",null,null,null,null,null,null,17.02,0.53100000000000003,40,130,3,0,5.3999999999999999E-2,1.2,180,11,210,0.155,3.0000000000000001E-3,8,4.3999999999999997E-2,null,291,"CASE",true,null,null,null,null,null,null,null,null,null,null,null,null,"2025-06-02 08:13:46","2025-05-07 07:52:00","Ground Beef (Not More Than 15% Fat), Water, Contains Less Than 2% Of  Salt, Yeast Extract, Natural Flavors, Sodium Phosphates, Lemon Juice Concentrate, Sodium Carbonate, Caramel Color, Dextrose",false]
[110721,"Sweet Potatoes, Crinkle Cut Fries, Low-Sodium, Frozen","Vegetables","10086289201656","Trinity Frozen Foods ","Inn Foods, Inc.","Inn Foods, Inc.","Vegetable","Sweet Potato Crinkle Cut Fries","Vegetable",null,85,"GRM","BY_SERVING",85,"GRM","1 cup ","HEAT_AND_SERVE",null,null,null,null,null,null,null,null,null,null,null,null,null,19,19,0,130,1,0,4,0.4,350,2,100,7,0,5,0,null,{"$f":"26*6","v":156},"CASE","TRUE","FREE_FROM","FREE_FROM","FREE_FROM","FREE_FROM","FREE_FROM","FREE_FROM","FREE_FROM","FREE_FROM","FREE_FROM","AM, AE, AF, AC, AN, AP, UW, AY, AS",null,null,"2025-09-02 08:43:50","2025-08-20 15:27:00","Sweet Potatoes 90%, Vegetable Oil 6% (Sunflower, Canola or Soybean)*, Batter 4% (Modified Food Starch, Rice Flour, Corn Starch, Salt, Dextrin, Contains less than two percent of Leavening (Sodium Acid Pyrophosphate, Sodium Bicarbonate), Xanthan Gum, Extractive of Paprika (color)) * The oil(s) (sunflower, canola or soybean) used in this food is highly refined to remove proteins that cause allergic reactions. Highly refined oils are exempt as a major food allergen per FDA FALCPA, thus allowing the Allergen-Free Certification & Labeling.",false]
[110723,"Cranberries, Dried, Individual Portion","Fruit","00715001107237","Fig Garden Packing, Inc.","Fig Garden Packing Inc.","Fig Garden Packing Inc.","Dried Cranberries 1.16oz Bag","Dried Cranberries 1.16oz Bag","Dried Fruits","CHILD_NUTRITION_FOOD_PROGRAMS",32.9,"GRM","BY_MEASURE",32.9,"GRM","1 bag","READY_TO_EAT",null,null,null,null,null,null,null,null,null,null,null,null,null,4,27,0,110,0,0,2,0,17,0,0,23,22,0,0,null,300,"BASE_UNIT_OR_EACH",null,null,null,null,null,null,null,null,null,null,"X99",null,null,"2022-09-19T05:47:26","2022-01-04T14:10:39","Dried Cranberries, Sugar, Sunflower Oil",true]
[110723,"Cranberries, Dried, Individual Portion","Fruit","00858023005317","Sun Valley Raisins, Inc.","Sun Valley Raisins, Inc.","Sun Valley Raisins, Inc.","1.16oz SWEETENED DRIED CRANBERRIES","1.16oz SWEETENED DRIED CRANBERRIES","Fruit - Prepared/Processed (Shelf S","CHILD_NUTRITION_FOOD_PROGRAMS",33,"GRM","BY_MEASURE",100,"GRM","1.16 ounce box","READY_TO_EAT",null,null,null,null,null,null,null,null,null,null,null,null,null,4.95,27.72,0,115.83,0,0,1.98,9.9000000000000005E-2,20.79,0,3.63,22.11,21.78,0,0.15,null,{"$f":"1*(300)","v":300},"BASE_UNIT_OR_EACH",true,null,null,null,null,null,null,null,null,null,null,null,null,"2024-03-01T09:15:13","2024-02-29T16:57:43","Cranberries, Sugar, Sunflower Oil",true]
[110723,"Cranberries, Dried, Individual Portion","Fruit","00716245000124","Victor","Victor Packing, Inc.","Victor Packing, Inc.","Dried Cranberries","Dried Cranberries","Dried Cranberries","CHILD_NUTRITION_FOOD_PROGRAMS",32.9,"GRM","BY_SERVING",32.9,"GRM","1 package","READY_TO_EAT",null,null,null,null,null,null,null,null,null,null,null,null,null,0,27,0,110,0,0,2,0,0,0,0,24,22,0,0,null,300,"BASE_UNIT_OR_EACH",true,null,null,null,null,null,null,null,null,null,"AU",null,null,"2025-06-02 08:13:46","2025-05-20 13:11:24","Dried Cranberries, Sugar, Sunflower Oil",false]
[110724,"Pepper/Onion Strips, No Salt Added, Frozen","Vegetables","00086289281736","Dickinson Frozen Foods","Inn Foods","Inn Foods, Inc.","Vegetable","Pepper & Onion Blend","Vegetable",null,100,"GRM","BY_SERVING",100,"GRM","7/8 cup","HEAT_AND_SERVE",null,null,null,null,null,null,null,null,null,null,null,null,null,12,7,0,30,0,0,1,0,135,1,0,3,0,0,0,null,160,"BASE_UNIT_OR_EACH","TRUE","FREE_FROM","FREE_FROM","FREE_FROM","FREE_FROM","FREE_FROM","FREE_FROM","FREE_FROM","FREE_FROM","FREE_FROM","AM, AE, AF, AC, AN, AP, UW, AY, AS",null,null,"2025-08-01 09:35:39","2025-07-25 11:12:00","Onions, Green Peppers, Red Peppers",false]
[110730,"Pork, Pulled, Cooked, Frozen","Pork","00087427436858","Don Lee Farms","Goodman Food Products Inc.","Goodman Food Products","FULLY COOKED PULLED PORK #110730","FULLY COOKED PULLED PORK #110730","FULLY COOKED PULLED PORK #110730","CHILD_NUTRITION_FOOD_PROGRAMS",96.955399999999997,"GRM","BY_SERVING",96.955399999999997,"GRM","3.42 ounce","HEAT_AND_SERVE",null,null,null,null,null,null,null,null,null,null,null,null,null,6,1,55,150,3.5,0,0,2,398,18,320,1,1,8.6999999999999993,0,null,186,"CASE",null,"FREE_FROM","FREE_FROM","FREE_FROM","FREE_FROM","FREE_FROM","FREE_FROM","FREE_FROM","FREE_FROM","FREE_FROM","UW, AE, AY, AM, AF, AC, UN, AP, AS, AN",null,null,"2023-12-01T08:48:16","2023-11-02T12:40:02","Pork, Water, and Less Than 2% Each of Salt, Sugar, Natural Flavors, Sodium and Potassium Phosphates.",false]
[110730,"Pork, Pulled, Cooked, Frozen","Pork","00077052307623","Rose Packing","Rose Packing Company","Rose Packing Company, Inc.","USDA Fully Cooked Pulled Pork Eight Vacuum Packages x 5# Packages 40# Box Frozen CN","PULLED PORK, FULLY COOKED FROZEN CN","Fully Cooked Pulled Pork",null,84,"GRM","BY_SERVING",84,"GRM","3 ounce","UNPREPARED","Each 3 ounce serving of fully cooked shredded pork provides 1.75 ounce equivalent meat",null,null,null,null,null,"https://assets.edgenet.com/3915fb07-7c8a-42a8-aad8-7e471853afcc ",null,null,null,null,null,null,null,0,50,120,2.5,0,null,null,null,14,350,0,null,7,null,"US_USDA_NFP_STANDARD",213,"CASE",null,"FREE_FROM","FREE_FROM","FREE_FROM","FREE_FROM","FREE_FROM","FREE_FROM","CONTAINS","FREE_FROM","CONTAINS","AC, AE, AF, AM, AN, AP, AS, AY, BM, UW",null,null,"2023-07-05T13:43:52","2023-06-30T09:27:00","Pork Shoulder Picnic (Practically Free Of Fat), Water, Contains 2% or Less of: Salt, Sugar, Sodium Phosphate.",false]
[110763,"Peas, Green, No Salt Added, Frozen ","Vegetables","40028800290528","Hanover","Hanover Foods Corp","Hanover Foods Corp","A very popular mainstay, these high-quality peas are picked at their peak and quickly frozen to bring you the freshest taste possible.  This special vegetable has a wide variety of users on the plate, salad bar or as a garnish.","Sweet Peas","Sweet Peas","CHILD_NUTRITION_FOOD_PROGRAMS",85,"GRM","BY_SERVING",85,"GRM","2/3 cup","STEAM",null,null,null,null,null,null,null,null,null,null,null,null,null,20,12,0,70,0,0,4,1.3,130,4,90,4,0,0,0,null,156,"CASE","TRUE","NOT_INTENTIONALLY_NOR_INHERENTLY_INCLUDED","NOT_INTENTIONALLY_NOR_INHERENTLY_INCLUDED","NOT_INTENTIONALLY_NOR_INHERENTLY_INCLUDED","NOT_INTENTIONALLY_NOR_INHERENTLY_INCLUDED","NOT_INTENTIONALLY_NOR_INHERENTLY_INCLUDED","NOT_INTENTIONALLY_NOR_INHERENTLY_INCLUDED","NOT_INTENTIONALLY_NOR_INHERENTLY_INCLUDED","NOT_INTENTIONALLY_NOR_INHERENTLY_INCLUDED","NOT_INTENTIONALLY_NOR_INHERENTLY_INCLUDED","AS, UW, AC, AE, AF, AY, AM, AN, AP, UN, BM, UM","Orthodox Union",null,"2023-06-01T09:10:47","2023-05-08T09:34:51","Green Peas",false]
[110763,"Peas, Green, No Salt Added, Frozen ","Vegetables","10086289131458","Nortera","Inn Foods, Inc.","Inn Foods, Inc.","Vegetable","Green Peas","Vegetable",null,87,"GRM","BY_SERVING",87,"GRM","2/3 cup ","HEAT_AND_SERVE",null,null,null,null,null,null,null,null,null,null,null,null,null,19,12,0,70,0,0,4,1,133,5,95,4,0,0,0,null,{"$f":"13*12","v":156},"BASE_UNIT_OR_EACH",true,"FREE_FROM","FREE_FROM","FREE_FROM","FREE_FROM","FREE_FROM","FREE_FROM","FREE_FROM","FREE_FROM","FREE_FROM","AE, AM, AF, UN, AN, AP, AY, AS, UW",null,null,"2025-08-01 09:35:39","2025-07-25 10:47:00","Peas",false]
[110763,"Peas, Green, No Salt Added, Frozen ","Vegetables","10086289141457","Twin City Foods","Inn Foods, Inc. ","Inn Foods, Inc.","Vegetable","Green Peas","Vegetable",null,87,"GRM","BY_SERVING",87,"GRM","2/3 cup","HEAT_AND_SERVE",null,null,null,null,null,null,null,null,null,null,null,null,null,19,12,0,70,0,0,4,1,133,6,95,4,0,0,0,null,{"$f":"13*12","v":156},"BASE_UNIT_OR_EACH",true,"FREE_FROM","FREE_FROM","FREE_FROM","FREE_FROM","FREE_FROM","FREE_FROM","FREE_FROM","FREE_FROM","FREE_FROM","AM, AE, AF, UN, AN, AP, UW, AY, AS",null,null,"2025-05-05 08:25:11","2025-04-18 13:47:00","Peas",false]
[110763,"Peas, Green, No Salt Added, Frozen ","Vegetables","10086289111450","Lamb Weston","Inn Foods, Inc.","Inn Foods, Inc.","Vegetable","Green Peas","Vegetable",null,97,"GRM","BY_SERVING",97,"GRM","2/3 cup ","HEAT_AND_SERVE",null,null,null,null,null,null,null,null,null,null,null,null,null,21,13,0,70,0,0,4,1.48,150,5,10,5,0,0,0,null,{"$f":"11*12","v":132},"BASE_UNIT_OR_EACH",true,"FREE_FROM","FREE_FROM","FREE_FROM","FREE_FROM","FREE_FROM","FREE_FROM","FREE_FROM","FREE_FROM","FREE_FROM","AM, AE, AF, UN, AN, AP, AS, AY, UW",null,null,"2025-08-01 09:35:39","2025-07-08 10:27:00","Peas",false]
[110763,"Peas, Green, No Salt Added, Frozen ","Vegetables","10086289151456","Lakeside Foods/Smith Frozen Foods","Inn Foods, Inc.","Inn Foods, Inc.","Vegetable","Green Peas","Vegetable",null,85,"GRM","BY_SERVING",85,"GRM","2/3 cup","HEAT_AND_SERVE",null,null,null,null,null,null,null,null,null,null,null,null,null,19,12,0,70,0,0,4,1,130,4,90,4,0,0,0,null,{"$f":"13*12","v":156},"BASE_UNIT_OR_EACH",true,"FREE_FROM","FREE_FROM","FREE_FROM","FREE_FROM","FREE_FROM","FREE_FROM","FREE_FROM","FREE_FROM","FREE_FROM","AM, AE, AF, UN, AN, AP, UW, AS, AY",null,null,"2025-04-01 08:31:52","2025-03-28 13:12:00","Peas",false]
[110763,"Peas, Green, No Salt Added, Frozen ","Vegetables","10086289101451","OPC/Arbre","Inn Foods, Inc.","Inn Foods, Inc.","Vegetable","Green Peas","Vegetable",null,89,"GRM","BY_SERVING",89,"GRM","2/3 cup ","HEAT_AND_SERVE",null,null,null,null,null,null,null,null,null,null,null,null,null,22,13,0,70,0,0,5,1,217,5,0,5,0,0,0,null,{"$f":"12*12","v":144},"BASE_UNIT_OR_EACH","TRUE","FREE_FROM","FREE_FROM","FREE_FROM","FREE_FROM","FREE_FROM","FREE_FROM","FREE_FROM","FREE_FROM","FREE_FROM","AM, AE, AF, AC, AN, AP, UW, AY, AS",null,null,"2025-06-02 08:13:46","2025-05-15 10:37:00","Green Peas",false]
[110763,"Peas, Green, No Salt Added, Frozen ","Vegetables","10086289121459","PNW/Quincy","Inn Foods, Inc.","Inn Foods, Inc.","Vegetable","Green Peas","Vegetable",null,89,"GRM","BY_SERVING",89,"GRM","2/3 cup ","HEAT_AND_SERVE",null,null,null,null,null,null,null,null,null,null,null,null,null,22,13,0,70,0,0,5,1,217,5,0,5,0,0,0,null,{"$f":"12*12","v":144},"BASE_UNIT_OR_EACH",true,"FREE_FROM","FREE_FROM","FREE_FROM","FREE_FROM","FREE_FROM","FREE_FROM","FREE_FROM","FREE_FROM","FREE_FROM","AM, AE, AF, UN, AN, AP, AY, AS, UW",null,null,"2025-06-02 08:13:46","2025-05-15 10:17:00","Peas",false]
[110763,"Peas, Green, No Salt Added, Frozen ","Vegetables","00033828306030","Lakeside Foods Inc.","Lakeside Foods Inc.","Lakeside Foods Inc.","LAKESIDE GRN PEA","GREEN PEAS","40F LAKESIDE GRN PEA","CHILD_NUTRITION_FOOD_PROGRAMS",89,"GRM","BY_SERVING",89,"GRM","2/3 cup","UNPREPARED",null,null,null,null,null,null,null,null,null,null,null,null,null,0,12,0,70,0,0,4,1.1000000000000001,0,4,0,4,0,0,0,null,{"$f":"13*12","v":156},"BASE_UNIT_OR_EACH",null,"FREE_FROM","FREE_FROM","FREE_FROM","FREE_FROM","FREE_FROM","FREE_FROM","FREE_FROM","FREE_FROM","FREE_FROM","AN, AF, AC, AE, UW, AY, AS, AP, AM, UN, UM",null,null,"2025-03-03 08:37:38","2025-02-11 07:05:41","Green Peas",false]
[110844,"Potatoes, Diced, No Salt Added, Frozen","Vegetables","00086289211634","Michigan Freeze Pack","Inn Foods","Inn Foods, Inc.","Vegetable","Diced Potatoes","Vegetable",null,100,"GRM","BY_SERVING",100,"GRM","7/8 cup","HEAT_AND_SERVE",null,null,null,null,null,null,null,null,null,null,null,null,null,10,17,0,82,0,0,1,0.8,285,2,22,0,0,0,0,null,{"$f":"26*6","v":156},"BASE_UNIT_OR_EACH",true,"FREE_FROM","FREE_FROM","FREE_FROM","FREE_FROM","FREE_FROM","FREE_FROM","FREE_FROM","FREE_FROM","FREE_FROM","AM, AE, AF, UN, AN, UW, AS, AY, AP",null,null,"2025-08-01 09:35:39","2025-07-25 11:12:00","Potatoes",false]
[110845,"Eggs, Liquid Whole, Frozen ","Egg products","10794063522704","Deb El","Deb El Food Products, LLC","Deb El Food Products, LLC","Frozen Whole Eggs with Citric Acid 15/2 lb.","Frozen Whole Eggs w C/A (USDA)","Frozen Whole Eggs with Citric Acid",null,47,"GRM","BY_SERVING",47,"GRM","3 Tablespoon","UNPREPARED",null,null,null,null,null,null,null,null,null,null,null,null,null,29,0,175,70,1.5,0,0,0.81,135,6,65,0,0,7.5,1.22,"US_FDA_NFP_2020_STANDARD",{"$f":"19*12","v":228},"CASE",null,"CONTAINS","FREE_FROM","FREE_FROM","FREE_FROM","FREE_FROM","FREE_FROM","FREE_FROM","FREE_FROM","FREE_FROM","AC, AE, AF, AM, AN, AP, AS, AY, UW","Orthodox Union",null,"2024-04-01T10:14:02","2024-03-14T13:02:00","Whole Eggs, Citric Acid, 0.15 % Water Added as a Carrier for Citric Acid. Citric Acid Added as a Preservative.",false]
[110845,"Eggs, Liquid Whole, Frozen ","Egg products","00664194000033","Sonstegard Foods","Sonstegard Foods Company","Sonstegard Foods Company","Sonstegard Foods Frozen Goodies Pasteurized Whole Egg with Citric Acid 2 lb","Frozen Goodies Whole Egg 2 lb","Eggs","CHILD_NUTRITION_FOOD_PROGRAMS",50,"GRM","BY_MEASURE",50,"GRM","3 Tablespoon","THAW",null,null,null,null,null,null,null,null,null,null,null,null,null,0,1,215,70,1.5,null,0,0,null,6,65,0,null,4.5,null,null,219,"BASE_UNIT_OR_EACH","TRUE","DERIVED_FROM",null,null,null,null,null,null,null,null,"AE",null,null,"2022-09-19T05:32:23","2022-09-13T14:53:59","Whole Egg, Citric Acid, Water",false]
[110846,"Strawberries, Whole, Unsweetened, Frozen (IQF)","Fruit","10086289208648","Anacapa Foods","Inn Foods, Inc.","Inn Foods, Inc.","Fruit","Whole Strawberries","Fruit",null,70,"GRM","BY_SERVING",70,"GRM","1/2 cup","THAW",null,null,null,null,null,null,null,null,null,null,null,null,null,10,6,0,25,0,0,1,0.5,100,0.3,1.4,3,0,0,0,null,{"$f":"32*6","v":192},"BASE_UNIT_OR_EACH","TRUE","FREE_FROM","FREE_FROM","FREE_FROM","FREE_FROM","FREE_FROM","FREE_FROM","FREE_FROM","FREE_FROM","FREE_FROM","AM, AE, AF, AC, AN, AP, UW, AY, AS",null,null,"2025-01-08 08:30:06","2024-12-19 12:07:00","Strawberries",false]
[110846,"Strawberries, Whole, Unsweetened, Frozen (IQF)","Fruit","10086289238645","Willamette Valley Fruit ","Inn Foods, Inc.","Inn Foods, Inc.","Fruit","Whole Strawberries","Fruit",null,70,"GRM","BY_SERVING",70,"GRM","1/2 cup ","THAW",null,null,null,null,null,null,null,null,null,null,null,null,null,10,6,0,25,0,0,1,0.5,100,0,0,3,0,0,0,null,{"$f":"32*6","v":192},"BASE_UNIT_OR_EACH",true,"FREE_FROM","FREE_FROM","FREE_FROM","FREE_FROM","FREE_FROM","FREE_FROM","FREE_FROM","FREE_FROM","FREE_FROM","AE, AM, AF, UN, AN, AP, UW, AY, AS",null,null,"2025-03-03 08:37:38","2025-02-26 10:37:00","Strawberries",false]
[110846,"Strawberries, Whole, Unsweetened, Frozen (IQF)","Fruit","10086289228646","Titan Frozen Foods","Inn Foods, Inc.","Inn Foods, Inc.","Fruit","Whole Strawberries","Fruit",null,70,"GRM","BY_SERVING",70,"GRM","1/2 cup ","THAW",null,null,null,null,null,null,null,null,null,null,null,null,null,10,6,0,25,0,0,1,0.5,100,0,0,3,0,0,0,null,{"$f":"32*6","v":192},"BASE_UNIT_OR_EACH",true,"FREE_FROM","FREE_FROM","FREE_FROM","FREE_FROM","FREE_FROM","FREE_FROM","FREE_FROM","FREE_FROM","FREE_FROM","AM, AE, AF, UN, AN, AP, UW, AY, AS",null,null,"2025-02-03 09:14:02","2025-01-13 15:37:00","Strawberries",false]
[110851,"Alaska Pollock, Whole Grain-Rich Breaded Sticks, Frozen","Fish","10035493893201","High Liner Foodservice","High Liner Foods","High Liner Foods (USA) Incorporated","40 Lb (18.14 kg) Alaska Pollock, Oven Ready (Breaded) Fish Sticks, Frozen, CN","HL 8/5lb APol OR Brd StkCNUSDA","Seafood",null,112,"GRM","BY_SERVING",112,"GRM","4 sticks (4 ounce)","UNPREPARED","Four 1.0 ounce oven ready breaded fish sticks provide 2.0 ounce equivalent meat and 1.50 ounce equivalent grains",null,null,null,null,null,"https://assets.edgenet.com/88e69b21-a4c7-4c7f-bfa4-7862199628a0 ",null,null,null,null,null,null,20,23,45,230,1.5,0,2,1.5,320,16,220,1,1,9,1.3,"US_FDA_NFP_2020_STANDARD",160,"CASE",true,"FREE_FROM","CONTAINS","CONTAINS","FREE_FROM","FREE_FROM","FREE_FROM","FREE_FROM","FREE_FROM","CONTAINS","AC, AE, AF, AM, AN, AP, AY, UW, AS",null,null,"2025-08-01 09:35:39","2025-07-25 10:32:00","64.2% Alaska Pollock, 35.8% Batter And Breading: Whole Wheat Flour, Enriched Wheat Flour (Flour, Niacin, Reduced Iron, Thiamine Mononitrate, Riboflavin, Folic Acid), Enriched Wheat Flour (Flour, Niacin, Ferrous Sulfate, Thiamine Mononitrate, Riboflavin, Folic Acid), Whole Yellow Corn Meal, Modified Corn Starch, Water, Yellow Corn Flour, Sugar, Salt, Yeast, Whey, Autolyzed Yeast Extract, Leavening (Sodium Bicarbonate, Monocalcium Phosphate), Modified Cellulose, Paprika Extract (Color), Annatto Extract (Color), Turmeric Extract (Color), Dried Onion. Par-fried In Canola Oil, Cottonseed Oil, And/or Soybean Oil. \nContains: Pollock (Fish), Wheat, Milk",false]
[110851,"Alaska Pollock, Whole Grain-Rich Breaded Sticks, Frozen","Fish","10028029250890","Trident Seafoods","Trident Seafoods Corp.","Trident Seafoods Corp.","ONCE FROZEN GENUINE ALASKA POLLOCK. NSLP COMPLIANT WHOLE GRAIN BREADING. USDA COMMODITY APPROVED OPTIONS.","TR CN ULTIMATE FISH STICK  USDA","BREADED FISH STICKS","CHILD_NUTRITION_FOOD_PROGRAMS",113,"GRM","BY_SERVING",113,"GRM","4 pieces (4 ounces)","UNPREPARED","A 4 ounce serving of Alaska Pollock fish sticks contains 2.6 ounces of Alaska Pollock and credits as 2 ounces equivalent meat/meat alternate",null,null,null,null,null,null,null,null,null,null,null,"https://assets.edgenet.com/1b33c782-77e3-4c29-8947-129cc95ac000 ",20,20,45,220,1,0,2,5.2,320,16,320,0,0,9,0.1,"US_FDA_NFP_2020_STANDARD","161","CASE","TRUE","FREE_FROM","CONTAINS","FREE_FROM","FREE_FROM","FREE_FROM","FREE_FROM","FREE_FROM","FREE_FROM","CONTAINS","AC, AE, AF, AM, AN, AP, AS, AU, AW, AY, BC, BM, NL, NM, UM, UN, UW",null,null,"2024-03-01T09:42:11","2024-02-29T11:22:00","65% Fish (Alaska Pollock), 35% Batter & Breading (Whole Wheat Flour, Vegetable Oil [soybean and/or Canola]. Enriched Wheat Flour [wheat Flour, Niacin, Iron, Reduced Iron, Thiamine Mononitrate. Riboflavin, Folic Acid), Water, Whole Grain Yellow Corn Flour, Contains 2% or Less of: Enriched Rice Flour (Rice Flour, Niacin, Reduced Iron, Thiamine Mononitrate, Riboflavin, Folic Acid), Rice Flour, Whole Grain Yellow Corn Meal, Salt, Palm Oil, Dehydrated Onion, Wheat Gluten, Tomato Powder, Dehydrated Garlic, Yeast, Tapioca Starch, Sugar, Autolyzed Yeast, Dehydrated Red Bell Pepper, Malted Barley Flour, Leavening {cream of Tartar, Baking Soda), Spices, Corn Starch, Dehydrated Green Bell Pepper, Yeast Extract",false]
[110854,"Peanut Butter, Individual Portion, Smooth","Nuts and seeds","00088252101072","Algood","Algood Food Company","Algood Food Company","Creamy Peanut Butter","Peanut Butter Smooth","Creamy Peanut Butter","CHILD_NUTRITION_FOOD_PROGRAMS",31,"GRM","BY_SERVING",31,"GRM","1.1 oz container","READY_TO_EAT",null,null,null,null,null,null,null,null,null,null,null,null,null,18,8,0,180,2.5,0,2,0.4,179,7,125,3,2,15,0,"NFT",120,"BASE_UNIT_OR_EACH","TRUE",null,null,null,"CONTAINS",null,null,null,null,null,"AP",null,null,"2022-10-31T09:31:39","2022-10-04T13:55:29","Peanuts, Sugar, Contains 2% or Less of: Fully Hydrogenated Vegetable Oils (Cottonseed, Soybean, Rapeseed), Dextrose, Salt, Molasses, and Monoglycerides",false]
[110854,"Peanut Butter, Individual Portion, Smooth","Nuts and seeds","00852118008580","MeWe","Edesia","Edesia","Single-serve squeeze pack","MeWe","Ready-to-eat peanut butter","CHILD_NUTRITION_FOOD_PROGRAMS",31.2,"GRM","BY_MEASURE",31.2,"GRM","1.1 ounce packet","READY_TO_EAT",null,null,null,null,null,null,null,null,null,null,null,null,null,1.4E-2,4,0,200,3.5,0,2,0.5,200,7,125,3,2,16,0,null,"120","CASE","TRUE","FREE_FROM","FREE_FROM","NOT_INTENTIONALLY_NOR_INHERENTLY_INCLUDED","CONTAINS","FREE_FROM","FREE_FROM","NOT_INTENTIONALLY_NOR_INHERENTLY_INCLUDED","FREE_FROM","FREE_FROM","AM, AP, AS, AY, AN, UW, AC, AE, AF, UM, BM",null,null,"2022-10-31T09:33:05","2022-10-21T09:07:10","Peanuts, Sugar, Hydrogenated Vegetable Oil (Cottonseed, Rapeseed and/or Soybean), Salt",true]
[110857,"Flour, 100% White Whole Wheat","Grains","00076929001053","Hudson Cream Flour","Stafford County Flour Mills","STAFFORD COUNTY FLOUR MILLS","Hudson Cream White Whole Wheat Flour, Fine Ground, 5 lb bag","HC WWW 5 lb","HDCM WW 5","CHILD_NUTRITION_FOOD_PROGRAMS",30,"GRM","BY_SERVING",30,"GRM","1/4 cup","UNPREPARED",null,null,null,null,null,null,null,null,null,null,null,null,null,12,22,0,110,0,0,4,1,111,4,0,1,0,0.5,0,"US_FDA_NFP_2020_STANDARD_SIDE_BY_SIDE",{"$f":"75*8","v":600},"BASE_UNIT_OR_EACH",null,"FREE_FROM","FREE_FROM","FREE_FROM","FREE_FROM","FREE_FROM","FREE_FROM","FREE_FROM","FREE_FROM","CONTAINS","AP, AN, AM, AE, AY, UW, AF, AC, AS","Orthodox Union",null,"2025-03-03 08:37:38","2025-02-10 14:26:36","100% Hard White Whole Wheat",false]
[110859,"Mixed Berries (Blueberries, Strawberries), Cups, Frozen","Fruit","10817134020449","Tickled Berries","Palmetto Processing Solutions","Palmetto Processing Solutions","Mixed Berry","Mixed Berry","Mixed Berry","CHILD_NUTRITION_FOOD_PROGRAMS",113.4,"GRM","BY_SERVING",133.4,"GRM","4 ounce cup","THAW",null,null,null,null,null,null,null,null,null,null,null,null,null,14,16,0,70,0,0,2,0,107,0,5,13,7,0,49,"NFT","96","CASE","TRUE","FREE_FROM","FREE_FROM","FREE_FROM","FREE_FROM","FREE_FROM","FREE_FROM","FREE_FROM","FREE_FROM","FREE_FROM","AM, AP, AS, AY, AN, UW, AC, AE, AF, UM, BM",null,null,"2023-05-02T10:30:53","2023-04-17T14:05:43","Blueberries, Strawberries, Sugar",false]
[110859,"Mixed Berries (Blueberries, Strawberries), Cups, Frozen","Fruit","00071262990033","Tabatchnick","Tabatchnick Fine Foods","Tabatchnick Fine Foods","Tabatchnick Berry Blast fruit cup","Berry Blast fruit cup","Fruit cup","CHILD_NUTRITION_FOOD_PROGRAMS",113,"GRM","BY_SERVING",113,"GRM","4 ounce cup","PREPARED",null,null,null,null,null,null,null,null,null,null,null,null,null,0,16,0,70,0,0,2,0,0,0,0,15,15,0,0,"NFT",96,"CASE",true,"FREE_FROM","FREE_FROM","FREE_FROM","FREE_FROM","FREE_FROM","FREE_FROM","FREE_FROM","FREE_FROM","FREE_FROM","AM, AS, AP, AY, AN, UW, AC, AE, AF, UM, BM",null,null,"2025-07-07 08:22:08","2025-06-13 11:18:01","Blueberries, Strawberries, Extra Light Syrup*(Water & Sugar)",false]
[110859,"Mixed Berries (Blueberries, Strawberries), Cups, Frozen","Fruit","10034742055803","Wawona Frozen Foods","Wawona Frozen Foods","Wawona Frozen Foods","Wawona Frozen Foods Mixed Berry  Fruit cups Singles 96/4oz","MxdBerryFruit Single Cups 96/4.5oz","Frozen Fruit","CHILD_NUTRITION_FOOD_PROGRAMS",113,"GRM","BY_SERVING",null,null,"4.5 ounce cup","THAW",null,null,null,null,null,null,null,null,null,null,null,null,null,22,19,0,70,0,0,3,0,95,1,0,15,9,0,0,null,"96","CASE","TRUE","FREE_FROM","FREE_FROM","FREE_FROM","FREE_FROM","FREE_FROM","FREE_FROM","FREE_FROM","FREE_FROM","FREE_FROM","AM, AP, AS, AY, AN, UW, AC, AE, AF, UM, BM",null,null,"2022-09-19T05:36:16","2022-05-18T18:55:25","Strawberries, Blueberries, Sugar",false]
[110860,"Strawberries, Sliced, Unsweetened, Frozen (IQF)","Fruit","10086289208631","Sure Fresh Produce, Inc. ","Inn Foods, Inc.","Inn Foods, Inc.","Fruit","Sliced Strawberries","Fruit",null,70,"GRM","BY_SERVING",70,"GRM","1/2 cup","THAW",null,null,null,null,null,null,null,null,null,null,null,null,null,10,6,0,25,0,0,1,0.5,100,0.3,0,3,0,0,0,null,{"$f":"32*6","v":192},"BASE_UNIT_OR_EACH","TRUE","FREE_FROM","FREE_FROM","FREE_FROM","FREE_FROM","FREE_FROM","FREE_FROM","FREE_FROM","FREE_FROM","FREE_FROM","AM, AE, AF, AC, AN, AP, UW, AY, AS",null,null,"2025-01-08 08:30:06","2024-12-19 12:07:00","Strawberries",false]
[110860,"Strawberries, Sliced, Unsweetened, Frozen (IQF)","Fruit","10086289218630","Titan Frozen Foods","Inn Foods, Inc.","Inn Foods, Inc.","Fruit","Sliced Strawberries","Fruit",null,70,"GRM","BY_SERVING",70,"GRM","1/2 cup ","THAW",null,null,null,null,null,null,null,null,null,null,null,null,null,10,6,0,25,0,0,1,0.5,100,0,0,3,0,0,0,null,{"$f":"32*6","v":192},"BASE_UNIT_OR_EACH",true,"FREE_FROM","FREE_FROM","FREE_FROM","FREE_FROM","FREE_FROM","FREE_FROM","FREE_FROM","FREE_FROM","FREE_FROM","AM, AE, AF, UN, AN, AP, UW, AY, AS",null,null,"2025-02-03 09:14:02","2025-01-13 15:37:00","Strawberries",false]
[110860,"Strawberries, Sliced, Unsweetened, Frozen (IQF)","Fruit","10086289238638","Willamette Valley Fruit ","Inn Foods, Inc.","Inn Foods, Inc.","Fruit","Sliced Strawberries","Fruit",null,70,"GRM","BY_SERVING",70,"GRM","1/2 cup","THAW",null,null,null,null,null,null,null,null,null,null,null,null,null,10,6,0,25,0,0,1,0.5,100,0,0,3,0,0,0,null,{"$f":"32*6","v":192},"BASE_UNIT_OR_EACH",true,"FREE_FROM","FREE_FROM","FREE_FROM","FREE_FROM","FREE_FROM","FREE_FROM","FREE_FROM","FREE_FROM","FREE_FROM","AM, AE, AF, UN, AN, AP, UW, AY, AS",null,null,"2025-03-03 08:37:38","2025-02-26 10:42:00","Stawberries",false]
[110872,"Cherries, Sweet, Pitted, Unsweetened, Frozen (IQF)","Fruit","10086289107804","Leeanau Fruit","Inn Foods, Inc.","Inn Foods, Inc.","Cherries, Sweet, Pitted, Unsweetened, Frozen","Cherries","Fruit",null,70,"GRM","BY_SERVING",70,"GRM","1/2 cup","THAW",null,null,null,null,null,null,null,null,null,null,null,null,null,9.8800000000000008,11,0,45,0,0,1,0.2,0,0,0,9,0,0,0,null,{"$f":"16*12","v":192},"BASE_UNIT_OR_EACH",true,"FREE_FROM","FREE_FROM","FREE_FROM","FREE_FROM","FREE_FROM","FREE_FROM","FREE_FROM","FREE_FROM","FREE_FROM","AM, AE, AF, AC, AN, AP, UW, AY, AS",null,null,"2025-01-08 08:30:06","2024-12-13 15:22:00","Cherries",false]
[110872,"Cherries, Sweet, Pitted, Unsweetened, Frozen (IQF)","Fruit","10604774292936","Peterson Farms","Peterson Farms","Peterson Farms, Inc.","12x2.5 lbs Frozen Sweet Cherries","Frozen Sweet Cherries","Frozen Sweet Cherries",null,140,"GRM","BY_SERVING",1,"G21","1 cup","THAW",null,null,null,null,null,null,null,null,null,null,null,null,null,18,22,0,90,0,0,3,1,311,1,0,18,0,0,0,"US_FDA_NFP_2020_STANDARD",{"$f":"8*12","v":96},"CASE",true,"FREE_FROM","FREE_FROM","FREE_FROM","FREE_FROM","FREE_FROM","FREE_FROM","FREE_FROM","FREE_FROM","FREE_FROM","AM, AE, AY, UW, AP, AN, AF, UN, AS",null,null,"2023-11-01T08:58:48","2023-10-16T14:22:00","Sweet Cherries",false]
[110921,"Chicken, Grilled Fillet, 2.0 MMA, Cooked, Frozen","Poultry","00087427438647","Don Lee Farms","Goodman Food Products Inc.","Goodman Food Products","Frozen Fully Cooked Grilled Chicken Fillet","Frozen Fully Cooked Grilled Chicken","Frozen Fully Cooked Grilled Chicken",null,80,"GRM","BY_SERVING",80,"GRM","1 fillet","BAKE","Use vendor CN Label or Product Formulation Statement to confirm crediting information.",null,null,null,null,null,null,null,null,null,null,null,null,4,1,60,90,0,0,0,0,404,18,190,0,null,1.5,null,null,"168","CASE","TRUE",null,null,null,null,null,null,null,null,null,"X99",null,null,"2023-12-01T08:36:33","2023-11-02T12:53:24","Boneless Skinless Chicken Breast Meat, Water,  Less Than 1% Each: Salt, Modified Cellulose, Natural Flavors, Potassium Phosphate, High Fructose Corn Syrup.",false]
[110921,"Chicken, Grilled Fillet, 2.0 MMA, Cooked, Frozen","Poultry","10715001109214","Koch Foods - USDA","Koch Foods Inc","Koch Foods Inc","USDA Fully Cooked Seasoned Portioned Fillet Style Ground & Formed Grilled Chicken Breast (2.8 oz.) IF packed 6/5 pound sealed and printed bags.","Grilled Portion Chicken Brst Fillet","Grill marked breast fillets","FOOD_SERVICE",81,"GRM","BY_SERVING",81,"GRM","1 piece (2.85 ounce)","UNPREPARED","A 2.85 ounce serving of fully cooked grilled chicken fillet credits as 2 ounce equivalent meat/meat alternate",null,null,null,null,null,null,null,null,null,null,null,"https://dam.catalog.1worldsync.com/im/dwn/GCP-4521474155085824",5,1,55,100,0.5,0,0,0.36,282,18,280,0,null,2.5,0,null,168,"CASE","TRUE",null,null,null,null,null,null,null,null,null,null,null,null,"2025-09-02 08:43:50","2025-08-01 11:52:05","Chicken Breast Meat with Rib Meat, Water, Contains 2% or Less of Sodium Phosphates, Salt, Maltodextrin, Flavor, Corn Syrup Solids, Modified Food Starch, Dehydrated Chicken Broth, Chicken Fat",false]
[111052,"Carrots, Diced, No Salt Added, Frozen","Vegetables","10086289201212","PNW/Quincy","Inn Foods, Inc.","Inn Foods, Inc.","Vegetable","Carrots","Vegetable",null,85,"GRM","BY_SERVING",85,"GRM","2/3 cup ","HEAT_AND_SERVE",null,null,null,null,null,null,null,null,null,null,null,null,null,20,8,0,35,0,0,3,0,200,1,40,4,0,0,0,null,{"$f":"14*12","v":168},"BASE_UNIT_OR_EACH","TRUE","FREE_FROM","FREE_FROM","FREE_FROM","FREE_FROM","FREE_FROM","FREE_FROM","FREE_FROM","FREE_FROM","FREE_FROM","AM, AE, AF, AC, AN, AP, UW, AY, AS",null,null,"2025-05-05 08:25:11","2025-04-18 13:32:00","Carrots",false]
[111052,"Carrots, Diced, No Salt Added, Frozen","Vegetables","10086289221210","Nortera","Inn Foods, Inc.","Inn Foods, Inc.","Vegetable","Carrots","Vegetable",null,85,"GRM","BY_SERVING",85,"GRM","2/3 cup","HEAT_AND_SERVE",null,null,null,null,null,null,null,null,null,null,null,null,null,20,8,0,30,0,0,2,0.4,270,1,65,5,0,0,0,null,{"$f":"11*12","v":132},"BASE_UNIT_OR_EACH",true,"FREE_FROM","FREE_FROM","FREE_FROM","FREE_FROM","FREE_FROM","FREE_FROM","FREE_FROM","FREE_FROM","FREE_FROM","AM, AE, AF, UN, AN, AP, UW, AY, AS",null,null,"2025-05-05 08:25:11","2025-04-18 13:52:00","Carrots",false]
[111052,"Carrots, Diced, No Salt Added, Frozen","Vegetables","10086289231219","Twin City Foods","Inn Foods, Inc.","Inn Foods, Inc.","Vegetable","Carrots","Vegetable",null,85,"GRM","BY_SERVING",85,"GRM","2/3 cup","HEAT_AND_SERVE",null,null,null,null,null,null,null,null,null,null,null,null,null,20,8,0,30,0,0,2,0.4,270,0,65,5,0,0,0,null,{"$f":"11*12","v":132},"BASE_UNIT_OR_EACH",true,"FREE_FROM","FREE_FROM","FREE_FROM","FREE_FROM","FREE_FROM","FREE_FROM","FREE_FROM","FREE_FROM","FREE_FROM","AM, AE, AN, AP, AF, UN, UW, AS, AY",null,null,"2025-05-05 08:25:11","2025-04-18 13:42:00","Carrots",false]
[111052,"Carrots, Diced, No Salt Added, Frozen","Vegetables","10086289211211","OPC/Arbre","Inn Foods, Inc.","Inn Foods, Inc.","Vegetable","Carrots","Vegetable",null,85,"GRM","BY_SERVING",85,"GRM","2/3 cup","HEAT_AND_SERVE",null,null,null,null,null,null,null,null,null,null,null,null,null,20,8,0,30,0,0,2,0.4,270,0,65,5,0,0,0,null,{"$f":"11*12","v":132},"BASE_UNIT_OR_EACH",true,"FREE_FROM","FREE_FROM","FREE_FROM","FREE_FROM","FREE_FROM","FREE_FROM","FREE_FROM","FREE_FROM","FREE_FROM","AM, AE, AN, AP, AF, UN, UW, AY, AS",null,null,"2025-05-05 08:25:11","2025-04-18 14:02:00","Carrots",false]
[111052,"Carrots, Diced, No Salt Added, Frozen","Vegetables","10086289251217","Michigan Freeze Pack","Inn Foods, Inc.","Inn Foods, Inc.","Vegetable","Carrots","Vegetable",null,85,"GRM","BY_SERVING",85,"GRM","2/3 cup","UNPREPARED",null,null,null,null,null,null,null,null,null,null,null,null,null,31,7,0,30,0,0,3,0.4,200,0,60,4,0,0,0,null,{"$f":"11*12","v":132},"CASE",true,"FREE_FROM","FREE_FROM","FREE_FROM","FREE_FROM","FREE_FROM","FREE_FROM","FREE_FROM","FREE_FROM","FREE_FROM","AM, AE, AF, UN, AN, AP, UW, AY, AS",null,null,"2025-05-05 08:25:11","2025-04-18 14:02:00","Carrots",false]
[111052,"Carrots, Diced, No Salt Added, Frozen","Vegetables","10086289241218","Lamb Weston","Inn Foods, Inc.","Inn Foods, Inc.","Vegetables","Carrots","Vegetables",null,64,"GRM","BY_SERVING",64,"GRM","1/2 cup ","HEAT_AND_SERVE",null,null,null,null,null,null,null,null,null,null,null,null,null,20,5,0,25,0,0,2,0.3,150,0,45,3,0,0,0,null,{"$f":"14*12","v":168},"BASE_UNIT_OR_EACH",true,null,null,null,null,null,null,null,null,null,null,null,null,"2025-02-03 09:14:02","2025-01-13 15:32:00","Carrots",false]
[111052,"Carrots, Diced, No Salt Added, Frozen","Vegetables","10086289271215","New Carrot Farms/Bolthouse Farms","Inn Foods, Inc.","Inn Foods, Inc.","Vegetable","Carrots","Vegetable",null,85,"GRM","BY_SERVING",85,"GRM","2/3 cup","UNPREPARED",null,null,null,null,null,null,null,null,null,null,null,null,null,20,8,0,35,0,0,2,0.4,270,1,65,5,0,0,0,null,{"$f":"11*12","v":132},"BASE_UNIT_OR_EACH",true,"FREE_FROM","FREE_FROM","FREE_FROM","FREE_FROM","FREE_FROM","FREE_FROM","FREE_FROM","FREE_FROM","FREE_FROM","AM, AE, AN, AP, AF, UN, UW, AY, AS",null,null,"2025-11-03 08:54:44","2025-09-19 10:17:00","Carrots",false]
[111052,"Carrots, Diced, No Salt Added, Frozen","Vegetables","10086289261216","Lakeside Foods","Inn Foods, Inc.","Inn Foods, Inc.","Vegetable","Carrots","Vegetable",null,85,"GRM","BY_SERVING",85,"GRM","2/3 cup ","UNPREPARED",null,null,null,null,null,null,null,null,null,null,null,null,null,20,8,0,30,0,0,2,0.4,200,1,65,5,0,0,0,null,{"$f":"11*12","v":132},"BASE_UNIT_OR_EACH",true,"FREE_FROM","FREE_FROM","FREE_FROM","FREE_FROM","FREE_FROM","FREE_FROM","FREE_FROM","FREE_FROM","FREE_FROM","AM, AE, AN, AP, AF, UN, UW, AY, AS",null,null,"2025-09-02 08:43:50","2025-07-31 12:22:00","Carrots",false]
[111053,"Corn, Whole Kernel, No Salt Added, Frozen ","Vegetables","40028800292607","Hanover","Hanover Foods Corp","Hanover Foods Corp","Delicious tasting, supersweet yellow whole kernel corn is picked and processed at its peak of flavor.  Great as a side dish or an ingredient to soups, stews, and casseroles.  Corn is always a favorite.","Whole Kernel Corn","Whole Kernel Corn","CHILD_NUTRITION_FOOD_PROGRAMS",85,"GRM","BY_SERVING",null,null,"1/2 cup","STEAM",null,null,null,null,null,null,null,null,null,null,null,null,null,0,18,0,70,0,0,2,0.4,180,3,0,2,0,0.5,0,null,192,"CASE",null,"NOT_INTENTIONALLY_NOR_INHERENTLY_INCLUDED","NOT_INTENTIONALLY_NOR_INHERENTLY_INCLUDED","NOT_INTENTIONALLY_NOR_INHERENTLY_INCLUDED","NOT_INTENTIONALLY_NOR_INHERENTLY_INCLUDED","NOT_INTENTIONALLY_NOR_INHERENTLY_INCLUDED","NOT_INTENTIONALLY_NOR_INHERENTLY_INCLUDED","NOT_INTENTIONALLY_NOR_INHERENTLY_INCLUDED","NOT_INTENTIONALLY_NOR_INHERENTLY_INCLUDED","NOT_INTENTIONALLY_NOR_INHERENTLY_INCLUDED","AS, UW, AC, AE, AF, AY, AM, AN, AP, UM, BM, UN","Orthodox Union",null,"2025-11-03 08:54:44","2025-10-09 11:32:24","Sweet Yellow Corn",false]
[111053,"Corn, Whole Kernel, No Salt Added, Frozen ","Vegetables","10086289101260","PNW/Quincy","Inn Foods, Inc.","Inn Foods, Inc.","Vegetable","Cut Corn","Vegetable",null,90,"GRM","BY_SERVING",90,"GRM","2/3 cup ","HEAT_AND_SERVE",null,null,null,null,null,null,null,null,null,null,null,null,null,2,21,0,100,0,0,2,0,190,3,0,2,0,0.5,0,null,{"$f":"16*12","v":192},"BASE_UNIT_OR_EACH","TRUE","FREE_FROM","FREE_FROM","FREE_FROM","FREE_FROM","FREE_FROM","FREE_FROM","FREE_FROM","FREE_FROM","FREE_FROM","AM, AE, AF, AC, AN, AP, UW, AY, AS",null,null,"2025-05-05 08:25:11","2025-04-18 13:42:00","Corn",false]
[111053,"Corn, Whole Kernel, No Salt Added, Frozen ","Vegetables","10086289131267","Lakeside Foods/Smith Frozen Foods","Inn Foods, Inc.","Inn Foods, Inc.","Vegetable","Cut Corn","Vegetable",null,85,"GRM","BY_SERVING",85,"GRM","2/3 cup ","HEAT_AND_SERVE",null,null,null,null,null,null,null,null,null,null,null,null,null,2,16,0,70,0,0,2,0,229,0,2.5499999999999998,7.65,0,0.5,0,null,{"$f":"13*12","v":156},"BASE_UNIT_OR_EACH",true,"FREE_FROM","FREE_FROM","FREE_FROM","FREE_FROM","FREE_FROM","FREE_FROM","FREE_FROM","FREE_FROM","FREE_FROM","AM, AE, AF, UN, AN, AP, UW, AY, AS",null,null,"2025-05-05 08:25:11","2025-04-18 14:07:00","Corn",false]
[111053,"Corn, Whole Kernel, No Salt Added, Frozen ","Vegetables","10086289121268","Twin City Foods","Inn Foods, Inc.","Inn Foods, Inc.","Vegetable","Cut Corn","Vegetable",null,90,"GRM","BY_SERVING",90,"GRM","2/3 cup ","HEAT_AND_SERVE",null,null,null,null,null,null,null,null,null,null,null,null,null,0,22,0,110,0,0,2,0,216,3,0,5,0,0.5,0,null,{"$f":"13*12","v":156},"BASE_UNIT_OR_EACH",true,"FREE_FROM","FREE_FROM","FREE_FROM","FREE_FROM","FREE_FROM","FREE_FROM","FREE_FROM","FREE_FROM","FREE_FROM","AE, AM, AF, AN, UN, AP, UW, AY, AS",null,null,"2025-05-05 08:25:11","2025-04-18 13:57:00","Corn",false]
[111053,"Corn, Whole Kernel, No Salt Added, Frozen ","Vegetables","10086289111269","Nortera","Inn Foods, Inc.","Inn Foods, Inc.","Vegetable","Cut Corn","Vegetable",null,90,"GRM","BY_SERVING",90,"GRM","2/3 cup","HEAT_AND_SERVE",null,null,null,null,null,null,null,null,null,null,null,null,null,2,22,0,110,0,0,2,0,216,3,0,5,0,0.5,0,null,{"$f":"13*12","v":156},"BASE_UNIT_OR_EACH",true,"FREE_FROM","FREE_FROM","FREE_FROM","FREE_FROM","FREE_FROM","FREE_FROM","FREE_FROM","FREE_FROM","FREE_FROM","AM, AE, AF, UN, AN, AP, UW, AY, AS",null,null,"2025-05-05 08:25:11","2025-04-18 13:52:00","Corn",false]
[111053,"Corn, Whole Kernel, No Salt Added, Frozen ","Vegetables","00033828604235","Lakeside Foods","Lakeside Foods Inc.","Lakeside Foods Inc.","12/40F LAKESIDE CUT CORN","CUT CORN","CUT CORN","CHILD_NUTRITION_FOOD_PROGRAMS",90,"GRM","BY_SERVING",100,"GRM","2/3 cup","UNPREPARED",null,null,null,null,null,null,null,null,null,null,null,null,null,0,21,0,100,0,0,2,0,110,2,2,4,0,1,0,"NFT",{"$f":"13*12","v":156},"BASE_UNIT_OR_EACH",true,"FREE_FROM","FREE_FROM","FREE_FROM","FREE_FROM","FREE_FROM","FREE_FROM","FREE_FROM","FREE_FROM","FREE_FROM","AS, UW, AC, AE, AF, AY, AM, AN, AP",null,null,"2024-02-01T09:08:30","2024-01-22T15:19:20","Corn",false]
[111054,"Beans, Green, No Salt Added, Frozen ","Vegetables","40028800298173","Hanover/USDA","Hanover Foods Corp","Hanover Foods Corp","Crisp, tender and stringless, green beans are an all-around favorite.  A delicious and colorful side dish, green beans are also important in many entrees and soups.","Cut Green Beans Frozen","Cut Green Beans","CHILD_NUTRITION_FOOD_PROGRAMS",85,"GRM","BY_SERVING",85,"GRM","3/4 cup","STEAM",null,null,null,null,null,null,null,null,null,null,null,null,null,40,6,0,35,0,0,2,0.7,160,2,0,2,0,0,0,null,132,"CASE",null,"NOT_INTENTIONALLY_NOR_INHERENTLY_INCLUDED","NOT_INTENTIONALLY_NOR_INHERENTLY_INCLUDED","NOT_INTENTIONALLY_NOR_INHERENTLY_INCLUDED","NOT_INTENTIONALLY_NOR_INHERENTLY_INCLUDED","NOT_INTENTIONALLY_NOR_INHERENTLY_INCLUDED","NOT_INTENTIONALLY_NOR_INHERENTLY_INCLUDED","NOT_INTENTIONALLY_NOR_INHERENTLY_INCLUDED","NOT_INTENTIONALLY_NOR_INHERENTLY_INCLUDED","NOT_INTENTIONALLY_NOR_INHERENTLY_INCLUDED","UW, AM, AE, AF, UN, AC, AN, AP, AY, AS, UM, BM","Orthodox Union",null,"2023-06-01T09:11:20","2023-05-08T09:35:46","Green Beans",false]
[111054,"Beans, Green, No Salt Added, Frozen ","Vegetables","10086289101093","OPC/Arbre","Inn Foods, Inc.","Inn Foods, Inc.","Vegetable","Cut Green Beans","Vegetable",null,81,"GRM","BY_SERVING",81,"GRM","2/3 cup","HEAT_AND_SERVE",null,null,null,null,null,null,null,null,null,null,null,null,null,37,6,0,30,0,0,2,1,151,1,0,1,0,0,0,null,{"$f":"11*12","v":132},"BASE_UNIT_OR_EACH","TRUE","FREE_FROM","FREE_FROM","FREE_FROM","FREE_FROM","FREE_FROM","FREE_FROM","FREE_FROM","FREE_FROM","FREE_FROM","AM, AE, AF, AC, AN, AP, UW, AY, AS",null,null,"2025-05-05 08:25:11","2025-04-18 13:52:00","Green Beans",false]
[111054,"Beans, Green, No Salt Added, Frozen ","Vegetables","10086289131090","Nortera","Inn Foods, Inc.","Inn Foods, Inc.","Vegetable","Cut Green Beans","Vegetable",null,85,"GRM","BY_SERVING",85,"GRM","2/3 cup","HEAT_AND_SERVE",null,null,null,null,null,null,null,null,null,null,null,null,null,40,6,0,30,0,0,2,0.7,70,1,0,2,0,0,0,null,{"$f":"11*12","v":132},"BASE_UNIT_OR_EACH",true,"FREE_FROM","FREE_FROM","FREE_FROM","FREE_FROM","FREE_FROM","FREE_FROM","FREE_FROM","FREE_FROM","FREE_FROM","AM, AE, AF, UN, AN, AP, UW, AY, AS",null,null,"2025-04-01 08:31:52","2025-03-27 16:57:00","Green Beans",false]
[111054,"Beans, Green, No Salt Added, Frozen ","Vegetables","10086289121091","Twin City Foods","Inn Foods, Inc.","Inn Foods, Inc.","Vegetable","Cut Green Beans","Vegetable",null,85,"GRM","BY_SERVING",85,"GRM","2/3 cup","HEAT_AND_SERVE",null,null,null,null,null,null,null,null,null,null,null,null,null,0,6,0,30,0,0,2,0.7,70,1,0,2,0,0,0,null,{"$f":"11*12","v":132},"BASE_UNIT_OR_EACH",true,"FREE_FROM","FREE_FROM","FREE_FROM","FREE_FROM","FREE_FROM","FREE_FROM","FREE_FROM","FREE_FROM","FREE_FROM","AM, AE, AF, AN, AP, UN, UW, AY, AS",null,null,"2025-08-01 09:35:39","2025-07-25 10:27:00","Green Beans",false]
[111054,"Beans, Green, No Salt Added, Frozen ","Vegetables","10086289111092","PNW/Norpac","Inn Foods, Inc.","Inn Foods, Inc.","Vegetable","Cut Green Beans","Vegetable",null,81,"GRM","BY_SERVING",81,"GRM","2/3 cup","HEAT_AND_SERVE",null,null,null,null,null,null,null,null,null,null,null,null,null,37,6,0,30,0,0,2,1,151,1,0,1,0,0,0,null,{"$f":"14*12","v":168},"BASE_UNIT_OR_EACH",true,"FREE_FROM","FREE_FROM","FREE_FROM","FREE_FROM","FREE_FROM","FREE_FROM","FREE_FROM","FREE_FROM","FREE_FROM","AM, AE, AF, UN, AN, AP, UW, AY, AS",null,null,"2025-06-02 08:13:46","2025-05-15 09:37:00","Green Beans",false]
[111054,"Beans, Green, No Salt Added, Frozen ","Vegetables","00033828503026","Lakeside Foods","Lakeside Foods Inc.","Lakeside Foods Inc.","2 LB LAKESIDE CUT GREEN BEANS","CUT GRN BN","CUT GREEN BEAN","CHILD_NUTRITION_FOOD_PROGRAMS",81,"GRM","BY_SERVING",100,"GRM","2/3 cup","BOIL",null,null,null,null,null,null,null,null,null,null,null,null,null,36.299999999999997,7.1,0,35.6,0,0,2.2999999999999998,0.6,111,1.4,2,1.8,0,0,0,"NFT",{"$f":"11*12","v":132},"BASE_UNIT_OR_EACH",true,"FREE_FROM","FREE_FROM","FREE_FROM","FREE_FROM","FREE_FROM","FREE_FROM","FREE_FROM","FREE_FROM","FREE_FROM","AS, UW, AC, AE, AF, AY, AM, AN, AP",null,null,"2024-04-01T09:24:56","2024-03-07T07:20:43","Green Beans",false]
[111110,"Cheese, Cheddar, Yellow, Sliced, Chilled","Cheese","00088748713024","Wisconsin Premium","Masters Gallery Foods","MASTERS GALLERY FOODS","1.5lb./32S Wisconsin Premium Mild Cheddar Twinpack","1.5/32S WIPRM CHED TWPK","Cheese_Perishable","CHILD_NUTRITION_FOOD_PROGRAMS",22,"GRM","BY_SERVING",22,"GRM","1 slice (0.75 ounce)","READY_TO_EAT",null,null,null,null,null,null,null,null,null,null,null,null,null,150,1,20,90,4,0,0,0,20,5,140,0,0,7,0.1,null,256,"BASE_UNIT_OR_EACH","TRUE",null,null,"CONTAINS",null,null,null,null,null,null,"AM",null,null,"2022-12-01T17:58:21","2022-11-01T15:46:04","Cheddar Cheese (Cultured Pasteurized Milk, Salt, Enzymes, Color Added)",false]
[111110,"Cheese, Cheddar, Yellow, Sliced, Chilled","Cheese","10664857146907","Cheese Crafters","Winona Foods, Inc.","Winona Foods","8/1.5 LB EW 0.75 SLICE MILD CHEDDAR CHEESE","0.75 OZ SLICE MILD CHEDDAR CHEESE","SLICE MILD CHEDDAR CHEESE",null,21,"GRM","BY_SERVING",null,null,"1 slice (0.75 ounce)","READY_TO_EAT",null,null,null,null,null,null,null,null,null,null,null,null,null,150,0,20,80,4,0,0,0,0,5,135,0,0,7,0,null,256,"CASE",null,"FREE_FROM","FREE_FROM","CONTAINS","FREE_FROM","FREE_FROM","FREE_FROM","FREE_FROM","FREE_FROM","FREE_FROM","AM, AE, AP, AN, AF, AC, UW, AY, AS",null,null,"2022-10-31T09:40:33","2022-10-04T09:12:00","Pasteurized Milk, Cheese Culture, Salt, Enzymes, Color Added",false]
[111220,"Cheese, Pepper Jack, Shredded, Chilled","Cheese","10664857146280","Cheese Crafters","Winona Foods, Inc.","Winona Foods","6/5 LB EW Feather Shred Pepper Jack Cheese","6/5 LB Feather Shrd Pepper Jack Chs","Shred Pepper Jack Cheese",null,28,"GRM","BY_SERVING",null,null,"1/4 cup (1 ounce)","READY_TO_EAT",null,null,null,null,null,null,null,null,null,null,null,null,null,190,1,25,100,4,0,0,0,15,6,160,0,0,8,0,null,480,"CASE",null,"FREE_FROM","FREE_FROM","CONTAINS","FREE_FROM","FREE_FROM","FREE_FROM","FREE_FROM","FREE_FROM","FREE_FROM","AM, AE, AF, AC, UW, AY, AP, AN, AS",null,null,"2022-10-31T09:55:01","2022-10-04T09:17:00","Pasteurized Milk, Jalapeno Peppers, Cheese Culture, Salt, Enzymes, Potato Starch and Powdered Cellulose Added to Prevent Caking, Natamycin (A Natural Mold Inhibitor)",false]
[111230,"Mixed Vegetables, No Salt Added, Frozen","Vegetables","00086289123173","Twin City Foods","Inn Foods, Inc.","Inn Foods, Inc.","Vegetable","Corn, Carrots, Peas, Green Beans","Vegetable",null,90,"GRM","BY_SERVING",90,"GRM","2/3 cup","HEAT_AND_SERVE",null,null,null,null,null,null,null,null,null,null,null,null,null,20,13,0,70,0,0,2,0.7,180,2,80,4,0,0,0,null,{"$f":"25*6","v":150},"BASE_UNIT_OR_EACH",true,"FREE_FROM","FREE_FROM","FREE_FROM","FREE_FROM","FREE_FROM","FREE_FROM","FREE_FROM","FREE_FROM","FREE_FROM","AM, AF, UN, AN, AP, UW, AY, AS, AE",null,null,"2025-08-01 09:35:39","2025-07-25 10:42:00","Corn, Carrots, Peas, Green Beans",false]
[111230,"Mixed Vegetables, No Salt Added, Frozen","Vegetables","00086289103175","PNW/Quincy","Inn Foods, Inc.","Inn Foods, Inc.","Vegetable","Corn, Carrots, Peas, Green Beans","Vegetable",null,85,"GRM","BY_SERVING",85,"GRM","2/3 cup","HEAT_AND_SERVE",null,null,null,null,null,null,null,null,null,null,null,null,null,25,10,0,50,0,0,3,1,185,2,20,3,0,0.1,0,null,{"$f":"26*6","v":156},"BASE_UNIT_OR_EACH","TRUE","FREE_FROM","FREE_FROM","FREE_FROM","FREE_FROM","FREE_FROM","FREE_FROM","FREE_FROM","FREE_FROM","FREE_FROM","AM, AE, AF, AC, AN, AP, UW, AY, AS",null,null,"2025-08-01 09:35:39","2025-07-25 10:47:00","Corn, Carrots, Peas, Green Beans",false]
[111230,"Mixed Vegetables, No Salt Added, Frozen","Vegetables","00033828383093","Lakeside Foods","Lakeside Foods Inc.","Lakeside Foods Inc.","5#F LAKESIDE 4-WAY MIXED VEGETABLES","4WAY MIX VEG","4 WAY MIXED VEGETABLES",null,90,"GRM","BY_SERVING",100,"GRM","2/3 cup","BOIL",null,null,null,null,null,null,null,null,null,null,null,null,null,0,11,0,50,0,0,3,0.5,100,2,15,4,0,0,0,"NFT",{"$f":"25*6","v":150},"BASE_UNIT_OR_EACH",true,"FREE_FROM","FREE_FROM","FREE_FROM","FREE_FROM","FREE_FROM","FREE_FROM","FREE_FROM","FREE_FROM","FREE_FROM","AS, UW, AC, AE, AF, AY, AM, AN, AP",null,null,"2024-02-01T08:42:26","2024-01-22T15:19:20","Carrots, Corn, Green Beans, Peas",false]
[111750,"Yogurt, High-Protein, Vanilla, Chilled (K)","Yogurt","00894700010144","Chobani®","Chobani, Inc.","Chobani, Inc.","Chobani® Non-Fat Greek Yogurt Vanilla 32oz","GrkYgrt Vanilla 32oz","Yogurt",null,170,"GRM","BY_SERVING",170,"GRM","3/4 cup","PREPARED",null,null,null,null,null,null,null,null,null,null,null,null,null,170,17,10,130,0,0,0,0.2,220,14,60,16,11,0,0,null,30,"BASE_UNIT_OR_EACH",null,"FREE_FROM","FREE_FROM","CONTAINS","FREE_FROM","FREE_FROM","FREE_FROM","FREE_FROM","FREE_FROM","FREE_FROM","AC, AE, AF, AM, AN, AP, AY, UM, UW","Orthodox Union",null,"2023-06-01T09:17:23","2023-05-24T13:02:00","Cultured Nonfat Milk, Cane Sugar, Water, Fruit Pectin, Natural Flavors, Guar Gum, Locust Bean Gum, Vanilla Extract, Lemon Juice Concentrate. Contains Live And Active Cultures: S. Thermophilus, L. Bulgaricus, L. Acidophilus, Bifidus, L. Casei And L. Rhamnosus.",false]
[111750,"Yogurt, High-Protein, Vanilla, Chilled (K)","Yogurt","00044100158940","Hood","HP Hood LLC","HP Hood LLC","Hood Nonfat Vanilla Greek Yogurt, 32oz","32Z HD VAN NF GRKYG","Greek yogurt",null,170,"GRM","BY_SERVING",170,"GRM","3/4 cup","READY_TO_EAT",null,null,null,null,null,null,null,null,null,null,null,null,null,170,18,10,130,0,0,1,0.1,210,15,50,15,10,0,0,"US_FDA_NFP_2020_STANDARD",{"$f":"5*6","v":30},"BASE_UNIT_OR_EACH",true,"FREE_FROM","FREE_FROM","CONTAINS","FREE_FROM","FREE_FROM","FREE_FROM","FREE_FROM","FREE_FROM","FREE_FROM","AC, AE, AF, AM, AN, AP, AY, UW, AS","OU-D",null,"2023-04-03T16:04:54","2023-08-25T16:22:00","Cultured Pasteurized Skim Milk, Sugar, Natural Flavors, Pectin, Locust Bean Gum, Citric Acid and Calcium Chloride",false]
[111751,"Eggs, Patties, Cooked, 1.0 MMA, Round, Frozen","Egg products","10038057409313","Sunny Fresh","Cargill Poultry Products Div","Cargill Poultry Products Div","Patty Size: 1.25 oz.\nPatty Shape: Round \nPatty Dimensions: 3.09 inches\nPatty Thickness: 0.41","Scrm EGGPTY GRILL","Egg Egg Patties","CHILD_NUTRITION_FOOD_PROGRAMS",35,"GRM","BY_SERVING",1.25,"ONZ","1 egg patty (1.25 ounce)","PREPARED","Each 1.25 ounce scrambled egg patty provides 1.25 ounce equivalent meat alternate ",97158,"MEAT_OR_MEAT_ALTERNATIVE","1.25 ONZ","1.25 ONZ","Each 1.25 oz. serving Scrambled Egg Pattie provides 1.25 oz. equivalent meat alternate for the Child Nutrition Meal Pattern Requirements.","{'contentDescription': [{'qual': 'en', 'value': 'Child Nutrition Label'}], 'referencedFileTypeCode': 'CHILD_NUTRITION_LABEL', 'fileFormatName': 'JPG', 'uniformResourceIdentifier': 'https://images.salsify.com/image/upload/s--DtHvpNqq--/w_1000,h_1000,c_fit,dn_300/ghgtw7dfnhpvceq5ua4q.jpg'}","2028-05-15",null,null,null,null,null,19,1,125,50,1,0,0,1,47,4,50,0,0,3,1,"NFT",320,"CASE",true,"CONTAINS","FREE_FROM","FREE_FROM","FREE_FROM","FREE_FROM","FREE_FROM","FREE_FROM","FREE_FROM","FREE_FROM","AC, AE, AF, AM, AN, AP, AS, AY, BM, UW",null,null,"2025-11-03 08:54:44","2025-10-23 09:41:46","Whole Eggs, Water, Modified Food Starch, Citric Acid, Guar Gum, Salt. Contains: Eggs.",false]
[111751,"Eggs, Patties, Cooked, 1.0 MMA, Round, Frozen","Egg products","10786294406397","Echo Lake Foods","Echo Lake Foods","Echo Lake Foods","Round Scrambled Egg Patty","Round Scrambled","Round Scrambled","CHILD_NUTRITION_FOOD_PROGRAMS",35,"GRM","BY_SERVING",35,"GRM","1.25 ounce patty","PREPARED","Each 1.25 ounce egg patty provides 1.25 ounce equivalents meat alternate",null,null,null,null,null,"https://dam.catalog.1worldsync.com/im/dwn/GCP-5907133631561728 ",null,null,null,null,null,null,23,1,120,50,0,0,0,1,53,4,50,0,0,3,1,null,"320","CASE","TRUE","CONTAINS",null,"CONTAINS",null,null,null,null,null,null,"AE, AM",null,null,"2023-06-01T09:02:46","2023-05-15T14:50:46","Whole Eggs, Non Fat Milk, Modified Corn Starch, Xanthan Gum, Citric Acid, Pepper, Salt. Contains: Eggs, Milk.",false]
[111751,"Eggs, Patties, Cooked, 1.0 MMA, Round, Frozen","Egg products","10746025702334","Papetti's®","Michael Foods Inc.","MICHAEL FOODS INC.","Conveniently heat and serve, perfect for kitchens with limited equipment, and labor. Build guest satisfaction with consistent appear ance and taste.","320/1.25 OZ ROUND EGG PTY CN, PAPET","Egg",null,35,"GRM","BY_MEASURE",35,"GRM","1.25 ounce patty","UNPREPARED","A 1.25 ounce serving of fully cooked round scrambled egg patties credits as 1.25 ounce equivalent meat/meat alternate",98863,"MEAT_OR_MEAT_ALTERNATIVE","1.25 ONZ","1.25 ONZ","A 1.25 oz. Serving of fully cooked round scrambled egg patties provides 1.25 oz equivalent meat alternate for the Child Nutrition Meal Pattern requirement. (Use of this logo and statement authorized by the food and nutrition service, USDA 05-20). CN#098863 (P01016/G)","https://dam.catalog.1worldsync.com/im/dwn/GCP-5798162224644096",null,null,null,null,null,null,20,1,125,60,1,0,0,0.6,60,4,50,0,0,4.5,0.7,null,"320","CASE","TRUE","CONTAINS","FREE_FROM","CONTAINS","FREE_FROM","FREE_FROM","FREE_FROM","FREE_FROM","FREE_FROM","FREE_FROM","AU, BC, BM, PS, AS, AY, UW, AP, AN, AE, AM, AF, AC",null,null,"2022-09-19T05:19:28","2022-02-28T10:54:07","Whole Eggs, Water, Soybean Oil, Modified Food Starch, Whey Solids, Citric Acid",true]
[111790,"Apple Juice, 100%, Unsweetened, Cups, Frozen","Fruit","00077484000352","SUNCUP","Gregory Packaging Inc.","Gregory Packaging, Inc.","SunCup 100% Apple Juice Frozen 4 oz Single-Serve Cup","100% Apple Juice 4oz Cup Frozen","100% Apple Juice 4oz Cup Frozen",null,"118 milliliters","MLT",null,4,"OZA","4 ounce container","PREPARED",null,null,null,null,null,null,null,null,null,null,null,null,null,0,14,0,60,0,0,0,0,130,0,5,12,0,0,null,null,96,"CASE",true,null,null,null,null,null,null,null,null,null,null,null,null,"2025-08-01 09:35:39","2025-07-17 19:32:00","100% Apple Juice (Water Sufficient to Reconstitute Apple Juice Concentrate), Ascorbic Acid (Vitamin C)",false]
[111881,"Chicken, Pulled, Cooked, Frozen ","Poultry","00075278996539","Foster Farms","Foster Poultry Farms","FOSTER POULTRY FARMS","FC NAE SHREDDED CKN BRST 6/5 LB BAGS","FC NAE SHREDDED CKN BRST 6/5 LB","FULLY COOKED CHICKEN",null,84,"GRM","BY_MEASURE",3,"ONZ","3 ounce","READY_TO_EAT",null,null,null,null,null,null,null,null,null,null,null,null,null,0,1,60,100,0.5,0,0,0.36,null,19,390,0,null,2,null,null,160,"CASE",null,"FREE_FROM","FREE_FROM","FREE_FROM","FREE_FROM","FREE_FROM","FREE_FROM","FREE_FROM","FREE_FROM","FREE_FROM","AS, UW, AC, AE, AF, AY, AM, AN, AP",null,null,"2025-07-07 08:22:08","2025-07-01 17:04:56","Chicken Breast With Rib Meat, Water, Contains 2% or Less of Natural Flavors, Food Starch, Salt, Yeast Extract, Torula Yeast",true]
[111882,"Turkey, Deli Breast, Smoked, Sliced, Frozen","Poultry","10642205008923","Cargill Unbranded","Cargill Incorporated/Honeysuckle White","Cargill Incorporated/Honeysuckle White","Fully Cooked Sliced Smoked Turkey Breast 5 lb. packages, 8 packages per case","Fz Slc Smkd Tky Brst 8pk","Turkey Bulk Poultry","CHILD_NUTRITION_FOOD_PROGRAMS",56,"GRM","BY_SERVING",2,"ONZ","2 ounce","PREPARED","A 1.50 ounce serving of smoked deli turkey breast credits as 1 ounce equivalent meat/meat alternate",null,null,null,null,null,null,null,"1.50 ounces of smoked deli turkey breast contains 1.00-ounce equivalent meat/meat alternate.","MEAT_OR_MEAT_ALTERNATIVE","1.00 ONZ","40 LBR","https://images.salsify.com/image/upload/s--4ITr7Kx1--/kmpj4gknecjc8wy2guip ",0,1,25,60,0,0,0,null,null,12,320,0,null,1,null,"NFT","320","CASE","TRUE","FREE_FROM","FREE_FROM","FREE_FROM","FREE_FROM","FREE_FROM","FREE_FROM","FREE_FROM","FREE_FROM","FREE_FROM","AC, AE, AF, AM, AN, AP, AS, AY, UW",null,null,"2025-04-01 08:31:52","2025-03-24 13:24:26","Turkey Breast, Water, Contains Less Than 2% Salt, Dextrose, Modified Food Starch, Potassium Lactate, Sodium Diacetate, Potassium Phosphate, Sodium Erythorbate, Sodium Nitrite",false]
[111893,"Turkey, Deli Ham, Smoked, Sliced, Frozen","Poultry","00713480109117","Hof Hause","John Hofmeister & Son, Inc","John Hofmeister  & Son, Inc","8 x 5 lbr vacuum-sealed packges fully cooked smoked pre-sliced turkey ham","HOF HAUS Smoked Sliced Turkey Ham","Ham","CHILD_NUTRITION_FOOD_PROGRAMS",57,"GRM","BY_SERVING",57,"GRM","2 ounce","PREPARED",null,null,null,null,null,null,null,null,"57 gram","MEAT_OR_MEAT_ALTERNATIVE","57 GRM","57 GRM",null,0,2,20,60,0,0,0,0,0,9,330,2,0,1.5,0,null,"320","CASE",null,"FREE_FROM","FREE_FROM","FREE_FROM","FREE_FROM","FREE_FROM","FREE_FROM","FREE_FROM","FREE_FROM","FREE_FROM","AP, UW, AM, UN, AF, AE, AN, AY",null,null,"2024-06-03 08:45:45","2023-08-24 01:34:20","Cured Turkey Thigh Meat, Water, Dextrose, Potassium Chloride, Salt, Modified Tapioca Starch, Sodium Phosphate, Sodium Lactate, Sodium Acetate, Hickory Smoke Flavor, Sodium Diacetate, Sodium Erythorbate, Sodium Nitrite.",false]
[111900,"Turkey, Deli Breast, Sliced, Frozen","Poultry","10715001109030","ES Foods","ES Foods, Inc.","\"ES Foods, Inc.\"","8 / 5 lb. package of frozen, cooked, deli style turkey","Frozen, Cooked, Deli Style Turkey","Frozen, Cooked, Deli Style Turkey",null,55,"GRM","BY_SERVING",55,"GRM","1.95 ounce (3 - 0.65 ounce slices)","THAW","1.95 ounces (3 - 0.65 ounce slices) of turkey deli breast credits as 1.25 ounce equivalent meat/meat alternate",null,null,null,null,null,null,null,null,null,null,null,"https://assets.edgenet.com/3287c71a-a9ed-4ac1-83c5-94552d34a69d",26,0,30,60,0,0,0,0.36,0,1,310,0,0,1,0,"US_FDA_NFP_2020_STANDARD_SIDE_BY_SIDE",328,"CASE","TRUE","FREE_FROM","FREE_FROM","FREE_FROM","FREE_FROM","FREE_FROM","FREE_FROM","FREE_FROM","FREE_FROM","FREE_FROM","AC, AE, AF, AM, AN, AP, AS, AU, AY, UW",null,null,"2022-12-01T18:02:36","2022-12-01T15:54:00","Turkey Breast, Water, Contains 2% or Less of Potassium Lactate, Salt, Dextrose, Carrageenan, Sodium Phosphate, Sodium Diacetate",false]
[111900,"Turkey, Deli Breast, Sliced, Frozen","Poultry","10024292133199","Cargill Unbranded","Cargill Incorporated/Honeysuckle White","Cargill Incorporated/Honeysuckle White","Fully Cooked Sliced Oven Roasted Turkey Breast, Slice Thickness 1.39 mm, Slice Weight 0.57 oz. per slice","Fz Slc OR Tky Breast USDA","Turkey Bulk Poultry","CHILD_NUTRITION_FOOD_PROGRAMS",56,"GRM","BY_SERVING",2,"ONZ","2 ounce","PREPARED","A 1.50 ounce serving of turkey deli breast credits as 1 ounce equivalent meat/meat alternate",null,null,null,null,null,null,null,"1.50 ounces of turkey deli breast contains 1.00-ounce equivalent meat/meat alternate.","MEAT_OR_MEAT_ALTERNATIVE","1.00 ONZ","40 LBR","https://images.salsify.com/image/upload/s--GcGhNElm--/dwg0kqnyw8fz1jbdjpuq ",0,1,30,70,0,0,0,null,null,12,360,0,null,1,null,"NFT","320","CASE","TRUE","FREE_FROM","FREE_FROM","FREE_FROM","FREE_FROM","FREE_FROM","FREE_FROM","FREE_FROM","FREE_FROM","FREE_FROM","AC, AE, AF, AM, AN, AP, AS, AY, UW",null,null,"2025-04-01 08:31:52","2025-03-24 13:15:16","Turkey Breast, Turkey Broth, Contains Less Than 2% Salt, Sugar, Modified Food Starch, Propionic Acid, Sodium Phosphate, Potassium Chloride, Natural Flavor.",false]

{"sheet":"Material List","index":4,"n_rows":152,"n_cols":14,"rows_kept":152,"cut":false,"hidden":true,"merged":[]}
[null,null,null,"Material Code","USDA Foods Description","Category","Product Description ","Pack Size","USDA Preferred Serving Size for GS1 GDSN","CN Crediting",null,"Category",null,"Material Code / Description"]
[null,null,null,100127,"Beef, Coarse Ground, Cooked, Canned","Beef","This item is coarse ground beef cooked in its own juices and canned. This product is delivered in cases containing twenty-four 24-ounce cans.","24/24 oz can","2.00 oz (1 oz equivalent meat)","1 ounce of heated canned beef credits as 1 ounce equivalent meat/meat alternate",null,"Beef",null,"100002 Cheese, Cheddar, White, Shredded, Chilled"]
[null,null,null,100134,"Beef, Crumbles w/SPP, Cooked, Frozen ","Beef","This item is fully cooked ground beef with soy protein product (SPP) that is in approximately 1/4 inch crumbles with a light seasoning profile. This product is delivered frozen in cases with four 10-pound packages.","4/10 lb bag","1.00 oz equivalent meat/meat alternate*","Approximately 1.15 ounces of fully cooked beef crumbles credits as 1 ounce equivalent meat/meat alternate. Use vendor CN Label or Product Formulation Statement to confirm crediting information.",null,"Cheese",null,"100003 Cheese, Cheddar, Yellow, Shredded, Chilled"]
[null,null,null,100158,"Beef, Fine Ground, 100%, 85/15, Raw, Frozen","Beef","This item is 85/15 fine ground beef. This product is shipped in 40 pound cases containing four 10-pound vacuum-sealed packages.","40 lb case","1.34 oz (1 oz equivalent meat)","One 1.34-ounce portion of 85/15 raw ground beef credits as 1 ounce equivalent meat/meat alternate",null,"Egg products",null,"100012 Cheese, Cheddar, Yellow, Reduced Fat, Shredded, Chilled"]
[null,null,null,110261,"Beef, Fine Ground, 100%, 85/15, LFTB OPT, Raw, Frozen","Beef","This item is 85/15 fine ground beef that may contain lean finely textured beef. This product is delivered frozen in a 40 pound case containing four 10-pound vacuum-sealed packages.","40 lb case","1.34 oz (1 oz equivalent meat)","One 1.34-ounce portion of 85/15 raw ground beef credits as 1 ounce equivalent meat/meat alternate",null,"Fish",null,"100017 Cheese, American, Yellow, Pasteurized, Loaves, Chilled"]
[null,null,null,110349,"Beef, Patties, 100%, 85/15, Raw, 2.0 MMA, Frozen","Beef","This item is beef patties made with 85/15 ground beef and no additional ingredients. This product is individually quick frozen and delivered in a 40-pound case.","40 lb case","One 2.80 oz patty (2 oz equivalent meat/meat alternate)","One 2.8-ounce uncooked beef patty credits as 2 ounce equivalents meat/meat alternate",null,"Fruit",null,"100018 Cheese, American, Yellow, Pasteurized, Sliced, Chilled"]
[null,null,null,110346,"Beef, Patties, 100%, 90/10, Raw, 2.0 MMA, Frozen","Beef","This item is a beef patty made with 90/10 ground beef and no additional ingredients. This product is individually quick frozen and delivered in a 40-pound case.","40 lb case","One 2.80 oz patty (2 oz equivalent meat/meat alternate)","One 2.8-ounce uncooked beef patty credits as 2 ounce equivalents meat/meat alternate",null,"Grains",null,"100019 Cheese, American, White, Pasteurized, Sliced, Chilled  "]
[null,null,null,100163,"Beef, Patties, Lean, Raw, 2.0 MMA, Frozen","Beef","This item is a beef patty made with lean beef that contains no more than 5% fat. This product is individually quick frozen and delivered in a 40 pound case.","40 lb case","One 3.10 oz patty (2 oz equivalent meat/meat alternate)*","One 3.1-ounce uncooked lean beef patty credits as 2 ounce equivalents meat/meat alternate. Use vendor CN Label or Product Formulation Statement to confirm crediting information.",null,"Legumes",null,"100021 Cheese, Mozzarella, Low Moisture Part Skim, Shredded, Frozen"]
[null,null,null,110348,"Beef, Patties w/SPP, 85/15, Raw, 2.0 MMA, Frozen","Beef","This item is a beef patty made with 85/15 ground beef and soy protein product. This product is individually quick frozen and delivered in a 40-pound case.","40 lb case","One 2.80 oz patty (2 oz equivalent meat/meat alternate)*","One 2.8-ounce uncooked beef patty with SPP credits as 2 ounce equivalents meat/meat alternate. Use vendor CN Label or Product Formulation Statement to confirm crediting information.",null,"Nuts and seeds",null,"100022 Cheese, Mozzarella, Low Moisture Part Skim, Loaves, Frozen "]
[null,null,null,110322,"Beef, Patties w/SPP, Cooked, 2.0 MMA, Frozen ","Beef","This item is a fully cooked beef patty with soy protein product added. It is delivered frozen in a 40-pound case containing 5-pound, 8-pound, or 10-pound interior packages.","40 lb case","One 2.20 oz patty (2 oz equivalent meat/meat alternate)*","One 2.2-ounce fully cooked beef patty with SPP credits as 2 ounce equivalents meat/meat alternate. Use vendor CN Label or Product Formulation Statement to confirm crediting information.",null,"Oil",null,"100034 Cheese, Mozzarella, Lite, Shredded, Frozen "]
[null,null,null,110711,"Beef, Patties, Cooked, 2.0 MMA, Frozen","Beef","This item is a fully cooked beef patty that contains no binders or extenders. This item is delivered frozen in a 40-pound case containing 2-pound, 5-pound, 8-pound, or 10-pound interior packages.","40 lb case","One 2.20 oz patty (2 oz equivalent meat/meat alternate)*","One 2.2-ounce fully cooked beef patty credits as 2 ounce equivalents meat/meat alternate. Use vendor CN Label or Product Formulation Statement to confirm crediting information.",null,"Pork",null,"100036 Cheese, Blended American, Yellow, Reduced Fat, Sliced, Chilled"]
[null,null,null,100019,"Cheese, American, White, Pasteurized, Sliced, Chilled  ","Cheese","This item is a pasteurized, processed white American cheese. This product is delivered refrigerated with six 5‐pound loaves per case and 160 1/2‐ounce slices per loaf.","6/5 lb package","1.00 oz (1 oz equivalent meat alternate)","1 ounce processed cheese credits as 1 ounce equivalent meat/meat alternate",null,"Poultry",null,"100037 Cheese, Blended American, White, Reduced Fat, Sliced, Chilled"]
[null,null,null,100017,"Cheese, American, Yellow, Pasteurized, Loaves, Chilled","Cheese","This item is a pasteurized, processed yellow American cheese. This product is delivered refrigerated with six 5‐pound loaves per case.","6/5 lb package","1.00 oz (1 oz equivalent meat alternate)","1 ounce processed cheese credits as 1 ounce equivalent meat/meat alternate",null,"Vegetables",null,"100046 Eggs, Liquid Whole, Frozen "]
[null,null,null,100018,"Cheese, American, Yellow, Pasteurized, Sliced, Chilled","Cheese","This item is a pasteurized, processed yellow American cheese. This product is delivered refrigerated with six 5‐pound loaves per case and 160 1/2‐ounce slices per loaf.","6/5 lb package","1.00 oz (1 oz equivalent meat alternate)","1 ounce processed cheese credits as 1 ounce equivalent meat/meat alternate",null,"Yogurt",null,"100101 Chicken, Diced, Cooked, Frozen "]
[null,null,null,100037,"Cheese, Blended American, White, Reduced Fat, Sliced, Chilled","Cheese","This item is a pasteurized, processed white blended American cheese with a reduced fat profile. This product is delivered refrigerated with six 5‐pound loaves per case and 160 1/2‐ounce slices per loaf.","6/5 lb package","1.00 oz (1 oz equivalent meat alternate)","1 ounce processed cheese credits as 1 ounce equivalent meat/meat alternate",null,null,null,"100117 Chicken, Fajita Seasoned Strips, Cooked, Frozen "]
[null,null,null,100036,"Cheese, Blended American, Yellow, Reduced Fat, Sliced, Chilled","Cheese","This item is a pasteurized, processed yellow blended American cheese with a reduced fat profile. This product is delivered refrigerated with six 5‐pound loaves per case and 160 1/2‐ounce slices per loaf.","6/5 lb package","1.00 oz (1 oz equivalent meat alternate)","1 ounce processed cheese credits as 1 ounce equivalent meat/meat alternate",null,null,null,"100119 Turkey, Taco Filling, Cooked, Frozen "]
[null,null,null,100002,"Cheese, Cheddar, White, Shredded, Chilled","Cheese","This item is U.S. Grade A or higher white cheddar cheese. This product is shredded and is shipped refrigerated in cases containing six 5‐pound bags.","6/5 lb bag","1.00 oz (1 oz equivalent meat alternate)","1 ounce cheddar cheese credits as 1 ounce equivalent meat/meat alternate",null,null,null,"100121 Turkey, Deli Breast, Frozen "]
[null,null,null,100012,"Cheese, Cheddar, Yellow, Reduced Fat, Shredded, Chilled","Cheese","This item is U.S. Grade A or higher yellow cheddar cheese with a reduced fat profile. This product is shredded and is shipped refrigerated in cases containing six 5‐pound bags.","6/5 lb bag","1.00 oz (1 oz equivalent meat alternate)","1 ounce cheese credits as 1 ounce equivalent meat/meat alternate",null,null,null,"100122 Turkey, Deli Breast, Smoked, Frozen "]
[null,null,null,100003,"Cheese, Cheddar, Yellow, Shredded, Chilled","Cheese","This item is U.S. Grade A or higher yellow cheddar cheese. This product is shredded and is shipped refrigerated in cases containing six 5‐pound bags.","6/5 lb bag","1.00 oz (1 oz equivalent meat alternate)","1 ounce cheddar cheese credits as 1 ounce equivalent meat/meat alternate",null,null,null,"100125 Turkey, Roast, Raw, Frozen "]
[null,null,null,111110,"Cheese, Cheddar, Yellow, Sliced, Chilled","Cheese","This item is U.S. Grade A or higher yellow cheddar cheese slices. Each slice weighs 0.75 oz. This product is delivered refrigerated in a 12‐pound case.","12 lb case","1.00 oz (1 oz equivalent meat alternate)","A 0.75 ounce slice of cheese credits as 3/4 ounce equivalent meat/meat alternate",null,null,null,"100126 Turkey, Deli Ham, Smoked, Frozen"]
[null,null,null,100034,"Cheese, Mozzarella, Lite, Shredded, Frozen ","Cheese","This item is a lite shredded mozzarella cheese. It is delivered frozen in a 30 pound case.","30 lb case","1.00 oz (1 oz equivalent meat alternate)","1 ounce lite mozzarella cheese credits as 1 ounce equivalent meat/meat alternate",null,null,null,"100127 Beef, Coarse Ground, Cooked, Canned"]
[null,null,null,100022,"Cheese, Mozzarella, Low Moisture Part Skim, Loaves, Frozen ","Cheese","This item is a low moisture part skim mozzarella cheese. This product is delivered frozen and contains eight 6‐pound loaves per case.","8/6 lb package","1.00 oz (1 oz equivalent meat alternate)","1 ounce mozzarella cheese credits as 1 ounce equivalent meat/meat alternate",null,null,null,"100134 Beef, Crumbles w/SPP, Cooked, Frozen "]
[null,null,null,100021,"Cheese, Mozzarella, Low Moisture Part Skim, Shredded, Frozen","Cheese","This item is low moisture part skim shredded mozzarella cheese. This product is delivered frozen in a 30 pound case.","30 lb case","1.00 oz (1 oz equivalent meat alternate)","1 ounce shredded mozzarella cheese credits as 1 ounce equivalent meat/meat alternate",null,null,null,"100139 Pork, Coarse Ground, Cooked, Canned"]
[null,null,null,110396,"Cheese, Mozzarella, Low Moisture Part Skim, String, Chilled","Cheese","This item is low moisture part skim mozzarella string cheese. This product is delivered refrigerated and contains 360 individually wrapped 1‐ounce portions.","360/1 oz package","1.00 oz (1 oz equivalent meat alternate)","1 ounce string cheese credits as 1 ounce equivalent meat/meat alternate",null,null,null,"100158 Beef, Fine Ground, 100%, 85/15, Raw, Frozen"]
[null,null,null,111220,"Cheese, Pepper Jack, Shredded, Chilled","Cheese","This item is U.S. Grade A or better Monterey Jack cheese with peppers. This product is shredded and is shipped refrigerated in cases containing four 5‐pound bags.","4/5 lb bag","1.00 oz (1 oz equivalent meat alternate)","1 ounce pepper jack cheese credits as 1 ounce equivalent meat/meat alternate",null,null,null,"100163 Beef, Patties, Lean, Raw, 2.0 MMA, Frozen"]
[null,null,null,100046,"Eggs, Liquid Whole, Frozen ","Egg products","This item is Grade A, AA, or Nest-Run frozen, homogenized whole eggs with a color stabilizer. The liquid eggs are frozen and packaged in a pitcher-pour 5-pound carton with six cartons per case.","6/5 lb carton","50 grams (1 large egg)","1.5 Tablespoons of liquid whole eggs credits as 1 ounce equivalent meat/meat alternate",null,null,null,"100173 Pork, Leg Roast, Raw, Frozen"]
[null,null,null,110845,"Eggs, Liquid Whole, Frozen ","Egg products","This item is Grade A, AA, or Nest-Run frozen, homogenized whole eggs with a color stabilizer. The liquid eggs are frozen and packaged in a pitcher-pour 2-pound carton with twelve cartons per case.","12/2 lb carton","50 grams (1 large egg)","1.5 Tablespoons of liquid whole eggs credits as 1 ounce equivalent meat/meat alternate",null,null,null,"100184 Ham, 97% Fat Free, Water-Added, Cooked, Frozen "]
[null,null,null,111751,"Eggs, Patties, Cooked, 1.0 MMA, Round, Frozen","Egg products","This item is Grade A, AA, or Nest-Run frozen, fullycooked, scrambled, round patty made from pasteurized whole eggs with a color stabilizer. Egg patties are 3.25—3.5 inches in diameter and are frozen in a 25 pound plastic-lined cardboard case.","25 lb case","One 1.25 oz patty (1.00 oz equivalent meat alternate)*","1 egg patty (1.25 ounces) yields 1 ounce equivalent meat/meat alternate. Use vendor CN Label or Product Formulation Statement to confirm crediting information.",null,null,null,"100187 Ham, 97% Fat Free, Water-Added, Cooked, Sliced, Frozen"]
[null,null,null,110851,"Alaska Pollock, Whole Grain-Rich Breaded Sticks, Frozen","Fish","This item is uncooked, oven-ready, single frozen Alaska Pollock fish sticks made from deep skinned fillet, with a whole grain-rich breading. This product is delivered frozen in cases containing four 10-pound packages or eight 5-pound packages.","8/5 lb or 4/10 lb bag","4.00 oz (2 oz equivalent meat)*","2 ounces of Alaska Pollock fish sticks credit as 1 ounce equivalent meat/meat alternate and 1/2 ounce equivalent grain. Use vendor CN Label or Product Formulation Statement to confirm crediting information.",null,null,null,"100188 Ham, 97% Fat Free, Water-Added, Cooked, Diced, Frozen"]
[null,null,null,100201,"Catfish, Whole Grain-Rich Breaded Fillet Strips, Frozen","Fish","This item is uncooked, oven-ready catfish filet strips with a whole grain-rich cornmeal breading. This product is delivered frozen in cases containing four 10- pound packages.","8/5 lb or 4/10 lb bag","1.00 oz equivalent meat*","Approximately 2 ounces of breaded catfish strips credit as 1 ounce equivalent meat/meat alternate. Use vendor CN Label or Product Formulation Statement to confirm crediting information.",null,null,null,"100201 Catfish, Whole Grain-Rich Breaded Fillet Strips, Frozen"]
[null,null,null,111790,"Apple Juice, 100%, Unsweetened, Cups, Frozen ","Fruit","This item is U.S. Grade A apple juice. It is delivered frozen in cases with 96 individual portion 4-ounce cups.","96/4 oz cup","4 fl oz","One 4-ounce serving of apple juice credits as ½ cup fruit.",null,null,null,"100206 Apple Slices, Unsweetened, Canned"]
[null,null,null,100206,"Apple Slices, Unsweetened, Canned","Fruit","This item is U.S. Grade A canned apple slices packed in water. This product is available in cases containing six #10 cans.","6/#10 can","1/2 cup, drained","½ cup sliced apples credits as ½ cup fruit",null,null,null,"100212 Mixed Fruit (Peaches, Pears, Grapes), Extra Light Syrup, Canned"]
[null,null,null,100258,"Apple Slices, Unsweetened, Frozen (IQF)","Fruit","This item is U.S. Grade A frozen apple slices that are unsweetened. This product is delivered frozen in 30‐pound cases.","30 lb case","1/2 cup, thawed","½ cup thawed apples credits as ½ cup fruit",null,null,null,"100216 Apricots, Diced, Extra Light Syrup, Canned"]
[null,null,null,110541,"Applesauce, Unsweetened, Canned (K)","Fruit","This item is U.S. Grade A unsweetened canned applesauce. This product is available in cases containing six #10 cans.","6/#10 can","1/2 cup","½ cup applesauce credits as ½ cup fruit",null,null,null,"100219 Peaches, Sliced, Extra Light Syrup, Canned"]
[null,null,null,110361,"Applesauce, Unsweetened, Cups, Shelf-Stable","Fruit","This item is U.S. Grade A unsweetened applesauce. This product is available in cases containing 96 4.5‐ ounce individual portion plastic cups.","96/4.5 oz cup","1/2 cup (4.5 oz by weight)","½ cup applesauce credits as ½ cup fruit",null,null,null,"100220 Peaches, Diced, Extra Light Syrup, Canned"]
[null,null,null,100261,"Apricots, Diced, Cups, Frozen ","Fruit","This item is U.S. Grade B (Grade A for defects) diced apricots packed in a light syrup. This product is delivered frozen in cases containing 96 4.5‐ounce cups.","96/4.5 oz cup","1/2 cup (4.5 oz by weight)","One 4.5‐ounce cup of apricots credits as ½ cup fruit",null,null,null,"100224 Pears, Sliced, Extra Light Syrup, Canned"]
[null,null,null,100216,"Apricots, Diced, Extra Light Syrup, Canned","Fruit","This item is U.S. Grade B canned diced apricots packed in extra light syrup or fruit juice. This product is available in cases containing six #10 cans.","6/#10 can","1/2 cup, drained","½ cup diced apricots credits as ½ cup fruit",null,null,null,"100225 Pears, Diced, Extra Light Syrup, Canned (K)"]
[null,null,null,100243,"Blueberries, Wild, Unsweetened, Frozen ","Fruit","This item is U.S. Grade B or better frozen blueberries in the native (wild) variety that are unsweetened. Product is delivered frozen in a 30‐ pound case.","30 lb case","1/2 cup, thawed","½ cup thawed blueberries credits as ½ cup fruit",null,null,null,"100226 Pears, Halves, Extra Light Syrup, Canned"]
[null,null,null,100242,"Blueberries, Wild, Unsweetened, Frozen ","Fruit","This item is U.S. Grade B or better frozen blueberries in the native (wild) variety that are unsweetened. Product is delivered frozen in eight 3‐pound packages.","8/3 lb bag","1/2 cup, thawed","½ cup thawed blueberries credits as ½ cup fruit",null,null,null,"100238 Peaches, Sliced, Frozen "]
[null,null,null,110624,"Blueberries, Unsweetened, Frozen ","Fruit","This item is U.S. Grade B or better frozen blueberries. This product is the highbush variety and is unsweetened. The item is delivered frozen in a 30‐ pound case.","30 lb case","1/2 cup, thawed","½ cup of blueberries credits as ½ cup of fruit",null,null,null,"100239 Peaches, Sliced, Frozen "]
[null,null,null,110623,"Blueberries, Unsweetened, Frozen ","Fruit","This item is U.S. Grade B or better frozen blueberries. This product is the highbush variety and is unsweetened. The item is delivered frozen in cases with twelve 2.5‐pound packages.","12/2.5 lb bag","1/2 cup, thawed","½ cup of blueberries credits as ½ cup of fruit",null,null,null,"100241 Peaches, Diced, Cups, Frozen "]
[null,null,null,100299,"Cherries, Tart, Dried","Fruit","This item is U.S. Grade B or better whole, tart red dried cherries with added sweeteners and oil. This product is available in cases containing four 4‐pound bags.","4/4 lb bag","1/4 cup","¼ cup dried cherries credits as ½ cup fruit in NSLP and CACFP. ½ cup cherries credits as ½ cup fruit in SFSP and the Afterschool Snack program.",null,null,null,"100242 Blueberries, Wild, Unsweetened, Frozen "]
[null,null,null,110872,"Cherries, Sweet, Pitted, Unsweetened, Frozen (IQF)","Fruit","This item is U.S. Grade B or better sweet cherries that are pitted and have no added sweetener. This product is available in cases containing twelve 2.5‐pound bags.","12/2.5 lb bag","1/2 cup, thawed","½ cup cherries credits as ½ cup fruit",null,null,null,"100243 Blueberries, Wild, Unsweetened, Frozen "]
[null,null,null,111643,"Cherries, Tart, Dried, Individual Portion","Fruit","This item is U.S. Grade B or better whole, tart red dried cherries with added sweeteners and oil. This product is available in cases containing 250 individual portion bags. ","250/1.36 oz bag","1/4 cup (1.36 oz by weight)","One 1.36 ounce bag of dried cherries credits as ½ cup fruit in NSLP and CACFP. Two 1.36 ounce bags of dried cherries credit as ½ cup fruit in SFSP and the Afterschool Snack program.",null,null,null,"100254 Strawberries, Sliced, Frozen"]
[null,null,null,110723,"Cranberries, Dried, Individual Portion","Fruit","This item is U.S. Grade B or better dried, sliced cranberries that may contain added sweeteners and a light oil coating to prevent clumping. This item is available in case containing 300 individual portion packages.","300/1.16 oz bag","1/4 cup (1.16 oz by weight)","One 1.16 ounce bag of dried cranberries credits as ½ cup fruit in NSLP and CACFP. Two 1.16 ounce bags of dried cranberries credit as ½ cup fruit in SFSP and the Afterschool Snack program.",null,null,null,"100256 Strawberries, Diced, Cups, Frozen"]
[null,null,null,110859,"Mixed Berries (Blueberries, Strawberries), Cups, Frozen","Fruit","This item is a mixed berry cup that contains U.S. Grade A diced strawberries and U.S. Grade B or better blueberries. This product is packed in extra light syrup and delivered frozen in cases containing 96 4‐ounce cups.","96/4 oz cup","1/2 cup (4 oz by weight)","½ cup of mixed berries credits as ½ cup of fruit",null,null,null,"100258 Apple Slices, Unsweetened, Frozen (IQF)"]
[null,null,null,110161,"Mixed Fruit (Apples, Cherries, Cranberries, Raisins), Dried","Fruit","This item is U.S. Grade B or better dried fruit mix that contains a combination of the following four ingredients: dried apples, diced; dried cherries; dried cranberries; raisins. This product is available in cases containing five 5‐pound bags.","5/5 lb bag","1/4 cup","¼ cup dried fruit mix credits as ½ cup fruit in NSLP and CACFP. ½ cup dried fruit mix credits as ½ cup fruit in SFSP and the Afterschool Snack program.",null,null,null,"100261 Apricots, Diced, Cups, Frozen "]
[null,null,null,100212,"Mixed Fruit (Peaches, Pears, Grapes), Extra Light Syrup, Canned","Fruit","This item consists of U.S. Grade B diced peaches, diced pears, and whole seedless grapes in the following proportions: 40‐60% peaches, 20‐45% pears, and 15‐25% grapes. The fruit is packed in extra light syrup or fruit juice. This product is available in cases with six #10 cans.","6/#10 can","1/2 cup, drained","½ cup mixed fruit credits as ½ cup fruit",null,null,null,"100293 Raisins, Unsweetened, Individual Portion"]
[null,null,null,100220,"Peaches, Diced, Extra Light Syrup, Canned","Fruit","This item is U.S. Grade B canned diced peaches packed in extra light syrup or fruit juice. This product is available in cases containing six #10 cans.","6/#10 can","1/2 cup, drained","½ cup diced peaches credits as ½ cup fruit",null,null,null,"100299 Cherries, Tart, Dried"]
[null,null,null,100241,"Peaches, Diced, Cups, Frozen ","Fruit","This item is U.S. Grade B (Grade A for defects) diced peaches. This item is packed in an extra light syrup and is delivered frozen in cases containing 96 4.4‐ounce cups.","96/4.4 oz cup","4.4 oz by weight","One 4.4‐ounce cup of peaches credits as ½ cup fruit",null,null,null,"100307 Beans, Green, Low-sodium, Canned (K)"]
[null,null,null,100239,"Peaches, Sliced, Frozen ","Fruit","This item is U.S. Grade A frozen sliced peaches. The peaches are packed in syrup or puree and delivered frozen in a 20‐pound case.","20 lb case","1/2 cup, thawed","½ cup peaches credits as ½ cup fruit",null,null,null,"100309 Carrots, Sliced, Low-sodium, Canned "]
[null,null,null,100238,"Peaches, Sliced, Frozen ","Fruit","This item is U.S. Grade A frozen sliced peaches. The peaches packed in a syrup or puree and is delivered frozen in a case containing twelve 2‐pound bags.","12/2 lb bag","1/2 cup, thawed","½ cup of peaches credits as ½ cup fruit",null,null,null,"100313 Corn, Whole Kernel, No Salt Added, Canned (K)"]
[null,null,null,100219,"Peaches, Sliced, Extra Light Syrup, Canned","Fruit","This item is U.S. Grade B canned sliced peaches packed in extra light syrup or fruit juice. This product is available in cases containing six #10 cans.","6/#10 can","1/2 cup, drained","½ cup sliced peaches credit as ½ cup fruit",null,null,null,"100315 Peas, Green, Low-sodium, Canned "]
[null,null,null,100225,"Pears, Diced, Extra Light Syrup, Canned (K)","Fruit","This item is U.S. Grade B (Grade A for defects) canned diced pears made from Bartlett variety pears. This item is packed in extra light syrup or Juice and is available in cases containing six #10 cans.","6/#10 can","1/2 cup, drained","½ cup diced pears credits as ½ cup fruit",null,null,null,"100317 Sweet Potatoes, Light Syrup, No Salt Added, Canned "]
[null,null,null,100226,"Pears, Halves, Extra Light Syrup, Canned","Fruit","This item is U.S. Grade B canned pear halves packed in extra light syrup or juice. This product is available in cases containing six #10 cans.","6/#10 can","1/2 cup, drained","½ cup pears credits as ½ cup fruit",null,null,null,"100327 Tomato Paste, No Salt Added, Canned "]
[null,null,null,100224,"Pears, Sliced, Extra Light Syrup, Canned","Fruit","This item is U.S. Grade B canned sliced pears packed in extra light syrup or juice. This product is available in cases containing six #10 cans.","6/#10 can","1/2 cup, drained","½ cup sliced pears credits as ½ cup fruit",null,null,null,"100329 Tomatoes, Diced, No Salt Added, Canned "]
[null,null,null,100293,"Raisins, Unsweetened, Individual Portion","Fruit","This item is U.S. Grade B or better seedless raisins with no added sweetener. This item is available in cases containing 144 1.33‐ounce packages.","144/1.33 oz unit","1.33 oz by weight","One 1.33 ounce box of raisins credits as ½ cup fruit in NSLP and CACFP. Two 1.33 ounce boxes of raisins credit as ½ cup fruit in SFSP and the Afterschool Snack program.",null,null,null,"100330 Salsa, Low-sodium, Canned "]
[null,null,null,100256,"Strawberries, Diced, Cups, Frozen","Fruit","This item is U.S. Grade A diced strawberries packed in an extra light syrup. This product is delivered frozen in cases containing 96 4.5‐ounce cups.","96/4.5 oz cup","4.5 oz by weight","One 4.5‐ounce cup of strawberries credits as ½ cup fruit",null,null,null,"100334 Tomato Sauce, Low-sodium, Canned "]
[null,null,null,100254,"Strawberries, Sliced, Frozen","Fruit","This item is U.S. Grade A sliced strawberries packed in an extra light syrup. This product is delivered frozen in 30‐pound pail.","30 lb pail","1/2 cup, thawed","½ cup of strawberries credits as ½ cup fruit",null,null,null,"100336 Spaghetti Sauce, Low-sodium, Canned"]
[null,null,null,110860,"Strawberries, Sliced, Unsweetened, Frozen (IQF)","Fruit","This item is U.S. Grade A sliced strawberries that are unsweetened and individually quick frozen (IQF). The slice size is approximately 3/8 to 1/2 inch. This product is delivered frozen in a case containing six 5‐ pound packages.","6/5 lb bag","1/2 cup, thawed","½ cup of strawberries credits as ½ cup fruit",null,null,null,"100348 Corn, Whole Kernel, No Salt Added, Frozen "]
[null,null,null,110846,"Strawberries, Whole, Unsweetened, Frozen (IQF)","Fruit","This item is U.S. Grade A whole strawberries. They are medium size, unsweetened and individually quick frozen (IQF) so the packages can be poured out in small quantities and resealed. This product is delivered frozen in cases containing six 5‐pound packages.","6/5 lb bag","1/2 cup, thawed","½ cup of strawberries credits as ½ cup fruit",null,null,null,"100350 Peas, Green, No Salt Added, Frozen "]
[null,null,null,110857,"Flour, 100% White Whole Wheat","Grains","This item is 100% white whole wheat flour. It is available in a case containing eight 5‐pound bags.","8/5 lb bag","30 grams","Flour is a recipe ingredient, so crediting is based on the portion size and type of grain item served.",null,null,null,"100351 Beans, Green, No Salt Added, Frozen "]
[null,null,null,100400,"Flour, All Purpose, Enriched, Bleached","Grains","This item is all purpose wheat flour that is enriched. It is available in cases with eight 5‐pound bags.","8/5 lb bag","30 grams","Flour is a recipe ingredient, so crediting is based on the portion size and type of grain item served.",null,null,null,"100352 Carrots, Sliced, No Salt Added, Frozen "]
[null,null,null,110211,"Flour, White Whole Wheat/Enriched 60/40 Blend","Grains","This item is a whole grain‐rich flour blend made from 60% white whole wheat flour and 40% enriched flour. This product is available in cases containing eight 5‐ pound bags.","8/5 lb bag","30 grams","Flour is a recipe ingredient, so crediting is based on the portion size and type of grain item served.",null,null,null,"100355 Potatoes, Wedges, Low-sodium, Frozen (IQF)"]
[null,null,null,110208,"Flour, White Whole Wheat/Enriched 60/40 Blend","Grains","This item is a whole grain‐rich flour blend made from 60% white whole wheat flour and 40% enriched flour. This product is available in 25 pound bags.","25 lb bag","30 grams","Flour is a recipe ingredient, so crediting is based on the portion size and type of grain item served.",null,null,null,"100356 Potatoes, Wedges, Fat Free, Low-sodium, Frozen (IQF)"]
[null,null,null,100465,"Oats, Rolled, Quick Cooking","Grains","This item is quick cooking rolled oats available in cases containing twelve 42‐ounce tubes.","12/42 oz tube","1.00 oz dry (1 oz equivalent grains)","1 ounce dry or ½ cup cooked oats credits as 1 ounce equivalent grains",null,null,null,"100357 Potatoes, Oven Fries, Low-sodium, Frozen "]
[null,null,null,110393,"Pancakes, Whole Grain or Whole Grain-Rich, Frozen","Grains","These whole grain-rich pancakes are made with whole wheat flour or a combination of whole wheat flour and enriched wheat flour. This item is delivered frozen in cases containing 144 1.2-ounce servings.","144 count/case","1.20 oz (1 oz equivalent grains)","A 1.2-ounce serving of pancakes credits as 1 ounce equivalent grains",null,null,null,"100359 Beans, Black, Low-sodium, Canned "]
[null,null,null,110501,"Pasta, Macaroni, Whole Grain-Rich Blend","Grains","This item is whole grain‐rich macaroni that is made with 51‐65% U.S. No. 1 whole durum wheat flour and the remaining grain is enriched flour. This item is available in a 20 pound case.","2/10 lb bag","1.00 oz dry (1 oz equivalent grains)","½ cup cooked or 1 ounce dry macaroni credits as 1 ounce equivalent grains",null,null,null,"100360 Beans, Garbanzo, Low-sodium, Canned (K)"]
[null,null,null,110520,"Pasta, Penne, Whole Grain-Rich Blend","Grains","This item is whole grain‐rich penne pasta that is made with 51‐65% U.S. No. 1 whole durum wheat flour and the remaining grain is enriched flour. This item is available in a 20 pound case.","2/10 lb bag","1.00 oz dry (1 oz equivalent grains)","½ cup cooked or 1 ounce dry penne pasta credits as 1 ounce equivalent grains",null,null,null,"100362 Beans, Refried, Low-sodium, Canned "]
[null,null,null,110504,"Pasta, Rotini, Whole Grain-Rich Blend","Grains","This item is whole grain‐rich rotini pasta that is made with 51‐65% U.S. No. 1 whole durum wheat flour and the remaining grain is enriched flour. This item is available in a 20 pound case.","2/10 lb bag","1.00 oz dry (1 oz equivalent grains)","½ cup cooked or 1 ounce dry rotini pasta credits as 1 ounce equivalent grains",null,null,null,"100364 Beans, Vegetarian, Low-sodium, Canned "]
[null,null,null,110506,"Pasta, Spaghetti, Whole Grain-Rich Blend","Grains","This item is whole grain‐rich spaghetti that is made with 51‐65% U.S. No. 1 whole durum wheat flour and the remaining grain is enriched flour. This item is available in a 20 pound case.","2/10 lb bag","1.00 oz dry (1 oz equivalent grains)","½ cup cooked or 1 ounce dry spaghetti credits as 1 ounce equivalent grains",null,null,null,"100365 Beans, Pinto, Low-sodium, Canned "]
[null,null,null,100425,"Pasta, Spaghetti, Enriched","Grains","This item is spaghetti that is made from semolina flour and is enriched. This item is available in a 20 pound case.","20 lb case","1.00 oz dry (1 oz equivalent grains)","½ cup cooked or 1 ounce dry spaghetti credits as 1 ounce equivalent grains",null,null,null,"100366 Beans, Small Red, Low-sodium, Canned "]
[null,null,null,101031,"Rice, Brown, Long Grain, Parboiled","Grains","This item is U.S. No. 1 long grain, parboiled brown rice. This product is available in twenty‐five pound bags.","25 lb bag","1.00 oz dry (1 oz equivalent grains)","1 ounce dry or ½ cup cooked rice credits as 1 ounce equivalent grains",null,null,null,"100368 Beans, Black-eyed Pea, Low-sodium, Canned "]
[null,null,null,100500,"Rice, Brown, Long Grain, Parboiled","Grains","This item is U.S. No. 1 long grain, parboiled brown rice. This product is available in cases containing twenty‐four 2‐pound bags.","24/2 lb bag","1.00 oz dry (1 oz equivalent grains)","1 ounce dry or ½ cup cooked rice credits as 1 ounce equivalent grains",null,null,null,"100369 Beans, Pink, Low-sodium, Canned "]
[null,null,null,100494,"Rice, Long Grain, Parboiled","Grains","This item is U.S. No. 2 long grain parboiled rice that is enriched. This product is available in 25‐pound bags.","25 lb bag","1.00 oz dry (1 oz equivalent grains)","1 ounce dry or ½ cup cooked rice credits as 1 ounce equivalent grains",null,null,null,"100370 Beans, Kidney, Dark Red, Low-sodium, Canned "]
[null,null,null,110394,"Tortillas, Whole Grain or Whole Grain-Rich, 8 inch, Frozen","Grains","This item is 8-inch wheat tortillas that are made from whole wheat flour or a combination of whole wheat and enriched wheat flour. This product is delivered frozen in cases containing twelve packages, each with 24 tortillas.","12/24 count","One 8-inch tortilla (1.50 oz equivalent grains)","1 whole grain tortilla credits as 1.5 ounce equivalent of grains",null,null,null,"100371 Beans, Baby Lima, Low-sodium, Canned "]
[null,null,null,100371,"Beans, Baby Lima, Low-sodium, Canned ","Legumes","This item is Grade A canned, dried baby lima beans that are low‐sodium. This product is available in cases with six #10 cans.","6/#10 can","1/2 cup, drained","½ cup beans credits as ½ cup legume vegetable OR 2 ounce equivalent meat/meat alternate",null,null,null,"100373 Beans, Great Northern, Low-sodium, Canned "]
[null,null,null,100359,"Beans, Black, Low-sodium, Canned ","Legumes","This item is Grade A canned, dried black turtle beans that are low‐sodium. This product is available in cases with six #10 cans.","6/#10 can","1/2 cup, drained","½ cup beans credit as ½ cup legume vegetable OR 2 ounce equivalents meat/meat alternate",null,null,null,"100382 Beans, Pinto, Dry"]
[null,null,null,100368,"Beans, Black-eyed Pea, Low-sodium, Canned ","Legumes","This item is Grade A canned, dried black‐eyed peas that are low‐sodium. This product is available in cases with six #10 cans.","6/#10 can","1/2 cup, drained","½ cup black‐eyed peas credits as ½ cup legume vegetable OR 2 ounce equivalents meat/meat alternate",null,null,null,"100396 Peanut Butter, Smooth"]
[null,null,null,100360,"Beans, Garbanzo, Low-sodium, Canned (K)","Legumes","This item is Grade A canned, dried garbanzo beans that are low‐sodium. This item is available in cases with six #10 cans.","6/#10 can","1/2 cup, drained","½ cup garbanzo beans credits as ½ cup legume vegetable OR 2 ounce equivalents meat/meat alternate",null,null,null,"100400 Flour, All Purpose, Enriched, Bleached"]
[null,null,null,100373,"Beans, Great Northern, Low-sodium, Canned ","Legumes","This item is Grade A canned, dried great northern beans that are low‐sodium. This product is available in cases with six #10 cans.","6/#10 can","1/2 cup, drained","½ cup beans credits as ½ cup legume vegetable OR 2 ounce equivalents meat/meat alternate",null,null,null,"100425 Pasta, Spaghetti, Enriched"]
[null,null,null,100370,"Beans, Kidney, Dark Red, Low-sodium, Canned ","Legumes","This item is Grade A canned, dried red kidney beans that are low‐sodium. This product is available in cases with six #10 cans.","6/#10 can","1/2 cup, drained","½ cup beans credits as ½ cup legume vegetable OR 2 ounce equivalents meat/meat alternate",null,null,null,"100439 Oil, Vegetable"]
[null,null,null,100369,"Beans, Pink, Low-sodium, Canned ","Legumes","This item is Grade A canned, dried pink beans that are low‐sodium. This product is available in cases with six #10 cans.","6/#10 can","1/2 cup, drained","½ cup beans credits as ½ cup legume vegetable OR 2 ounce equivalents meat/meat alternate",null,null,null,"100465 Oats, Rolled, Quick Cooking"]
[null,null,null,100382,"Beans, Pinto, Dry","Legumes","This item is grade U.S. No. 1 dry pinto beans in cases with twelve 2‐pound bags.","12/2 lb bag","1/2 cup, cooked, drained","½ cup cooked pinto beans credits as ½ cup legume vegetable OR 2 ounce equivalents meat/meat alternate",null,null,null,"100494 Rice, Long Grain, Parboiled"]
[null,null,null,100365,"Beans, Pinto, Low-sodium, Canned ","Legumes","This item is Grade A canned, dried pinto beans that are low‐sodium. This product is available in cases with six #10 cans.","6/#10 can","1/2 cup, drained","½ cup beans credits as ½ cup legume vegetable OR 2 ounce equivalents meat/meat alternate",null,null,null,"100500 Rice, Brown, Long Grain, Parboiled"]
[null,null,null,100362,"Beans, Refried, Low-sodium, Canned ","Legumes","This item is canned refried beans made from pinto beans and pink beans. This product is low‐sodium and is prepared with vegetable oil, onion and garlic flavoring, jalapeno, and tomato paste to provide a mild spice profile. It is available in cases with six #10 cans.","6/#10 can","1/2 cup, drained","½ cup beans credits as ½ cup legume vegetable OR 2 ounce equivalent meat/meat alternate",null,null,null,"100877 Chicken, Boned, White Meat, Cooked, Canned"]
[null,null,null,100366,"Beans, Small Red, Low-sodium, Canned ","Legumes","This item is Grade A canned, dried small red beans that are low‐sodium. This product is available in cases with six #10 cans.","6/#10 can","1/2 cup, drained","½ cup beans credits as ½ cup legume vegetable OR 2 ounce equivalents meat/meat alternate",null,null,null,"100935 Sunflower Seed Butter, Smooth (K)"]
[null,null,null,100364,"Beans, Vegetarian, Low-sodium, Canned ","Legumes","This item is U.S. Grade A vegetarian beans made from small white beans or navy beans in tomato sauce. The beans are low sodium and the formulation includes, at a minimum, tomato paste, onion powder, garlic powder, salt and sugar. High fructose corn syrup is not permitted in the formulation. This item is available in cases with six #10 cans.","6/#10 can","1/2 cup, drained","½ cup beans credits as ½ cup legume vegetable OR 2 ounce equivalent meat/meat alternate",null,null,null,"101031 Rice, Brown, Long Grain, Parboiled"]
[null,null,null,111860,"Black Bean Burger, Patties, Cooked, 2.0 MMA, Frozen","Legumes","This item is a fully cooked black bean burger patty with a mild southwest flavor. This product is individually quick frozen and delivered in a 30-pound case.","30 lb case","One 3.5 ounce patty (2 oz equivalent meat alternate)","One 3.5-ounce fully cooked black bean burger patty credits as 2 ounce equivalents meat/meat alternate.",null,null,null,"110080 Chicken, Oven Roasted, Cut-up, Cooked, Frozen "]
[null,null,null,100396,"Peanut Butter, Smooth","Nuts and seeds","This item is a U.S. Grade A smooth peanut butter that has been stabilized to prevent oil separation. This item is available in cases with six 5-pound containers.","6/5 lb unit","2 TBSP (1 oz equivalent meat alternate)","2 Tablespoons of peanut butter credits as 1 ounce equivalent meat/meat alternate",null,null,null,"110161 Mixed Fruit (Apples, Cherries, Cranberries, Raisins), Dried"]
[null,null,null,110854,"Peanut Butter, Individual Portion, Smooth","Nuts and seeds","This item is a U.S. Grade A smooth peanut butter that has been stabilized to prevent oil separation. This item is packaged in individual cups or pouches with an easy open feature. This item is available in cases with 120 1.1-ounce packages.","120/1.1 oz unit","1.1 oz (1 oz equivalent meat alternate)","One 1.1-ounce package of peanut butter credits as 1 ounce equivalent meat/meat alternate",null,null,null,"110177 Spaghetti Sauce, Low-sodium, Pouch"]
[null,null,null,100935,"Sunflower Seed Butter, Smooth (K)","Nuts and seeds","This item is a smooth blended sunflower seed butter that has been stabilized to prevent oil separation. This item is available in cases with six 5-pound containers. This product is required to contain one of five approved commercial Kosher certifications.","6/5 lb unit","2 TBSP (1 oz equivalent meat alternate)","2 Tablespoons of sunflower seed butter credits as 1 ounce equivalent meat/meat alternate",null,null,null,"110186 Salsa, Low-sodium, Pouch "]
[null,null,null,100439,"Oil, Vegetable","Oil","This item is vegetable oil made from canola, corn, cottonseed, olive, safflower, soybean, sesame, sunflower, or any other vegetable oil or a combination of these oils. This blend may not include peanut oil. This product is available in cases containing six one‐gallon bottles.","6/1 gallon bottle","1 TBSP","Vegetable oil is used as an ingredient and does not credit as a separate meal component.",null,null,null,"110187 Tomato Sauce, Low-sodium, Pouch "]
[null,null,null,100184,"Ham, 97% Fat Free, Water-Added, Cooked, Frozen ","Pork","This item is a 97% fat free, water-added cured ham. This is a fully-cooked item that is shipped frozen. This product is delivered frozen in cases containing four 10- pound hams.","4/10 lb hams","1.22 oz (1 oz equivalent meat)*","1.22 ounces of ham credits as 1 ounce equivalent meat/meat alternate. Use vendor CN Label or Product Formulation Statement to confirm crediting information.",null,null,null,"110208 Flour, White Whole Wheat/Enriched 60/40 Blend"]
[null,null,null,100188,"Ham, 97% Fat Free, Water-Added, Cooked, Diced, Frozen","Pork","This item is a 97% fat free, water-added cured ham. This product is fully-cooked and diced in pieces that are approximately 1/4 inch. This product is delivered frozen in cases containing eight 5-pound packages.","8/5 lb or 4/10 lb bag","1.22 oz (1 oz equivalent meat)*","1.22 ounces of ham credits as 1 ounce equivalent meat/meat alternate. Use vendor CN Label or Product Formulation Statement to confirm crediting information.",null,null,null,"110211 Flour, White Whole Wheat/Enriched 60/40 Blend"]
[null,null,null,100187,"Ham, 97% Fat Free, Water-Added, Cooked, Sliced, Frozen","Pork","This item is a 97% fat free, water-added cured ham. This product is fully-cooked and thinly sliced in round or square–shaped pieces that are approximately 4 inches across. This product is delivered frozen in cases containing eight 5-pound packages.","8/5 lb package","1.22 oz (1 oz equivalent meat)*","1.22 ounces of ham credits as 1 ounce equivalent meat/meat alternate. Use vendor CN Label or Product Formulation Statement to confirm crediting information.",null,null,null,"110261 Beef, Fine Ground, 100%, 85/15, LFTB OPT, Raw, Frozen"]
[null,null,null,100139,"Pork, Coarse Ground, Cooked, Canned","Pork","This item is coarse ground pork cooked in its own juices and canned. This product is delivered in cases containing twenty-four 24-ounce cans.","24/24 oz can ","2.00 oz (1 oz equivalent meat)","1 ounce of heated canned pork credits as 1 ounce equivalent meat/meat alternate",null,null,null,"110322 Beef, Patties w/SPP, Cooked, 2.0 MMA, Frozen "]
[null,null,null,100173,"Pork, Leg Roast, Raw, Frozen","Pork","This item is individual pork leg roasts in 6-10 pound packages. Each leg roast is netted and vacuum packaged for shipping. This product is delivered frozen in cases that contain 36-42 pounds.","36-42 lb case","1.00 oz cooked meat (1 oz equivalent meat)","1 ounce of cooked pork leg roast credits as 1 ounce equivalent meat/meat alternate",null,null,null,"110346 Beef, Patties, 100%, 90/10, Raw, 2.0 MMA, Frozen"]
[null,null,null,110730,"Pork, Pulled, Cooked, Frozen","Pork","This item is a fully cooked, minimally seasoned pulled pork. This product is delivered frozen in cases containing eight 5-pound or four 10-pound packages.","8/5 lb or 4/10 lb bag","1.00 oz equivalent meat*","2 ounces of pulled pork and juices credits as 1 ounce equivalent meat/meat alternate. Use vendor CN Label or Product Formulation Statement to confirm crediting information.",null,null,null,"110348 Beef, Patties w/SPP, 85/15, Raw, 2.0 MMA, Frozen"]
[null,null,null,100877,"Chicken, Boned, White Meat, Cooked, Canned","Poultry","This item is a white meat chicken product packed in broth or water. This product is delivered in cases containing twelve 50-ounce cans.","12/50 oz can","1.00 oz equivalent meat*","1 ounce of drained canned chicken credits as 1 ounce equivalent meat/meat alternate. Use vendor CN Label or Product Formulation Statement to confirm crediting information.",null,null,null,"110349 Beef, Patties, 100%, 85/15, Raw, 2.0 MMA, Frozen"]
[null,null,null,111361,"Chicken, Cut-up, Raw, Frozen","Poultry","This item is raw cut-up chicken made from U.S. Grade A chicken, without necks and giblets. The product includes breasts, thighs, drumsticks, and wings. It is delivered frozen in a 40 pound case containing (4) 10 pound packages.","4/10 lb bag","1.00 oz equivalent meat","1 ounce of cooked chicken meat without bone credits as 1 ounce equivalent meat/meat alternate",null,null,null,"110361 Applesauce, Unsweetened, Cups, Shelf-Stable"]
[null,null,null,100101,"Chicken, Diced, Cooked, Frozen ","Poultry","This item is fully cooked diced chicken meat. This product is diced into approximately 1/2-inch cubes and is a natural proportion product that contains a minimum of 50% white meat. This item is shipped frozen in 40 pound cases containing eight 5-pound or four 10-pound packages.","8/5 lb or 4/10 lb bag","1.00 oz equivalent meat*","Approximately 1 ounce of diced chicken credits as 1 ounce equivalent meat/meat alternate. Use vendor CN Label or Product Formulation Statement to confirm crediting information.",null,null,null,"110393 Pancakes, Whole Grain or Whole Grain-Rich, Frozen"]
[null,null,null,100117,"Chicken, Fajita Seasoned Strips, Cooked, Frozen ","Poultry","This item is fully cooked dark meat chicken fajita strips made from boneless, skinless drumsticks, thighs, and/or legs. This product is marinated in fajita seasoning and contains grill markings. The item is shipped frozen in 30 pound cases containing six 5-pound or three 10-pound packages.","6/5 lb or 3/10 lb bag","1.00 oz equivalent meat*","Approximately 1.7 ounces of fajita chicken strips credits as 1 ounce equivalent meat/meat alternate. Use vendor CN Label or Product Formulation Statement to confirm crediting information.",null,null,null,"110394 Tortillas, Whole Grain or Whole Grain-Rich, 8 inch, Frozen"]
[null,null,null,110921,"Chicken, Grilled Fillet, 2.0 MMA, Cooked, Frozen","Poultry","This item is produced from ready-to-cook boneless, skinless, marinated chicken breast meat with a whole breast fillet appearance. The product is pre-cooked and contains grill markings. The item is shipped frozen in 30 pound cases containing six 5-pound or three 10- pound packages.","6/5 lb or 3/10 lb bag","2.00 oz equivalent meat*","Approximately 2.45 ounces of chicken fillet credits as 2 ounce equivalents meat/meat alternate. Use vendor CN Label or Product Formulation Statement to confirm crediting information.",null,null,null,"110396 Cheese, Mozzarella, Low Moisture Part Skim, String, Chilled"]
[null,null,null,110080,"Chicken, Oven Roasted, Cut-up, Cooked, Frozen ","Poultry","This item is oven-roasted cut-up chicken made from U.S. Grade A chicken. The product includes breasts, thighs, drumsticks, and wings. It is delivered frozen in a 30 pound case.","3/10 lb bag","1.00 oz equivalent meat*","1 ounce of cooked chicken meat without bone credits as 1 ounce equivalent meat/meat alternate. Use vendor CN Label or Product Formulation Statement to confirm crediting information.",null,null,null,"110400 Yogurt, High-Protein, Blueberry, Chilled (K)"]
[null,null,null,111881,"Chicken, Pulled, Cooked, Frozen","Poultry","This item is fully cooked, minimally seasoned pulled white meat chicken. This product is delivered frozen in cases containing six 5-pound or three 10-pound packages.","8/5 lb or 4/10 lb bag","1.00 oz equivalent meat*","Approximately 2 ounces of pulled chicken credits as 2 ounce equivalent meat/meat alternate. Confirm individual vendor crediting by using the CN Label or the product formulation statement.",null,null,null,"110401 Yogurt, High-Protein, Strawberry, Chilled (K)"]
[null,null,null,110462,"Chicken, Unseasoned Grilled Strips, Cooked, Frozen","Poultry","This item is fully cooked strips of chicken meat with grill marks and a light marinade to retain moisture. The item contains at least 70% white meat content with the remainder coming from dark meat. Each strip is at least 1/2 inch wide and 1 inch long. This item is shipped frozen in 30 pound cases containing six 5- pound or three 10-pound packages.","6/5 lb or 3/10 lb bag","1.00 oz equivalent meat*","Approximately 1.5 ounces of unseasoned chicken strips credits as 1 ounce equivalent meat/meat alternate. Use vendor CN Label or Product Formulation Statement to confirm crediting information.",null,null,null,"110402 Yogurt, High-Protein, Vanilla, Chilled (K)"]
[null,null,null,100121,"Turkey, Deli Breast, Frozen ","Poultry","This item is fully cooked deli-style turkey produced from formed turkey breast meat. This product is shipped frozen in cases containing four individually vacuum-packed deli breasts that are 9-11 pounds.","4/10 lb logs","2.00 oz equivalent meat*","Approximately 1.59 ounces of turkey deli breast credits as 1 ounce equivalent meat/meat alternate. Use vendor CN Label or Product Formulation Statement to confirm crediting information.",null,null,null,"110425 Spinach, Chopped, No Salt Added, Frozen (IQF)"]
[null,null,null,111900,"Turkey, Deli Breast, Sliced, Frozen","Poultry","This item is fully cooked deli-style turkey produced from formed turkey breast meat. This product contains thinly sliced deli meat in a shingle layered package. This item is shipped frozen in cases containing eight 5-pound packages.","8/5 lb package","2.00 oz equivalent meat*","Approximately 1.43 ounces of turkey deli breast credits as 1 ounce equivalent meat/meat alternate. Use vendor CN Label or Product Formulation Statement to confirm crediting information.",null,null,null,"110462 Chicken, Unseasoned Grilled Strips, Cooked, Frozen"]
[null,null,null,100122,"Turkey, Deli Breast, Smoked, Frozen ","Poultry","This item is fully cooked deli-style smoked turkey produced from formed turkey breast meat. This product is shipped frozen in cases containing four individually vacuum-packed deli breasts that are 9-11 pounds.","4/10 lb logs","2.00 oz equivalent meat*","Approximately 1.5 ounces of smoked deli turkey breast credits as 1 ounce equivalent meat/meat alternate. Use vendor CN Label or Product Formulation Statement to confirm crediting information.",null,null,null,"110473 Broccoli Florets, No Salt Added, Frozen"]
[null,null,null,111882,"Turkey, Deli Breast, Smoked, Sliced, Frozen","Poultry","This item is fully cooked deli-style smoked turkey produced from formed turkey breast meat. It comes thinly sliced in shingle layered packaging. This product is shipped frozen in cases containing eight 5-pound packages.","8/5 lb package","2.00 oz equivalent meat*","Approximately 1.5 ounces of smoked deli turkey breast credits as 1 ounce equivalent meat/ meat alternate. Use vendor CN Label or Product Formulation Statement to confirm crediting information.",null,null,null,"110480 Carrots, Diced, No Salt Added, Frozen"]
[null,null,null,100126,"Turkey, Deli Ham, Smoked, Frozen","Poultry","This item is fully cooked smoked turkey ham produced from turkey thigh meat. This product is shipped frozen in cases containing four 10-pound vacuum-sealed packages.","4/10 lb logs","2.00 oz equivalent meat*","Approximately 1.63 ounces of turkey ham credits as 1 ounce equivalent meat/meat alternate. Use vendor CN Label or Product Formulation Statement to confirm crediting information.",null,null,null,"110501 Pasta, Macaroni, Whole Grain-Rich Blend"]
[null,null,null,111893,"Turkey, Deli Ham, Smoked, Sliced, Frozen","Poultry","This item is fully cooked smoked turkey ham produced from turkey thigh meat. This product is presliced and shipped frozen in cases containing eight 5- pound vacuum-sealed packages.","8/5 lb package","2.00 oz equivalent meat*","Approximately 1.54 ounces of turkey ham credits as 1 ounce equivalent meat/meat alternate. Use vendor CN Label or Product Formulation Statement to confirm crediting information.",null,null,null,"110504 Pasta, Rotini, Whole Grain-Rich Blend"]
[null,null,null,100125,"Turkey, Roast, Raw, Frozen ","Poultry","This item is Grade A, ready-to-cook turkey roast produced from breast meat, thigh meat, and skin. This product is shipped frozen in cases containing four 8-12 pound roasts.","4/8-12 lb roasts","1.00 oz equivalent meat","1 ounce cooked turkey roast credits as 1 ounce equivalent meat/meat alternate",null,null,null,"110506 Pasta, Spaghetti, Whole Grain-Rich Blend"]
[null,null,null,100119,"Turkey, Taco Filling, Cooked, Frozen ","Poultry","This item is a fully cooked turkey taco filling that consists of ground turkey and spices/seasonings. This product is delivered frozen in a 30-pound case containing ten 3-pound or six 5-pound packages.","10/3 lb or 6/5 lb bag","1.00 oz equivalent meat*","Approximately 1.72 ounces of fully cooked turkey taco filling credits as 1 ounce equivalent meat/meat alternate. Use vendor CN Label or Product Formulation Statement to confirm crediting information.",null,null,null,"110520 Pasta, Penne, Whole Grain-Rich Blend"]
[null,null,null,111368,"K Chicken, Cut-Up, Frozen","Poultry",null,"40 lb case","1.00 oz equivalent meat*",null,null,null,null,"110541 Applesauce, Unsweetened, Canned (K)"]
[null,null,null,100307,"Beans, Green, Low-sodium, Canned (K)","Vegetables","This item is U.S. Grade B or better cut green beans that are one inch in length or longer and are low‐sodium. This product is available in cases containing six #10 cans.","6/#10 can","1/2 cup, drained","½ cup heated, drained green beans credits as ½ cup other vegetable",null,null,null,"110562 Sweet Potatoes, Cubes, No Salt Added, Frozen"]
[null,null,null,100351,"Beans, Green, No Salt Added, Frozen ","Vegetables","This item is U.S. Grade B or better frozen green beans with no salt added.  These green beans are cut into pieces that must be one inch or longer.  This product is delivered frozen in a 30 pound bulk case.","30 lb case","1/2 cup, thawed","½ cup cooked, drained green beans credits as ½ cup other vegetable",null,null,null,"110623 Blueberries, Unsweetened, Frozen "]
[null,null,null,111054,"Beans, Green, No Salt Added, Frozen ","Vegetables","This item is U.S. Grade B or better frozen green beans with no salt added.  These green beans are cut into pieces that must be one inch or longer.  This product is delivered frozen in a case with twelve 2‐pound packages.","12/2 lb bag","1/2 cup, thawed","½ cup cooked, drained green beans credits as ½ cup other vegetable",null,null,null,"110624 Blueberries, Unsweetened, Frozen "]
[null,null,null,110473,"Broccoli Florets, No Salt Added, Frozen","Vegetables","This item is U.S. Grade A broccoli in short spears or florets. This product is delivered frozen in a case with 6/5 pound bags.","30 lb case","1/2 cup, thawed","½ cup cooked broccoli credits as ½ cup dark green vegetable",null,null,null,"110711 Beef, Patties, Cooked, 2.0 MMA, Frozen"]
[null,null,null,110480,"Carrots, Diced, No Salt Added, Frozen","Vegetables","This item is Grade A frozen carrots that are diced into 3/8‐1/2 inch cubes. This product is delivered frozen in a 30 pound bulk case.","30 lb case","1/2 cup, thawed","½ cup cooked, drained carrots credits as ½ cup red/orange vegetable",null,null,null,"110721 Sweet Potatoes, Crinkle Cut Fries, Low-Sodium, Frozen"]
[null,null,null,111052,"Carrots, Diced, No Salt Added, Frozen","Vegetables","This item is Grade A frozen carrots that are diced into 3/8‐1/2 inch cubes. This product is delivered frozen in 12 2‐pound packages.","12/2 lb bag","1/2 cup, thawed","½ cup cooked, drained carrots credits as ½ cup red/orange vegetable",null,null,null,"110723 Cranberries, Dried, Individual Portion"]
[null,null,null,100309,"Carrots, Sliced, Low-sodium, Canned ","Vegetables","This product is U.S. Grade A carrots that are sliced, less than 1.75 inches in diameter and are low‐sodium. This item is available in cases containing six #10 cans.","6/#10 can","1/2 cup, drained","½ cup heated, drained carrots credits as ½ cup red/orange vegetable",null,null,null,"110724 Pepper/Onion Strips, No Salt Added, Frozen"]
[null,null,null,100352,"Carrots, Sliced, No Salt Added, Frozen ","Vegetables","This item is Grade A frozen sliced carrots that can be either straight or crinkle cut and have a maximum diameter of 1.5 inches. This item is delivered frozen in a 30‐pound case.","30 lb case","1/2 cup, thawed","½ cup cooked, drained carrots credits as ½ cup red/orange vegetable",null,null,null,"110730 Pork, Pulled, Cooked, Frozen"]
[null,null,null,100313,"Corn, Whole Kernel, No Salt Added, Canned (K)","Vegetables","This product is U.S. Grade B whole kernel corn that is canned with no added salt. This item is available in cases containing six #10 cans.","6/#10 can","1/2 cup, drained","½ cup heated, drained corn credits as ½ cup starchy vegetable",null,null,null,"110763 Peas, Green, No Salt Added, Frozen "]
[null,null,null,100348,"Corn, Whole Kernel, No Salt Added, Frozen ","Vegetables","This item is U.S. Grade B or better whole kernel yellow corn with no added salt. It is delivered frozen in a 30 pound case.","30 lb case","1/2 cup, thawed","½ cup cooked corn credits as ½ cup starchy vegetable",null,null,null,"110844 Potatoes, Diced, No Salt Added, Frozen"]
[null,null,null,111053,"Corn, Whole Kernel, No Salt Added, Frozen ","Vegetables","This item is U.S. Grade B or better whole kernel yellow corn with no added salt. It is delivered frozen in a case with 12 2.5‐pound packages.","12/2.5 lb bag","1/2 cup, thawed","½ cup cooked corn credits as ½ cup starchy vegetable",null,null,null,"110845 Eggs, Liquid Whole, Frozen "]
[null,null,null,111230,"Mixed Vegetables, No Salt Added, Frozen","Vegetables","This product is a U.S. Grade B or better vegetable mix that includes diced carrots, corn, green beans, and peas, with no added salt. Carrots are diced approximately 3/8 to 1/2 inch cube and green beans are cut approximately 1/2—1 1/2 inches long. This product is delivered frozen in cases with six 5‐pound packages.","6/5 lb bag","1/2 cup, thawed","½ cup mixed vegetables credits as ½ cup additional vegetable",null,null,null,"110846 Strawberries, Whole, Unsweetened, Frozen (IQF)"]
[null,null,null,100315,"Peas, Green, Low-sodium, Canned ","Vegetables","This item is U.S. Grade B or better green sweet peas that are low‐sodium. This item is available in cases containing six #10 cans.","6/#10 can","1/2 cup, drained","½ cup heated, drained peas credits as ½ cup starchy vegetable",null,null,null,"110851 Alaska Pollock, Whole Grain-Rich Breaded Sticks, Frozen"]
[null,null,null,100350,"Peas, Green, No Salt Added, Frozen ","Vegetables","This item is U.S. Grade B or better frozen peas with no salt added. This item is delivered frozen in a 30 pound case.","30 lb case","1/2 cup, thawed","½ cup cooked, drained green peas credits as ½ cup starchy vegetable",null,null,null,"110854 Peanut Butter, Individual Portion, Smooth"]
[null,null,null,110763,"Peas, Green, No Salt Added, Frozen ","Vegetables","This item is U.S. Grade B or better frozen peas with no salt added. This item is delivered frozen in a case with 12 2.5‐pound packages.","12/2.5 lb bag","1/2 cup, thawed","½ cup cooked, drained green peas credits as ½ cup starchy vegetable",null,null,null,"110857 Flour, 100% White Whole Wheat"]
[null,null,null,110724,"Pepper/Onion Strips, No Salt Added, Frozen","Vegetables","This item is a blend of U.S. Grade A frozen pepper strips with frozen onion strips. This product will include a mix of red peppers, green peppers, and onions cut into 3/8 inch wide strips. This item is delivered frozen in a 30 pound case.","30 lb case","1/2 cup, thawed","½ cup cooked, drained pepper/onion blend credits as ½ cup other vegetable",null,null,null,"110859 Mixed Berries (Blueberries, Strawberries), Cups, Frozen"]
[null,null,null,110844,"Potatoes, Diced, No Salt Added, Frozen","Vegetables","This item is U. S. Grade A diced potatoes. The potatoes are blanched and diced in approximately 1/2 x 1/2 inch cubes, with no added salt. This product is delivered frozen in cases containing six 5‐pound bags.","6/5 lb bag","1/2 cup, thawed","½ cup cooked, diced potatoes credit as ½ cup starchy vegetable",null,null,null,"110860 Strawberries, Sliced, Unsweetened, Frozen (IQF)"]
[null,null,null,100357,"Potatoes, Oven Fries, Low-sodium, Frozen ","Vegetables","This item is U.S. Grade A French cut oven ready potatoes that are low‐sodium. This product is delivered frozen in cases containing six 5‐pound packages.","6/5 lb bag","1/2 cup, thawed","½ cup cooked potatoes credits as ½ cup starchy vegetable",null,null,null,"110872 Cherries, Sweet, Pitted, Unsweetened, Frozen (IQF)"]
[null,null,null,100356,"Potatoes, Wedges, Fat Free, Low-sodium, Frozen (IQF)","Vegetables","This item is U. S. Grade A individually quick frozen (IQF) potato wedges prepared from Russet type potatoes. The potato wedges are low‐sodium and fat free as they are just blanched with water. This item is delivered frozen in cases containing six 5‐pound bags.","6/5 lb bag","1/2 cup, thawed","½ cup baked potato wedges credits as ½ cup starchy vegetable",null,null,null,"110921 Chicken, Grilled Fillet, 2.0 MMA, Cooked, Frozen"]
[null,null,null,100355,"Potatoes, Wedges, Low-sodium, Frozen (IQF)","Vegetables","This item is U. S. Grade A individually quick frozen (IQF) potato wedges prepared from Russet type potatoes. The potato wedges are low‐sodium and they are blanched with oil and water to be an oven ready item. This product is delivered frozen in cases containing six 5‐pound bags.","6/5 lb bag","1/2 cup, thawed","½ cup baked potato wedges credits as ½ cup starchy vegetable",null,null,null,"111052 Carrots, Diced, No Salt Added, Frozen"]
[null,null,null,100330,"Salsa, Low-sodium, Canned ","Vegetables","This item is low‐sodium tomato salsa made from peeled tomatoes, tomato puree, fresh or dried onions, green peppers, garlic, and jalapenos to achieve a medium spice level. Additional flavoring and ingredients are permitted. This item is available in cases containing six #10 cans.","6/#10 can","1/2 cup","½ cup salsa credits as ½ cup red/orange vegetable",null,null,null,"111053 Corn, Whole Kernel, No Salt Added, Frozen "]
[null,null,null,110186,"Salsa, Low-sodium, Pouch ","Vegetables","This item is low‐sodium tomato salsa made from peeled tomatoes, tomato puree, fresh or dried onions, green peppers, garlic, and jalapenos to achieve a medium spice level. Additional flavoring and ingredients are permitted. This item is available in cases containing six 106‐ounce pouches.","6/106 oz pouch","1/2 cup","½ cup salsa credits as ½ cup red/orange vegetable",null,null,null,"111054 Beans, Green, No Salt Added, Frozen "]
[null,null,null,100336,"Spaghetti Sauce, Low-sodium, Canned","Vegetables","This item is a low‐sodium, smooth spaghetti sauce. It has a tomato base with basil, garlic, onion, and other spices used to achieve a traditional spaghetti sauce flavor. This item is low‐sodium and is available in cases containing six #10 cans.","6/#10 can","1/2 cup","½ cup spaghetti sauce credits as ½ cup red/orange vegetable",null,null,null,"111110 Cheese, Cheddar, Yellow, Sliced, Chilled"]
[null,null,null,110177,"Spaghetti Sauce, Low-sodium, Pouch","Vegetables","This item is a low‐sodium, smooth spaghetti sauce. It has a tomato base with basil, garlic, onion, and other spices used to achieve a traditional spaghetti sauce flavor. This item is low‐sodium and is available in cases containing six 106‐ounce pouches.","6/106 oz pouch","1/2 cup","½ cup spaghetti sauce credits as ½ cup red/orange vegetable",null,null,null,"111220 Cheese, Pepper Jack, Shredded, Chilled"]
[null,null,null,110425,"Spinach, Chopped, No Salt Added, Frozen (IQF)","Vegetables","This is U.S. Grade A frozen, chopped spinach. This product is individually quick frozen or IQF meaning that each piece is frozen separately and a scoop can be used to take out exactly what is needed. This item is delivered frozen in a 20‐pound case.","20 lb case","1/2 cup, thawed","½ cup cooked spinach credits as ½ cup dark green vegetable",null,null,null,"111230 Mixed Vegetables, No Salt Added, Frozen"]
[null,null,null,110562,"Sweet Potatoes, Cubes, No Salt Added, Frozen","Vegetables","This item is U.S. Grade A sweet potatoes cut into 1/2 to 1 inch cubes with no added salt. This item is delivered frozen in cases containing six 5‐pound packages.","6/5 lb bag","1/2 cup, thawed","½ cup cooked sweet potatoes credit as ½ cup red/orange vegetable",null,null,null,"111361 Chicken, Cut-up, Raw, Frozen"]
[null,null,null,110721,"Sweet Potatoes, Crinkle Cut Fries, Low-Sodium, Frozen","Vegetables","This item is U.S. Grade A sweet potato crinkle cut oven fries. Each piece is approximately 2 inches in length or longer and the product is low‐sodium. This item is delivered frozen in cases with six 5‐pound packages.","6/5 lb bag","1/2 cup, thawed","½ cup cooked sweet potato fries credit as ½ cup red/orange vegetable",null,null,null,"111368 K Chicken, Cut-Up, Frozen"]
[null,null,null,100317,"Sweet Potatoes, Light Syrup, No Salt Added, Canned ","Vegetables","This item is U.S. Grade A canned sweet potatoes that contain whole, halved, or pieces of sweet potatoes packed in light syrup with no added salt. This product is available in cases containing six #10 cans.","6/#10 can","1/2 cup, drained","½ cup of heated sweet potatoes credit as ½ cup red/orange vegetable",null,null,null,"111643 Cherries, Tart, Dried, Individual Portion"]
[null,null,null,100327,"Tomato Paste, No Salt Added, Canned ","Vegetables","This item is U.S. Grade A canned tomato paste with no salt added. This product can be extra heavy, heavy, medium or light concentration with a fine or coarse texture. This item is available cases containing six #10 cans.","6/#10 can","2 TBSP (1/2 cup equivalent)","2 Tablespoons of tomato paste credit as ½ cup red/orange vegetable",null,null,null,"111750 Yogurt, High-Protein, Vanilla, Chilled (K)"]
[null,null,null,100334,"Tomato Sauce, Low-sodium, Canned ","Vegetables","This item is U.S. Grade A tomato sauce which may include spices, sweetening ingredients, vinegar, onions, garlic, or other vegetable flavoring. This item is low‐sodium and is available in cases containing six #10 cans.","6/#10 can","1/2 cup","½ cup tomato sauce credits as ½ cup red/orange vegetable",null,null,null,"111751 Eggs, Patties, Cooked, 1.0 MMA, Round, Frozen"]
[null,null,null,110187,"Tomato Sauce, Low-sodium, Pouch ","Vegetables","This item is U.S. Grade A tomato sauce which may include spices, sweetening ingredients, vinegar, onions, garlic, or other vegetable flavoring. This item is low‐sodium and is available in cases containing six 106‐ounce pouches.","6/106 oz pouch","1/2 cup ","½ cup tomato sauce credits as ½ cup red/orange vegetable",null,null,null,"111790 Apple Juice, 100%, Unsweetened, Cups, Frozen "]
[null,null,null,100329,"Tomatoes, Diced, No Salt Added, Canned ","Vegetables","This item is U.S. Grade B or better canned diced tomatoes with no salt added. This item is available in cases with six #10 cans.","6/#10 can","1/2 cup","½ cup heated tomatoes and juice credits as ½ cup red/orange vegetable",null,null,null,"111860 Black Bean Burger, Patties, Cooked, 2.0 MMA, Frozen"]
[null,null,null,111750,"Yogurt, High-Protein, Vanilla, Chilled (K)","Yogurt","This item is a nonfat vanilla high protein yogurt. This yogurt is delivered refrigerated and is offered in cases containing six 32-ounce containers. This product is required to contain a commercial Kosher certification, with approved symbols identified in the specification.","6/32 oz tub","4.00 oz (1 oz equivalent meat alternate)","½ cup of yogurt credits as 1 ounce equivalent meat/meat alternate",null,null,null,"111881 Chicken, Pulled, Cooked, Frozen"]
[null,null,null,110400,"Yogurt, High-Protein, Blueberry, Chilled (K)","Yogurt","This item is a nonfat high protein yogurt that is blueberry flavor and is blended. This yogurt is delivered refrigerated and is offered in cases containing twenty-four 4-ounce cups. This product is required to contain a commercial Kosher certification, with approved symbols identified in the specification.","24/4 oz cup","4.00 oz (1 oz equivalent meat alternate)","One 4-ounce cup of yogurt credits as 1 ounce equivalent meat/meat alternate",null,null,null,"111882 Turkey, Deli Breast, Smoked, Sliced, Frozen"]
[null,null,null,110401,"Yogurt, High-Protein, Strawberry, Chilled (K)","Yogurt","This item is a nonfat high protein yogurt that is strawberry flavor and is blended. This yogurt is delivered refrigerated and is offered in cases containing twenty-four 4-ounce cups. This product is required to contain a commercial Kosher certification, with approved symbols identified in the specification.","24/4 oz cup","4.00 oz (1 oz equivalent meat alternate)","One 4-ounce cup of yogurt credits as 1 ounce equivalent meat/meat alternate",null,null,null,"111893 Turkey, Deli Ham, Smoked, Sliced, Frozen"]
[null,null,null,110402,"Yogurt, High-Protein, Vanilla, Chilled (K)","Yogurt","This item is a nonfat vanilla high protein yogurt. This yogurt is delivered refrigerated and is offered in cases containing twenty-four 4-ounce cups. This product is required to contain a commercial Kosher certification, with approved symbols identified in the specification.","24/4 oz cup","4.00 oz (1 oz equivalent meat alternate)","One 4-ounce cup of yogurt credits as 1 ounce equivalent meat/meat alternate",null,null,null,"111900 Turkey, Deli Breast, Sliced, Frozen"]